Workbook

Sheet 001別紙様式２
I1: ←事業所ファイルを取り込むために左のボタンを押して下さい。 （事業所のシートが重複している場合は、不要なシートを削除してからボタンを押してください。）
A4: 別紙様式２
L5: 福祉・介護職員等特定処遇改善計画書(令和 | O5: 年度届出用)
A7: 事業所等情報 | I7: 障害福祉サービス等事業所番号
A9: 事業者・開設者 | E9: フリガナ
E10: 名 称
A11: 主たる事務所の所在地 | E11: 〒
H12: 都・道 府・県
E14: 電話番号 | M14: FAX番号
A15: 事業所等の名称 | E15: フリガナ | O15: 提供する サービス
E16: 名 称
A17: 事業所の所在地 | E17: 〒
H18: 都・道 府・県
E20: 電話番号 | M20: FAX番号
A21: 複数の事業所ごとに一括して提出する場合における一括して提出する事業所数 | M21: 特定加算(Ⅰ)（ | Q21: ='006各シート集約'!AA4 -> 0 | S21: ）事業所
A22: ※この場合、事業所等情報については、「別紙一覧表による」と記載すること。 | M22: 特定加算(Ⅱ)（ | Q22: ='006各シート集約'!AA5 -> 0 | S22: ）事業所
M23: 特定加算(区分なし)（ | Q23: ='006各シート集約'!AA6 -> 0 | T23: ）事業所
A25: （１）賃金改善計画について(本計画に記載された金額については見込みの額であり、申請時以降の運営状況(利用者数等)、 人員配置状況(職員数等)その他の事由により変動があり得るものである。)
A27: ① | B27: 算定する加算の区分 | I27: 福祉・介護職員等特定処遇改善加算（ | P27: □ | Q27: Ⅰ | R27: □ | S27: Ⅱ | T27: □ | U27: 区分なし）
A28: ② | B28: 現行の処遇改善加算の取得状況 | I28: 福祉・介護職員処遇改善加算 （ | P28: □ | Q28: Ⅰ | R28: □ | S28: Ⅱ | T28: □ | U28: Ⅲ ）
A29: ③ | B29: 福祉専門職員配置等加算等の取得状況 | I29: 取得有（ | K29: □ | L29: 福祉専門職員配置等加算 ・ | Q29: □ | R29: 特定事業所加算 ) | U29: □ | V29: 取得無
A30: ④ | B30: 福祉・介護職員等特定処遇改善加算算定対象月 | I30: 令和 | L30: 年 | N30: 月 | O30: ～ | Q30: 令和 | T30: 年 | V30: 月 | X30: ↓特定加算額と賃金改善額のチェック関数が入っています。
A31: ⑤ | B31: 令和 | D31: 年度福祉・介護職員等特定処遇改善加算の見込額 | N31: ='006各シート集約'!F4 -> 0 | W31: 円 | X31: =IF(N31<=N32,"OK","賃金改善額（見込み）が特定加算額を下回っています。事業所ファイルの賃金改善額等を設定し直してください。") -> OK
A32: ⑥ | B32: 賃金改善の見込額(ⅰ－ⅱ) | N32: =N33-N34 -> 0 | W32: 円
B33: ⅰ）加算の算定により賃金改善を行った場合の賃金の総額（見込額） | N33: =_xlfn.AGGREGATE(9,6,N36,N41,N45) -> 0 | W33: 円 | X33: ↓配分ルールのチェック関数が入っています。
B34: ⅱ）初めて加算を取得する（した）月の前年度の賃金の総額 | N34: =_xlfn.AGGREGATE(9,6,N37,N42,N46) -> 0 | W34: 円 | X34: =IF(N35/N40>=2,"OK","経験・技能のある障害福祉人材➊の平均賃金改善額が、他の障害福祉人材➋の２倍未満となっています。事業所ファイルの賃金改善額等を設定し直してください。") -> 
A35: ⑦ | B35: 経験・技能のある障害福祉人材（➊）における平均賃金改善額（（ⅲ－ⅳ）／ⅴ) | N35: =ROUND((N36-N37)/N38,0) ->  | R35: 円・ | S35: ='006各シート集約'!O4 -> 0 | W35: 人
B36: ⅲ）加算の算定により賃金改善を行った場合の賃金の総額（見込額） | N36: ='006各シート集約'!M4 -> 0 | W36: 円 | X36: ↓リーダー級（平均月額８万円の賃金改善または年収440万円）のチェック関数が入っています。
B37: ⅳ）初めて加算を取得する（した）月の前年度の賃金の総額 | N37: ='006各シート集約'!L4 -> 0 | W37: 円 | X37: =IF(SUM(Q21:Q23)<=S39,"OK","事業所数に応じたリーダー級の設定がされていません。事業所ファイルの賃金改善額等を設定し直すか、リーダー級を設定できない理由を⑪に記載してください。") -> OK
B38: ⅴ）当該事業所における経験・技能のある障害福祉人材の人数 | N38: ='006各シート集約'!J4 -> 0 | W38: 人
B39: 【そのうち、月額８万円の改善又は改善後の賃金が年額440万円以上となる者（見込数） | S39: ='006各シート集約'!N4 -> 0 | W39: 人】 | X39: ↓配分ルールのチェック関数が入っています。
A40: ⑧ | B40: 他の障害福祉人材（➋）における平均賃金改善額（（ⅵ－ⅶ）／ⅷ) | N40: =ROUND((N41-N42)/N43,0) ->  | R40: 円・ | S40: ='006各シート集約'!T4 -> 0 | W40: 人 | X40: =IF(N42/N43<N46/N47,IF(N40/N44>=2,"OK","他の障害福祉人材➋の平均賃金改善額が、その他の職種➌の２倍未満となっています。事業所ファイルの賃金改善額等を設定し直してください。"),IF(N40/N44>=2,"OK",IF(N40>=N44,"他の障害福祉人材➋の平均賃金改善額が、その他の職種➌の２倍未満となっています。賃金改善前の平均賃金について➌が➋以下の場合に可能な例外的な賃金改善（1:1）を行う場合は、その旨を⑪に記載してください。","他の障害福祉人材➋の平均賃金改善額が、その他の職種➌を下回っています。事業所ファイルの賃金改善額等を設定し直してください。"))) -> 
B41: ⅵ）加算の算定により賃金改善を行った場合の賃金の総額（見込額） | N41: ='006各シート集約'!S4 -> 0 | W41: 円
B42: ⅶ）初めて加算を取得する（した）月の前年度の賃金の総額 | N42: ='006各シート集約'!R4 -> 0 | W42: 円
B43: ⅷ）当該事業所における他の障害福祉人材の人数 | N43: ='006各シート集約'!P4 -> 0 | W43: 人
A44: ⑨ | B44: その他の職種（➌）平均賃金改善額（（ⅸ－ⅹ）／ⅺ) | N44: =ROUND((N45-N46)/N47,0) ->  | R44: 円・ | S44: ='006各シート集約'!Z4 -> 0 | W44: 人
B45: ⅸ）加算の算定により賃金改善を行った場合の賃金の総額（見込額） | N45: ='006各シート集約'!X4 -> 0 | W45: 円
B46: ⅹ）初めて加算を取得する（した）月の前年度の賃金の総額 | N46: ='006各シート集約'!W4 -> 0 | W46: 円
B47: ⅺ）当該事業所におけるその他の職種の人数 | N47: ='006各シート集約'!U4 -> 0 | W47: 人 | X47: ↓その他の職種の上限（年収440万円）のチェック関数が入っています。
B48: 【そのうち、改善後の賃金が最も高額な者の賃金（見込額） | N48: ='006各シート集約'!Y4 -> 0 | W48: 円】 | X48: =IF(4400000>=N48,"OK","常勤換算年収が440万円を超えているその他の職種➌の方がいます。事業所ファイルの賃金改善額等を設定し直してください。") -> OK
A49: ⑩ | B49: 賃金改善実施期間 | I49: 令和 | L49: 年 | N49: 月 | O49: ～ | Q49: 令和 | T49: 年 | V49: 月
B50: ※原則１０月～翌年３月までの連続する期間を記入すること。なお、当該期間の月数は加算の対象月数を超えてはならない。
A51: ⑪ | B51: 賃金改善を行う賃金項目及び方法(賃金改善を行う賃金項目（増額若しくは新設した又はする予定である給与の項目の種類（基本給、手当、賞与等）等）、賃金改善の実施時期や対象職員、一人当たりの平均賃金改善見込額について、可能な限り具体的に記載すること。なお➊の「経験・技能のある障害福祉人材」の基準設定の考え方については必ず記載すること。
A58: ※ ⑥については、法定福利費等の賃金改善に伴う増加分も含むことができる。
A59: ※ ⑥が⑤を上回らなければならないこと。
A60: ※ ⑥ⅱ）の計算に際しては、賃金改善実施期間の職員の人数と合わせた上で算出すること。すなわち、比較時点から賃金改善実施期間の始点までに 職員が増加した場合、当該職員と同等の勤続年数の職員が比較時点にもいたと仮定して、賃金総額に上乗せする必要があることに留意すること。
A62: ※ 複数の障害福祉サービス事業所等について一括して提出する場合、以下の添付書類についても作成すること。
A63: ・添付書類１：都道府県等の圏域内の、当該計画書に記載された計画の対象となる障害福祉サービス事業所等の一覧表（指定権者ごと）
A64: ・添付書類２：各都道府県内の指定権者（当該都道府県を含む。）の一覧表（都道府県ごと）
A65: ・添付書類３：計画書に記載された計画の対象となる障害福祉サービス事業者等に係る都道府県の一覧表
A67: (２) 職場環境等要件について
A68: （※）太枠内に記載すること。
A69: 平成２０年１０月から現在までに実施した事項について必ず全てに☑をつけること。複数の取組を行い、「資質の向上」、「労働環境・処遇の改善」 及び「その他」について、それぞれ１つ以上の取組を行うこと。
A71: 資質の向上 | D71: □ | E71: 働きながら介護福祉士等の資格取得を目指す者に対する実務者研修受講支援や、より専門性の高い支援技術を取得しようとする者に対する喀痰吸引研修、強度行動障害支援者養成研修、サービス提供責任者研修、中堅職員に対するマネジメント研修の受講支援（研修受講時の他の福祉・介護職員の負担を軽減するための代替職員確保を含む）
D72: □ | E72: 研修の受講やキャリア段位制度と人事考課との連動
D73: □ | E73: 小規模事業者の共同による採用・人事ローテーション・研修のための制度構築
D74: □ | E74: キャリアパス要件に該当する事項（キャリアパス要件を満たしていない障害福祉サービス事業者に限る）
D75: □ | E75: その他（ | W75: ）
A76: 労働環境・処遇の改善 | D76: □ | E76: 新人福祉・介護職員の早期離職防止のためのエルダー・メンター（新人指導担当者）制度等の導入
D77: □ | E77: 雇用管理改善のための管理者の労働・安全衛生法規、休暇・休職制度に係る研修受講等による雇用管理改善対策の充実
D78: □ | E78: ＩＣＴ活用（支援内容や申し送り事項の共有（事業所内に加えタブレット端末を活用し訪問先でアクセスを可能にすること等を含む）による福祉・介護職員の事務負担軽減、個々の利用者へのサービス履歴・訪問介護員の出勤情報管理によるサービス提供責任者のシフト管理に係る事務負担軽減、利用者情報蓄積による利用者個々の特性に応じたサービス提供等）による業務省力化
D79: □ | E79: 福祉・介護職員の腰痛対策を含む負担軽減のための介護ロボットやリフト等の介護機器等の導入
D80: □ | E80: 子育てとの両立を目指す者のための育児休業制度等の充実、事業所内保育施設の整備
D81: □ | E81: ミーティング等による職場内コミュニケーションの円滑化による個々の福祉・介護職員の気づきを踏まえた勤務環境や支援内容の改善
D82: □ | E82: 事故・トラブルへの対応マニュアル等の作成による責任の所在の明確化
D83: □ | E83: 健康診断・こころの健康等の健康管理面の強化、職員休憩室・分煙スペース等の整備
D84: □ | E84: その他（ | W84: ）
A85: その他 | D85: □ | E85: 障害福祉サービス等情報公表制度の活用による経営・人材育成理念の見える化
D86: □ | E86: 中途採用者（他産業からの転職者、主婦層、中高年齢者等）に特化した人事制度の確立（勤務シフトの配慮、短時間正規職員制度の導入等）)
D87: □ | E87: 障害を有する者でも働きやすい職場環境構築や勤務シフト配慮
D88: □ | E88: 非正規職員から正規職員への転換
D89: □ | E89: 地域の児童・生徒や住民との交流による地域包括ケアの一員としてのモチベーション向上
D90: □ | E90: 職員の増員による業務負担の軽減
D91: □ | E91: その他（ | W91: ）
A93: (３) 見える化要件について
A94: （※）太枠内に記載すること。
A95: 実施している周知方法について、☑をつけること。2020年度から実施予定である場合には、「予定」に☑をつけること。
A96: ホームページへの掲載 | D96: □ | E96: 「障害福祉サービス等情報公表検索サイト」への掲載 ／ | N96: □ | O96: 予定
D97: □ | E97: 独自のホームページへの掲載 ／ | K97: □ | L97: 予定
A98: その他の方法による掲示等 | D98: □ | E98: 事業所・施設の建物で、外部から見える場所への掲示 ／ | N98: □ | O98: 予定
D99: □ | E99: その他（ | W99: ）
A101: ※ 虚偽の記載や、福祉・介護職員等特定処遇改善加算の請求に関して不正を行った場合には、支払われた介護給付費等の返還を求められることや 障害福祉サービス事業者等の指定が取り消される場合があるので留意すること。
A103: 本計画書については、雇用するすべての職員に対し周知をしたうえで、提出していることを証明いたします。
B105: 令和 | D105: 年 | F105: 月 | H105: 日 | I105: （法 人 名）
I106: （代表者名） | V106: 印

Sheet 002添付書類１
A1: 1 | B1: 2 | C1: 3 | D1: 4 | E1: 5 | F1: 6 | G1: 7 | H1: 8 | I1: 9 | J1: 10 | K1: 11 | L1: 12 | M1: 13 | N1: 14 | O1: 15 | P1: 16 | Q1: 17 | R1: 18 | S1: 19 | T1: 20 | U1: 21 | V1: 22 | AB1: 北海道
C2: 別紙様式２（添付書類１） | AB2: 青森県
C3: 福祉・介護職員等特定処遇改善計画書(指定権者内事業所一覧表） | AB3: 岩手県
AB4: 宮城県
C5: 法人名 | AB5: 秋田県
AB6: 山形県
AB7: 福島県
AB8: 茨城県
C9: 障害福祉サービス等事業所番号 | M9: 事業所の名称 | N9: サービス名 | Q9: 福祉・介護職員等特定処遇改善加算額（見込額） | T9: 賃金改善額（見込額） | AB9: 栃木県
A10: =$C$7&Y10 -> 1 | C10: =IFERROR(VLOOKUP($A10,$A$182:$V$1081,C$1,FALSE),"") ->  | M10: =IFERROR(VLOOKUP($A10,$A$182:$V$1081,M$1,FALSE),"") ->  | N10: =IFERROR(VLOOKUP($A10,$A$182:$V$1081,N$1,FALSE),"") ->  | Q10: =IFERROR(VLOOKUP($A10,$A$182:$V$1081,Q$1,FALSE),"") ->  | S10: 円 | T10: =IFERROR(VLOOKUP($A10,$A$182:$V$1081,T$1,FALSE),"") ->  | V10: 円 | Y10: 1 | AB10: 群馬県
A11: =$C$7&Y11 -> 2 | C11: ➊➋➌それぞれの賃金改善額（見込額） | N11: ➊ | O11: =IFERROR(VLOOKUP($A11,$A$182:$V$1081,O$1,FALSE),"") ->  | P11: 円 | Q11: ➋ | R11: =IFERROR(VLOOKUP($A11,$A$182:$V$1081,R$1,FALSE),"") ->  | S11: 円 | T11: ➌ | U11: =IFERROR(VLOOKUP($A11,$A$182:$V$1081,U$1,FALSE),"") ->  | V11: 円 | Y11: 2 | AB11: 埼玉県
A12: 3 | N12: （ | O12: =IFERROR(VLOOKUP($A12,$A$182:$V$1081,O$1,FALSE),"") ->  | P12: 人） | Q12: （ | R12: =IFERROR(VLOOKUP($A12,$A$182:$V$1081,R$1,FALSE),"") ->  | S12: 人） | T12: （ | U12: =IFERROR(VLOOKUP($A12,$A$182:$V$1081,U$1,FALSE),"") ->  | V12: 人） | Y12: 3 | AB12: 千葉県
A13: 4 | C13: =IFERROR(VLOOKUP($A13,$A$182:$V$1081,C$1,FALSE),"") ->  | M13: =IFERROR(VLOOKUP($A13,$A$182:$V$1081,M$1,FALSE),"") ->  | N13: =IFERROR(VLOOKUP($A13,$A$182:$V$1081,N$1,FALSE),"") ->  | Q13: =IFERROR(VLOOKUP($A13,$A$182:$V$1081,Q$1,FALSE),"") ->  | S13: 円 | T13: =IFERROR(VLOOKUP($A13,$A$182:$V$1081,T$1,FALSE),"") ->  | V13: 円 | Y13: 4 | AB13: 東京都
A14: 5 | C14: ➊➋➌それぞれの賃金改善額（見込額） | N14: ➊ | O14: =IFERROR(VLOOKUP($A14,$A$182:$V$1081,O$1,FALSE),"") ->  | P14: 円 | Q14: ➋ | R14: =IFERROR(VLOOKUP($A14,$A$182:$V$1081,R$1,FALSE),"") ->  | S14: 円 | T14: ➌ | U14: =IFERROR(VLOOKUP($A14,$A$182:$V$1081,U$1,FALSE),"") ->  | V14: 円 | Y14: 5 | AB14: 神奈川県
A15: 6 | N15: （ | O15: =IFERROR(VLOOKUP($A15,$A$182:$V$1081,O$1,FALSE),"") ->  | P15: 人） | Q15: （ | R15: =IFERROR(VLOOKUP($A15,$A$182:$V$1081,R$1,FALSE),"") ->  | S15: 人） | T15: （ | U15: =IFERROR(VLOOKUP($A15,$A$182:$V$1081,U$1,FALSE),"") ->  | V15: 人） | Y15: 6 | AB15: 新潟県
A16: 7 | C16: =IFERROR(VLOOKUP($A16,$A$182:$V$1081,C$1,FALSE),"") ->  | M16: =IFERROR(VLOOKUP($A16,$A$182:$V$1081,M$1,FALSE),"") ->  | N16: =IFERROR(VLOOKUP($A16,$A$182:$V$1081,N$1,FALSE),"") ->  | Q16: =IFERROR(VLOOKUP($A16,$A$182:$V$1081,Q$1,FALSE),"") ->  | S16: 円 | T16: =IFERROR(VLOOKUP($A16,$A$182:$V$1081,T$1,FALSE),"") ->  | V16: 円 | Y16: 7 | AB16: 富山県
A17: 8 | C17: ➊➋➌それぞれの賃金改善額（見込額） | N17: ➊ | O17: =IFERROR(VLOOKUP($A17,$A$182:$V$1081,O$1,FALSE),"") ->  | P17: 円 | Q17: ➋ | R17: =IFERROR(VLOOKUP($A17,$A$182:$V$1081,R$1,FALSE),"") ->  | S17: 円 | T17: ➌ | U17: =IFERROR(VLOOKUP($A17,$A$182:$V$1081,U$1,FALSE),"") ->  | V17: 円 | Y17: 8 | AB17: 石川県
A18: 9 | N18: （ | O18: =IFERROR(VLOOKUP($A18,$A$182:$V$1081,O$1,FALSE),"") ->  | P18: 人） | Q18: （ | R18: =IFERROR(VLOOKUP($A18,$A$182:$V$1081,R$1,FALSE),"") ->  | S18: 人） | T18: （ | U18: =IFERROR(VLOOKUP($A18,$A$182:$V$1081,U$1,FALSE),"") ->  | V18: 人） | Y18: 9 | AB18: 福井県
A19: 10 | C19: =IFERROR(VLOOKUP($A19,$A$182:$V$1081,C$1,FALSE),"") ->  | M19: =IFERROR(VLOOKUP($A19,$A$182:$V$1081,M$1,FALSE),"") ->  | N19: =IFERROR(VLOOKUP($A19,$A$182:$V$1081,N$1,FALSE),"") ->  | Q19: =IFERROR(VLOOKUP($A19,$A$182:$V$1081,Q$1,FALSE),"") ->  | S19: 円 | T19: =IFERROR(VLOOKUP($A19,$A$182:$V$1081,T$1,FALSE),"") ->  | V19: 円 | Y19: 10 | AB19: 山梨県
A20: 11 | C20: ➊➋➌それぞれの賃金改善額（見込額） | N20: ➊ | O20: =IFERROR(VLOOKUP($A20,$A$182:$V$1081,O$1,FALSE),"") ->  | P20: 円 | Q20: ➋ | R20: =IFERROR(VLOOKUP($A20,$A$182:$V$1081,R$1,FALSE),"") ->  | S20: 円 | T20: ➌ | U20: =IFERROR(VLOOKUP($A20,$A$182:$V$1081,U$1,FALSE),"") ->  | V20: 円 | Y20: 11 | AB20: 長野県
A21: 12 | N21: （ | O21: =IFERROR(VLOOKUP($A21,$A$182:$V$1081,O$1,FALSE),"") ->  | P21: 人） | Q21: （ | R21: =IFERROR(VLOOKUP($A21,$A$182:$V$1081,R$1,FALSE),"") ->  | S21: 人） | T21: （ | U21: =IFERROR(VLOOKUP($A21,$A$182:$V$1081,U$1,FALSE),"") ->  | V21: 人） | Y21: 12 | AB21: 岐阜県
A22: 13 | C22: =IFERROR(VLOOKUP($A22,$A$182:$V$1081,C$1,FALSE),"") ->  | M22: =IFERROR(VLOOKUP($A22,$A$182:$V$1081,M$1,FALSE),"") ->  | N22: =IFERROR(VLOOKUP($A22,$A$182:$V$1081,N$1,FALSE),"") ->  | Q22: =IFERROR(VLOOKUP($A22,$A$182:$V$1081,Q$1,FALSE),"") ->  | S22: 円 | T22: =IFERROR(VLOOKUP($A22,$A$182:$V$1081,T$1,FALSE),"") ->  | V22: 円 | Y22: 13 | AB22: 静岡県
A23: 14 | C23: ➊➋➌それぞれの賃金改善額（見込額） | N23: ➊ | O23: =IFERROR(VLOOKUP($A23,$A$182:$V$1081,O$1,FALSE),"") ->  | P23: 円 | Q23: ➋ | R23: =IFERROR(VLOOKUP($A23,$A$182:$V$1081,R$1,FALSE),"") ->  | S23: 円 | T23: ➌ | U23: =IFERROR(VLOOKUP($A23,$A$182:$V$1081,U$1,FALSE),"") ->  | V23: 円 | Y23: 14 | AB23: 愛知県
A24: 15 | N24: （ | O24: =IFERROR(VLOOKUP($A24,$A$182:$V$1081,O$1,FALSE),"") ->  | P24: 人） | Q24: （ | R24: =IFERROR(VLOOKUP($A24,$A$182:$V$1081,R$1,FALSE),"") ->  | S24: 人） | T24: （ | U24: =IFERROR(VLOOKUP($A24,$A$182:$V$1081,U$1,FALSE),"") ->  | V24: 人） | Y24: 15 | AB24: 三重県
A25: 16 | C25: =IFERROR(VLOOKUP($A25,$A$182:$V$1081,C$1,FALSE),"") ->  | M25: =IFERROR(VLOOKUP($A25,$A$182:$V$1081,M$1,FALSE),"") ->  | N25: =IFERROR(VLOOKUP($A25,$A$182:$V$1081,N$1,FALSE),"") ->  | Q25: =IFERROR(VLOOKUP($A25,$A$182:$V$1081,Q$1,FALSE),"") ->  | S25: 円 | T25: =IFERROR(VLOOKUP($A25,$A$182:$V$1081,T$1,FALSE),"") ->  | V25: 円 | Y25: 16 | AB25: 滋賀県
A26: 17 | C26: ➊➋➌それぞれの賃金改善額（見込額） | N26: ➊ | O26: =IFERROR(VLOOKUP($A26,$A$182:$V$1081,O$1,FALSE),"") ->  | P26: 円 | Q26: ➋ | R26: =IFERROR(VLOOKUP($A26,$A$182:$V$1081,R$1,FALSE),"") ->  | S26: 円 | T26: ➌ | U26: =IFERROR(VLOOKUP($A26,$A$182:$V$1081,U$1,FALSE),"") ->  | V26: 円 | Y26: 17 | AB26: 京都府
A27: 18 | N27: （ | O27: =IFERROR(VLOOKUP($A27,$A$182:$V$1081,O$1,FALSE),"") ->  | P27: 人） | Q27: （ | R27: =IFERROR(VLOOKUP($A27,$A$182:$V$1081,R$1,FALSE),"") ->  | S27: 人） | T27: （ | U27: =IFERROR(VLOOKUP($A27,$A$182:$V$1081,U$1,FALSE),"") ->  | V27: 人） | Y27: 18 | AB27: 大阪府
A28: 19 | C28: =IFERROR(VLOOKUP($A28,$A$182:$V$1081,C$1,FALSE),"") ->  | M28: =IFERROR(VLOOKUP($A28,$A$182:$V$1081,M$1,FALSE),"") ->  | N28: =IFERROR(VLOOKUP($A28,$A$182:$V$1081,N$1,FALSE),"") ->  | Q28: =IFERROR(VLOOKUP($A28,$A$182:$V$1081,Q$1,FALSE),"") ->  | S28: 円 | T28: =IFERROR(VLOOKUP($A28,$A$182:$V$1081,T$1,FALSE),"") ->  | V28: 円 | Y28: 19 | AB28: 兵庫県
A29: 20 | C29: ➊➋➌それぞれの賃金改善額（見込額） | N29: ➊ | O29: =IFERROR(VLOOKUP($A29,$A$182:$V$1081,O$1,FALSE),"") ->  | P29: 円 | Q29: ➋ | R29: =IFERROR(VLOOKUP($A29,$A$182:$V$1081,R$1,FALSE),"") ->  | S29: 円 | T29: ➌ | U29: =IFERROR(VLOOKUP($A29,$A$182:$V$1081,U$1,FALSE),"") ->  | V29: 円 | Y29: 20 | AB29: 奈良県
A30: 21 | N30: （ | O30: =IFERROR(VLOOKUP($A30,$A$182:$V$1081,O$1,FALSE),"") ->  | P30: 人） | Q30: （ | R30: =IFERROR(VLOOKUP($A30,$A$182:$V$1081,R$1,FALSE),"") ->  | S30: 人） | T30: （ | U30: =IFERROR(VLOOKUP($A30,$A$182:$V$1081,U$1,FALSE),"") ->  | V30: 人） | Y30: 21 | AB30: 和歌山県
A31: 22 | C31: =IFERROR(VLOOKUP($A31,$A$182:$V$1081,C$1,FALSE),"") ->  | M31: =IFERROR(VLOOKUP($A31,$A$182:$V$1081,M$1,FALSE),"") ->  | N31: =IFERROR(VLOOKUP($A31,$A$182:$V$1081,N$1,FALSE),"") ->  | Q31: =IFERROR(VLOOKUP($A31,$A$182:$V$1081,Q$1,FALSE),"") ->  | S31: 円 | T31: =IFERROR(VLOOKUP($A31,$A$182:$V$1081,T$1,FALSE),"") ->  | V31: 円 | Y31: 22 | AB31: 鳥取県
A32: 23 | C32: ➊➋➌それぞれの賃金改善額（見込額） | N32: ➊ | O32: =IFERROR(VLOOKUP($A32,$A$182:$V$1081,O$1,FALSE),"") ->  | P32: 円 | Q32: ➋ | R32: =IFERROR(VLOOKUP($A32,$A$182:$V$1081,R$1,FALSE),"") ->  | S32: 円 | T32: ➌ | U32: =IFERROR(VLOOKUP($A32,$A$182:$V$1081,U$1,FALSE),"") ->  | V32: 円 | Y32: 23 | AB32: 島根県
A33: 24 | N33: （ | O33: =IFERROR(VLOOKUP($A33,$A$182:$V$1081,O$1,FALSE),"") ->  | P33: 人） | Q33: （ | R33: =IFERROR(VLOOKUP($A33,$A$182:$V$1081,R$1,FALSE),"") ->  | S33: 人） | T33: （ | U33: =IFERROR(VLOOKUP($A33,$A$182:$V$1081,U$1,FALSE),"") ->  | V33: 人） | Y33: 24 | AB33: 岡山県
A34: 25 | C34: =IFERROR(VLOOKUP($A34,$A$182:$V$1081,C$1,FALSE),"") ->  | M34: =IFERROR(VLOOKUP($A34,$A$182:$V$1081,M$1,FALSE),"") ->  | N34: =IFERROR(VLOOKUP($A34,$A$182:$V$1081,N$1,FALSE),"") ->  | Q34: =IFERROR(VLOOKUP($A34,$A$182:$V$1081,Q$1,FALSE),"") ->  | S34: 円 | T34: =IFERROR(VLOOKUP($A34,$A$182:$V$1081,T$1,FALSE),"") ->  | V34: 円 | Y34: 25 | AB34: 広島県
A35: 26 | C35: ➊➋➌それぞれの賃金改善額（見込額） | N35: ➊ | O35: =IFERROR(VLOOKUP($A35,$A$182:$V$1081,O$1,FALSE),"") ->  | P35: 円 | Q35: ➋ | R35: =IFERROR(VLOOKUP($A35,$A$182:$V$1081,R$1,FALSE),"") ->  | S35: 円 | T35: ➌ | U35: =IFERROR(VLOOKUP($A35,$A$182:$V$1081,U$1,FALSE),"") ->  | V35: 円 | Y35: 26 | AB35: 山口県
A36: 27 | N36: （ | O36: =IFERROR(VLOOKUP($A36,$A$182:$V$1081,O$1,FALSE),"") ->  | P36: 人） | Q36: （ | R36: =IFERROR(VLOOKUP($A36,$A$182:$V$1081,R$1,FALSE),"") ->  | S36: 人） | T36: （ | U36: =IFERROR(VLOOKUP($A36,$A$182:$V$1081,U$1,FALSE),"") ->  | V36: 人） | Y36: 27 | AB36: 徳島県
A37: 28 | C37: =IFERROR(VLOOKUP($A37,$A$182:$V$1081,C$1,FALSE),"") ->  | M37: =IFERROR(VLOOKUP($A37,$A$182:$V$1081,M$1,FALSE),"") ->  | N37: =IFERROR(VLOOKUP($A37,$A$182:$V$1081,N$1,FALSE),"") ->  | Q37: =IFERROR(VLOOKUP($A37,$A$182:$V$1081,Q$1,FALSE),"") ->  | S37: 円 | T37: =IFERROR(VLOOKUP($A37,$A$182:$V$1081,T$1,FALSE),"") ->  | V37: 円 | Y37: 28 | AB37: 香川県
A38: 29 | C38: ➊➋➌それぞれの賃金改善額（見込額） | N38: ➊ | O38: =IFERROR(VLOOKUP($A38,$A$182:$V$1081,O$1,FALSE),"") ->  | P38: 円 | Q38: ➋ | R38: =IFERROR(VLOOKUP($A38,$A$182:$V$1081,R$1,FALSE),"") ->  | S38: 円 | T38: ➌ | U38: =IFERROR(VLOOKUP($A38,$A$182:$V$1081,U$1,FALSE),"") ->  | V38: 円 | Y38: 29 | AB38: 愛媛県
A39: 30 | N39: （ | O39: =IFERROR(VLOOKUP($A39,$A$182:$V$1081,O$1,FALSE),"") ->  | P39: 人） | Q39: （ | R39: =IFERROR(VLOOKUP($A39,$A$182:$V$1081,R$1,FALSE),"") ->  | S39: 人） | T39: （ | U39: =IFERROR(VLOOKUP($A39,$A$182:$V$1081,U$1,FALSE),"") ->  | V39: 人） | Y39: 30 | AB39: 高知県
A40: 31 | C40: =IFERROR(VLOOKUP($A40,$A$182:$V$1081,C$1,FALSE),"") ->  | M40: =IFERROR(VLOOKUP($A40,$A$182:$V$1081,M$1,FALSE),"") ->  | N40: =IFERROR(VLOOKUP($A40,$A$182:$V$1081,N$1,FALSE),"") ->  | Q40: =IFERROR(VLOOKUP($A40,$A$182:$V$1081,Q$1,FALSE),"") ->  | S40: 円 | T40: =IFERROR(VLOOKUP($A40,$A$182:$V$1081,T$1,FALSE),"") ->  | V40: 円 | Y40: 31 | AB40: 福岡県
A41: 32 | C41: ➊➋➌それぞれの賃金改善額（見込額） | N41: ➊ | O41: =IFERROR(VLOOKUP($A41,$A$182:$V$1081,O$1,FALSE),"") ->  | P41: 円 | Q41: ➋ | R41: =IFERROR(VLOOKUP($A41,$A$182:$V$1081,R$1,FALSE),"") ->  | S41: 円 | T41: ➌ | U41: =IFERROR(VLOOKUP($A41,$A$182:$V$1081,U$1,FALSE),"") ->  | V41: 円 | Y41: 32 | AB41: 佐賀県
A42: 33 | N42: （ | O42: =IFERROR(VLOOKUP($A42,$A$182:$V$1081,O$1,FALSE),"") ->  | P42: 人） | Q42: （ | R42: =IFERROR(VLOOKUP($A42,$A$182:$V$1081,R$1,FALSE),"") ->  | S42: 人） | T42: （ | U42: =IFERROR(VLOOKUP($A42,$A$182:$V$1081,U$1,FALSE),"") ->  | V42: 人） | Y42: 33 | AB42: 長崎県
A43: 34 | C43: =IFERROR(VLOOKUP($A43,$A$182:$V$1081,C$1,FALSE),"") ->  | M43: =IFERROR(VLOOKUP($A43,$A$182:$V$1081,M$1,FALSE),"") ->  | N43: =IFERROR(VLOOKUP($A43,$A$182:$V$1081,N$1,FALSE),"") ->  | Q43: =IFERROR(VLOOKUP($A43,$A$182:$V$1081,Q$1,FALSE),"") ->  | S43: 円 | T43: =IFERROR(VLOOKUP($A43,$A$182:$V$1081,T$1,FALSE),"") ->  | V43: 円 | Y43: 34 | AB43: 熊本県
A44: 35 | C44: ➊➋➌それぞれの賃金改善額（見込額） | N44: ➊ | O44: =IFERROR(VLOOKUP($A44,$A$182:$V$1081,O$1,FALSE),"") ->  | P44: 円 | Q44: ➋ | R44: =IFERROR(VLOOKUP($A44,$A$182:$V$1081,R$1,FALSE),"") ->  | S44: 円 | T44: ➌ | U44: =IFERROR(VLOOKUP($A44,$A$182:$V$1081,U$1,FALSE),"") ->  | V44: 円 | Y44: 35 | AB44: 大分県
A45: 36 | N45: （ | O45: =IFERROR(VLOOKUP($A45,$A$182:$V$1081,O$1,FALSE),"") ->  | P45: 人） | Q45: （ | R45: =IFERROR(VLOOKUP($A45,$A$182:$V$1081,R$1,FALSE),"") ->  | S45: 人） | T45: （ | U45: =IFERROR(VLOOKUP($A45,$A$182:$V$1081,U$1,FALSE),"") ->  | V45: 人） | Y45: 36 | AB45: 宮崎県
A46: 37 | C46: =IFERROR(VLOOKUP($A46,$A$182:$V$1081,C$1,FALSE),"") ->  | M46: =IFERROR(VLOOKUP($A46,$A$182:$V$1081,M$1,FALSE),"") ->  | N46: =IFERROR(VLOOKUP($A46,$A$182:$V$1081,N$1,FALSE),"") ->  | Q46: =IFERROR(VLOOKUP($A46,$A$182:$V$1081,Q$1,FALSE),"") ->  | S46: 円 | T46: =IFERROR(VLOOKUP($A46,$A$182:$V$1081,T$1,FALSE),"") ->  | V46: 円 | Y46: 37 | AB46: 鹿児島県
A47: 38 | C47: ➊➋➌それぞれの賃金改善額（見込額） | N47: ➊ | O47: =IFERROR(VLOOKUP($A47,$A$182:$V$1081,O$1,FALSE),"") ->  | P47: 円 | Q47: ➋ | R47: =IFERROR(VLOOKUP($A47,$A$182:$V$1081,R$1,FALSE),"") ->  | S47: 円 | T47: ➌ | U47: =IFERROR(VLOOKUP($A47,$A$182:$V$1081,U$1,FALSE),"") ->  | V47: 円 | Y47: 38 | AB47: 沖縄県
A48: 39 | N48: （ | O48: =IFERROR(VLOOKUP($A48,$A$182:$V$1081,O$1,FALSE),"") ->  | P48: 人） | Q48: （ | R48: =IFERROR(VLOOKUP($A48,$A$182:$V$1081,R$1,FALSE),"") ->  | S48: 人） | T48: （ | U48: =IFERROR(VLOOKUP($A48,$A$182:$V$1081,U$1,FALSE),"") ->  | V48: 人） | Y48: 39 | AB48: 札幌市
A49: 40 | C49: =IFERROR(VLOOKUP($A49,$A$182:$V$1081,C$1,FALSE),"") ->  | M49: =IFERROR(VLOOKUP($A49,$A$182:$V$1081,M$1,FALSE),"") ->  | N49: =IFERROR(VLOOKUP($A49,$A$182:$V$1081,N$1,FALSE),"") ->  | Q49: =IFERROR(VLOOKUP($A49,$A$182:$V$1081,Q$1,FALSE),"") ->  | S49: 円 | T49: =IFERROR(VLOOKUP($A49,$A$182:$V$1081,T$1,FALSE),"") ->  | V49: 円 | Y49: 40 | AB49: 仙台市
A50: 41 | C50: ➊➋➌それぞれの賃金改善額（見込額） | N50: ➊ | O50: =IFERROR(VLOOKUP($A50,$A$182:$V$1081,O$1,FALSE),"") ->  | P50: 円 | Q50: ➋ | R50: =IFERROR(VLOOKUP($A50,$A$182:$V$1081,R$1,FALSE),"") ->  | S50: 円 | T50: ➌ | U50: =IFERROR(VLOOKUP($A50,$A$182:$V$1081,U$1,FALSE),"") ->  | V50: 円 | Y50: 41 | AB50: さいたま市
A51: 42 | N51: （ | O51: =IFERROR(VLOOKUP($A51,$A$182:$V$1081,O$1,FALSE),"") ->  | P51: 人） | Q51: （ | R51: =IFERROR(VLOOKUP($A51,$A$182:$V$1081,R$1,FALSE),"") ->  | S51: 人） | T51: （ | U51: =IFERROR(VLOOKUP($A51,$A$182:$V$1081,U$1,FALSE),"") ->  | V51: 人） | Y51: 42 | AB51: 千葉市
A52: 43 | C52: =IFERROR(VLOOKUP($A52,$A$182:$V$1081,C$1,FALSE),"") ->  | M52: =IFERROR(VLOOKUP($A52,$A$182:$V$1081,M$1,FALSE),"") ->  | N52: =IFERROR(VLOOKUP($A52,$A$182:$V$1081,N$1,FALSE),"") ->  | Q52: =IFERROR(VLOOKUP($A52,$A$182:$V$1081,Q$1,FALSE),"") ->  | S52: 円 | T52: =IFERROR(VLOOKUP($A52,$A$182:$V$1081,T$1,FALSE),"") ->  | V52: 円 | Y52: 43 | AB52: 横浜市
A53: 44 | C53: ➊➋➌それぞれの賃金改善額（見込額） | N53: ➊ | O53: =IFERROR(VLOOKUP($A53,$A$182:$V$1081,O$1,FALSE),"") ->  | P53: 円 | Q53: ➋ | R53: =IFERROR(VLOOKUP($A53,$A$182:$V$1081,R$1,FALSE),"") ->  | S53: 円 | T53: ➌ | U53: =IFERROR(VLOOKUP($A53,$A$182:$V$1081,U$1,FALSE),"") ->  | V53: 円 | Y53: 44 | AB53: 川崎市
A54: 45 | N54: （ | O54: =IFERROR(VLOOKUP($A54,$A$182:$V$1081,O$1,FALSE),"") ->  | P54: 人） | Q54: （ | R54: =IFERROR(VLOOKUP($A54,$A$182:$V$1081,R$1,FALSE),"") ->  | S54: 人） | T54: （ | U54: =IFERROR(VLOOKUP($A54,$A$182:$V$1081,U$1,FALSE),"") ->  | V54: 人） | Y54: 45 | AB54: 相模原市
A55: 46 | C55: =IFERROR(VLOOKUP($A55,$A$182:$V$1081,C$1,FALSE),"") ->  | M55: =IFERROR(VLOOKUP($A55,$A$182:$V$1081,M$1,FALSE),"") ->  | N55: =IFERROR(VLOOKUP($A55,$A$182:$V$1081,N$1,FALSE),"") ->  | Q55: =IFERROR(VLOOKUP($A55,$A$182:$V$1081,Q$1,FALSE),"") ->  | S55: 円 | T55: =IFERROR(VLOOKUP($A55,$A$182:$V$1081,T$1,FALSE),"") ->  | V55: 円 | Y55: 46 | AB55: 新潟市
A56: 47 | C56: ➊➋➌それぞれの賃金改善額（見込額） | N56: ➊ | O56: =IFERROR(VLOOKUP($A56,$A$182:$V$1081,O$1,FALSE),"") ->  | P56: 円 | Q56: ➋ | R56: =IFERROR(VLOOKUP($A56,$A$182:$V$1081,R$1,FALSE),"") ->  | S56: 円 | T56: ➌ | U56: =IFERROR(VLOOKUP($A56,$A$182:$V$1081,U$1,FALSE),"") ->  | V56: 円 | Y56: 47 | AB56: 静岡市
A57: 48 | N57: （ | O57: =IFERROR(VLOOKUP($A57,$A$182:$V$1081,O$1,FALSE),"") ->  | P57: 人） | Q57: （ | R57: =IFERROR(VLOOKUP($A57,$A$182:$V$1081,R$1,FALSE),"") ->  | S57: 人） | T57: （ | U57: =IFERROR(VLOOKUP($A57,$A$182:$V$1081,U$1,FALSE),"") ->  | V57: 人） | Y57: 48 | AB57: 浜松市
A58: 49 | C58: =IFERROR(VLOOKUP($A58,$A$182:$V$1081,C$1,FALSE),"") ->  | M58: =IFERROR(VLOOKUP($A58,$A$182:$V$1081,M$1,FALSE),"") ->  | N58: =IFERROR(VLOOKUP($A58,$A$182:$V$1081,N$1,FALSE),"") ->  | Q58: =IFERROR(VLOOKUP($A58,$A$182:$V$1081,Q$1,FALSE),"") ->  | S58: 円 | T58: =IFERROR(VLOOKUP($A58,$A$182:$V$1081,T$1,FALSE),"") ->  | V58: 円 | Y58: 49 | AB58: 名古屋市
A59: 50 | C59: ➊➋➌それぞれの賃金改善額（見込額） | N59: ➊ | O59: =IFERROR(VLOOKUP($A59,$A$182:$V$1081,O$1,FALSE),"") ->  | P59: 円 | Q59: ➋ | R59: =IFERROR(VLOOKUP($A59,$A$182:$V$1081,R$1,FALSE),"") ->  | S59: 円 | T59: ➌ | U59: =IFERROR(VLOOKUP($A59,$A$182:$V$1081,U$1,FALSE),"") ->  | V59: 円 | Y59: 50 | AB59: 京都市
A60: 51 | N60: （ | O60: =IFERROR(VLOOKUP($A60,$A$182:$V$1081,O$1,FALSE),"") ->  | P60: 人） | Q60: （ | R60: =IFERROR(VLOOKUP($A60,$A$182:$V$1081,R$1,FALSE),"") ->  | S60: 人） | T60: （ | U60: =IFERROR(VLOOKUP($A60,$A$182:$V$1081,U$1,FALSE),"") ->  | V60: 人） | Y60: 51 | AB60: 大阪市
A61: 52 | C61: =IFERROR(VLOOKUP($A61,$A$182:$V$1081,C$1,FALSE),"") ->  | M61: =IFERROR(VLOOKUP($A61,$A$182:$V$1081,M$1,FALSE),"") ->  | N61: =IFERROR(VLOOKUP($A61,$A$182:$V$1081,N$1,FALSE),"") ->  | Q61: =IFERROR(VLOOKUP($A61,$A$182:$V$1081,Q$1,FALSE),"") ->  | S61: 円 | T61: =IFERROR(VLOOKUP($A61,$A$182:$V$1081,T$1,FALSE),"") ->  | V61: 円 | Y61: 52 | AB61: 堺市
A62: 53 | C62: ➊➋➌それぞれの賃金改善額（見込額） | N62: ➊ | O62: =IFERROR(VLOOKUP($A62,$A$182:$V$1081,O$1,FALSE),"") ->  | P62: 円 | Q62: ➋ | R62: =IFERROR(VLOOKUP($A62,$A$182:$V$1081,R$1,FALSE),"") ->  | S62: 円 | T62: ➌ | U62: =IFERROR(VLOOKUP($A62,$A$182:$V$1081,U$1,FALSE),"") ->  | V62: 円 | Y62: 53 | AB62: 神戸市
A63: 54 | N63: （ | O63: =IFERROR(VLOOKUP($A63,$A$182:$V$1081,O$1,FALSE),"") ->  | P63: 人） | Q63: （ | R63: =IFERROR(VLOOKUP($A63,$A$182:$V$1081,R$1,FALSE),"") ->  | S63: 人） | T63: （ | U63: =IFERROR(VLOOKUP($A63,$A$182:$V$1081,U$1,FALSE),"") ->  | V63: 人） | Y63: 54 | AB63: 岡山市
A64: 55 | C64: =IFERROR(VLOOKUP($A64,$A$182:$V$1081,C$1,FALSE),"") ->  | M64: =IFERROR(VLOOKUP($A64,$A$182:$V$1081,M$1,FALSE),"") ->  | N64: =IFERROR(VLOOKUP($A64,$A$182:$V$1081,N$1,FALSE),"") ->  | Q64: =IFERROR(VLOOKUP($A64,$A$182:$V$1081,Q$1,FALSE),"") ->  | S64: 円 | T64: =IFERROR(VLOOKUP($A64,$A$182:$V$1081,T$1,FALSE),"") ->  | V64: 円 | Y64: 55 | AB64: 広島市
A65: 56 | C65: ➊➋➌それぞれの賃金改善額（見込額） | N65: ➊ | O65: =IFERROR(VLOOKUP($A65,$A$182:$V$1081,O$1,FALSE),"") ->  | P65: 円 | Q65: ➋ | R65: =IFERROR(VLOOKUP($A65,$A$182:$V$1081,R$1,FALSE),"") ->  | S65: 円 | T65: ➌ | U65: =IFERROR(VLOOKUP($A65,$A$182:$V$1081,U$1,FALSE),"") ->  | V65: 円 | Y65: 56 | AB65: 北九州市
A66: 57 | N66: （ | O66: =IFERROR(VLOOKUP($A66,$A$182:$V$1081,O$1,FALSE),"") ->  | P66: 人） | Q66: （ | R66: =IFERROR(VLOOKUP($A66,$A$182:$V$1081,R$1,FALSE),"") ->  | S66: 人） | T66: （ | U66: =IFERROR(VLOOKUP($A66,$A$182:$V$1081,U$1,FALSE),"") ->  | V66: 人） | Y66: 57 | AB66: 福岡市
A67: 58 | C67: =IFERROR(VLOOKUP($A67,$A$182:$V$1081,C$1,FALSE),"") ->  | M67: =IFERROR(VLOOKUP($A67,$A$182:$V$1081,M$1,FALSE),"") ->  | N67: =IFERROR(VLOOKUP($A67,$A$182:$V$1081,N$1,FALSE),"") ->  | Q67: =IFERROR(VLOOKUP($A67,$A$182:$V$1081,Q$1,FALSE),"") ->  | S67: 円 | T67: =IFERROR(VLOOKUP($A67,$A$182:$V$1081,T$1,FALSE),"") ->  | V67: 円 | Y67: 58 | AB67: 熊本市
A68: 59 | C68: ➊➋➌それぞれの賃金改善額（見込額） | N68: ➊ | O68: =IFERROR(VLOOKUP($A68,$A$182:$V$1081,O$1,FALSE),"") ->  | P68: 円 | Q68: ➋ | R68: =IFERROR(VLOOKUP($A68,$A$182:$V$1081,R$1,FALSE),"") ->  | S68: 円 | T68: ➌ | U68: =IFERROR(VLOOKUP($A68,$A$182:$V$1081,U$1,FALSE),"") ->  | V68: 円 | Y68: 59 | AB68: 旭川市
A69: 60 | N69: （ | O69: =IFERROR(VLOOKUP($A69,$A$182:$V$1081,O$1,FALSE),"") ->  | P69: 人） | Q69: （ | R69: =IFERROR(VLOOKUP($A69,$A$182:$V$1081,R$1,FALSE),"") ->  | S69: 人） | T69: （ | U69: =IFERROR(VLOOKUP($A69,$A$182:$V$1081,U$1,FALSE),"") ->  | V69: 人） | Y69: 60 | AB69: 函館市
A70: 61 | C70: =IFERROR(VLOOKUP($A70,$A$182:$V$1081,C$1,FALSE),"") ->  | M70: =IFERROR(VLOOKUP($A70,$A$182:$V$1081,M$1,FALSE),"") ->  | N70: =IFERROR(VLOOKUP($A70,$A$182:$V$1081,N$1,FALSE),"") ->  | Q70: =IFERROR(VLOOKUP($A70,$A$182:$V$1081,Q$1,FALSE),"") ->  | S70: 円 | T70: =IFERROR(VLOOKUP($A70,$A$182:$V$1081,T$1,FALSE),"") ->  | V70: 円 | Y70: 61 | AB70: 青森市
A71: 62 | C71: ➊➋➌それぞれの賃金改善額（見込額） | N71: ➊ | O71: =IFERROR(VLOOKUP($A71,$A$182:$V$1081,O$1,FALSE),"") ->  | P71: 円 | Q71: ➋ | R71: =IFERROR(VLOOKUP($A71,$A$182:$V$1081,R$1,FALSE),"") ->  | S71: 円 | T71: ➌ | U71: =IFERROR(VLOOKUP($A71,$A$182:$V$1081,U$1,FALSE),"") ->  | V71: 円 | Y71: 62 | AB71: 八戸市
A72: 63 | N72: （ | O72: =IFERROR(VLOOKUP($A72,$A$182:$V$1081,O$1,FALSE),"") ->  | P72: 人） | Q72: （ | R72: =IFERROR(VLOOKUP($A72,$A$182:$V$1081,R$1,FALSE),"") ->  | S72: 人） | T72: （ | U72: =IFERROR(VLOOKUP($A72,$A$182:$V$1081,U$1,FALSE),"") ->  | V72: 人） | Y72: 63 | AB72: 盛岡市
A73: 64 | C73: =IFERROR(VLOOKUP($A73,$A$182:$V$1081,C$1,FALSE),"") ->  | M73: =IFERROR(VLOOKUP($A73,$A$182:$V$1081,M$1,FALSE),"") ->  | N73: =IFERROR(VLOOKUP($A73,$A$182:$V$1081,N$1,FALSE),"") ->  | Q73: =IFERROR(VLOOKUP($A73,$A$182:$V$1081,Q$1,FALSE),"") ->  | S73: 円 | T73: =IFERROR(VLOOKUP($A73,$A$182:$V$1081,T$1,FALSE),"") ->  | V73: 円 | Y73: 64 | AB73: 秋田市
A74: 65 | C74: ➊➋➌それぞれの賃金改善額（見込額） | N74: ➊ | O74: =IFERROR(VLOOKUP($A74,$A$182:$V$1081,O$1,FALSE),"") ->  | P74: 円 | Q74: ➋ | R74: =IFERROR(VLOOKUP($A74,$A$182:$V$1081,R$1,FALSE),"") ->  | S74: 円 | T74: ➌ | U74: =IFERROR(VLOOKUP($A74,$A$182:$V$1081,U$1,FALSE),"") ->  | V74: 円 | Y74: 65 | AB74: 山形市
A75: =$C$7&Y75 -> 66 | N75: （ | O75: =IFERROR(VLOOKUP($A75,$A$182:$V$1081,O$1,FALSE),"") ->  | P75: 人） | Q75: （ | R75: =IFERROR(VLOOKUP($A75,$A$182:$V$1081,R$1,FALSE),"") ->  | S75: 人） | T75: （ | U75: =IFERROR(VLOOKUP($A75,$A$182:$V$1081,U$1,FALSE),"") ->  | V75: 人） | Y75: 66 | AB75: 郡山市
A76: 67 | C76: =IFERROR(VLOOKUP($A76,$A$182:$V$1081,C$1,FALSE),"") ->  | M76: =IFERROR(VLOOKUP($A76,$A$182:$V$1081,M$1,FALSE),"") ->  | N76: =IFERROR(VLOOKUP($A76,$A$182:$V$1081,N$1,FALSE),"") ->  | Q76: =IFERROR(VLOOKUP($A76,$A$182:$V$1081,Q$1,FALSE),"") ->  | S76: 円 | T76: =IFERROR(VLOOKUP($A76,$A$182:$V$1081,T$1,FALSE),"") ->  | V76: 円 | Y76: 67 | AB76: いわき市
A77: 68 | C77: ➊➋➌それぞれの賃金改善額（見込額） | N77: ➊ | O77: =IFERROR(VLOOKUP($A77,$A$182:$V$1081,O$1,FALSE),"") ->  | P77: 円 | Q77: ➋ | R77: =IFERROR(VLOOKUP($A77,$A$182:$V$1081,R$1,FALSE),"") ->  | S77: 円 | T77: ➌ | U77: =IFERROR(VLOOKUP($A77,$A$182:$V$1081,U$1,FALSE),"") ->  | V77: 円 | Y77: 68 | AB77: 福島市
A78: 69 | N78: （ | O78: =IFERROR(VLOOKUP($A78,$A$182:$V$1081,O$1,FALSE),"") ->  | P78: 人） | Q78: （ | R78: =IFERROR(VLOOKUP($A78,$A$182:$V$1081,R$1,FALSE),"") ->  | S78: 人） | T78: （ | U78: =IFERROR(VLOOKUP($A78,$A$182:$V$1081,U$1,FALSE),"") ->  | V78: 人） | Y78: 69 | AB78: 宇都宮市
A79: 70 | C79: =IFERROR(VLOOKUP($A79,$A$182:$V$1081,C$1,FALSE),"") ->  | M79: =IFERROR(VLOOKUP($A79,$A$182:$V$1081,M$1,FALSE),"") ->  | N79: =IFERROR(VLOOKUP($A79,$A$182:$V$1081,N$1,FALSE),"") ->  | Q79: =IFERROR(VLOOKUP($A79,$A$182:$V$1081,Q$1,FALSE),"") ->  | S79: 円 | T79: =IFERROR(VLOOKUP($A79,$A$182:$V$1081,T$1,FALSE),"") ->  | V79: 円 | Y79: 70 | AB79: 前橋市
A80: 71 | C80: ➊➋➌それぞれの賃金改善額（見込額） | N80: ➊ | O80: =IFERROR(VLOOKUP($A80,$A$182:$V$1081,O$1,FALSE),"") ->  | P80: 円 | Q80: ➋ | R80: =IFERROR(VLOOKUP($A80,$A$182:$V$1081,R$1,FALSE),"") ->  | S80: 円 | T80: ➌ | U80: =IFERROR(VLOOKUP($A80,$A$182:$V$1081,U$1,FALSE),"") ->  | V80: 円 | Y80: 71 | AB80: 高崎市
A81: 72 | N81: （ | O81: =IFERROR(VLOOKUP($A81,$A$182:$V$1081,O$1,FALSE),"") ->  | P81: 人） | Q81: （ | R81: =IFERROR(VLOOKUP($A81,$A$182:$V$1081,R$1,FALSE),"") ->  | S81: 人） | T81: （ | U81: =IFERROR(VLOOKUP($A81,$A$182:$V$1081,U$1,FALSE),"") ->  | V81: 人） | Y81: 72 | AB81: 川越市
A82: 73 | C82: =IFERROR(VLOOKUP($A82,$A$182:$V$1081,C$1,FALSE),"") ->  | M82: =IFERROR(VLOOKUP($A82,$A$182:$V$1081,M$1,FALSE),"") ->  | N82: =IFERROR(VLOOKUP($A82,$A$182:$V$1081,N$1,FALSE),"") ->  | Q82: =IFERROR(VLOOKUP($A82,$A$182:$V$1081,Q$1,FALSE),"") ->  | S82: 円 | T82: =IFERROR(VLOOKUP($A82,$A$182:$V$1081,T$1,FALSE),"") ->  | V82: 円 | Y82: 73 | AB82: 越谷市
A83: 74 | C83: ➊➋➌それぞれの賃金改善額（見込額） | N83: ➊ | O83: =IFERROR(VLOOKUP($A83,$A$182:$V$1081,O$1,FALSE),"") ->  | P83: 円 | Q83: ➋ | R83: =IFERROR(VLOOKUP($A83,$A$182:$V$1081,R$1,FALSE),"") ->  | S83: 円 | T83: ➌ | U83: =IFERROR(VLOOKUP($A83,$A$182:$V$1081,U$1,FALSE),"") ->  | V83: 円 | Y83: 74 | AB83: 川口市
A84: 75 | N84: （ | O84: =IFERROR(VLOOKUP($A84,$A$182:$V$1081,O$1,FALSE),"") ->  | P84: 人） | Q84: （ | R84: =IFERROR(VLOOKUP($A84,$A$182:$V$1081,R$1,FALSE),"") ->  | S84: 人） | T84: （ | U84: =IFERROR(VLOOKUP($A84,$A$182:$V$1081,U$1,FALSE),"") ->  | V84: 人） | Y84: 75 | AB84: 船橋市
A85: 76 | C85: =IFERROR(VLOOKUP($A85,$A$182:$V$1081,C$1,FALSE),"") ->  | M85: =IFERROR(VLOOKUP($A85,$A$182:$V$1081,M$1,FALSE),"") ->  | N85: =IFERROR(VLOOKUP($A85,$A$182:$V$1081,N$1,FALSE),"") ->  | Q85: =IFERROR(VLOOKUP($A85,$A$182:$V$1081,Q$1,FALSE),"") ->  | S85: 円 | T85: =IFERROR(VLOOKUP($A85,$A$182:$V$1081,T$1,FALSE),"") ->  | V85: 円 | Y85: 76 | AB85: 柏市
A86: 77 | C86: ➊➋➌それぞれの賃金改善額（見込額） | N86: ➊ | O86: =IFERROR(VLOOKUP($A86,$A$182:$V$1081,O$1,FALSE),"") ->  | P86: 円 | Q86: ➋ | R86: =IFERROR(VLOOKUP($A86,$A$182:$V$1081,R$1,FALSE),"") ->  | S86: 円 | T86: ➌ | U86: =IFERROR(VLOOKUP($A86,$A$182:$V$1081,U$1,FALSE),"") ->  | V86: 円 | Y86: 77 | AB86: 八王子市
A87: 78 | N87: （ | O87: =IFERROR(VLOOKUP($A87,$A$182:$V$1081,O$1,FALSE),"") ->  | P87: 人） | Q87: （ | R87: =IFERROR(VLOOKUP($A87,$A$182:$V$1081,R$1,FALSE),"") ->  | S87: 人） | T87: （ | U87: =IFERROR(VLOOKUP($A87,$A$182:$V$1081,U$1,FALSE),"") ->  | V87: 人） | Y87: 78 | AB87: 横須賀市
A88: 79 | C88: =IFERROR(VLOOKUP($A88,$A$182:$V$1081,C$1,FALSE),"") ->  | M88: =IFERROR(VLOOKUP($A88,$A$182:$V$1081,M$1,FALSE),"") ->  | N88: =IFERROR(VLOOKUP($A88,$A$182:$V$1081,N$1,FALSE),"") ->  | Q88: =IFERROR(VLOOKUP($A88,$A$182:$V$1081,Q$1,FALSE),"") ->  | S88: 円 | T88: =IFERROR(VLOOKUP($A88,$A$182:$V$1081,T$1,FALSE),"") ->  | V88: 円 | Y88: 79 | AB88: 富山市
A89: 80 | C89: ➊➋➌それぞれの賃金改善額（見込額） | N89: ➊ | O89: =IFERROR(VLOOKUP($A89,$A$182:$V$1081,O$1,FALSE),"") ->  | P89: 円 | Q89: ➋ | R89: =IFERROR(VLOOKUP($A89,$A$182:$V$1081,R$1,FALSE),"") ->  | S89: 円 | T89: ➌ | U89: =IFERROR(VLOOKUP($A89,$A$182:$V$1081,U$1,FALSE),"") ->  | V89: 円 | Y89: 80 | AB89: 金沢市
A90: 81 | N90: （ | O90: =IFERROR(VLOOKUP($A90,$A$182:$V$1081,O$1,FALSE),"") ->  | P90: 人） | Q90: （ | R90: =IFERROR(VLOOKUP($A90,$A$182:$V$1081,R$1,FALSE),"") ->  | S90: 人） | T90: （ | U90: =IFERROR(VLOOKUP($A90,$A$182:$V$1081,U$1,FALSE),"") ->  | V90: 人） | Y90: 81 | AB90: 福井市
A91: 82 | C91: =IFERROR(VLOOKUP($A91,$A$182:$V$1081,C$1,FALSE),"") ->  | M91: =IFERROR(VLOOKUP($A91,$A$182:$V$1081,M$1,FALSE),"") ->  | N91: =IFERROR(VLOOKUP($A91,$A$182:$V$1081,N$1,FALSE),"") ->  | Q91: =IFERROR(VLOOKUP($A91,$A$182:$V$1081,Q$1,FALSE),"") ->  | S91: 円 | T91: =IFERROR(VLOOKUP($A91,$A$182:$V$1081,T$1,FALSE),"") ->  | V91: 円 | Y91: 82 | AB91: 甲府市
A92: 83 | C92: ➊➋➌それぞれの賃金改善額（見込額） | N92: ➊ | O92: =IFERROR(VLOOKUP($A92,$A$182:$V$1081,O$1,FALSE),"") ->  | P92: 円 | Q92: ➋ | R92: =IFERROR(VLOOKUP($A92,$A$182:$V$1081,R$1,FALSE),"") ->  | S92: 円 | T92: ➌ | U92: =IFERROR(VLOOKUP($A92,$A$182:$V$1081,U$1,FALSE),"") ->  | V92: 円 | Y92: 83 | AB92: 長野市
A93: 84 | N93: （ | O93: =IFERROR(VLOOKUP($A93,$A$182:$V$1081,O$1,FALSE),"") ->  | P93: 人） | Q93: （ | R93: =IFERROR(VLOOKUP($A93,$A$182:$V$1081,R$1,FALSE),"") ->  | S93: 人） | T93: （ | U93: =IFERROR(VLOOKUP($A93,$A$182:$V$1081,U$1,FALSE),"") ->  | V93: 人） | Y93: 84 | AB93: 岐阜市
A94: 85 | C94: =IFERROR(VLOOKUP($A94,$A$182:$V$1081,C$1,FALSE),"") ->  | M94: =IFERROR(VLOOKUP($A94,$A$182:$V$1081,M$1,FALSE),"") ->  | N94: =IFERROR(VLOOKUP($A94,$A$182:$V$1081,N$1,FALSE),"") ->  | Q94: =IFERROR(VLOOKUP($A94,$A$182:$V$1081,Q$1,FALSE),"") ->  | S94: 円 | T94: =IFERROR(VLOOKUP($A94,$A$182:$V$1081,T$1,FALSE),"") ->  | V94: 円 | Y94: 85 | AB94: 豊橋市
A95: 86 | C95: ➊➋➌それぞれの賃金改善額（見込額） | N95: ➊ | O95: =IFERROR(VLOOKUP($A95,$A$182:$V$1081,O$1,FALSE),"") ->  | P95: 円 | Q95: ➋ | R95: =IFERROR(VLOOKUP($A95,$A$182:$V$1081,R$1,FALSE),"") ->  | S95: 円 | T95: ➌ | U95: =IFERROR(VLOOKUP($A95,$A$182:$V$1081,U$1,FALSE),"") ->  | V95: 円 | Y95: 86 | AB95: 豊田市
A96: 87 | N96: （ | O96: =IFERROR(VLOOKUP($A96,$A$182:$V$1081,O$1,FALSE),"") ->  | P96: 人） | Q96: （ | R96: =IFERROR(VLOOKUP($A96,$A$182:$V$1081,R$1,FALSE),"") ->  | S96: 人） | T96: （ | U96: =IFERROR(VLOOKUP($A96,$A$182:$V$1081,U$1,FALSE),"") ->  | V96: 人） | Y96: 87 | AB96: 岡崎市
A97: 88 | C97: =IFERROR(VLOOKUP($A97,$A$182:$V$1081,C$1,FALSE),"") ->  | M97: =IFERROR(VLOOKUP($A97,$A$182:$V$1081,M$1,FALSE),"") ->  | N97: =IFERROR(VLOOKUP($A97,$A$182:$V$1081,N$1,FALSE),"") ->  | Q97: =IFERROR(VLOOKUP($A97,$A$182:$V$1081,Q$1,FALSE),"") ->  | S97: 円 | T97: =IFERROR(VLOOKUP($A97,$A$182:$V$1081,T$1,FALSE),"") ->  | V97: 円 | Y97: 88 | AB97: 大津市
A98: 89 | C98: ➊➋➌それぞれの賃金改善額（見込額） | N98: ➊ | O98: =IFERROR(VLOOKUP($A98,$A$182:$V$1081,O$1,FALSE),"") ->  | P98: 円 | Q98: ➋ | R98: =IFERROR(VLOOKUP($A98,$A$182:$V$1081,R$1,FALSE),"") ->  | S98: 円 | T98: ➌ | U98: =IFERROR(VLOOKUP($A98,$A$182:$V$1081,U$1,FALSE),"") ->  | V98: 円 | Y98: 89 | AB98: 高槻市
A99: 90 | N99: （ | O99: =IFERROR(VLOOKUP($A99,$A$182:$V$1081,O$1,FALSE),"") ->  | P99: 人） | Q99: （ | R99: =IFERROR(VLOOKUP($A99,$A$182:$V$1081,R$1,FALSE),"") ->  | S99: 人） | T99: （ | U99: =IFERROR(VLOOKUP($A99,$A$182:$V$1081,U$1,FALSE),"") ->  | V99: 人） | Y99: 90 | AB99: 東大阪市
A100: 91 | C100: =IFERROR(VLOOKUP($A100,$A$182:$V$1081,C$1,FALSE),"") ->  | M100: =IFERROR(VLOOKUP($A100,$A$182:$V$1081,M$1,FALSE),"") ->  | N100: =IFERROR(VLOOKUP($A100,$A$182:$V$1081,N$1,FALSE),"") ->  | Q100: =IFERROR(VLOOKUP($A100,$A$182:$V$1081,Q$1,FALSE),"") ->  | S100: 円 | T100: =IFERROR(VLOOKUP($A100,$A$182:$V$1081,T$1,FALSE),"") ->  | V100: 円 | Y100: 91 | AB100: 豊中市
A101: 92 | C101: ➊➋➌それぞれの賃金改善額（見込額） | N101: ➊ | O101: =IFERROR(VLOOKUP($A101,$A$182:$V$1081,O$1,FALSE),"") ->  | P101: 円 | Q101: ➋ | R101: =IFERROR(VLOOKUP($A101,$A$182:$V$1081,R$1,FALSE),"") ->  | S101: 円 | T101: ➌ | U101: =IFERROR(VLOOKUP($A101,$A$182:$V$1081,U$1,FALSE),"") ->  | V101: 円 | Y101: 92 | AB101: 枚方市
A102: 93 | N102: （ | O102: =IFERROR(VLOOKUP($A102,$A$182:$V$1081,O$1,FALSE),"") ->  | P102: 人） | Q102: （ | R102: =IFERROR(VLOOKUP($A102,$A$182:$V$1081,R$1,FALSE),"") ->  | S102: 人） | T102: （ | U102: =IFERROR(VLOOKUP($A102,$A$182:$V$1081,U$1,FALSE),"") ->  | V102: 人） | Y102: 93 | AB102: 八尾市
A103: 94 | C103: =IFERROR(VLOOKUP($A103,$A$182:$V$1081,C$1,FALSE),"") ->  | M103: =IFERROR(VLOOKUP($A103,$A$182:$V$1081,M$1,FALSE),"") ->  | N103: =IFERROR(VLOOKUP($A103,$A$182:$V$1081,N$1,FALSE),"") ->  | Q103: =IFERROR(VLOOKUP($A103,$A$182:$V$1081,Q$1,FALSE),"") ->  | S103: 円 | T103: =IFERROR(VLOOKUP($A103,$A$182:$V$1081,T$1,FALSE),"") ->  | V103: 円 | Y103: 94 | AB103: 寝屋川市
A104: 95 | C104: ➊➋➌それぞれの賃金改善額（見込額） | N104: ➊ | O104: =IFERROR(VLOOKUP($A104,$A$182:$V$1081,O$1,FALSE),"") ->  | P104: 円 | Q104: ➋ | R104: =IFERROR(VLOOKUP($A104,$A$182:$V$1081,R$1,FALSE),"") ->  | S104: 円 | T104: ➌ | U104: =IFERROR(VLOOKUP($A104,$A$182:$V$1081,U$1,FALSE),"") ->  | V104: 円 | Y104: 95 | AB104: 姫路市
A105: 96 | N105: （ | O105: =IFERROR(VLOOKUP($A105,$A$182:$V$1081,O$1,FALSE),"") ->  | P105: 人） | Q105: （ | R105: =IFERROR(VLOOKUP($A105,$A$182:$V$1081,R$1,FALSE),"") ->  | S105: 人） | T105: （ | U105: =IFERROR(VLOOKUP($A105,$A$182:$V$1081,U$1,FALSE),"") ->  | V105: 人） | Y105: 96 | AB105: 西宮市
A106: 97 | C106: =IFERROR(VLOOKUP($A106,$A$182:$V$1081,C$1,FALSE),"") ->  | M106: =IFERROR(VLOOKUP($A106,$A$182:$V$1081,M$1,FALSE),"") ->  | N106: =IFERROR(VLOOKUP($A106,$A$182:$V$1081,N$1,FALSE),"") ->  | Q106: =IFERROR(VLOOKUP($A106,$A$182:$V$1081,Q$1,FALSE),"") ->  | S106: 円 | T106: =IFERROR(VLOOKUP($A106,$A$182:$V$1081,T$1,FALSE),"") ->  | V106: 円 | Y106: 97 | AB106: 尼崎市
A107: 98 | C107: ➊➋➌それぞれの賃金改善額（見込額） | N107: ➊ | O107: =IFERROR(VLOOKUP($A107,$A$182:$V$1081,O$1,FALSE),"") ->  | P107: 円 | Q107: ➋ | R107: =IFERROR(VLOOKUP($A107,$A$182:$V$1081,R$1,FALSE),"") ->  | S107: 円 | T107: ➌ | U107: =IFERROR(VLOOKUP($A107,$A$182:$V$1081,U$1,FALSE),"") ->  | V107: 円 | Y107: 98 | AB107: 明石市
A108: 99 | N108: （ | O108: =IFERROR(VLOOKUP($A108,$A$182:$V$1081,O$1,FALSE),"") ->  | P108: 人） | Q108: （ | R108: =IFERROR(VLOOKUP($A108,$A$182:$V$1081,R$1,FALSE),"") ->  | S108: 人） | T108: （ | U108: =IFERROR(VLOOKUP($A108,$A$182:$V$1081,U$1,FALSE),"") ->  | V108: 人） | Y108: 99 | AB108: 奈良市
A109: 100 | C109: =IFERROR(VLOOKUP($A109,$A$182:$V$1081,C$1,FALSE),"") ->  | M109: =IFERROR(VLOOKUP($A109,$A$182:$V$1081,M$1,FALSE),"") ->  | N109: =IFERROR(VLOOKUP($A109,$A$182:$V$1081,N$1,FALSE),"") ->  | Q109: =IFERROR(VLOOKUP($A109,$A$182:$V$1081,Q$1,FALSE),"") ->  | S109: 円 | T109: =IFERROR(VLOOKUP($A109,$A$182:$V$1081,T$1,FALSE),"") ->  | V109: 円 | Y109: 100 | AB109: 和歌山市
A110: 101 | C110: ➊➋➌それぞれの賃金改善額（見込額） | N110: ➊ | O110: =IFERROR(VLOOKUP($A110,$A$182:$V$1081,O$1,FALSE),"") ->  | P110: 円 | Q110: ➋ | R110: =IFERROR(VLOOKUP($A110,$A$182:$V$1081,R$1,FALSE),"") ->  | S110: 円 | T110: ➌ | U110: =IFERROR(VLOOKUP($A110,$A$182:$V$1081,U$1,FALSE),"") ->  | V110: 円 | Y110: 101 | AB110: 鳥取市
A111: 102 | N111: （ | O111: =IFERROR(VLOOKUP($A111,$A$182:$V$1081,O$1,FALSE),"") ->  | P111: 人） | Q111: （ | R111: =IFERROR(VLOOKUP($A111,$A$182:$V$1081,R$1,FALSE),"") ->  | S111: 人） | T111: （ | U111: =IFERROR(VLOOKUP($A111,$A$182:$V$1081,U$1,FALSE),"") ->  | V111: 人） | Y111: 102 | AB111: 松江市
A112: 103 | C112: =IFERROR(VLOOKUP($A112,$A$182:$V$1081,C$1,FALSE),"") ->  | M112: =IFERROR(VLOOKUP($A112,$A$182:$V$1081,M$1,FALSE),"") ->  | N112: =IFERROR(VLOOKUP($A112,$A$182:$V$1081,N$1,FALSE),"") ->  | Q112: =IFERROR(VLOOKUP($A112,$A$182:$V$1081,Q$1,FALSE),"") ->  | S112: 円 | T112: =IFERROR(VLOOKUP($A112,$A$182:$V$1081,T$1,FALSE),"") ->  | V112: 円 | Y112: 103 | AB112: 倉敷市
A113: 104 | C113: ➊➋➌それぞれの賃金改善額（見込額） | N113: ➊ | O113: =IFERROR(VLOOKUP($A113,$A$182:$V$1081,O$1,FALSE),"") ->  | P113: 円 | Q113: ➋ | R113: =IFERROR(VLOOKUP($A113,$A$182:$V$1081,R$1,FALSE),"") ->  | S113: 円 | T113: ➌ | U113: =IFERROR(VLOOKUP($A113,$A$182:$V$1081,U$1,FALSE),"") ->  | V113: 円 | Y113: 104 | AB113: 福山市
A114: 105 | N114: （ | O114: =IFERROR(VLOOKUP($A114,$A$182:$V$1081,O$1,FALSE),"") ->  | P114: 人） | Q114: （ | R114: =IFERROR(VLOOKUP($A114,$A$182:$V$1081,R$1,FALSE),"") ->  | S114: 人） | T114: （ | U114: =IFERROR(VLOOKUP($A114,$A$182:$V$1081,U$1,FALSE),"") ->  | V114: 人） | Y114: 105 | AB114: 呉市
A115: 106 | C115: =IFERROR(VLOOKUP($A115,$A$182:$V$1081,C$1,FALSE),"") ->  | M115: =IFERROR(VLOOKUP($A115,$A$182:$V$1081,M$1,FALSE),"") ->  | N115: =IFERROR(VLOOKUP($A115,$A$182:$V$1081,N$1,FALSE),"") ->  | Q115: =IFERROR(VLOOKUP($A115,$A$182:$V$1081,Q$1,FALSE),"") ->  | S115: 円 | T115: =IFERROR(VLOOKUP($A115,$A$182:$V$1081,T$1,FALSE),"") ->  | V115: 円 | Y115: 106 | AB115: 下関市
A116: 107 | C116: ➊➋➌それぞれの賃金改善額（見込額） | N116: ➊ | O116: =IFERROR(VLOOKUP($A116,$A$182:$V$1081,O$1,FALSE),"") ->  | P116: 円 | Q116: ➋ | R116: =IFERROR(VLOOKUP($A116,$A$182:$V$1081,R$1,FALSE),"") ->  | S116: 円 | T116: ➌ | U116: =IFERROR(VLOOKUP($A116,$A$182:$V$1081,U$1,FALSE),"") ->  | V116: 円 | Y116: 107 | AB116: 高松市
A117: 108 | N117: （ | O117: =IFERROR(VLOOKUP($A117,$A$182:$V$1081,O$1,FALSE),"") ->  | P117: 人） | Q117: （ | R117: =IFERROR(VLOOKUP($A117,$A$182:$V$1081,R$1,FALSE),"") ->  | S117: 人） | T117: （ | U117: =IFERROR(VLOOKUP($A117,$A$182:$V$1081,U$1,FALSE),"") ->  | V117: 人） | Y117: 108 | AB117: 松山市
A118: 109 | C118: =IFERROR(VLOOKUP($A118,$A$182:$V$1081,C$1,FALSE),"") ->  | M118: =IFERROR(VLOOKUP($A118,$A$182:$V$1081,M$1,FALSE),"") ->  | N118: =IFERROR(VLOOKUP($A118,$A$182:$V$1081,N$1,FALSE),"") ->  | Q118: =IFERROR(VLOOKUP($A118,$A$182:$V$1081,Q$1,FALSE),"") ->  | S118: 円 | T118: =IFERROR(VLOOKUP($A118,$A$182:$V$1081,T$1,FALSE),"") ->  | V118: 円 | Y118: 109 | AB118: 高知市
A119: 110 | C119: ➊➋➌それぞれの賃金改善額（見込額） | N119: ➊ | O119: =IFERROR(VLOOKUP($A119,$A$182:$V$1081,O$1,FALSE),"") ->  | P119: 円 | Q119: ➋ | R119: =IFERROR(VLOOKUP($A119,$A$182:$V$1081,R$1,FALSE),"") ->  | S119: 円 | T119: ➌ | U119: =IFERROR(VLOOKUP($A119,$A$182:$V$1081,U$1,FALSE),"") ->  | V119: 円 | Y119: 110 | AB119: 久留米市
A120: 111 | N120: （ | O120: =IFERROR(VLOOKUP($A120,$A$182:$V$1081,O$1,FALSE),"") ->  | P120: 人） | Q120: （ | R120: =IFERROR(VLOOKUP($A120,$A$182:$V$1081,R$1,FALSE),"") ->  | S120: 人） | T120: （ | U120: =IFERROR(VLOOKUP($A120,$A$182:$V$1081,U$1,FALSE),"") ->  | V120: 人） | Y120: 111 | AB120: 長崎市
A121: 112 | C121: =IFERROR(VLOOKUP($A121,$A$182:$V$1081,C$1,FALSE),"") ->  | M121: =IFERROR(VLOOKUP($A121,$A$182:$V$1081,M$1,FALSE),"") ->  | N121: =IFERROR(VLOOKUP($A121,$A$182:$V$1081,N$1,FALSE),"") ->  | Q121: =IFERROR(VLOOKUP($A121,$A$182:$V$1081,Q$1,FALSE),"") ->  | S121: 円 | T121: =IFERROR(VLOOKUP($A121,$A$182:$V$1081,T$1,FALSE),"") ->  | V121: 円 | Y121: 112 | AB121: 佐世保市
A122: 113 | C122: ➊➋➌それぞれの賃金改善額（見込額） | N122: ➊ | O122: =IFERROR(VLOOKUP($A122,$A$182:$V$1081,O$1,FALSE),"") ->  | P122: 円 | Q122: ➋ | R122: =IFERROR(VLOOKUP($A122,$A$182:$V$1081,R$1,FALSE),"") ->  | S122: 円 | T122: ➌ | U122: =IFERROR(VLOOKUP($A122,$A$182:$V$1081,U$1,FALSE),"") ->  | V122: 円 | Y122: 113 | AB122: 大分市
A123: 114 | N123: （ | O123: =IFERROR(VLOOKUP($A123,$A$182:$V$1081,O$1,FALSE),"") ->  | P123: 人） | Q123: （ | R123: =IFERROR(VLOOKUP($A123,$A$182:$V$1081,R$1,FALSE),"") ->  | S123: 人） | T123: （ | U123: =IFERROR(VLOOKUP($A123,$A$182:$V$1081,U$1,FALSE),"") ->  | V123: 人） | Y123: 114 | AB123: 宮崎市
A124: 115 | C124: =IFERROR(VLOOKUP($A124,$A$182:$V$1081,C$1,FALSE),"") ->  | M124: =IFERROR(VLOOKUP($A124,$A$182:$V$1081,M$1,FALSE),"") ->  | N124: =IFERROR(VLOOKUP($A124,$A$182:$V$1081,N$1,FALSE),"") ->  | Q124: =IFERROR(VLOOKUP($A124,$A$182:$V$1081,Q$1,FALSE),"") ->  | S124: 円 | T124: =IFERROR(VLOOKUP($A124,$A$182:$V$1081,T$1,FALSE),"") ->  | V124: 円 | Y124: 115 | AB124: 鹿児島市
A125: 116 | C125: ➊➋➌それぞれの賃金改善額（見込額） | N125: ➊ | O125: =IFERROR(VLOOKUP($A125,$A$182:$V$1081,O$1,FALSE),"") ->  | P125: 円 | Q125: ➋ | R125: =IFERROR(VLOOKUP($A125,$A$182:$V$1081,R$1,FALSE),"") ->  | S125: 円 | T125: ➌ | U125: =IFERROR(VLOOKUP($A125,$A$182:$V$1081,U$1,FALSE),"") ->  | V125: 円 | Y125: 116 | AB125: 那覇市
A126: 117 | N126: （ | O126: =IFERROR(VLOOKUP($A126,$A$182:$V$1081,O$1,FALSE),"") ->  | P126: 人） | Q126: （ | R126: =IFERROR(VLOOKUP($A126,$A$182:$V$1081,R$1,FALSE),"") ->  | S126: 人） | T126: （ | U126: =IFERROR(VLOOKUP($A126,$A$182:$V$1081,U$1,FALSE),"") ->  | V126: 人） | Y126: 117
A127: 118 | C127: =IFERROR(VLOOKUP($A127,$A$182:$V$1081,C$1,FALSE),"") ->  | M127: =IFERROR(VLOOKUP($A127,$A$182:$V$1081,M$1,FALSE),"") ->  | N127: =IFERROR(VLOOKUP($A127,$A$182:$V$1081,N$1,FALSE),"") ->  | Q127: =IFERROR(VLOOKUP($A127,$A$182:$V$1081,Q$1,FALSE),"") ->  | S127: 円 | T127: =IFERROR(VLOOKUP($A127,$A$182:$V$1081,T$1,FALSE),"") ->  | V127: 円 | Y127: 118
A128: 119 | C128: ➊➋➌それぞれの賃金改善額（見込額） | N128: ➊ | O128: =IFERROR(VLOOKUP($A128,$A$182:$V$1081,O$1,FALSE),"") ->  | P128: 円 | Q128: ➋ | R128: =IFERROR(VLOOKUP($A128,$A$182:$V$1081,R$1,FALSE),"") ->  | S128: 円 | T128: ➌ | U128: =IFERROR(VLOOKUP($A128,$A$182:$V$1081,U$1,FALSE),"") ->  | V128: 円 | Y128: 119
A129: 120 | N129: （ | O129: =IFERROR(VLOOKUP($A129,$A$182:$V$1081,O$1,FALSE),"") ->  | P129: 人） | Q129: （ | R129: =IFERROR(VLOOKUP($A129,$A$182:$V$1081,R$1,FALSE),"") ->  | S129: 人） | T129: （ | U129: =IFERROR(VLOOKUP($A129,$A$182:$V$1081,U$1,FALSE),"") ->  | V129: 人） | Y129: 120
A130: 121 | C130: =IFERROR(VLOOKUP($A130,$A$182:$V$1081,C$1,FALSE),"") ->  | M130: =IFERROR(VLOOKUP($A130,$A$182:$V$1081,M$1,FALSE),"") ->  | N130: =IFERROR(VLOOKUP($A130,$A$182:$V$1081,N$1,FALSE),"") ->  | Q130: =IFERROR(VLOOKUP($A130,$A$182:$V$1081,Q$1,FALSE),"") ->  | S130: 円 | T130: =IFERROR(VLOOKUP($A130,$A$182:$V$1081,T$1,FALSE),"") ->  | V130: 円 | Y130: 121
A131: 122 | C131: ➊➋➌それぞれの賃金改善額（見込額） | N131: ➊ | O131: =IFERROR(VLOOKUP($A131,$A$182:$V$1081,O$1,FALSE),"") ->  | P131: 円 | Q131: ➋ | R131: =IFERROR(VLOOKUP($A131,$A$182:$V$1081,R$1,FALSE),"") ->  | S131: 円 | T131: ➌ | U131: =IFERROR(VLOOKUP($A131,$A$182:$V$1081,U$1,FALSE),"") ->  | V131: 円 | Y131: 122
A132: 123 | N132: （ | O132: =IFERROR(VLOOKUP($A132,$A$182:$V$1081,O$1,FALSE),"") ->  | P132: 人） | Q132: （ | R132: =IFERROR(VLOOKUP($A132,$A$182:$V$1081,R$1,FALSE),"") ->  | S132: 人） | T132: （ | U132: =IFERROR(VLOOKUP($A132,$A$182:$V$1081,U$1,FALSE),"") ->  | V132: 人） | Y132: 123
A133: 124 | C133: =IFERROR(VLOOKUP($A133,$A$182:$V$1081,C$1,FALSE),"") ->  | M133: =IFERROR(VLOOKUP($A133,$A$182:$V$1081,M$1,FALSE),"") ->  | N133: =IFERROR(VLOOKUP($A133,$A$182:$V$1081,N$1,FALSE),"") ->  | Q133: =IFERROR(VLOOKUP($A133,$A$182:$V$1081,Q$1,FALSE),"") ->  | S133: 円 | T133: =IFERROR(VLOOKUP($A133,$A$182:$V$1081,T$1,FALSE),"") ->  | V133: 円 | Y133: 124
A134: 125 | C134: ➊➋➌それぞれの賃金改善額（見込額） | N134: ➊ | O134: =IFERROR(VLOOKUP($A134,$A$182:$V$1081,O$1,FALSE),"") ->  | P134: 円 | Q134: ➋ | R134: =IFERROR(VLOOKUP($A134,$A$182:$V$1081,R$1,FALSE),"") ->  | S134: 円 | T134: ➌ | U134: =IFERROR(VLOOKUP($A134,$A$182:$V$1081,U$1,FALSE),"") ->  | V134: 円 | Y134: 125
A135: 126 | N135: （ | O135: =IFERROR(VLOOKUP($A135,$A$182:$V$1081,O$1,FALSE),"") ->  | P135: 人） | Q135: （ | R135: =IFERROR(VLOOKUP($A135,$A$182:$V$1081,R$1,FALSE),"") ->  | S135: 人） | T135: （ | U135: =IFERROR(VLOOKUP($A135,$A$182:$V$1081,U$1,FALSE),"") ->  | V135: 人） | Y135: 126
A136: 127 | C136: =IFERROR(VLOOKUP($A136,$A$182:$V$1081,C$1,FALSE),"") ->  | M136: =IFERROR(VLOOKUP($A136,$A$182:$V$1081,M$1,FALSE),"") ->  | N136: =IFERROR(VLOOKUP($A136,$A$182:$V$1081,N$1,FALSE),"") ->  | Q136: =IFERROR(VLOOKUP($A136,$A$182:$V$1081,Q$1,FALSE),"") ->  | S136: 円 | T136: =IFERROR(VLOOKUP($A136,$A$182:$V$1081,T$1,FALSE),"") ->  | V136: 円 | Y136: 127
A137: 128 | C137: ➊➋➌それぞれの賃金改善額（見込額） | N137: ➊ | O137: =IFERROR(VLOOKUP($A137,$A$182:$V$1081,O$1,FALSE),"") ->  | P137: 円 | Q137: ➋ | R137: =IFERROR(VLOOKUP($A137,$A$182:$V$1081,R$1,FALSE),"") ->  | S137: 円 | T137: ➌ | U137: =IFERROR(VLOOKUP($A137,$A$182:$V$1081,U$1,FALSE),"") ->  | V137: 円 | Y137: 128
A138: 129 | N138: （ | O138: =IFERROR(VLOOKUP($A138,$A$182:$V$1081,O$1,FALSE),"") ->  | P138: 人） | Q138: （ | R138: =IFERROR(VLOOKUP($A138,$A$182:$V$1081,R$1,FALSE),"") ->  | S138: 人） | T138: （ | U138: =IFERROR(VLOOKUP($A138,$A$182:$V$1081,U$1,FALSE),"") ->  | V138: 人） | Y138: 129
A139: =$C$7&Y139 -> 130 | C139: =IFERROR(VLOOKUP($A139,$A$182:$V$1081,C$1,FALSE),"") ->  | M139: =IFERROR(VLOOKUP($A139,$A$182:$V$1081,M$1,FALSE),"") ->  | N139: =IFERROR(VLOOKUP($A139,$A$182:$V$1081,N$1,FALSE),"") ->  | Q139: =IFERROR(VLOOKUP($A139,$A$182:$V$1081,Q$1,FALSE),"") ->  | S139: 円 | T139: =IFERROR(VLOOKUP($A139,$A$182:$V$1081,T$1,FALSE),"") ->  | V139: 円 | Y139: 130
A140: 131 | C140: ➊➋➌それぞれの賃金改善額（見込額） | N140: ➊ | O140: =IFERROR(VLOOKUP($A140,$A$182:$V$1081,O$1,FALSE),"") ->  | P140: 円 | Q140: ➋ | R140: =IFERROR(VLOOKUP($A140,$A$182:$V$1081,R$1,FALSE),"") ->  | S140: 円 | T140: ➌ | U140: =IFERROR(VLOOKUP($A140,$A$182:$V$1081,U$1,FALSE),"") ->  | V140: 円 | Y140: 131
A141: 132 | N141: （ | O141: =IFERROR(VLOOKUP($A141,$A$182:$V$1081,O$1,FALSE),"") ->  | P141: 人） | Q141: （ | R141: =IFERROR(VLOOKUP($A141,$A$182:$V$1081,R$1,FALSE),"") ->  | S141: 人） | T141: （ | U141: =IFERROR(VLOOKUP($A141,$A$182:$V$1081,U$1,FALSE),"") ->  | V141: 人） | Y141: 132
A142: 133 | C142: =IFERROR(VLOOKUP($A142,$A$182:$V$1081,C$1,FALSE),"") ->  | M142: =IFERROR(VLOOKUP($A142,$A$182:$V$1081,M$1,FALSE),"") ->  | N142: =IFERROR(VLOOKUP($A142,$A$182:$V$1081,N$1,FALSE),"") ->  | Q142: =IFERROR(VLOOKUP($A142,$A$182:$V$1081,Q$1,FALSE),"") ->  | S142: 円 | T142: =IFERROR(VLOOKUP($A142,$A$182:$V$1081,T$1,FALSE),"") ->  | V142: 円 | Y142: 133
A143: 134 | C143: ➊➋➌それぞれの賃金改善額（見込額） | N143: ➊ | O143: =IFERROR(VLOOKUP($A143,$A$182:$V$1081,O$1,FALSE),"") ->  | P143: 円 | Q143: ➋ | R143: =IFERROR(VLOOKUP($A143,$A$182:$V$1081,R$1,FALSE),"") ->  | S143: 円 | T143: ➌ | U143: =IFERROR(VLOOKUP($A143,$A$182:$V$1081,U$1,FALSE),"") ->  | V143: 円 | Y143: 134
A144: 135 | N144: （ | O144: =IFERROR(VLOOKUP($A144,$A$182:$V$1081,O$1,FALSE),"") ->  | P144: 人） | Q144: （ | R144: =IFERROR(VLOOKUP($A144,$A$182:$V$1081,R$1,FALSE),"") ->  | S144: 人） | T144: （ | U144: =IFERROR(VLOOKUP($A144,$A$182:$V$1081,U$1,FALSE),"") ->  | V144: 人） | Y144: 135
A145: 136 | C145: =IFERROR(VLOOKUP($A145,$A$182:$V$1081,C$1,FALSE),"") ->  | M145: =IFERROR(VLOOKUP($A145,$A$182:$V$1081,M$1,FALSE),"") ->  | N145: =IFERROR(VLOOKUP($A145,$A$182:$V$1081,N$1,FALSE),"") ->  | Q145: =IFERROR(VLOOKUP($A145,$A$182:$V$1081,Q$1,FALSE),"") ->  | S145: 円 | T145: =IFERROR(VLOOKUP($A145,$A$182:$V$1081,T$1,FALSE),"") ->  | V145: 円 | Y145: 136
A146: 137 | C146: ➊➋➌それぞれの賃金改善額（見込額） | N146: ➊ | O146: =IFERROR(VLOOKUP($A146,$A$182:$V$1081,O$1,FALSE),"") ->  | P146: 円 | Q146: ➋ | R146: =IFERROR(VLOOKUP($A146,$A$182:$V$1081,R$1,FALSE),"") ->  | S146: 円 | T146: ➌ | U146: =IFERROR(VLOOKUP($A146,$A$182:$V$1081,U$1,FALSE),"") ->  | V146: 円 | Y146: 137
A147: 138 | N147: （ | O147: =IFERROR(VLOOKUP($A147,$A$182:$V$1081,O$1,FALSE),"") ->  | P147: 人） | Q147: （ | R147: =IFERROR(VLOOKUP($A147,$A$182:$V$1081,R$1,FALSE),"") ->  | S147: 人） | T147: （ | U147: =IFERROR(VLOOKUP($A147,$A$182:$V$1081,U$1,FALSE),"") ->  | V147: 人） | Y147: 138
A148: 139 | C148: =IFERROR(VLOOKUP($A148,$A$182:$V$1081,C$1,FALSE),"") ->  | M148: =IFERROR(VLOOKUP($A148,$A$182:$V$1081,M$1,FALSE),"") ->  | N148: =IFERROR(VLOOKUP($A148,$A$182:$V$1081,N$1,FALSE),"") ->  | Q148: =IFERROR(VLOOKUP($A148,$A$182:$V$1081,Q$1,FALSE),"") ->  | S148: 円 | T148: =IFERROR(VLOOKUP($A148,$A$182:$V$1081,T$1,FALSE),"") ->  | V148: 円 | Y148: 139
A149: 140 | C149: ➊➋➌それぞれの賃金改善額（見込額） | N149: ➊ | O149: =IFERROR(VLOOKUP($A149,$A$182:$V$1081,O$1,FALSE),"") ->  | P149: 円 | Q149: ➋ | R149: =IFERROR(VLOOKUP($A149,$A$182:$V$1081,R$1,FALSE),"") ->  | S149: 円 | T149: ➌ | U149: =IFERROR(VLOOKUP($A149,$A$182:$V$1081,U$1,FALSE),"") ->  | V149: 円 | Y149: 140
A150: 141 | N150: （ | O150: =IFERROR(VLOOKUP($A150,$A$182:$V$1081,O$1,FALSE),"") ->  | P150: 人） | Q150: （ | R150: =IFERROR(VLOOKUP($A150,$A$182:$V$1081,R$1,FALSE),"") ->  | S150: 人） | T150: （ | U150: =IFERROR(VLOOKUP($A150,$A$182:$V$1081,U$1,FALSE),"") ->  | V150: 人） | Y150: 141
A151: 142 | C151: =IFERROR(VLOOKUP($A151,$A$182:$V$1081,C$1,FALSE),"") ->  | M151: =IFERROR(VLOOKUP($A151,$A$182:$V$1081,M$1,FALSE),"") ->  | N151: =IFERROR(VLOOKUP($A151,$A$182:$V$1081,N$1,FALSE),"") ->  | Q151: =IFERROR(VLOOKUP($A151,$A$182:$V$1081,Q$1,FALSE),"") ->  | S151: 円 | T151: =IFERROR(VLOOKUP($A151,$A$182:$V$1081,T$1,FALSE),"") ->  | V151: 円 | Y151: 142
A152: 143 | C152: ➊➋➌それぞれの賃金改善額（見込額） | N152: ➊ | O152: =IFERROR(VLOOKUP($A152,$A$182:$V$1081,O$1,FALSE),"") ->  | P152: 円 | Q152: ➋ | R152: =IFERROR(VLOOKUP($A152,$A$182:$V$1081,R$1,FALSE),"") ->  | S152: 円 | T152: ➌ | U152: =IFERROR(VLOOKUP($A152,$A$182:$V$1081,U$1,FALSE),"") ->  | V152: 円 | Y152: 143
A153: 144 | N153: （ | O153: =IFERROR(VLOOKUP($A153,$A$182:$V$1081,O$1,FALSE),"") ->  | P153: 人） | Q153: （ | R153: =IFERROR(VLOOKUP($A153,$A$182:$V$1081,R$1,FALSE),"") ->  | S153: 人） | T153: （ | U153: =IFERROR(VLOOKUP($A153,$A$182:$V$1081,U$1,FALSE),"") ->  | V153: 人） | Y153: 144
A154: 145 | C154: =IFERROR(VLOOKUP($A154,$A$182:$V$1081,C$1,FALSE),"") ->  | M154: =IFERROR(VLOOKUP($A154,$A$182:$V$1081,M$1,FALSE),"") ->  | N154: =IFERROR(VLOOKUP($A154,$A$182:$V$1081,N$1,FALSE),"") ->  | Q154: =IFERROR(VLOOKUP($A154,$A$182:$V$1081,Q$1,FALSE),"") ->  | S154: 円 | T154: =IFERROR(VLOOKUP($A154,$A$182:$V$1081,T$1,FALSE),"") ->  | V154: 円 | Y154: 145
A155: 146 | C155: ➊➋➌それぞれの賃金改善額（見込額） | N155: ➊ | O155: =IFERROR(VLOOKUP($A155,$A$182:$V$1081,O$1,FALSE),"") ->  | P155: 円 | Q155: ➋ | R155: =IFERROR(VLOOKUP($A155,$A$182:$V$1081,R$1,FALSE),"") ->  | S155: 円 | T155: ➌ | U155: =IFERROR(VLOOKUP($A155,$A$182:$V$1081,U$1,FALSE),"") ->  | V155: 円 | Y155: 146
A156: 147 | N156: （ | O156: =IFERROR(VLOOKUP($A156,$A$182:$V$1081,O$1,FALSE),"") ->  | P156: 人） | Q156: （ | R156: =IFERROR(VLOOKUP($A156,$A$182:$V$1081,R$1,FALSE),"") ->  | S156: 人） | T156: （ | U156: =IFERROR(VLOOKUP($A156,$A$182:$V$1081,U$1,FALSE),"") ->  | V156: 人） | Y156: 147
A157: 148 | C157: =IFERROR(VLOOKUP($A157,$A$182:$V$1081,C$1,FALSE),"") ->  | M157: =IFERROR(VLOOKUP($A157,$A$182:$V$1081,M$1,FALSE),"") ->  | N157: =IFERROR(VLOOKUP($A157,$A$182:$V$1081,N$1,FALSE),"") ->  | Q157: =IFERROR(VLOOKUP($A157,$A$182:$V$1081,Q$1,FALSE),"") ->  | S157: 円 | T157: =IFERROR(VLOOKUP($A157,$A$182:$V$1081,T$1,FALSE),"") ->  | V157: 円 | Y157: 148
A158: 149 | C158: ➊➋➌それぞれの賃金改善額（見込額） | N158: ➊ | O158: =IFERROR(VLOOKUP($A158,$A$182:$V$1081,O$1,FALSE),"") ->  | P158: 円 | Q158: ➋ | R158: =IFERROR(VLOOKUP($A158,$A$182:$V$1081,R$1,FALSE),"") ->  | S158: 円 | T158: ➌ | U158: =IFERROR(VLOOKUP($A158,$A$182:$V$1081,U$1,FALSE),"") ->  | V158: 円 | Y158: 149
A159: 150 | N159: （ | O159: =IFERROR(VLOOKUP($A159,$A$182:$V$1081,O$1,FALSE),"") ->  | P159: 人） | Q159: （ | R159: =IFERROR(VLOOKUP($A159,$A$182:$V$1081,R$1,FALSE),"") ->  | S159: 人） | T159: （ | U159: =IFERROR(VLOOKUP($A159,$A$182:$V$1081,U$1,FALSE),"") ->  | V159: 人） | Y159: 150
C160: 合計 | M160: － | N160: － | Q160: =_xlfn.AGGREGATE(9,6,Q10:Q159) -> 0 | S160: 円 | T160: =_xlfn.AGGREGATE(9,6,T10:T159) -> 0 | V160: 円
Q161: Ａ | T161: Ｂ
C162: ※ 計画書を届け出る指定権者（都道府県又は市区町村）ごとに記載すること。
C163: ※ A及びBは別紙様式２添付書類２の当該指定権者における金額と一致しなければならない。
S165: ページ数 総ページ数 ／
C171: 006各シート集約!C | M171: 006各シート集約!D | N171: 006各シート集約!E | Q171: 006各シート集約!F | T171: 006各シート集約!G | W171: 006各シート集約!H
O172: 006各シート集約!K | R172: 006各シート集約!Q | U172: 006各シート集約!V
O173: 006各シート集約!J | R173: 006各シート集約!P | U173: 006各シート集約!U
C174: 別紙様式２（添付資料１）
C175: 福祉・介護職員等特定処遇改善計画書(指定権者内事業所一覧表） 全体版
C177: 法人名 | M177: ='001別紙様式２'!G16 -> 0
C179: 都道府県（市町村）名
C181: 障害福祉サービス等事業所番号 | M181: 事業所の名称 | N181: サービス名 | Q181: 福祉・介護職員等特定処遇改善加算額（見込額） | T181: 賃金改善額（見込額） | X181: 6 | Y181: 3
A182: =W182&Y182 ->  | C182: =INDIRECT(C$171&$X182) ->  | M182: =INDIRECT(M$171&$X182) ->  | N182: =INDIRECT(N$171&$X182) ->  | Q182: =INDIRECT(Q$171&$X182) ->  | S182: 円 | T182: =INDIRECT(T$171&$X182) ->  | V182: 円 | W182: =INDIRECT($W$171&X182) ->  | X182: =X181+1 -> 7 | Y182: =COUNTIF($W$181:W182,W182) -> 1
A183: =W183&Y183 ->  | C183: ➊➋➌それぞれの賃金改善額（見込額） | N183: ➊ | O183: =INDIRECT(O$172&$X183) ->  | P183: 円 | Q183: ➋ | R183: =INDIRECT(R$172&$X183) ->  | S183: 円 | T183: ➌ | U183: =INDIRECT(U$172&$X183) ->  | V183: 円 | W183: =INDIRECT($W$171&X183) ->  | X183: =X182 -> 7 | Y183: =COUNTIF($W$181:W183,W183) -> 2
N184: （ | O184: =INDIRECT(O$173&$X184) ->  | P184: 人） | Q184: （ | R184: =INDIRECT(R$173&$X184) ->  | S184: 人） | T184: （ | U184: =INDIRECT(U$173&$X184) ->  | V184: 人） | X184: =X183 -> 7 | Y184: =COUNTIF($W$181:W184,W184) -> 3
C185: =INDIRECT(C$171&$X185) ->  | M185: =INDIRECT(M$171&$X185) ->  | N185: =INDIRECT(N$171&$X185) ->  | Q185: =INDIRECT(Q$171&$X185) ->  | S185: 円 | T185: =INDIRECT(T$171&$X185) ->  | V185: 円 | X185: =X184+1 -> 8 | Y185: =COUNTIF($W$181:W185,W185) -> 4
C186: ➊➋➌それぞれの賃金改善額（見込額） | N186: ➊ | O186: =INDIRECT(O$172&$X186) ->  | P186: 円 | Q186: ➋ | R186: =INDIRECT(R$172&$X186) ->  | S186: 円 | T186: ➌ | U186: =INDIRECT(U$172&$X186) ->  | V186: 円 | X186: =X185 -> 8 | Y186: =COUNTIF($W$181:W186,W186) -> 5
N187: （ | O187: =INDIRECT(O$173&$X187) ->  | P187: 人） | Q187: （ | R187: =INDIRECT(R$173&$X187) ->  | S187: 人） | T187: （ | U187: =INDIRECT(U$173&$X187) ->  | V187: 人） | X187: 8 | Y187: =COUNTIF($W$181:W187,W187) -> 6
C188: =INDIRECT(C$171&$X188) ->  | M188: =INDIRECT(M$171&$X188) ->  | N188: =INDIRECT(N$171&$X188) ->  | Q188: =INDIRECT(Q$171&$X188) ->  | S188: 円 | T188: =INDIRECT(T$171&$X188) ->  | V188: 円 | X188: =X187+1 -> 9 | Y188: =COUNTIF($W$181:W188,W188) -> 7
C189: ➊➋➌それぞれの賃金改善額（見込額） | N189: ➊ | O189: =INDIRECT(O$172&$X189) ->  | P189: 円 | Q189: ➋ | R189: =INDIRECT(R$172&$X189) ->  | S189: 円 | T189: ➌ | U189: =INDIRECT(U$172&$X189) ->  | V189: 円 | X189: =X188 -> 9 | Y189: =COUNTIF($W$181:W189,W189) -> 8
N190: （ | O190: =INDIRECT(O$173&$X190) ->  | P190: 人） | Q190: （ | R190: =INDIRECT(R$173&$X190) ->  | S190: 人） | T190: （ | U190: =INDIRECT(U$173&$X190) ->  | V190: 人） | X190: 9 | Y190: =COUNTIF($W$181:W190,W190) -> 9
C191: =INDIRECT(C$171&$X191) ->  | M191: =INDIRECT(M$171&$X191) ->  | N191: =INDIRECT(N$171&$X191) ->  | Q191: =INDIRECT(Q$171&$X191) ->  | S191: 円 | T191: =INDIRECT(T$171&$X191) ->  | V191: 円 | X191: =X190+1 -> 10 | Y191: =COUNTIF($W$181:W191,W191) -> 10
C192: ➊➋➌それぞれの賃金改善額（見込額） | N192: ➊ | O192: =INDIRECT(O$172&$X192) ->  | P192: 円 | Q192: ➋ | R192: =INDIRECT(R$172&$X192) ->  | S192: 円 | T192: ➌ | U192: =INDIRECT(U$172&$X192) ->  | V192: 円 | X192: =X191 -> 10 | Y192: =COUNTIF($W$181:W192,W192) -> 11
N193: （ | O193: =INDIRECT(O$173&$X193) ->  | P193: 人） | Q193: （ | R193: =INDIRECT(R$173&$X193) ->  | S193: 人） | T193: （ | U193: =INDIRECT(U$173&$X193) ->  | V193: 人） | X193: 10 | Y193: =COUNTIF($W$181:W193,W193) -> 12
C194: =INDIRECT(C$171&$X194) ->  | M194: =INDIRECT(M$171&$X194) ->  | N194: =INDIRECT(N$171&$X194) ->  | Q194: =INDIRECT(Q$171&$X194) ->  | S194: 円 | T194: =INDIRECT(T$171&$X194) ->  | V194: 円 | X194: =X193+1 -> 11 | Y194: =COUNTIF($W$181:W194,W194) -> 13
C195: ➊➋➌それぞれの賃金改善額（見込額） | N195: ➊ | O195: =INDIRECT(O$172&$X195) ->  | P195: 円 | Q195: ➋ | R195: =INDIRECT(R$172&$X195) ->  | S195: 円 | T195: ➌ | U195: =INDIRECT(U$172&$X195) ->  | V195: 円 | X195: =X194 -> 11 | Y195: =COUNTIF($W$181:W195,W195) -> 14
N196: （ | O196: =INDIRECT(O$173&$X196) ->  | P196: 人） | Q196: （ | R196: =INDIRECT(R$173&$X196) ->  | S196: 人） | T196: （ | U196: =INDIRECT(U$173&$X196) ->  | V196: 人） | X196: 11 | Y196: =COUNTIF($W$181:W196,W196) -> 15
C197: =INDIRECT(C$171&$X197) ->  | M197: =INDIRECT(M$171&$X197) ->  | N197: =INDIRECT(N$171&$X197) ->  | Q197: =INDIRECT(Q$171&$X197) ->  | S197: 円 | T197: =INDIRECT(T$171&$X197) ->  | V197: 円 | X197: =X196+1 -> 12 | Y197: =COUNTIF($W$181:W197,W197) -> 16
C198: ➊➋➌それぞれの賃金改善額（見込額） | N198: ➊ | O198: =INDIRECT(O$172&$X198) ->  | P198: 円 | Q198: ➋ | R198: =INDIRECT(R$172&$X198) ->  | S198: 円 | T198: ➌ | U198: =INDIRECT(U$172&$X198) ->  | V198: 円 | X198: =X197 -> 12 | Y198: =COUNTIF($W$181:W198,W198) -> 17
N199: （ | O199: =INDIRECT(O$173&$X199) ->  | P199: 人） | Q199: （ | R199: =INDIRECT(R$173&$X199) ->  | S199: 人） | T199: （ | U199: =INDIRECT(U$173&$X199) ->  | V199: 人） | X199: 12 | Y199: =COUNTIF($W$181:W199,W199) -> 18
C200: =INDIRECT(C$171&$X200) ->  | M200: =INDIRECT(M$171&$X200) ->  | N200: =INDIRECT(N$171&$X200) ->  | Q200: =INDIRECT(Q$171&$X200) ->  | S200: 円 | T200: =INDIRECT(T$171&$X200) ->  | V200: 円 | X200: =X199+1 -> 13 | Y200: =COUNTIF($W$181:W200,W200) -> 19
C201: ➊➋➌それぞれの賃金改善額（見込額） | N201: ➊ | O201: =INDIRECT(O$172&$X201) ->  | P201: 円 | Q201: ➋ | R201: =INDIRECT(R$172&$X201) ->  | S201: 円 | T201: ➌ | U201: =INDIRECT(U$172&$X201) ->  | V201: 円 | X201: =X200 -> 13 | Y201: =COUNTIF($W$181:W201,W201) -> 20
N202: （ | O202: =INDIRECT(O$173&$X202) ->  | P202: 人） | Q202: （ | R202: =INDIRECT(R$173&$X202) ->  | S202: 人） | T202: （ | U202: =INDIRECT(U$173&$X202) ->  | V202: 人） | X202: 13 | Y202: =COUNTIF($W$181:W202,W202) -> 21
C203: =INDIRECT(C$171&$X203) ->  | M203: =INDIRECT(M$171&$X203) ->  | N203: =INDIRECT(N$171&$X203) ->  | Q203: =INDIRECT(Q$171&$X203) ->  | S203: 円 | T203: =INDIRECT(T$171&$X203) ->  | V203: 円 | X203: =X202+1 -> 14 | Y203: =COUNTIF($W$181:W203,W203) -> 22
C204: ➊➋➌それぞれの賃金改善額（見込額） | N204: ➊ | O204: =INDIRECT(O$172&$X204) ->  | P204: 円 | Q204: ➋ | R204: =INDIRECT(R$172&$X204) ->  | S204: 円 | T204: ➌ | U204: =INDIRECT(U$172&$X204) ->  | V204: 円 | X204: =X203 -> 14 | Y204: =COUNTIF($W$181:W204,W204) -> 23
N205: （ | O205: =INDIRECT(O$173&$X205) ->  | P205: 人） | Q205: （ | R205: =INDIRECT(R$173&$X205) ->  | S205: 人） | T205: （ | U205: =INDIRECT(U$173&$X205) ->  | V205: 人） | X205: 14 | Y205: =COUNTIF($W$181:W205,W205) -> 24
C206: =INDIRECT(C$171&$X206) ->  | M206: =INDIRECT(M$171&$X206) ->  | N206: =INDIRECT(N$171&$X206) ->  | Q206: =INDIRECT(Q$171&$X206) ->  | S206: 円 | T206: =INDIRECT(T$171&$X206) ->  | V206: 円 | X206: =X205+1 -> 15 | Y206: =COUNTIF($W$181:W206,W206) -> 25
C207: ➊➋➌それぞれの賃金改善額（見込額） | N207: ➊ | O207: =INDIRECT(O$172&$X207) ->  | P207: 円 | Q207: ➋ | R207: =INDIRECT(R$172&$X207) ->  | S207: 円 | T207: ➌ | U207: =INDIRECT(U$172&$X207) ->  | V207: 円 | X207: =X206 -> 15 | Y207: =COUNTIF($W$181:W207,W207) -> 26
N208: （ | O208: =INDIRECT(O$173&$X208) ->  | P208: 人） | Q208: （ | R208: =INDIRECT(R$173&$X208) ->  | S208: 人） | T208: （ | U208: =INDIRECT(U$173&$X208) ->  | V208: 人） | X208: 15 | Y208: =COUNTIF($W$181:W208,W208) -> 27
C209: =INDIRECT(C$171&$X209) ->  | M209: =INDIRECT(M$171&$X209) ->  | N209: =INDIRECT(N$171&$X209) ->  | Q209: =INDIRECT(Q$171&$X209) ->  | S209: 円 | T209: =INDIRECT(T$171&$X209) ->  | V209: 円 | X209: =X208+1 -> 16 | Y209: =COUNTIF($W$181:W209,W209) -> 28
... 877 more rows

Sheet 003添付書類２
A1: 1 | B1: 2 | C1: 3 | D1: 4 | E1: 5 | F1: 6 | G1: 7 | H1: 8 | I1: 9 | J1: 10 | K1: 11 | L1: 12 | M1: 13 | N1: 14 | O1: 15 | P1: 16 | Q1: 17 | R1: 18 | S1: 19 | T1: 20 | Z1: 北海道
A2: 別紙様式２（添付書類２） | Z2: 青森県
A3: 福祉・介護職員等特定処遇改善計画書(届出対象都道府県内一覧表） | Z3: 岩手県
Z4: 宮城県
A5: 法人名 | C5: ='002添付書類１'!M5 -> 0 | Z5: 秋田県
V6: 選択した都道府県 | W6: 管内指定権者数 | Z6: 山形県
Z7: 福島県
Z8: 茨城県
A9: 指定権者（都道府県・市町村） | B9: 福祉・介護職員等特定処遇改善加算の見込額 | D9: 賃金改善の見込額 | F9: ➊の賃金改善額（見込額）・人数 | K9: ➋の賃金改善額（見込額）・人数 | P9: ➌の賃金改善額（見込額）・人数 | V9: =A7 -> 0 | W9: =COUNTIF($W$64:$W$188,V9) -> 0 | Z9: 栃木県
A10: =W10 ->  | B10: =IFERROR(VLOOKUP($A10,$A$64:$T$188,B$1,FALSE),"") ->  | L10: =IFERROR(VLOOKUP($A10,$A$64:$T$188,L$1,FALSE),"") ->  | V10: =IF($W$9+1<=U64,"",U64) ->  | W10: =IFERROR(VLOOKUP($V$9&$V10,$V$64:$X$188,3,FALSE),"") ->  | Z10: 群馬県
Z11: 埼玉県
Z12: 千葉県
Z13: 東京都
Z14: 神奈川県
Z15: 新潟県
Z16: 富山県
Z17: 石川県
Z18: 福井県
Z19: 山梨県
B20: =IFERROR(VLOOKUP($A20,$A$64:$T$188,B$1,FALSE),"") ->  | L20: =IFERROR(VLOOKUP($A20,$A$64:$T$188,L$1,FALSE),"") ->  | Z20: 長野県
Z21: 岐阜県
Z22: 静岡県
Z23: 愛知県
Z24: 三重県
Z25: 滋賀県
Z26: 京都府
Z27: 大阪府
Z28: 兵庫県
Z29: 奈良県
B30: =IFERROR(VLOOKUP($A30,$A$64:$T$188,B$1,FALSE),"") ->  | L30: =IFERROR(VLOOKUP($A30,$A$64:$T$188,L$1,FALSE),"") ->  | Z30: 和歌山県
Z31: 鳥取県
Z32: 島根県
Z33: 岡山県
Z34: 広島県
Z35: 山口県
Z36: 徳島県
Z37: 香川県
Z38: 愛媛県
Z39: 高知県
Z40: 福岡県
Z41: 佐賀県
Z42: 長崎県
A43: =W43 ->  | Z43: 熊本県
A44: =W44 ->  | Z44: 大分県
A45: 合計 | B45: =SUM(B10:B44) -> 0 | C45: 円 | D45: =SUM(D10:D44) -> 0 | E45: 円 | F45: =SUM(F10:F44) -> 0 | G45: 円 | H45: （ | I45: =SUM(I10:I44) -> 0 | J45: 人） | K45: =SUM(K10:K44) -> 0 | L45: 円 | M45: （ | N45: =SUM(N10:N44) -> 0 | O45: 人） | P45: =SUM(P10:P44) -> 0 | Q45: 円 | R45: （ | S45: =SUM(S10:S44) -> 0 | T45: 人） | Z45: 宮崎県
B46: Ｃ | D46: Ｄ | F46: a | K46: b | P46: c | Z46: 鹿児島県
A47: ※ C及びDは別紙様式２添付書類３の当該指定権者における金額と一致しなければならない。 | Z47: 沖縄県
A48: ※ Dはaからcの合計と一致しなければならない。
O50: ページ数 総ページ数 １／１
B55: 2 | D55: 3 | F55: 5 | I55: 4 | K55: 11 | N55: 10 | P55: 16 | S55: 15
A56: 別紙様式２（添付書類２）
A57: 福祉・介護職員等特定処遇改善計画書(届出対象都道府県内一覧表） 全体版
A59: 法人名 | C59: ='002添付書類１'!M177 -> 0
A61: 都道府県名
A63: 指定権者（都道府県・市町村） | B63: 福祉・介護職員等特定処遇改善加算の見込額 | D63: 賃金改善の見込額 | F63: ➊の賃金改善額（見込額）・人数 | K63: ➋の賃金改善額（見込額）・人数 | P63: ➌の賃金改善額（見込額）・人数
A64: 北海道 | B64: =VLOOKUP($A64,'005リスト'!$D$4:$U$128,B$55,FALSE) -> 0 | C64: 円 | D64: =VLOOKUP($A64,'005リスト'!$D$4:$U$128,D$55,FALSE) -> 0 | E64: 円 | F64: =VLOOKUP($A64,'005リスト'!$D$4:$U$128,F$55,FALSE) -> 0 | G64: 円 | H64: （ | I64: =VLOOKUP($A64,'005リスト'!$D$4:$U$128,I$55,FALSE) -> 0 | J64: 人） | K64: =VLOOKUP($A64,'005リスト'!$D$4:$U$128,K$55,FALSE) -> 0 | L64: 円 | M64: （ | N64: =VLOOKUP($A64,'005リスト'!$D$4:$U$128,N$55,FALSE) -> 0 | O64: 人） | P64: =VLOOKUP($A64,'005リスト'!$D$4:$U$128,P$55,FALSE) -> 0 | Q64: 円 | R64: （ | S64: =VLOOKUP($A64,'005リスト'!$D$4:$U$128,S$55,FALSE) -> 0 | T64: 人） | U64: 1 | V64: 北海道1 | W64: 北海道 | X64: 北海道
A65: 青森県 | B65: =VLOOKUP($A65,'005リスト'!$D$4:$U$128,B$55,FALSE) -> 0 | C65: 円 | D65: =VLOOKUP($A65,'005リスト'!$D$4:$U$128,D$55,FALSE) -> 0 | E65: 円 | F65: =VLOOKUP($A65,'005リスト'!$D$4:$U$128,F$55,FALSE) -> 0 | G65: 円 | H65: （ | I65: =VLOOKUP($A65,'005リスト'!$D$4:$U$128,I$55,FALSE) -> 0 | J65: 人） | K65: =VLOOKUP($A65,'005リスト'!$D$4:$U$128,K$55,FALSE) -> 0 | L65: 円 | M65: （ | N65: =VLOOKUP($A65,'005リスト'!$D$4:$U$128,N$55,FALSE) -> 0 | O65: 人） | P65: =VLOOKUP($A65,'005リスト'!$D$4:$U$128,P$55,FALSE) -> 0 | Q65: 円 | R65: （ | S65: =VLOOKUP($A65,'005リスト'!$D$4:$U$128,S$55,FALSE) -> 0 | T65: 人） | U65: 2 | V65: 青森県1 | W65: 青森県 | X65: 青森県
A66: 岩手県 | B66: =VLOOKUP($A66,'005リスト'!$D$4:$U$128,B$55,FALSE) -> 0 | C66: 円 | D66: =VLOOKUP($A66,'005リスト'!$D$4:$U$128,D$55,FALSE) -> 0 | E66: 円 | F66: =VLOOKUP($A66,'005リスト'!$D$4:$U$128,F$55,FALSE) -> 0 | G66: 円 | H66: （ | I66: =VLOOKUP($A66,'005リスト'!$D$4:$U$128,I$55,FALSE) -> 0 | J66: 人） | K66: =VLOOKUP($A66,'005リスト'!$D$4:$U$128,K$55,FALSE) -> 0 | L66: 円 | M66: （ | N66: =VLOOKUP($A66,'005リスト'!$D$4:$U$128,N$55,FALSE) -> 0 | O66: 人） | P66: =VLOOKUP($A66,'005リスト'!$D$4:$U$128,P$55,FALSE) -> 0 | Q66: 円 | R66: （ | S66: =VLOOKUP($A66,'005リスト'!$D$4:$U$128,S$55,FALSE) -> 0 | T66: 人） | U66: 3 | V66: 岩手県1 | W66: 岩手県 | X66: 岩手県
A67: 宮城県 | B67: =VLOOKUP($A67,'005リスト'!$D$4:$U$128,B$55,FALSE) -> 0 | C67: 円 | D67: =VLOOKUP($A67,'005リスト'!$D$4:$U$128,D$55,FALSE) -> 0 | E67: 円 | F67: =VLOOKUP($A67,'005リスト'!$D$4:$U$128,F$55,FALSE) -> 0 | G67: 円 | H67: （ | I67: =VLOOKUP($A67,'005リスト'!$D$4:$U$128,I$55,FALSE) -> 0 | J67: 人） | K67: =VLOOKUP($A67,'005リスト'!$D$4:$U$128,K$55,FALSE) -> 0 | L67: 円 | M67: （ | N67: =VLOOKUP($A67,'005リスト'!$D$4:$U$128,N$55,FALSE) -> 0 | O67: 人） | P67: =VLOOKUP($A67,'005リスト'!$D$4:$U$128,P$55,FALSE) -> 0 | Q67: 円 | R67: （ | S67: =VLOOKUP($A67,'005リスト'!$D$4:$U$128,S$55,FALSE) -> 0 | T67: 人） | U67: 4 | V67: 宮城県1 | W67: 宮城県 | X67: 宮城県
A68: 秋田県 | B68: =VLOOKUP($A68,'005リスト'!$D$4:$U$128,B$55,FALSE) -> 0 | C68: 円 | D68: =VLOOKUP($A68,'005リスト'!$D$4:$U$128,D$55,FALSE) -> 0 | E68: 円 | F68: =VLOOKUP($A68,'005リスト'!$D$4:$U$128,F$55,FALSE) -> 0 | G68: 円 | H68: （ | I68: =VLOOKUP($A68,'005リスト'!$D$4:$U$128,I$55,FALSE) -> 0 | J68: 人） | K68: =VLOOKUP($A68,'005リスト'!$D$4:$U$128,K$55,FALSE) -> 0 | L68: 円 | M68: （ | N68: =VLOOKUP($A68,'005リスト'!$D$4:$U$128,N$55,FALSE) -> 0 | O68: 人） | P68: =VLOOKUP($A68,'005リスト'!$D$4:$U$128,P$55,FALSE) -> 0 | Q68: 円 | R68: （ | S68: =VLOOKUP($A68,'005リスト'!$D$4:$U$128,S$55,FALSE) -> 0 | T68: 人） | U68: 5 | V68: 秋田県1 | W68: 秋田県 | X68: 秋田県
A69: 山形県 | B69: =VLOOKUP($A69,'005リスト'!$D$4:$U$128,B$55,FALSE) -> 0 | C69: 円 | D69: =VLOOKUP($A69,'005リスト'!$D$4:$U$128,D$55,FALSE) -> 0 | E69: 円 | F69: =VLOOKUP($A69,'005リスト'!$D$4:$U$128,F$55,FALSE) -> 0 | G69: 円 | H69: （ | I69: =VLOOKUP($A69,'005リスト'!$D$4:$U$128,I$55,FALSE) -> 0 | J69: 人） | K69: =VLOOKUP($A69,'005リスト'!$D$4:$U$128,K$55,FALSE) -> 0 | L69: 円 | M69: （ | N69: =VLOOKUP($A69,'005リスト'!$D$4:$U$128,N$55,FALSE) -> 0 | O69: 人） | P69: =VLOOKUP($A69,'005リスト'!$D$4:$U$128,P$55,FALSE) -> 0 | Q69: 円 | R69: （ | S69: =VLOOKUP($A69,'005リスト'!$D$4:$U$128,S$55,FALSE) -> 0 | T69: 人） | U69: 6 | V69: 山形県1 | W69: 山形県 | X69: 山形県
A70: 福島県 | B70: =VLOOKUP($A70,'005リスト'!$D$4:$U$128,B$55,FALSE) -> 0 | C70: 円 | D70: =VLOOKUP($A70,'005リスト'!$D$4:$U$128,D$55,FALSE) -> 0 | E70: 円 | F70: =VLOOKUP($A70,'005リスト'!$D$4:$U$128,F$55,FALSE) -> 0 | G70: 円 | H70: （ | I70: =VLOOKUP($A70,'005リスト'!$D$4:$U$128,I$55,FALSE) -> 0 | J70: 人） | K70: =VLOOKUP($A70,'005リスト'!$D$4:$U$128,K$55,FALSE) -> 0 | L70: 円 | M70: （ | N70: =VLOOKUP($A70,'005リスト'!$D$4:$U$128,N$55,FALSE) -> 0 | O70: 人） | P70: =VLOOKUP($A70,'005リスト'!$D$4:$U$128,P$55,FALSE) -> 0 | Q70: 円 | R70: （ | S70: =VLOOKUP($A70,'005リスト'!$D$4:$U$128,S$55,FALSE) -> 0 | T70: 人） | U70: 7 | V70: 福島県1 | W70: 福島県 | X70: 福島県
A71: 茨城県 | B71: =VLOOKUP($A71,'005リスト'!$D$4:$U$128,B$55,FALSE) -> 0 | C71: 円 | D71: =VLOOKUP($A71,'005リスト'!$D$4:$U$128,D$55,FALSE) -> 0 | E71: 円 | F71: =VLOOKUP($A71,'005リスト'!$D$4:$U$128,F$55,FALSE) -> 0 | G71: 円 | H71: （ | I71: =VLOOKUP($A71,'005リスト'!$D$4:$U$128,I$55,FALSE) -> 0 | J71: 人） | K71: =VLOOKUP($A71,'005リスト'!$D$4:$U$128,K$55,FALSE) -> 0 | L71: 円 | M71: （ | N71: =VLOOKUP($A71,'005リスト'!$D$4:$U$128,N$55,FALSE) -> 0 | O71: 人） | P71: =VLOOKUP($A71,'005リスト'!$D$4:$U$128,P$55,FALSE) -> 0 | Q71: 円 | R71: （ | S71: =VLOOKUP($A71,'005リスト'!$D$4:$U$128,S$55,FALSE) -> 0 | T71: 人） | U71: 8 | V71: 茨城県1 | W71: 茨城県 | X71: 茨城県
A72: 栃木県 | B72: =VLOOKUP($A72,'005リスト'!$D$4:$U$128,B$55,FALSE) -> 0 | C72: 円 | D72: =VLOOKUP($A72,'005リスト'!$D$4:$U$128,D$55,FALSE) -> 0 | E72: 円 | F72: =VLOOKUP($A72,'005リスト'!$D$4:$U$128,F$55,FALSE) -> 0 | G72: 円 | H72: （ | I72: =VLOOKUP($A72,'005リスト'!$D$4:$U$128,I$55,FALSE) -> 0 | J72: 人） | K72: =VLOOKUP($A72,'005リスト'!$D$4:$U$128,K$55,FALSE) -> 0 | L72: 円 | M72: （ | N72: =VLOOKUP($A72,'005リスト'!$D$4:$U$128,N$55,FALSE) -> 0 | O72: 人） | P72: =VLOOKUP($A72,'005リスト'!$D$4:$U$128,P$55,FALSE) -> 0 | Q72: 円 | R72: （ | S72: =VLOOKUP($A72,'005リスト'!$D$4:$U$128,S$55,FALSE) -> 0 | T72: 人） | U72: 9 | V72: 栃木県1 | W72: 栃木県 | X72: 栃木県
A73: 群馬県 | B73: =VLOOKUP($A73,'005リスト'!$D$4:$U$128,B$55,FALSE) -> 0 | C73: 円 | D73: =VLOOKUP($A73,'005リスト'!$D$4:$U$128,D$55,FALSE) -> 0 | E73: 円 | F73: =VLOOKUP($A73,'005リスト'!$D$4:$U$128,F$55,FALSE) -> 0 | G73: 円 | H73: （ | I73: =VLOOKUP($A73,'005リスト'!$D$4:$U$128,I$55,FALSE) -> 0 | J73: 人） | K73: =VLOOKUP($A73,'005リスト'!$D$4:$U$128,K$55,FALSE) -> 0 | L73: 円 | M73: （ | N73: =VLOOKUP($A73,'005リスト'!$D$4:$U$128,N$55,FALSE) -> 0 | O73: 人） | P73: =VLOOKUP($A73,'005リスト'!$D$4:$U$128,P$55,FALSE) -> 0 | Q73: 円 | R73: （ | S73: =VLOOKUP($A73,'005リスト'!$D$4:$U$128,S$55,FALSE) -> 0 | T73: 人） | U73: 10 | V73: 群馬県1 | W73: 群馬県 | X73: 群馬県
A74: 埼玉県 | B74: =VLOOKUP($A74,'005リスト'!$D$4:$U$128,B$55,FALSE) -> 0 | C74: 円 | D74: =VLOOKUP($A74,'005リスト'!$D$4:$U$128,D$55,FALSE) -> 0 | E74: 円 | F74: =VLOOKUP($A74,'005リスト'!$D$4:$U$128,F$55,FALSE) -> 0 | G74: 円 | H74: （ | I74: =VLOOKUP($A74,'005リスト'!$D$4:$U$128,I$55,FALSE) -> 0 | J74: 人） | K74: =VLOOKUP($A74,'005リスト'!$D$4:$U$128,K$55,FALSE) -> 0 | L74: 円 | M74: （ | N74: =VLOOKUP($A74,'005リスト'!$D$4:$U$128,N$55,FALSE) -> 0 | O74: 人） | P74: =VLOOKUP($A74,'005リスト'!$D$4:$U$128,P$55,FALSE) -> 0 | Q74: 円 | R74: （ | S74: =VLOOKUP($A74,'005リスト'!$D$4:$U$128,S$55,FALSE) -> 0 | T74: 人） | U74: 11 | V74: 埼玉県1 | W74: 埼玉県 | X74: 埼玉県
A75: 千葉県 | B75: =VLOOKUP($A75,'005リスト'!$D$4:$U$128,B$55,FALSE) -> 0 | C75: 円 | D75: =VLOOKUP($A75,'005リスト'!$D$4:$U$128,D$55,FALSE) -> 0 | E75: 円 | F75: =VLOOKUP($A75,'005リスト'!$D$4:$U$128,F$55,FALSE) -> 0 | G75: 円 | H75: （ | I75: =VLOOKUP($A75,'005リスト'!$D$4:$U$128,I$55,FALSE) -> 0 | J75: 人） | K75: =VLOOKUP($A75,'005リスト'!$D$4:$U$128,K$55,FALSE) -> 0 | L75: 円 | M75: （ | N75: =VLOOKUP($A75,'005リスト'!$D$4:$U$128,N$55,FALSE) -> 0 | O75: 人） | P75: =VLOOKUP($A75,'005リスト'!$D$4:$U$128,P$55,FALSE) -> 0 | Q75: 円 | R75: （ | S75: =VLOOKUP($A75,'005リスト'!$D$4:$U$128,S$55,FALSE) -> 0 | T75: 人） | U75: 12 | V75: 千葉県1 | W75: 千葉県 | X75: 千葉県
A76: 東京都 | B76: =VLOOKUP($A76,'005リスト'!$D$4:$U$128,B$55,FALSE) -> 0 | C76: 円 | D76: =VLOOKUP($A76,'005リスト'!$D$4:$U$128,D$55,FALSE) -> 0 | E76: 円 | F76: =VLOOKUP($A76,'005リスト'!$D$4:$U$128,F$55,FALSE) -> 0 | G76: 円 | H76: （ | I76: =VLOOKUP($A76,'005リスト'!$D$4:$U$128,I$55,FALSE) -> 0 | J76: 人） | K76: =VLOOKUP($A76,'005リスト'!$D$4:$U$128,K$55,FALSE) -> 0 | L76: 円 | M76: （ | N76: =VLOOKUP($A76,'005リスト'!$D$4:$U$128,N$55,FALSE) -> 0 | O76: 人） | P76: =VLOOKUP($A76,'005リスト'!$D$4:$U$128,P$55,FALSE) -> 0 | Q76: 円 | R76: （ | S76: =VLOOKUP($A76,'005リスト'!$D$4:$U$128,S$55,FALSE) -> 0 | T76: 人） | U76: 13 | V76: 東京都1 | W76: 東京都 | X76: 東京都
A77: 神奈川県 | B77: =VLOOKUP($A77,'005リスト'!$D$4:$U$128,B$55,FALSE) -> 0 | C77: 円 | D77: =VLOOKUP($A77,'005リスト'!$D$4:$U$128,D$55,FALSE) -> 0 | E77: 円 | F77: =VLOOKUP($A77,'005リスト'!$D$4:$U$128,F$55,FALSE) -> 0 | G77: 円 | H77: （ | I77: =VLOOKUP($A77,'005リスト'!$D$4:$U$128,I$55,FALSE) -> 0 | J77: 人） | K77: =VLOOKUP($A77,'005リスト'!$D$4:$U$128,K$55,FALSE) -> 0 | L77: 円 | M77: （ | N77: =VLOOKUP($A77,'005リスト'!$D$4:$U$128,N$55,FALSE) -> 0 | O77: 人） | P77: =VLOOKUP($A77,'005リスト'!$D$4:$U$128,P$55,FALSE) -> 0 | Q77: 円 | R77: （ | S77: =VLOOKUP($A77,'005リスト'!$D$4:$U$128,S$55,FALSE) -> 0 | T77: 人） | U77: 14 | V77: 神奈川県1 | W77: 神奈川県 | X77: 神奈川県
A78: 新潟県 | B78: =VLOOKUP($A78,'005リスト'!$D$4:$U$128,B$55,FALSE) -> 0 | C78: 円 | D78: =VLOOKUP($A78,'005リスト'!$D$4:$U$128,D$55,FALSE) -> 0 | E78: 円 | F78: =VLOOKUP($A78,'005リスト'!$D$4:$U$128,F$55,FALSE) -> 0 | G78: 円 | H78: （ | I78: =VLOOKUP($A78,'005リスト'!$D$4:$U$128,I$55,FALSE) -> 0 | J78: 人） | K78: =VLOOKUP($A78,'005リスト'!$D$4:$U$128,K$55,FALSE) -> 0 | L78: 円 | M78: （ | N78: =VLOOKUP($A78,'005リスト'!$D$4:$U$128,N$55,FALSE) -> 0 | O78: 人） | P78: =VLOOKUP($A78,'005リスト'!$D$4:$U$128,P$55,FALSE) -> 0 | Q78: 円 | R78: （ | S78: =VLOOKUP($A78,'005リスト'!$D$4:$U$128,S$55,FALSE) -> 0 | T78: 人） | U78: 15 | V78: 新潟県1 | W78: 新潟県 | X78: 新潟県
A79: 富山県 | B79: =VLOOKUP($A79,'005リスト'!$D$4:$U$128,B$55,FALSE) -> 0 | C79: 円 | D79: =VLOOKUP($A79,'005リスト'!$D$4:$U$128,D$55,FALSE) -> 0 | E79: 円 | F79: =VLOOKUP($A79,'005リスト'!$D$4:$U$128,F$55,FALSE) -> 0 | G79: 円 | H79: （ | I79: =VLOOKUP($A79,'005リスト'!$D$4:$U$128,I$55,FALSE) -> 0 | J79: 人） | K79: =VLOOKUP($A79,'005リスト'!$D$4:$U$128,K$55,FALSE) -> 0 | L79: 円 | M79: （ | N79: =VLOOKUP($A79,'005リスト'!$D$4:$U$128,N$55,FALSE) -> 0 | O79: 人） | P79: =VLOOKUP($A79,'005リスト'!$D$4:$U$128,P$55,FALSE) -> 0 | Q79: 円 | R79: （ | S79: =VLOOKUP($A79,'005リスト'!$D$4:$U$128,S$55,FALSE) -> 0 | T79: 人） | U79: 16 | V79: 富山県1 | W79: 富山県 | X79: 富山県
A80: 石川県 | B80: =VLOOKUP($A80,'005リスト'!$D$4:$U$128,B$55,FALSE) -> 0 | C80: 円 | D80: =VLOOKUP($A80,'005リスト'!$D$4:$U$128,D$55,FALSE) -> 0 | E80: 円 | F80: =VLOOKUP($A80,'005リスト'!$D$4:$U$128,F$55,FALSE) -> 0 | G80: 円 | H80: （ | I80: =VLOOKUP($A80,'005リスト'!$D$4:$U$128,I$55,FALSE) -> 0 | J80: 人） | K80: =VLOOKUP($A80,'005リスト'!$D$4:$U$128,K$55,FALSE) -> 0 | L80: 円 | M80: （ | N80: =VLOOKUP($A80,'005リスト'!$D$4:$U$128,N$55,FALSE) -> 0 | O80: 人） | P80: =VLOOKUP($A80,'005リスト'!$D$4:$U$128,P$55,FALSE) -> 0 | Q80: 円 | R80: （ | S80: =VLOOKUP($A80,'005リスト'!$D$4:$U$128,S$55,FALSE) -> 0 | T80: 人） | U80: 17 | V80: 石川県1 | W80: 石川県 | X80: 石川県
A81: 福井県 | B81: =VLOOKUP($A81,'005リスト'!$D$4:$U$128,B$55,FALSE) -> 0 | C81: 円 | D81: =VLOOKUP($A81,'005リスト'!$D$4:$U$128,D$55,FALSE) -> 0 | E81: 円 | F81: =VLOOKUP($A81,'005リスト'!$D$4:$U$128,F$55,FALSE) -> 0 | G81: 円 | H81: （ | I81: =VLOOKUP($A81,'005リスト'!$D$4:$U$128,I$55,FALSE) -> 0 | J81: 人） | K81: =VLOOKUP($A81,'005リスト'!$D$4:$U$128,K$55,FALSE) -> 0 | L81: 円 | M81: （ | N81: =VLOOKUP($A81,'005リスト'!$D$4:$U$128,N$55,FALSE) -> 0 | O81: 人） | P81: =VLOOKUP($A81,'005リスト'!$D$4:$U$128,P$55,FALSE) -> 0 | Q81: 円 | R81: （ | S81: =VLOOKUP($A81,'005リスト'!$D$4:$U$128,S$55,FALSE) -> 0 | T81: 人） | U81: 18 | V81: 福井県1 | W81: 福井県 | X81: 福井県
A82: 山梨県 | B82: =VLOOKUP($A82,'005リスト'!$D$4:$U$128,B$55,FALSE) -> 0 | C82: 円 | D82: =VLOOKUP($A82,'005リスト'!$D$4:$U$128,D$55,FALSE) -> 0 | E82: 円 | F82: =VLOOKUP($A82,'005リスト'!$D$4:$U$128,F$55,FALSE) -> 0 | G82: 円 | H82: （ | I82: =VLOOKUP($A82,'005リスト'!$D$4:$U$128,I$55,FALSE) -> 0 | J82: 人） | K82: =VLOOKUP($A82,'005リスト'!$D$4:$U$128,K$55,FALSE) -> 0 | L82: 円 | M82: （ | N82: =VLOOKUP($A82,'005リスト'!$D$4:$U$128,N$55,FALSE) -> 0 | O82: 人） | P82: =VLOOKUP($A82,'005リスト'!$D$4:$U$128,P$55,FALSE) -> 0 | Q82: 円 | R82: （ | S82: =VLOOKUP($A82,'005リスト'!$D$4:$U$128,S$55,FALSE) -> 0 | T82: 人） | U82: 19 | V82: 山梨県1 | W82: 山梨県 | X82: 山梨県
A83: 長野県 | B83: =VLOOKUP($A83,'005リスト'!$D$4:$U$128,B$55,FALSE) -> 0 | C83: 円 | D83: =VLOOKUP($A83,'005リスト'!$D$4:$U$128,D$55,FALSE) -> 0 | E83: 円 | F83: =VLOOKUP($A83,'005リスト'!$D$4:$U$128,F$55,FALSE) -> 0 | G83: 円 | H83: （ | I83: =VLOOKUP($A83,'005リスト'!$D$4:$U$128,I$55,FALSE) -> 0 | J83: 人） | K83: =VLOOKUP($A83,'005リスト'!$D$4:$U$128,K$55,FALSE) -> 0 | L83: 円 | M83: （ | N83: =VLOOKUP($A83,'005リスト'!$D$4:$U$128,N$55,FALSE) -> 0 | O83: 人） | P83: =VLOOKUP($A83,'005リスト'!$D$4:$U$128,P$55,FALSE) -> 0 | Q83: 円 | R83: （ | S83: =VLOOKUP($A83,'005リスト'!$D$4:$U$128,S$55,FALSE) -> 0 | T83: 人） | U83: 20 | V83: 長野県1 | W83: 長野県 | X83: 長野県
A84: 岐阜県 | B84: =VLOOKUP($A84,'005リスト'!$D$4:$U$128,B$55,FALSE) -> 0 | C84: 円 | D84: =VLOOKUP($A84,'005リスト'!$D$4:$U$128,D$55,FALSE) -> 0 | E84: 円 | F84: =VLOOKUP($A84,'005リスト'!$D$4:$U$128,F$55,FALSE) -> 0 | G84: 円 | H84: （ | I84: =VLOOKUP($A84,'005リスト'!$D$4:$U$128,I$55,FALSE) -> 0 | J84: 人） | K84: =VLOOKUP($A84,'005リスト'!$D$4:$U$128,K$55,FALSE) -> 0 | L84: 円 | M84: （ | N84: =VLOOKUP($A84,'005リスト'!$D$4:$U$128,N$55,FALSE) -> 0 | O84: 人） | P84: =VLOOKUP($A84,'005リスト'!$D$4:$U$128,P$55,FALSE) -> 0 | Q84: 円 | R84: （ | S84: =VLOOKUP($A84,'005リスト'!$D$4:$U$128,S$55,FALSE) -> 0 | T84: 人） | U84: 21 | V84: 岐阜県1 | W84: 岐阜県 | X84: 岐阜県
A85: 静岡県 | B85: =VLOOKUP($A85,'005リスト'!$D$4:$U$128,B$55,FALSE) -> 0 | C85: 円 | D85: =VLOOKUP($A85,'005リスト'!$D$4:$U$128,D$55,FALSE) -> 0 | E85: 円 | F85: =VLOOKUP($A85,'005リスト'!$D$4:$U$128,F$55,FALSE) -> 0 | G85: 円 | H85: （ | I85: =VLOOKUP($A85,'005リスト'!$D$4:$U$128,I$55,FALSE) -> 0 | J85: 人） | K85: =VLOOKUP($A85,'005リスト'!$D$4:$U$128,K$55,FALSE) -> 0 | L85: 円 | M85: （ | N85: =VLOOKUP($A85,'005リスト'!$D$4:$U$128,N$55,FALSE) -> 0 | O85: 人） | P85: =VLOOKUP($A85,'005リスト'!$D$4:$U$128,P$55,FALSE) -> 0 | Q85: 円 | R85: （ | S85: =VLOOKUP($A85,'005リスト'!$D$4:$U$128,S$55,FALSE) -> 0 | T85: 人） | U85: 22 | V85: 静岡県1 | W85: 静岡県 | X85: 静岡県
A86: 愛知県 | B86: =VLOOKUP($A86,'005リスト'!$D$4:$U$128,B$55,FALSE) -> 0 | C86: 円 | D86: =VLOOKUP($A86,'005リスト'!$D$4:$U$128,D$55,FALSE) -> 0 | E86: 円 | F86: =VLOOKUP($A86,'005リスト'!$D$4:$U$128,F$55,FALSE) -> 0 | G86: 円 | H86: （ | I86: =VLOOKUP($A86,'005リスト'!$D$4:$U$128,I$55,FALSE) -> 0 | J86: 人） | K86: =VLOOKUP($A86,'005リスト'!$D$4:$U$128,K$55,FALSE) -> 0 | L86: 円 | M86: （ | N86: =VLOOKUP($A86,'005リスト'!$D$4:$U$128,N$55,FALSE) -> 0 | O86: 人） | P86: =VLOOKUP($A86,'005リスト'!$D$4:$U$128,P$55,FALSE) -> 0 | Q86: 円 | R86: （ | S86: =VLOOKUP($A86,'005リスト'!$D$4:$U$128,S$55,FALSE) -> 0 | T86: 人） | U86: 23 | V86: 愛知県1 | W86: 愛知県 | X86: 愛知県
A87: 三重県 | B87: =VLOOKUP($A87,'005リスト'!$D$4:$U$128,B$55,FALSE) -> 0 | C87: 円 | D87: =VLOOKUP($A87,'005リスト'!$D$4:$U$128,D$55,FALSE) -> 0 | E87: 円 | F87: =VLOOKUP($A87,'005リスト'!$D$4:$U$128,F$55,FALSE) -> 0 | G87: 円 | H87: （ | I87: =VLOOKUP($A87,'005リスト'!$D$4:$U$128,I$55,FALSE) -> 0 | J87: 人） | K87: =VLOOKUP($A87,'005リスト'!$D$4:$U$128,K$55,FALSE) -> 0 | L87: 円 | M87: （ | N87: =VLOOKUP($A87,'005リスト'!$D$4:$U$128,N$55,FALSE) -> 0 | O87: 人） | P87: =VLOOKUP($A87,'005リスト'!$D$4:$U$128,P$55,FALSE) -> 0 | Q87: 円 | R87: （ | S87: =VLOOKUP($A87,'005リスト'!$D$4:$U$128,S$55,FALSE) -> 0 | T87: 人） | U87: 24 | V87: 三重県1 | W87: 三重県 | X87: 三重県
A88: 滋賀県 | B88: =VLOOKUP($A88,'005リスト'!$D$4:$U$128,B$55,FALSE) -> 0 | C88: 円 | D88: =VLOOKUP($A88,'005リスト'!$D$4:$U$128,D$55,FALSE) -> 0 | E88: 円 | F88: =VLOOKUP($A88,'005リスト'!$D$4:$U$128,F$55,FALSE) -> 0 | G88: 円 | H88: （ | I88: =VLOOKUP($A88,'005リスト'!$D$4:$U$128,I$55,FALSE) -> 0 | J88: 人） | K88: =VLOOKUP($A88,'005リスト'!$D$4:$U$128,K$55,FALSE) -> 0 | L88: 円 | M88: （ | N88: =VLOOKUP($A88,'005リスト'!$D$4:$U$128,N$55,FALSE) -> 0 | O88: 人） | P88: =VLOOKUP($A88,'005リスト'!$D$4:$U$128,P$55,FALSE) -> 0 | Q88: 円 | R88: （ | S88: =VLOOKUP($A88,'005リスト'!$D$4:$U$128,S$55,FALSE) -> 0 | T88: 人） | U88: 25 | V88: 滋賀県1 | W88: 滋賀県 | X88: 滋賀県
A89: 京都府 | B89: =VLOOKUP($A89,'005リスト'!$D$4:$U$128,B$55,FALSE) -> 0 | C89: 円 | D89: =VLOOKUP($A89,'005リスト'!$D$4:$U$128,D$55,FALSE) -> 0 | E89: 円 | F89: =VLOOKUP($A89,'005リスト'!$D$4:$U$128,F$55,FALSE) -> 0 | G89: 円 | H89: （ | I89: =VLOOKUP($A89,'005リスト'!$D$4:$U$128,I$55,FALSE) -> 0 | J89: 人） | K89: =VLOOKUP($A89,'005リスト'!$D$4:$U$128,K$55,FALSE) -> 0 | L89: 円 | M89: （ | N89: =VLOOKUP($A89,'005リスト'!$D$4:$U$128,N$55,FALSE) -> 0 | O89: 人） | P89: =VLOOKUP($A89,'005リスト'!$D$4:$U$128,P$55,FALSE) -> 0 | Q89: 円 | R89: （ | S89: =VLOOKUP($A89,'005リスト'!$D$4:$U$128,S$55,FALSE) -> 0 | T89: 人） | U89: 26 | V89: 京都府1 | W89: 京都府 | X89: 京都府
A90: 大阪府 | B90: =VLOOKUP($A90,'005リスト'!$D$4:$U$128,B$55,FALSE) -> 0 | C90: 円 | D90: =VLOOKUP($A90,'005リスト'!$D$4:$U$128,D$55,FALSE) -> 0 | E90: 円 | F90: =VLOOKUP($A90,'005リスト'!$D$4:$U$128,F$55,FALSE) -> 0 | G90: 円 | H90: （ | I90: =VLOOKUP($A90,'005リスト'!$D$4:$U$128,I$55,FALSE) -> 0 | J90: 人） | K90: =VLOOKUP($A90,'005リスト'!$D$4:$U$128,K$55,FALSE) -> 0 | L90: 円 | M90: （ | N90: =VLOOKUP($A90,'005リスト'!$D$4:$U$128,N$55,FALSE) -> 0 | O90: 人） | P90: =VLOOKUP($A90,'005リスト'!$D$4:$U$128,P$55,FALSE) -> 0 | Q90: 円 | R90: （ | S90: =VLOOKUP($A90,'005リスト'!$D$4:$U$128,S$55,FALSE) -> 0 | T90: 人） | U90: 27 | V90: 大阪府1 | W90: 大阪府 | X90: 大阪府
A91: 兵庫県 | B91: =VLOOKUP($A91,'005リスト'!$D$4:$U$128,B$55,FALSE) -> 0 | C91: 円 | D91: =VLOOKUP($A91,'005リスト'!$D$4:$U$128,D$55,FALSE) -> 0 | E91: 円 | F91: =VLOOKUP($A91,'005リスト'!$D$4:$U$128,F$55,FALSE) -> 0 | G91: 円 | H91: （ | I91: =VLOOKUP($A91,'005リスト'!$D$4:$U$128,I$55,FALSE) -> 0 | J91: 人） | K91: =VLOOKUP($A91,'005リスト'!$D$4:$U$128,K$55,FALSE) -> 0 | L91: 円 | M91: （ | N91: =VLOOKUP($A91,'005リスト'!$D$4:$U$128,N$55,FALSE) -> 0 | O91: 人） | P91: =VLOOKUP($A91,'005リスト'!$D$4:$U$128,P$55,FALSE) -> 0 | Q91: 円 | R91: （ | S91: =VLOOKUP($A91,'005リスト'!$D$4:$U$128,S$55,FALSE) -> 0 | T91: 人） | U91: 28 | V91: 兵庫県1 | W91: 兵庫県 | X91: 兵庫県
A92: 奈良県 | B92: =VLOOKUP($A92,'005リスト'!$D$4:$U$128,B$55,FALSE) -> 0 | C92: 円 | D92: =VLOOKUP($A92,'005リスト'!$D$4:$U$128,D$55,FALSE) -> 0 | E92: 円 | F92: =VLOOKUP($A92,'005リスト'!$D$4:$U$128,F$55,FALSE) -> 0 | G92: 円 | H92: （ | I92: =VLOOKUP($A92,'005リスト'!$D$4:$U$128,I$55,FALSE) -> 0 | J92: 人） | K92: =VLOOKUP($A92,'005リスト'!$D$4:$U$128,K$55,FALSE) -> 0 | L92: 円 | M92: （ | N92: =VLOOKUP($A92,'005リスト'!$D$4:$U$128,N$55,FALSE) -> 0 | O92: 人） | P92: =VLOOKUP($A92,'005リスト'!$D$4:$U$128,P$55,FALSE) -> 0 | Q92: 円 | R92: （ | S92: =VLOOKUP($A92,'005リスト'!$D$4:$U$128,S$55,FALSE) -> 0 | T92: 人） | U92: 29 | V92: 奈良県1 | W92: 奈良県 | X92: 奈良県
A93: 和歌山県 | B93: =VLOOKUP($A93,'005リスト'!$D$4:$U$128,B$55,FALSE) -> 0 | C93: 円 | D93: =VLOOKUP($A93,'005リスト'!$D$4:$U$128,D$55,FALSE) -> 0 | E93: 円 | F93: =VLOOKUP($A93,'005リスト'!$D$4:$U$128,F$55,FALSE) -> 0 | G93: 円 | H93: （ | I93: =VLOOKUP($A93,'005リスト'!$D$4:$U$128,I$55,FALSE) -> 0 | J93: 人） | K93: =VLOOKUP($A93,'005リスト'!$D$4:$U$128,K$55,FALSE) -> 0 | L93: 円 | M93: （ | N93: =VLOOKUP($A93,'005リスト'!$D$4:$U$128,N$55,FALSE) -> 0 | O93: 人） | P93: =VLOOKUP($A93,'005リスト'!$D$4:$U$128,P$55,FALSE) -> 0 | Q93: 円 | R93: （ | S93: =VLOOKUP($A93,'005リスト'!$D$4:$U$128,S$55,FALSE) -> 0 | T93: 人） | U93: 30 | V93: 和歌山県1 | W93: 和歌山県 | X93: 和歌山県
A94: 鳥取県 | B94: =VLOOKUP($A94,'005リスト'!$D$4:$U$128,B$55,FALSE) -> 0 | C94: 円 | D94: =VLOOKUP($A94,'005リスト'!$D$4:$U$128,D$55,FALSE) -> 0 | E94: 円 | F94: =VLOOKUP($A94,'005リスト'!$D$4:$U$128,F$55,FALSE) -> 0 | G94: 円 | H94: （ | I94: =VLOOKUP($A94,'005リスト'!$D$4:$U$128,I$55,FALSE) -> 0 | J94: 人） | K94: =VLOOKUP($A94,'005リスト'!$D$4:$U$128,K$55,FALSE) -> 0 | L94: 円 | M94: （ | N94: =VLOOKUP($A94,'005リスト'!$D$4:$U$128,N$55,FALSE) -> 0 | O94: 人） | P94: =VLOOKUP($A94,'005リスト'!$D$4:$U$128,P$55,FALSE) -> 0 | Q94: 円 | R94: （ | S94: =VLOOKUP($A94,'005リスト'!$D$4:$U$128,S$55,FALSE) -> 0 | T94: 人） | U94: 31 | V94: 鳥取県1 | W94: 鳥取県 | X94: 鳥取県
A95: 島根県 | B95: =VLOOKUP($A95,'005リスト'!$D$4:$U$128,B$55,FALSE) -> 0 | C95: 円 | D95: =VLOOKUP($A95,'005リスト'!$D$4:$U$128,D$55,FALSE) -> 0 | E95: 円 | F95: =VLOOKUP($A95,'005リスト'!$D$4:$U$128,F$55,FALSE) -> 0 | G95: 円 | H95: （ | I95: =VLOOKUP($A95,'005リスト'!$D$4:$U$128,I$55,FALSE) -> 0 | J95: 人） | K95: =VLOOKUP($A95,'005リスト'!$D$4:$U$128,K$55,FALSE) -> 0 | L95: 円 | M95: （ | N95: =VLOOKUP($A95,'005リスト'!$D$4:$U$128,N$55,FALSE) -> 0 | O95: 人） | P95: =VLOOKUP($A95,'005リスト'!$D$4:$U$128,P$55,FALSE) -> 0 | Q95: 円 | R95: （ | S95: =VLOOKUP($A95,'005リスト'!$D$4:$U$128,S$55,FALSE) -> 0 | T95: 人） | U95: 32 | V95: 島根県1 | W95: 島根県 | X95: 島根県
A96: 岡山県 | B96: =VLOOKUP($A96,'005リスト'!$D$4:$U$128,B$55,FALSE) -> 0 | C96: 円 | D96: =VLOOKUP($A96,'005リスト'!$D$4:$U$128,D$55,FALSE) -> 0 | E96: 円 | F96: =VLOOKUP($A96,'005リスト'!$D$4:$U$128,F$55,FALSE) -> 0 | G96: 円 | H96: （ | I96: =VLOOKUP($A96,'005リスト'!$D$4:$U$128,I$55,FALSE) -> 0 | J96: 人） | K96: =VLOOKUP($A96,'005リスト'!$D$4:$U$128,K$55,FALSE) -> 0 | L96: 円 | M96: （ | N96: =VLOOKUP($A96,'005リスト'!$D$4:$U$128,N$55,FALSE) -> 0 | O96: 人） | P96: =VLOOKUP($A96,'005リスト'!$D$4:$U$128,P$55,FALSE) -> 0 | Q96: 円 | R96: （ | S96: =VLOOKUP($A96,'005リスト'!$D$4:$U$128,S$55,FALSE) -> 0 | T96: 人） | U96: 33 | V96: 岡山県1 | W96: 岡山県 | X96: 岡山県
A97: 広島県 | B97: =VLOOKUP($A97,'005リスト'!$D$4:$U$128,B$55,FALSE) -> 0 | C97: 円 | D97: =VLOOKUP($A97,'005リスト'!$D$4:$U$128,D$55,FALSE) -> 0 | E97: 円 | F97: =VLOOKUP($A97,'005リスト'!$D$4:$U$128,F$55,FALSE) -> 0 | G97: 円 | H97: （ | I97: =VLOOKUP($A97,'005リスト'!$D$4:$U$128,I$55,FALSE) -> 0 | J97: 人） | K97: =VLOOKUP($A97,'005リスト'!$D$4:$U$128,K$55,FALSE) -> 0 | L97: 円 | M97: （ | N97: =VLOOKUP($A97,'005リスト'!$D$4:$U$128,N$55,FALSE) -> 0 | O97: 人） | P97: =VLOOKUP($A97,'005リスト'!$D$4:$U$128,P$55,FALSE) -> 0 | Q97: 円 | R97: （ | S97: =VLOOKUP($A97,'005リスト'!$D$4:$U$128,S$55,FALSE) -> 0 | T97: 人） | U97: 34 | V97: 広島県1 | W97: 広島県 | X97: 広島県
A98: 山口県 | B98: =VLOOKUP($A98,'005リスト'!$D$4:$U$128,B$55,FALSE) -> 0 | C98: 円 | D98: =VLOOKUP($A98,'005リスト'!$D$4:$U$128,D$55,FALSE) -> 0 | E98: 円 | F98: =VLOOKUP($A98,'005リスト'!$D$4:$U$128,F$55,FALSE) -> 0 | G98: 円 | H98: （ | I98: =VLOOKUP($A98,'005リスト'!$D$4:$U$128,I$55,FALSE) -> 0 | J98: 人） | K98: =VLOOKUP($A98,'005リスト'!$D$4:$U$128,K$55,FALSE) -> 0 | L98: 円 | M98: （ | N98: =VLOOKUP($A98,'005リスト'!$D$4:$U$128,N$55,FALSE) -> 0 | O98: 人） | P98: =VLOOKUP($A98,'005リスト'!$D$4:$U$128,P$55,FALSE) -> 0 | Q98: 円 | R98: （ | S98: =VLOOKUP($A98,'005リスト'!$D$4:$U$128,S$55,FALSE) -> 0 | T98: 人） | U98: 35 | V98: 山口県1 | W98: 山口県 | X98: 山口県
A99: 徳島県 | B99: =VLOOKUP($A99,'005リスト'!$D$4:$U$128,B$55,FALSE) -> 0 | C99: 円 | D99: =VLOOKUP($A99,'005リスト'!$D$4:$U$128,D$55,FALSE) -> 0 | E99: 円 | F99: =VLOOKUP($A99,'005リスト'!$D$4:$U$128,F$55,FALSE) -> 0 | G99: 円 | H99: （ | I99: =VLOOKUP($A99,'005リスト'!$D$4:$U$128,I$55,FALSE) -> 0 | J99: 人） | K99: =VLOOKUP($A99,'005リスト'!$D$4:$U$128,K$55,FALSE) -> 0 | L99: 円 | M99: （ | N99: =VLOOKUP($A99,'005リスト'!$D$4:$U$128,N$55,FALSE) -> 0 | O99: 人） | P99: =VLOOKUP($A99,'005リスト'!$D$4:$U$128,P$55,FALSE) -> 0 | Q99: 円 | R99: （ | S99: =VLOOKUP($A99,'005リスト'!$D$4:$U$128,S$55,FALSE) -> 0 | T99: 人） | U99: 36 | V99: 徳島県1 | W99: 徳島県 | X99: 徳島県
A100: 香川県 | B100: =VLOOKUP($A100,'005リスト'!$D$4:$U$128,B$55,FALSE) -> 0 | C100: 円 | D100: =VLOOKUP($A100,'005リスト'!$D$4:$U$128,D$55,FALSE) -> 0 | E100: 円 | F100: =VLOOKUP($A100,'005リスト'!$D$4:$U$128,F$55,FALSE) -> 0 | G100: 円 | H100: （ | I100: =VLOOKUP($A100,'005リスト'!$D$4:$U$128,I$55,FALSE) -> 0 | J100: 人） | K100: =VLOOKUP($A100,'005リスト'!$D$4:$U$128,K$55,FALSE) -> 0 | L100: 円 | M100: （ | N100: =VLOOKUP($A100,'005リスト'!$D$4:$U$128,N$55,FALSE) -> 0 | O100: 人） | P100: =VLOOKUP($A100,'005リスト'!$D$4:$U$128,P$55,FALSE) -> 0 | Q100: 円 | R100: （ | S100: =VLOOKUP($A100,'005リスト'!$D$4:$U$128,S$55,FALSE) -> 0 | T100: 人） | U100: 37 | V100: 香川県1 | W100: 香川県 | X100: 香川県
A101: 愛媛県 | B101: =VLOOKUP($A101,'005リスト'!$D$4:$U$128,B$55,FALSE) -> 0 | C101: 円 | D101: =VLOOKUP($A101,'005リスト'!$D$4:$U$128,D$55,FALSE) -> 0 | E101: 円 | F101: =VLOOKUP($A101,'005リスト'!$D$4:$U$128,F$55,FALSE) -> 0 | G101: 円 | H101: （ | I101: =VLOOKUP($A101,'005リスト'!$D$4:$U$128,I$55,FALSE) -> 0 | J101: 人） | K101: =VLOOKUP($A101,'005リスト'!$D$4:$U$128,K$55,FALSE) -> 0 | L101: 円 | M101: （ | N101: =VLOOKUP($A101,'005リスト'!$D$4:$U$128,N$55,FALSE) -> 0 | O101: 人） | P101: =VLOOKUP($A101,'005リスト'!$D$4:$U$128,P$55,FALSE) -> 0 | Q101: 円 | R101: （ | S101: =VLOOKUP($A101,'005リスト'!$D$4:$U$128,S$55,FALSE) -> 0 | T101: 人） | U101: 38 | V101: 愛媛県1 | W101: 愛媛県 | X101: 愛媛県
A102: 高知県 | B102: =VLOOKUP($A102,'005リスト'!$D$4:$U$128,B$55,FALSE) -> 0 | C102: 円 | D102: =VLOOKUP($A102,'005リスト'!$D$4:$U$128,D$55,FALSE) -> 0 | E102: 円 | F102: =VLOOKUP($A102,'005リスト'!$D$4:$U$128,F$55,FALSE) -> 0 | G102: 円 | H102: （ | I102: =VLOOKUP($A102,'005リスト'!$D$4:$U$128,I$55,FALSE) -> 0 | J102: 人） | K102: =VLOOKUP($A102,'005リスト'!$D$4:$U$128,K$55,FALSE) -> 0 | L102: 円 | M102: （ | N102: =VLOOKUP($A102,'005リスト'!$D$4:$U$128,N$55,FALSE) -> 0 | O102: 人） | P102: =VLOOKUP($A102,'005リスト'!$D$4:$U$128,P$55,FALSE) -> 0 | Q102: 円 | R102: （ | S102: =VLOOKUP($A102,'005リスト'!$D$4:$U$128,S$55,FALSE) -> 0 | T102: 人） | U102: 39 | V102: 高知県1 | W102: 高知県 | X102: 高知県
A103: 福岡県 | B103: =VLOOKUP($A103,'005リスト'!$D$4:$U$128,B$55,FALSE) -> 0 | C103: 円 | D103: =VLOOKUP($A103,'005リスト'!$D$4:$U$128,D$55,FALSE) -> 0 | E103: 円 | F103: =VLOOKUP($A103,'005リスト'!$D$4:$U$128,F$55,FALSE) -> 0 | G103: 円 | H103: （ | I103: =VLOOKUP($A103,'005リスト'!$D$4:$U$128,I$55,FALSE) -> 0 | J103: 人） | K103: =VLOOKUP($A103,'005リスト'!$D$4:$U$128,K$55,FALSE) -> 0 | L103: 円 | M103: （ | N103: =VLOOKUP($A103,'005リスト'!$D$4:$U$128,N$55,FALSE) -> 0 | O103: 人） | P103: =VLOOKUP($A103,'005リスト'!$D$4:$U$128,P$55,FALSE) -> 0 | Q103: 円 | R103: （ | S103: =VLOOKUP($A103,'005リスト'!$D$4:$U$128,S$55,FALSE) -> 0 | T103: 人） | U103: 40 | V103: 福岡県1 | W103: 福岡県 | X103: 福岡県
A104: 佐賀県 | B104: =VLOOKUP($A104,'005リスト'!$D$4:$U$128,B$55,FALSE) -> 0 | C104: 円 | D104: =VLOOKUP($A104,'005リスト'!$D$4:$U$128,D$55,FALSE) -> 0 | E104: 円 | F104: =VLOOKUP($A104,'005リスト'!$D$4:$U$128,F$55,FALSE) -> 0 | G104: 円 | H104: （ | I104: =VLOOKUP($A104,'005リスト'!$D$4:$U$128,I$55,FALSE) -> 0 | J104: 人） | K104: =VLOOKUP($A104,'005リスト'!$D$4:$U$128,K$55,FALSE) -> 0 | L104: 円 | M104: （ | N104: =VLOOKUP($A104,'005リスト'!$D$4:$U$128,N$55,FALSE) -> 0 | O104: 人） | P104: =VLOOKUP($A104,'005リスト'!$D$4:$U$128,P$55,FALSE) -> 0 | Q104: 円 | R104: （ | S104: =VLOOKUP($A104,'005リスト'!$D$4:$U$128,S$55,FALSE) -> 0 | T104: 人） | U104: 41 | V104: 佐賀県1 | W104: 佐賀県 | X104: 佐賀県
A105: 長崎県 | B105: =VLOOKUP($A105,'005リスト'!$D$4:$U$128,B$55,FALSE) -> 0 | C105: 円 | D105: =VLOOKUP($A105,'005リスト'!$D$4:$U$128,D$55,FALSE) -> 0 | E105: 円 | F105: =VLOOKUP($A105,'005リスト'!$D$4:$U$128,F$55,FALSE) -> 0 | G105: 円 | H105: （ | I105: =VLOOKUP($A105,'005リスト'!$D$4:$U$128,I$55,FALSE) -> 0 | J105: 人） | K105: =VLOOKUP($A105,'005リスト'!$D$4:$U$128,K$55,FALSE) -> 0 | L105: 円 | M105: （ | N105: =VLOOKUP($A105,'005リスト'!$D$4:$U$128,N$55,FALSE) -> 0 | O105: 人） | P105: =VLOOKUP($A105,'005リスト'!$D$4:$U$128,P$55,FALSE) -> 0 | Q105: 円 | R105: （ | S105: =VLOOKUP($A105,'005リスト'!$D$4:$U$128,S$55,FALSE) -> 0 | T105: 人） | U105: 42 | V105: 長崎県1 | W105: 長崎県 | X105: 長崎県
A106: 熊本県 | B106: =VLOOKUP($A106,'005リスト'!$D$4:$U$128,B$55,FALSE) -> 0 | C106: 円 | D106: =VLOOKUP($A106,'005リスト'!$D$4:$U$128,D$55,FALSE) -> 0 | E106: 円 | F106: =VLOOKUP($A106,'005リスト'!$D$4:$U$128,F$55,FALSE) -> 0 | G106: 円 | H106: （ | I106: =VLOOKUP($A106,'005リスト'!$D$4:$U$128,I$55,FALSE) -> 0 | J106: 人） | K106: =VLOOKUP($A106,'005リスト'!$D$4:$U$128,K$55,FALSE) -> 0 | L106: 円 | M106: （ | N106: =VLOOKUP($A106,'005リスト'!$D$4:$U$128,N$55,FALSE) -> 0 | O106: 人） | P106: =VLOOKUP($A106,'005リスト'!$D$4:$U$128,P$55,FALSE) -> 0 | Q106: 円 | R106: （ | S106: =VLOOKUP($A106,'005リスト'!$D$4:$U$128,S$55,FALSE) -> 0 | T106: 人） | U106: 43 | V106: 熊本県1 | W106: 熊本県 | X106: 熊本県
A107: 大分県 | B107: =VLOOKUP($A107,'005リスト'!$D$4:$U$128,B$55,FALSE) -> 0 | C107: 円 | D107: =VLOOKUP($A107,'005リスト'!$D$4:$U$128,D$55,FALSE) -> 0 | E107: 円 | F107: =VLOOKUP($A107,'005リスト'!$D$4:$U$128,F$55,FALSE) -> 0 | G107: 円 | H107: （ | I107: =VLOOKUP($A107,'005リスト'!$D$4:$U$128,I$55,FALSE) -> 0 | J107: 人） | K107: =VLOOKUP($A107,'005リスト'!$D$4:$U$128,K$55,FALSE) -> 0 | L107: 円 | M107: （ | N107: =VLOOKUP($A107,'005リスト'!$D$4:$U$128,N$55,FALSE) -> 0 | O107: 人） | P107: =VLOOKUP($A107,'005リスト'!$D$4:$U$128,P$55,FALSE) -> 0 | Q107: 円 | R107: （ | S107: =VLOOKUP($A107,'005リスト'!$D$4:$U$128,S$55,FALSE) -> 0 | T107: 人） | U107: 44 | V107: 大分県1 | W107: 大分県 | X107: 大分県
A108: 宮崎県 | B108: =VLOOKUP($A108,'005リスト'!$D$4:$U$128,B$55,FALSE) -> 0 | C108: 円 | D108: =VLOOKUP($A108,'005リスト'!$D$4:$U$128,D$55,FALSE) -> 0 | E108: 円 | F108: =VLOOKUP($A108,'005リスト'!$D$4:$U$128,F$55,FALSE) -> 0 | G108: 円 | H108: （ | I108: =VLOOKUP($A108,'005リスト'!$D$4:$U$128,I$55,FALSE) -> 0 | J108: 人） | K108: =VLOOKUP($A108,'005リスト'!$D$4:$U$128,K$55,FALSE) -> 0 | L108: 円 | M108: （ | N108: =VLOOKUP($A108,'005リスト'!$D$4:$U$128,N$55,FALSE) -> 0 | O108: 人） | P108: =VLOOKUP($A108,'005リスト'!$D$4:$U$128,P$55,FALSE) -> 0 | Q108: 円 | R108: （ | S108: =VLOOKUP($A108,'005リスト'!$D$4:$U$128,S$55,FALSE) -> 0 | T108: 人） | U108: 45 | V108: 宮崎県1 | W108: 宮崎県 | X108: 宮崎県
A109: 鹿児島県 | B109: =VLOOKUP($A109,'005リスト'!$D$4:$U$128,B$55,FALSE) -> 0 | C109: 円 | D109: =VLOOKUP($A109,'005リスト'!$D$4:$U$128,D$55,FALSE) -> 0 | E109: 円 | F109: =VLOOKUP($A109,'005リスト'!$D$4:$U$128,F$55,FALSE) -> 0 | G109: 円 | H109: （ | I109: =VLOOKUP($A109,'005リスト'!$D$4:$U$128,I$55,FALSE) -> 0 | J109: 人） | K109: =VLOOKUP($A109,'005リスト'!$D$4:$U$128,K$55,FALSE) -> 0 | L109: 円 | M109: （ | N109: =VLOOKUP($A109,'005リスト'!$D$4:$U$128,N$55,FALSE) -> 0 | O109: 人） | P109: =VLOOKUP($A109,'005リスト'!$D$4:$U$128,P$55,FALSE) -> 0 | Q109: 円 | R109: （ | S109: =VLOOKUP($A109,'005リスト'!$D$4:$U$128,S$55,FALSE) -> 0 | T109: 人） | U109: 46 | V109: 鹿児島県1 | W109: 鹿児島県 | X109: 鹿児島県
A110: 沖縄県 | B110: =VLOOKUP($A110,'005リスト'!$D$4:$U$128,B$55,FALSE) -> 0 | C110: 円 | D110: =VLOOKUP($A110,'005リスト'!$D$4:$U$128,D$55,FALSE) -> 0 | E110: 円 | F110: =VLOOKUP($A110,'005リスト'!$D$4:$U$128,F$55,FALSE) -> 0 | G110: 円 | H110: （ | I110: =VLOOKUP($A110,'005リスト'!$D$4:$U$128,I$55,FALSE) -> 0 | J110: 人） | K110: =VLOOKUP($A110,'005リスト'!$D$4:$U$128,K$55,FALSE) -> 0 | L110: 円 | M110: （ | N110: =VLOOKUP($A110,'005リスト'!$D$4:$U$128,N$55,FALSE) -> 0 | O110: 人） | P110: =VLOOKUP($A110,'005リスト'!$D$4:$U$128,P$55,FALSE) -> 0 | Q110: 円 | R110: （ | S110: =VLOOKUP($A110,'005リスト'!$D$4:$U$128,S$55,FALSE) -> 0 | T110: 人） | U110: 47 | V110: 沖縄県1 | W110: 沖縄県 | X110: 沖縄県
A111: 札幌市 | B111: =VLOOKUP($A111,'005リスト'!$D$4:$U$128,B$55,FALSE) -> 0 | C111: 円 | D111: =VLOOKUP($A111,'005リスト'!$D$4:$U$128,D$55,FALSE) -> 0 | E111: 円 | F111: =VLOOKUP($A111,'005リスト'!$D$4:$U$128,F$55,FALSE) -> 0 | G111: 円 | H111: （ | I111: =VLOOKUP($A111,'005リスト'!$D$4:$U$128,I$55,FALSE) -> 0 | J111: 人） | K111: =VLOOKUP($A111,'005リスト'!$D$4:$U$128,K$55,FALSE) -> 0 | L111: 円 | M111: （ | N111: =VLOOKUP($A111,'005リスト'!$D$4:$U$128,N$55,FALSE) -> 0 | O111: 人） | P111: =VLOOKUP($A111,'005リスト'!$D$4:$U$128,P$55,FALSE) -> 0 | Q111: 円 | R111: （ | S111: =VLOOKUP($A111,'005リスト'!$D$4:$U$128,S$55,FALSE) -> 0 | T111: 人） | U111: 48 | V111: 北海道2 | W111: 北海道 | X111: 札幌市
A112: 仙台市 | B112: =VLOOKUP($A112,'005リスト'!$D$4:$U$128,B$55,FALSE) -> 0 | C112: 円 | D112: =VLOOKUP($A112,'005リスト'!$D$4:$U$128,D$55,FALSE) -> 0 | E112: 円 | F112: =VLOOKUP($A112,'005リスト'!$D$4:$U$128,F$55,FALSE) -> 0 | G112: 円 | H112: （ | I112: =VLOOKUP($A112,'005リスト'!$D$4:$U$128,I$55,FALSE) -> 0 | J112: 人） | K112: =VLOOKUP($A112,'005リスト'!$D$4:$U$128,K$55,FALSE) -> 0 | L112: 円 | M112: （ | N112: =VLOOKUP($A112,'005リスト'!$D$4:$U$128,N$55,FALSE) -> 0 | O112: 人） | P112: =VLOOKUP($A112,'005リスト'!$D$4:$U$128,P$55,FALSE) -> 0 | Q112: 円 | R112: （ | S112: =VLOOKUP($A112,'005リスト'!$D$4:$U$128,S$55,FALSE) -> 0 | T112: 人） | U112: 49 | V112: 宮城県2 | W112: 宮城県 | X112: 仙台市
A113: さいたま市 | B113: =VLOOKUP($A113,'005リスト'!$D$4:$U$128,B$55,FALSE) -> 0 | C113: 円 | D113: =VLOOKUP($A113,'005リスト'!$D$4:$U$128,D$55,FALSE) -> 0 | E113: 円 | F113: =VLOOKUP($A113,'005リスト'!$D$4:$U$128,F$55,FALSE) -> 0 | G113: 円 | H113: （ | I113: =VLOOKUP($A113,'005リスト'!$D$4:$U$128,I$55,FALSE) -> 0 | J113: 人） | K113: =VLOOKUP($A113,'005リスト'!$D$4:$U$128,K$55,FALSE) -> 0 | L113: 円 | M113: （ | N113: =VLOOKUP($A113,'005リスト'!$D$4:$U$128,N$55,FALSE) -> 0 | O113: 人） | P113: =VLOOKUP($A113,'005リスト'!$D$4:$U$128,P$55,FALSE) -> 0 | Q113: 円 | R113: （ | S113: =VLOOKUP($A113,'005リスト'!$D$4:$U$128,S$55,FALSE) -> 0 | T113: 人） | U113: 50 | V113: 埼玉県2 | W113: 埼玉県 | X113: さいたま市
A114: 千葉市 | B114: =VLOOKUP($A114,'005リスト'!$D$4:$U$128,B$55,FALSE) -> 0 | C114: 円 | D114: =VLOOKUP($A114,'005リスト'!$D$4:$U$128,D$55,FALSE) -> 0 | E114: 円 | F114: =VLOOKUP($A114,'005リスト'!$D$4:$U$128,F$55,FALSE) -> 0 | G114: 円 | H114: （ | I114: =VLOOKUP($A114,'005リスト'!$D$4:$U$128,I$55,FALSE) -> 0 | J114: 人） | K114: =VLOOKUP($A114,'005リスト'!$D$4:$U$128,K$55,FALSE) -> 0 | L114: 円 | M114: （ | N114: =VLOOKUP($A114,'005リスト'!$D$4:$U$128,N$55,FALSE) -> 0 | O114: 人） | P114: =VLOOKUP($A114,'005リスト'!$D$4:$U$128,P$55,FALSE) -> 0 | Q114: 円 | R114: （ | S114: =VLOOKUP($A114,'005リスト'!$D$4:$U$128,S$55,FALSE) -> 0 | T114: 人） | U114: 51 | V114: 千葉県2 | W114: 千葉県 | X114: 千葉市
A115: 横浜市 | B115: =VLOOKUP($A115,'005リスト'!$D$4:$U$128,B$55,FALSE) -> 0 | C115: 円 | D115: =VLOOKUP($A115,'005リスト'!$D$4:$U$128,D$55,FALSE) -> 0 | E115: 円 | F115: =VLOOKUP($A115,'005リスト'!$D$4:$U$128,F$55,FALSE) -> 0 | G115: 円 | H115: （ | I115: =VLOOKUP($A115,'005リスト'!$D$4:$U$128,I$55,FALSE) -> 0 | J115: 人） | K115: =VLOOKUP($A115,'005リスト'!$D$4:$U$128,K$55,FALSE) -> 0 | L115: 円 | M115: （ | N115: =VLOOKUP($A115,'005リスト'!$D$4:$U$128,N$55,FALSE) -> 0 | O115: 人） | P115: =VLOOKUP($A115,'005リスト'!$D$4:$U$128,P$55,FALSE) -> 0 | Q115: 円 | R115: （ | S115: =VLOOKUP($A115,'005リスト'!$D$4:$U$128,S$55,FALSE) -> 0 | T115: 人） | U115: 52 | V115: 神奈川県2 | W115: 神奈川県 | X115: 横浜市
A116: 川崎市 | B116: =VLOOKUP($A116,'005リスト'!$D$4:$U$128,B$55,FALSE) -> 0 | C116: 円 | D116: =VLOOKUP($A116,'005リスト'!$D$4:$U$128,D$55,FALSE) -> 0 | E116: 円 | F116: =VLOOKUP($A116,'005リスト'!$D$4:$U$128,F$55,FALSE) -> 0 | G116: 円 | H116: （ | I116: =VLOOKUP($A116,'005リスト'!$D$4:$U$128,I$55,FALSE) -> 0 | J116: 人） | K116: =VLOOKUP($A116,'005リスト'!$D$4:$U$128,K$55,FALSE) -> 0 | L116: 円 | M116: （ | N116: =VLOOKUP($A116,'005リスト'!$D$4:$U$128,N$55,FALSE) -> 0 | O116: 人） | P116: =VLOOKUP($A116,'005リスト'!$D$4:$U$128,P$55,FALSE) -> 0 | Q116: 円 | R116: （ | S116: =VLOOKUP($A116,'005リスト'!$D$4:$U$128,S$55,FALSE) -> 0 | T116: 人） | U116: 53 | V116: 神奈川県3 | W116: 神奈川県 | X116: 川崎市
A117: 相模原市 | B117: =VLOOKUP($A117,'005リスト'!$D$4:$U$128,B$55,FALSE) -> 0 | C117: 円 | D117: =VLOOKUP($A117,'005リスト'!$D$4:$U$128,D$55,FALSE) -> 0 | E117: 円 | F117: =VLOOKUP($A117,'005リスト'!$D$4:$U$128,F$55,FALSE) -> 0 | G117: 円 | H117: （ | I117: =VLOOKUP($A117,'005リスト'!$D$4:$U$128,I$55,FALSE) -> 0 | J117: 人） | K117: =VLOOKUP($A117,'005リスト'!$D$4:$U$128,K$55,FALSE) -> 0 | L117: 円 | M117: （ | N117: =VLOOKUP($A117,'005リスト'!$D$4:$U$128,N$55,FALSE) -> 0 | O117: 人） | P117: =VLOOKUP($A117,'005リスト'!$D$4:$U$128,P$55,FALSE) -> 0 | Q117: 円 | R117: （ | S117: =VLOOKUP($A117,'005リスト'!$D$4:$U$128,S$55,FALSE) -> 0 | T117: 人） | U117: 54 | V117: 神奈川県4 | W117: 神奈川県 | X117: 相模原市
A118: 新潟市 | B118: =VLOOKUP($A118,'005リスト'!$D$4:$U$128,B$55,FALSE) -> 0 | C118: 円 | D118: =VLOOKUP($A118,'005リスト'!$D$4:$U$128,D$55,FALSE) -> 0 | E118: 円 | F118: =VLOOKUP($A118,'005リスト'!$D$4:$U$128,F$55,FALSE) -> 0 | G118: 円 | H118: （ | I118: =VLOOKUP($A118,'005リスト'!$D$4:$U$128,I$55,FALSE) -> 0 | J118: 人） | K118: =VLOOKUP($A118,'005リスト'!$D$4:$U$128,K$55,FALSE) -> 0 | L118: 円 | M118: （ | N118: =VLOOKUP($A118,'005リスト'!$D$4:$U$128,N$55,FALSE) -> 0 | O118: 人） | P118: =VLOOKUP($A118,'005リスト'!$D$4:$U$128,P$55,FALSE) -> 0 | Q118: 円 | R118: （ | S118: =VLOOKUP($A118,'005リスト'!$D$4:$U$128,S$55,FALSE) -> 0 | T118: 人） | U118: 55 | V118: 新潟県2 | W118: 新潟県 | X118: 新潟市
A119: 静岡市 | B119: =VLOOKUP($A119,'005リスト'!$D$4:$U$128,B$55,FALSE) -> 0 | C119: 円 | D119: =VLOOKUP($A119,'005リスト'!$D$4:$U$128,D$55,FALSE) -> 0 | E119: 円 | F119: =VLOOKUP($A119,'005リスト'!$D$4:$U$128,F$55,FALSE) -> 0 | G119: 円 | H119: （ | I119: =VLOOKUP($A119,'005リスト'!$D$4:$U$128,I$55,FALSE) -> 0 | J119: 人） | K119: =VLOOKUP($A119,'005リスト'!$D$4:$U$128,K$55,FALSE) -> 0 | L119: 円 | M119: （ | N119: =VLOOKUP($A119,'005リスト'!$D$4:$U$128,N$55,FALSE) -> 0 | O119: 人） | P119: =VLOOKUP($A119,'005リスト'!$D$4:$U$128,P$55,FALSE) -> 0 | Q119: 円 | R119: （ | S119: =VLOOKUP($A119,'005リスト'!$D$4:$U$128,S$55,FALSE) -> 0 | T119: 人） | U119: 56 | V119: 静岡県2 | W119: 静岡県 | X119: 静岡市
A120: 浜松市 | B120: =VLOOKUP($A120,'005リスト'!$D$4:$U$128,B$55,FALSE) -> 0 | C120: 円 | D120: =VLOOKUP($A120,'005リスト'!$D$4:$U$128,D$55,FALSE) -> 0 | E120: 円 | F120: =VLOOKUP($A120,'005リスト'!$D$4:$U$128,F$55,FALSE) -> 0 | G120: 円 | H120: （ | I120: =VLOOKUP($A120,'005リスト'!$D$4:$U$128,I$55,FALSE) -> 0 | J120: 人） | K120: =VLOOKUP($A120,'005リスト'!$D$4:$U$128,K$55,FALSE) -> 0 | L120: 円 | M120: （ | N120: =VLOOKUP($A120,'005リスト'!$D$4:$U$128,N$55,FALSE) -> 0 | O120: 人） | P120: =VLOOKUP($A120,'005リスト'!$D$4:$U$128,P$55,FALSE) -> 0 | Q120: 円 | R120: （ | S120: =VLOOKUP($A120,'005リスト'!$D$4:$U$128,S$55,FALSE) -> 0 | T120: 人） | U120: 57 | V120: 静岡県3 | W120: 静岡県 | X120: 浜松市
A121: 名古屋市 | B121: =VLOOKUP($A121,'005リスト'!$D$4:$U$128,B$55,FALSE) -> 0 | C121: 円 | D121: =VLOOKUP($A121,'005リスト'!$D$4:$U$128,D$55,FALSE) -> 0 | E121: 円 | F121: =VLOOKUP($A121,'005リスト'!$D$4:$U$128,F$55,FALSE) -> 0 | G121: 円 | H121: （ | I121: =VLOOKUP($A121,'005リスト'!$D$4:$U$128,I$55,FALSE) -> 0 | J121: 人） | K121: =VLOOKUP($A121,'005リスト'!$D$4:$U$128,K$55,FALSE) -> 0 | L121: 円 | M121: （ | N121: =VLOOKUP($A121,'005リスト'!$D$4:$U$128,N$55,FALSE) -> 0 | O121: 人） | P121: =VLOOKUP($A121,'005リスト'!$D$4:$U$128,P$55,FALSE) -> 0 | Q121: 円 | R121: （ | S121: =VLOOKUP($A121,'005リスト'!$D$4:$U$128,S$55,FALSE) -> 0 | T121: 人） | U121: 58 | V121: 愛知県2 | W121: 愛知県 | X121: 名古屋市
A122: 京都市 | B122: =VLOOKUP($A122,'005リスト'!$D$4:$U$128,B$55,FALSE) -> 0 | C122: 円 | D122: =VLOOKUP($A122,'005リスト'!$D$4:$U$128,D$55,FALSE) -> 0 | E122: 円 | F122: =VLOOKUP($A122,'005リスト'!$D$4:$U$128,F$55,FALSE) -> 0 | G122: 円 | H122: （ | I122: =VLOOKUP($A122,'005リスト'!$D$4:$U$128,I$55,FALSE) -> 0 | J122: 人） | K122: =VLOOKUP($A122,'005リスト'!$D$4:$U$128,K$55,FALSE) -> 0 | L122: 円 | M122: （ | N122: =VLOOKUP($A122,'005リスト'!$D$4:$U$128,N$55,FALSE) -> 0 | O122: 人） | P122: =VLOOKUP($A122,'005リスト'!$D$4:$U$128,P$55,FALSE) -> 0 | Q122: 円 | R122: （ | S122: =VLOOKUP($A122,'005リスト'!$D$4:$U$128,S$55,FALSE) -> 0 | T122: 人） | U122: 59 | V122: 京都府2 | W122: 京都府 | X122: 京都市
A123: 大阪市 | B123: =VLOOKUP($A123,'005リスト'!$D$4:$U$128,B$55,FALSE) -> 0 | C123: 円 | D123: =VLOOKUP($A123,'005リスト'!$D$4:$U$128,D$55,FALSE) -> 0 | E123: 円 | F123: =VLOOKUP($A123,'005リスト'!$D$4:$U$128,F$55,FALSE) -> 0 | G123: 円 | H123: （ | I123: =VLOOKUP($A123,'005リスト'!$D$4:$U$128,I$55,FALSE) -> 0 | J123: 人） | K123: =VLOOKUP($A123,'005リスト'!$D$4:$U$128,K$55,FALSE) -> 0 | L123: 円 | M123: （ | N123: =VLOOKUP($A123,'005リスト'!$D$4:$U$128,N$55,FALSE) -> 0 | O123: 人） | P123: =VLOOKUP($A123,'005リスト'!$D$4:$U$128,P$55,FALSE) -> 0 | Q123: 円 | R123: （ | S123: =VLOOKUP($A123,'005リスト'!$D$4:$U$128,S$55,FALSE) -> 0 | T123: 人） | U123: 60 | V123: 大阪府2 | W123: 大阪府 | X123: 大阪市
A124: 堺市 | B124: =VLOOKUP($A124,'005リスト'!$D$4:$U$128,B$55,FALSE) -> 0 | C124: 円 | D124: =VLOOKUP($A124,'005リスト'!$D$4:$U$128,D$55,FALSE) -> 0 | E124: 円 | F124: =VLOOKUP($A124,'005リスト'!$D$4:$U$128,F$55,FALSE) -> 0 | G124: 円 | H124: （ | I124: =VLOOKUP($A124,'005リスト'!$D$4:$U$128,I$55,FALSE) -> 0 | J124: 人） | K124: =VLOOKUP($A124,'005リスト'!$D$4:$U$128,K$55,FALSE) -> 0 | L124: 円 | M124: （ | N124: =VLOOKUP($A124,'005リスト'!$D$4:$U$128,N$55,FALSE) -> 0 | O124: 人） | P124: =VLOOKUP($A124,'005リスト'!$D$4:$U$128,P$55,FALSE) -> 0 | Q124: 円 | R124: （ | S124: =VLOOKUP($A124,'005リスト'!$D$4:$U$128,S$55,FALSE) -> 0 | T124: 人） | U124: 61 | V124: 大阪府3 | W124: 大阪府 | X124: 堺市
A125: 神戸市 | B125: =VLOOKUP($A125,'005リスト'!$D$4:$U$128,B$55,FALSE) -> 0 | C125: 円 | D125: =VLOOKUP($A125,'005リスト'!$D$4:$U$128,D$55,FALSE) -> 0 | E125: 円 | F125: =VLOOKUP($A125,'005リスト'!$D$4:$U$128,F$55,FALSE) -> 0 | G125: 円 | H125: （ | I125: =VLOOKUP($A125,'005リスト'!$D$4:$U$128,I$55,FALSE) -> 0 | J125: 人） | K125: =VLOOKUP($A125,'005リスト'!$D$4:$U$128,K$55,FALSE) -> 0 | L125: 円 | M125: （ | N125: =VLOOKUP($A125,'005リスト'!$D$4:$U$128,N$55,FALSE) -> 0 | O125: 人） | P125: =VLOOKUP($A125,'005リスト'!$D$4:$U$128,P$55,FALSE) -> 0 | Q125: 円 | R125: （ | S125: =VLOOKUP($A125,'005リスト'!$D$4:$U$128,S$55,FALSE) -> 0 | T125: 人） | U125: 62 | V125: 兵庫県2 | W125: 兵庫県 | X125: 神戸市
A126: 岡山市 | B126: =VLOOKUP($A126,'005リスト'!$D$4:$U$128,B$55,FALSE) -> 0 | C126: 円 | D126: =VLOOKUP($A126,'005リスト'!$D$4:$U$128,D$55,FALSE) -> 0 | E126: 円 | F126: =VLOOKUP($A126,'005リスト'!$D$4:$U$128,F$55,FALSE) -> 0 | G126: 円 | H126: （ | I126: =VLOOKUP($A126,'005リスト'!$D$4:$U$128,I$55,FALSE) -> 0 | J126: 人） | K126: =VLOOKUP($A126,'005リスト'!$D$4:$U$128,K$55,FALSE) -> 0 | L126: 円 | M126: （ | N126: =VLOOKUP($A126,'005リスト'!$D$4:$U$128,N$55,FALSE) -> 0 | O126: 人） | P126: =VLOOKUP($A126,'005リスト'!$D$4:$U$128,P$55,FALSE) -> 0 | Q126: 円 | R126: （ | S126: =VLOOKUP($A126,'005リスト'!$D$4:$U$128,S$55,FALSE) -> 0 | T126: 人） | U126: 63 | V126: 岡山県2 | W126: 岡山県 | X126: 岡山市
A127: 広島市 | B127: =VLOOKUP($A127,'005リスト'!$D$4:$U$128,B$55,FALSE) -> 0 | C127: 円 | D127: =VLOOKUP($A127,'005リスト'!$D$4:$U$128,D$55,FALSE) -> 0 | E127: 円 | F127: =VLOOKUP($A127,'005リスト'!$D$4:$U$128,F$55,FALSE) -> 0 | G127: 円 | H127: （ | I127: =VLOOKUP($A127,'005リスト'!$D$4:$U$128,I$55,FALSE) -> 0 | J127: 人） | K127: =VLOOKUP($A127,'005リスト'!$D$4:$U$128,K$55,FALSE) -> 0 | L127: 円 | M127: （ | N127: =VLOOKUP($A127,'005リスト'!$D$4:$U$128,N$55,FALSE) -> 0 | O127: 人） | P127: =VLOOKUP($A127,'005リスト'!$D$4:$U$128,P$55,FALSE) -> 0 | Q127: 円 | R127: （ | S127: =VLOOKUP($A127,'005リスト'!$D$4:$U$128,S$55,FALSE) -> 0 | T127: 人） | U127: 64 | V127: 広島県2 | W127: 広島県 | X127: 広島市
A128: 北九州市 | B128: =VLOOKUP($A128,'005リスト'!$D$4:$U$128,B$55,FALSE) -> 0 | C128: 円 | D128: =VLOOKUP($A128,'005リスト'!$D$4:$U$128,D$55,FALSE) -> 0 | E128: 円 | F128: =VLOOKUP($A128,'005リスト'!$D$4:$U$128,F$55,FALSE) -> 0 | G128: 円 | H128: （ | I128: =VLOOKUP($A128,'005リスト'!$D$4:$U$128,I$55,FALSE) -> 0 | J128: 人） | K128: =VLOOKUP($A128,'005リスト'!$D$4:$U$128,K$55,FALSE) -> 0 | L128: 円 | M128: （ | N128: =VLOOKUP($A128,'005リスト'!$D$4:$U$128,N$55,FALSE) -> 0 | O128: 人） | P128: =VLOOKUP($A128,'005リスト'!$D$4:$U$128,P$55,FALSE) -> 0 | Q128: 円 | R128: （ | S128: =VLOOKUP($A128,'005リスト'!$D$4:$U$128,S$55,FALSE) -> 0 | T128: 人） | U128: 65 | V128: 福岡県2 | W128: 福岡県 | X128: 北九州市
A129: 福岡市 | B129: =VLOOKUP($A129,'005リスト'!$D$4:$U$128,B$55,FALSE) -> 0 | C129: 円 | D129: =VLOOKUP($A129,'005リスト'!$D$4:$U$128,D$55,FALSE) -> 0 | E129: 円 | F129: =VLOOKUP($A129,'005リスト'!$D$4:$U$128,F$55,FALSE) -> 0 | G129: 円 | H129: （ | I129: =VLOOKUP($A129,'005リスト'!$D$4:$U$128,I$55,FALSE) -> 0 | J129: 人） | K129: =VLOOKUP($A129,'005リスト'!$D$4:$U$128,K$55,FALSE) -> 0 | L129: 円 | M129: （ | N129: =VLOOKUP($A129,'005リスト'!$D$4:$U$128,N$55,FALSE) -> 0 | O129: 人） | P129: =VLOOKUP($A129,'005リスト'!$D$4:$U$128,P$55,FALSE) -> 0 | Q129: 円 | R129: （ | S129: =VLOOKUP($A129,'005リスト'!$D$4:$U$128,S$55,FALSE) -> 0 | T129: 人） | U129: 66 | V129: 福岡県3 | W129: 福岡県 | X129: 福岡市
A130: 熊本市 | B130: =VLOOKUP($A130,'005リスト'!$D$4:$U$128,B$55,FALSE) -> 0 | C130: 円 | D130: =VLOOKUP($A130,'005リスト'!$D$4:$U$128,D$55,FALSE) -> 0 | E130: 円 | F130: =VLOOKUP($A130,'005リスト'!$D$4:$U$128,F$55,FALSE) -> 0 | G130: 円 | H130: （ | I130: =VLOOKUP($A130,'005リスト'!$D$4:$U$128,I$55,FALSE) -> 0 | J130: 人） | K130: =VLOOKUP($A130,'005リスト'!$D$4:$U$128,K$55,FALSE) -> 0 | L130: 円 | M130: （ | N130: =VLOOKUP($A130,'005リスト'!$D$4:$U$128,N$55,FALSE) -> 0 | O130: 人） | P130: =VLOOKUP($A130,'005リスト'!$D$4:$U$128,P$55,FALSE) -> 0 | Q130: 円 | R130: （ | S130: =VLOOKUP($A130,'005リスト'!$D$4:$U$128,S$55,FALSE) -> 0 | T130: 人） | U130: 67 | V130: 熊本県2 | W130: 熊本県 | X130: 熊本市
A131: 旭川市 | B131: =VLOOKUP($A131,'005リスト'!$D$4:$U$128,B$55,FALSE) -> 0 | C131: 円 | D131: =VLOOKUP($A131,'005リスト'!$D$4:$U$128,D$55,FALSE) -> 0 | E131: 円 | F131: =VLOOKUP($A131,'005リスト'!$D$4:$U$128,F$55,FALSE) -> 0 | G131: 円 | H131: （ | I131: =VLOOKUP($A131,'005リスト'!$D$4:$U$128,I$55,FALSE) -> 0 | J131: 人） | K131: =VLOOKUP($A131,'005リスト'!$D$4:$U$128,K$55,FALSE) -> 0 | L131: 円 | M131: （ | N131: =VLOOKUP($A131,'005リスト'!$D$4:$U$128,N$55,FALSE) -> 0 | O131: 人） | P131: =VLOOKUP($A131,'005リスト'!$D$4:$U$128,P$55,FALSE) -> 0 | Q131: 円 | R131: （ | S131: =VLOOKUP($A131,'005リスト'!$D$4:$U$128,S$55,FALSE) -> 0 | T131: 人） | U131: 68 | V131: 北海道3 | W131: 北海道 | X131: 旭川市
A132: 函館市 | B132: =VLOOKUP($A132,'005リスト'!$D$4:$U$128,B$55,FALSE) -> 0 | C132: 円 | D132: =VLOOKUP($A132,'005リスト'!$D$4:$U$128,D$55,FALSE) -> 0 | E132: 円 | F132: =VLOOKUP($A132,'005リスト'!$D$4:$U$128,F$55,FALSE) -> 0 | G132: 円 | H132: （ | I132: =VLOOKUP($A132,'005リスト'!$D$4:$U$128,I$55,FALSE) -> 0 | J132: 人） | K132: =VLOOKUP($A132,'005リスト'!$D$4:$U$128,K$55,FALSE) -> 0 | L132: 円 | M132: （ | N132: =VLOOKUP($A132,'005リスト'!$D$4:$U$128,N$55,FALSE) -> 0 | O132: 人） | P132: =VLOOKUP($A132,'005リスト'!$D$4:$U$128,P$55,FALSE) -> 0 | Q132: 円 | R132: （ | S132: =VLOOKUP($A132,'005リスト'!$D$4:$U$128,S$55,FALSE) -> 0 | T132: 人） | U132: 69 | V132: 北海道4 | W132: 北海道 | X132: 函館市
A133: 青森市 | B133: =VLOOKUP($A133,'005リスト'!$D$4:$U$128,B$55,FALSE) -> 0 | C133: 円 | D133: =VLOOKUP($A133,'005リスト'!$D$4:$U$128,D$55,FALSE) -> 0 | E133: 円 | F133: =VLOOKUP($A133,'005リスト'!$D$4:$U$128,F$55,FALSE) -> 0 | G133: 円 | H133: （ | I133: =VLOOKUP($A133,'005リスト'!$D$4:$U$128,I$55,FALSE) -> 0 | J133: 人） | K133: =VLOOKUP($A133,'005リスト'!$D$4:$U$128,K$55,FALSE) -> 0 | L133: 円 | M133: （ | N133: =VLOOKUP($A133,'005リスト'!$D$4:$U$128,N$55,FALSE) -> 0 | O133: 人） | P133: =VLOOKUP($A133,'005リスト'!$D$4:$U$128,P$55,FALSE) -> 0 | Q133: 円 | R133: （ | S133: =VLOOKUP($A133,'005リスト'!$D$4:$U$128,S$55,FALSE) -> 0 | T133: 人） | U133: 70 | V133: 青森県2 | W133: 青森県 | X133: 青森市
A134: 八戸市 | B134: =VLOOKUP($A134,'005リスト'!$D$4:$U$128,B$55,FALSE) -> 0 | C134: 円 | D134: =VLOOKUP($A134,'005リスト'!$D$4:$U$128,D$55,FALSE) -> 0 | E134: 円 | F134: =VLOOKUP($A134,'005リスト'!$D$4:$U$128,F$55,FALSE) -> 0 | G134: 円 | H134: （ | I134: =VLOOKUP($A134,'005リスト'!$D$4:$U$128,I$55,FALSE) -> 0 | J134: 人） | K134: =VLOOKUP($A134,'005リスト'!$D$4:$U$128,K$55,FALSE) -> 0 | L134: 円 | M134: （ | N134: =VLOOKUP($A134,'005リスト'!$D$4:$U$128,N$55,FALSE) -> 0 | O134: 人） | P134: =VLOOKUP($A134,'005リスト'!$D$4:$U$128,P$55,FALSE) -> 0 | Q134: 円 | R134: （ | S134: =VLOOKUP($A134,'005リスト'!$D$4:$U$128,S$55,FALSE) -> 0 | T134: 人） | U134: 71 | V134: 青森県3 | W134: 青森県 | X134: 八戸市
A135: 盛岡市 | B135: =VLOOKUP($A135,'005リスト'!$D$4:$U$128,B$55,FALSE) -> 0 | C135: 円 | D135: =VLOOKUP($A135,'005リスト'!$D$4:$U$128,D$55,FALSE) -> 0 | E135: 円 | F135: =VLOOKUP($A135,'005リスト'!$D$4:$U$128,F$55,FALSE) -> 0 | G135: 円 | H135: （ | I135: =VLOOKUP($A135,'005リスト'!$D$4:$U$128,I$55,FALSE) -> 0 | J135: 人） | K135: =VLOOKUP($A135,'005リスト'!$D$4:$U$128,K$55,FALSE) -> 0 | L135: 円 | M135: （ | N135: =VLOOKUP($A135,'005リスト'!$D$4:$U$128,N$55,FALSE) -> 0 | O135: 人） | P135: =VLOOKUP($A135,'005リスト'!$D$4:$U$128,P$55,FALSE) -> 0 | Q135: 円 | R135: （ | S135: =VLOOKUP($A135,'005リスト'!$D$4:$U$128,S$55,FALSE) -> 0 | T135: 人） | U135: 72 | V135: 岩手県2 | W135: 岩手県 | X135: 盛岡市
A136: 秋田市 | B136: =VLOOKUP($A136,'005リスト'!$D$4:$U$128,B$55,FALSE) -> 0 | C136: 円 | D136: =VLOOKUP($A136,'005リスト'!$D$4:$U$128,D$55,FALSE) -> 0 | E136: 円 | F136: =VLOOKUP($A136,'005リスト'!$D$4:$U$128,F$55,FALSE) -> 0 | G136: 円 | H136: （ | I136: =VLOOKUP($A136,'005リスト'!$D$4:$U$128,I$55,FALSE) -> 0 | J136: 人） | K136: =VLOOKUP($A136,'005リスト'!$D$4:$U$128,K$55,FALSE) -> 0 | L136: 円 | M136: （ | N136: =VLOOKUP($A136,'005リスト'!$D$4:$U$128,N$55,FALSE) -> 0 | O136: 人） | P136: =VLOOKUP($A136,'005リスト'!$D$4:$U$128,P$55,FALSE) -> 0 | Q136: 円 | R136: （ | S136: =VLOOKUP($A136,'005リスト'!$D$4:$U$128,S$55,FALSE) -> 0 | T136: 人） | U136: 73 | V136: 秋田県2 | W136: 秋田県 | X136: 秋田市
A137: 山形市 | B137: =VLOOKUP($A137,'005リスト'!$D$4:$U$128,B$55,FALSE) -> 0 | C137: 円 | D137: =VLOOKUP($A137,'005リスト'!$D$4:$U$128,D$55,FALSE) -> 0 | E137: 円 | F137: =VLOOKUP($A137,'005リスト'!$D$4:$U$128,F$55,FALSE) -> 0 | G137: 円 | H137: （ | I137: =VLOOKUP($A137,'005リスト'!$D$4:$U$128,I$55,FALSE) -> 0 | J137: 人） | K137: =VLOOKUP($A137,'005リスト'!$D$4:$U$128,K$55,FALSE) -> 0 | L137: 円 | M137: （ | N137: =VLOOKUP($A137,'005リスト'!$D$4:$U$128,N$55,FALSE) -> 0 | O137: 人） | P137: =VLOOKUP($A137,'005リスト'!$D$4:$U$128,P$55,FALSE) -> 0 | Q137: 円 | R137: （ | S137: =VLOOKUP($A137,'005リスト'!$D$4:$U$128,S$55,FALSE) -> 0 | T137: 人） | U137: 74 | V137: 山形県2 | W137: 山形県 | X137: 山形市
A138: 郡山市 | B138: =VLOOKUP($A138,'005リスト'!$D$4:$U$128,B$55,FALSE) -> 0 | C138: 円 | D138: =VLOOKUP($A138,'005リスト'!$D$4:$U$128,D$55,FALSE) -> 0 | E138: 円 | F138: =VLOOKUP($A138,'005リスト'!$D$4:$U$128,F$55,FALSE) -> 0 | G138: 円 | H138: （ | I138: =VLOOKUP($A138,'005リスト'!$D$4:$U$128,I$55,FALSE) -> 0 | J138: 人） | K138: =VLOOKUP($A138,'005リスト'!$D$4:$U$128,K$55,FALSE) -> 0 | L138: 円 | M138: （ | N138: =VLOOKUP($A138,'005リスト'!$D$4:$U$128,N$55,FALSE) -> 0 | O138: 人） | P138: =VLOOKUP($A138,'005リスト'!$D$4:$U$128,P$55,FALSE) -> 0 | Q138: 円 | R138: （ | S138: =VLOOKUP($A138,'005リスト'!$D$4:$U$128,S$55,FALSE) -> 0 | T138: 人） | U138: 75 | V138: 福島県2 | W138: 福島県 | X138: 郡山市
A139: いわき市 | B139: =VLOOKUP($A139,'005リスト'!$D$4:$U$128,B$55,FALSE) -> 0 | C139: 円 | D139: =VLOOKUP($A139,'005リスト'!$D$4:$U$128,D$55,FALSE) -> 0 | E139: 円 | F139: =VLOOKUP($A139,'005リスト'!$D$4:$U$128,F$55,FALSE) -> 0 | G139: 円 | H139: （ | I139: =VLOOKUP($A139,'005リスト'!$D$4:$U$128,I$55,FALSE) -> 0 | J139: 人） | K139: =VLOOKUP($A139,'005リスト'!$D$4:$U$128,K$55,FALSE) -> 0 | L139: 円 | M139: （ | N139: =VLOOKUP($A139,'005リスト'!$D$4:$U$128,N$55,FALSE) -> 0 | O139: 人） | P139: =VLOOKUP($A139,'005リスト'!$D$4:$U$128,P$55,FALSE) -> 0 | Q139: 円 | R139: （ | S139: =VLOOKUP($A139,'005リスト'!$D$4:$U$128,S$55,FALSE) -> 0 | T139: 人） | U139: 76 | V139: 福島県3 | W139: 福島県 | X139: いわき市
A140: 福島市 | B140: =VLOOKUP($A140,'005リスト'!$D$4:$U$128,B$55,FALSE) -> 0 | C140: 円 | D140: =VLOOKUP($A140,'005リスト'!$D$4:$U$128,D$55,FALSE) -> 0 | E140: 円 | F140: =VLOOKUP($A140,'005リスト'!$D$4:$U$128,F$55,FALSE) -> 0 | G140: 円 | H140: （ | I140: =VLOOKUP($A140,'005リスト'!$D$4:$U$128,I$55,FALSE) -> 0 | J140: 人） | K140: =VLOOKUP($A140,'005リスト'!$D$4:$U$128,K$55,FALSE) -> 0 | L140: 円 | M140: （ | N140: =VLOOKUP($A140,'005リスト'!$D$4:$U$128,N$55,FALSE) -> 0 | O140: 人） | P140: =VLOOKUP($A140,'005リスト'!$D$4:$U$128,P$55,FALSE) -> 0 | Q140: 円 | R140: （ | S140: =VLOOKUP($A140,'005リスト'!$D$4:$U$128,S$55,FALSE) -> 0 | T140: 人） | U140: 77 | V140: 福島県4 | W140: 福島県 | X140: 福島市
A141: 宇都宮市 | B141: =VLOOKUP($A141,'005リスト'!$D$4:$U$128,B$55,FALSE) -> 0 | C141: 円 | D141: =VLOOKUP($A141,'005リスト'!$D$4:$U$128,D$55,FALSE) -> 0 | E141: 円 | F141: =VLOOKUP($A141,'005リスト'!$D$4:$U$128,F$55,FALSE) -> 0 | G141: 円 | H141: （ | I141: =VLOOKUP($A141,'005リスト'!$D$4:$U$128,I$55,FALSE) -> 0 | J141: 人） | K141: =VLOOKUP($A141,'005リスト'!$D$4:$U$128,K$55,FALSE) -> 0 | L141: 円 | M141: （ | N141: =VLOOKUP($A141,'005リスト'!$D$4:$U$128,N$55,FALSE) -> 0 | O141: 人） | P141: =VLOOKUP($A141,'005リスト'!$D$4:$U$128,P$55,FALSE) -> 0 | Q141: 円 | R141: （ | S141: =VLOOKUP($A141,'005リスト'!$D$4:$U$128,S$55,FALSE) -> 0 | T141: 人） | U141: 78 | V141: 栃木県2 | W141: 栃木県 | X141: 宇都宮市
A142: 前橋市 | B142: =VLOOKUP($A142,'005リスト'!$D$4:$U$128,B$55,FALSE) -> 0 | C142: 円 | D142: =VLOOKUP($A142,'005リスト'!$D$4:$U$128,D$55,FALSE) -> 0 | E142: 円 | F142: =VLOOKUP($A142,'005リスト'!$D$4:$U$128,F$55,FALSE) -> 0 | G142: 円 | H142: （ | I142: =VLOOKUP($A142,'005リスト'!$D$4:$U$128,I$55,FALSE) -> 0 | J142: 人） | K142: =VLOOKUP($A142,'005リスト'!$D$4:$U$128,K$55,FALSE) -> 0 | L142: 円 | M142: （ | N142: =VLOOKUP($A142,'005リスト'!$D$4:$U$128,N$55,FALSE) -> 0 | O142: 人） | P142: =VLOOKUP($A142,'005リスト'!$D$4:$U$128,P$55,FALSE) -> 0 | Q142: 円 | R142: （ | S142: =VLOOKUP($A142,'005リスト'!$D$4:$U$128,S$55,FALSE) -> 0 | T142: 人） | U142: 79 | V142: 群馬県2 | W142: 群馬県 | X142: 前橋市
A143: 高崎市 | B143: =VLOOKUP($A143,'005リスト'!$D$4:$U$128,B$55,FALSE) -> 0 | C143: 円 | D143: =VLOOKUP($A143,'005リスト'!$D$4:$U$128,D$55,FALSE) -> 0 | E143: 円 | F143: =VLOOKUP($A143,'005リスト'!$D$4:$U$128,F$55,FALSE) -> 0 | G143: 円 | H143: （ | I143: =VLOOKUP($A143,'005リスト'!$D$4:$U$128,I$55,FALSE) -> 0 | J143: 人） | K143: =VLOOKUP($A143,'005リスト'!$D$4:$U$128,K$55,FALSE) -> 0 | L143: 円 | M143: （ | N143: =VLOOKUP($A143,'005リスト'!$D$4:$U$128,N$55,FALSE) -> 0 | O143: 人） | P143: =VLOOKUP($A143,'005リスト'!$D$4:$U$128,P$55,FALSE) -> 0 | Q143: 円 | R143: （ | S143: =VLOOKUP($A143,'005リスト'!$D$4:$U$128,S$55,FALSE) -> 0 | T143: 人） | U143: 80 | V143: 群馬県3 | W143: 群馬県 | X143: 高崎市
A144: 川越市 | B144: =VLOOKUP($A144,'005リスト'!$D$4:$U$128,B$55,FALSE) -> 0 | C144: 円 | D144: =VLOOKUP($A144,'005リスト'!$D$4:$U$128,D$55,FALSE) -> 0 | E144: 円 | F144: =VLOOKUP($A144,'005リスト'!$D$4:$U$128,F$55,FALSE) -> 0 | G144: 円 | H144: （ | I144: =VLOOKUP($A144,'005リスト'!$D$4:$U$128,I$55,FALSE) -> 0 | J144: 人） | K144: =VLOOKUP($A144,'005リスト'!$D$4:$U$128,K$55,FALSE) -> 0 | L144: 円 | M144: （ | N144: =VLOOKUP($A144,'005リスト'!$D$4:$U$128,N$55,FALSE) -> 0 | O144: 人） | P144: =VLOOKUP($A144,'005リスト'!$D$4:$U$128,P$55,FALSE) -> 0 | Q144: 円 | R144: （ | S144: =VLOOKUP($A144,'005リスト'!$D$4:$U$128,S$55,FALSE) -> 0 | T144: 人） | U144: 81 | V144: 埼玉県3 | W144: 埼玉県 | X144: 川越市
A145: 越谷市 | B145: =VLOOKUP($A145,'005リスト'!$D$4:$U$128,B$55,FALSE) -> 0 | C145: 円 | D145: =VLOOKUP($A145,'005リスト'!$D$4:$U$128,D$55,FALSE) -> 0 | E145: 円 | F145: =VLOOKUP($A145,'005リスト'!$D$4:$U$128,F$55,FALSE) -> 0 | G145: 円 | H145: （ | I145: =VLOOKUP($A145,'005リスト'!$D$4:$U$128,I$55,FALSE) -> 0 | J145: 人） | K145: =VLOOKUP($A145,'005リスト'!$D$4:$U$128,K$55,FALSE) -> 0 | L145: 円 | M145: （ | N145: =VLOOKUP($A145,'005リスト'!$D$4:$U$128,N$55,FALSE) -> 0 | O145: 人） | P145: =VLOOKUP($A145,'005リスト'!$D$4:$U$128,P$55,FALSE) -> 0 | Q145: 円 | R145: （ | S145: =VLOOKUP($A145,'005リスト'!$D$4:$U$128,S$55,FALSE) -> 0 | T145: 人） | U145: 82 | V145: 埼玉県4 | W145: 埼玉県 | X145: 越谷市
A146: 川口市 | B146: =VLOOKUP($A146,'005リスト'!$D$4:$U$128,B$55,FALSE) -> 0 | C146: 円 | D146: =VLOOKUP($A146,'005リスト'!$D$4:$U$128,D$55,FALSE) -> 0 | E146: 円 | F146: =VLOOKUP($A146,'005リスト'!$D$4:$U$128,F$55,FALSE) -> 0 | G146: 円 | H146: （ | I146: =VLOOKUP($A146,'005リスト'!$D$4:$U$128,I$55,FALSE) -> 0 | J146: 人） | K146: =VLOOKUP($A146,'005リスト'!$D$4:$U$128,K$55,FALSE) -> 0 | L146: 円 | M146: （ | N146: =VLOOKUP($A146,'005リスト'!$D$4:$U$128,N$55,FALSE) -> 0 | O146: 人） | P146: =VLOOKUP($A146,'005リスト'!$D$4:$U$128,P$55,FALSE) -> 0 | Q146: 円 | R146: （ | S146: =VLOOKUP($A146,'005リスト'!$D$4:$U$128,S$55,FALSE) -> 0 | T146: 人） | U146: 83 | V146: 埼玉県5 | W146: 埼玉県 | X146: 川口市
A147: 船橋市 | B147: =VLOOKUP($A147,'005リスト'!$D$4:$U$128,B$55,FALSE) -> 0 | C147: 円 | D147: =VLOOKUP($A147,'005リスト'!$D$4:$U$128,D$55,FALSE) -> 0 | E147: 円 | F147: =VLOOKUP($A147,'005リスト'!$D$4:$U$128,F$55,FALSE) -> 0 | G147: 円 | H147: （ | I147: =VLOOKUP($A147,'005リスト'!$D$4:$U$128,I$55,FALSE) -> 0 | J147: 人） | K147: =VLOOKUP($A147,'005リスト'!$D$4:$U$128,K$55,FALSE) -> 0 | L147: 円 | M147: （ | N147: =VLOOKUP($A147,'005リスト'!$D$4:$U$128,N$55,FALSE) -> 0 | O147: 人） | P147: =VLOOKUP($A147,'005リスト'!$D$4:$U$128,P$55,FALSE) -> 0 | Q147: 円 | R147: （ | S147: =VLOOKUP($A147,'005リスト'!$D$4:$U$128,S$55,FALSE) -> 0 | T147: 人） | U147: 84 | V147: 千葉県3 | W147: 千葉県 | X147: 船橋市
A148: 柏市 | B148: =VLOOKUP($A148,'005リスト'!$D$4:$U$128,B$55,FALSE) -> 0 | C148: 円 | D148: =VLOOKUP($A148,'005リスト'!$D$4:$U$128,D$55,FALSE) -> 0 | E148: 円 | F148: =VLOOKUP($A148,'005リスト'!$D$4:$U$128,F$55,FALSE) -> 0 | G148: 円 | H148: （ | I148: =VLOOKUP($A148,'005リスト'!$D$4:$U$128,I$55,FALSE) -> 0 | J148: 人） | K148: =VLOOKUP($A148,'005リスト'!$D$4:$U$128,K$55,FALSE) -> 0 | L148: 円 | M148: （ | N148: =VLOOKUP($A148,'005リスト'!$D$4:$U$128,N$55,FALSE) -> 0 | O148: 人） | P148: =VLOOKUP($A148,'005リスト'!$D$4:$U$128,P$55,FALSE) -> 0 | Q148: 円 | R148: （ | S148: =VLOOKUP($A148,'005リスト'!$D$4:$U$128,S$55,FALSE) -> 0 | T148: 人） | U148: 85 | V148: 千葉県4 | W148: 千葉県 | X148: 柏市
A149: 八王子市 | B149: =VLOOKUP($A149,'005リスト'!$D$4:$U$128,B$55,FALSE) -> 0 | C149: 円 | D149: =VLOOKUP($A149,'005リスト'!$D$4:$U$128,D$55,FALSE) -> 0 | E149: 円 | F149: =VLOOKUP($A149,'005リスト'!$D$4:$U$128,F$55,FALSE) -> 0 | G149: 円 | H149: （ | I149: =VLOOKUP($A149,'005リスト'!$D$4:$U$128,I$55,FALSE) -> 0 | J149: 人） | K149: =VLOOKUP($A149,'005リスト'!$D$4:$U$128,K$55,FALSE) -> 0 | L149: 円 | M149: （ | N149: =VLOOKUP($A149,'005リスト'!$D$4:$U$128,N$55,FALSE) -> 0 | O149: 人） | P149: =VLOOKUP($A149,'005リスト'!$D$4:$U$128,P$55,FALSE) -> 0 | Q149: 円 | R149: （ | S149: =VLOOKUP($A149,'005リスト'!$D$4:$U$128,S$55,FALSE) -> 0 | T149: 人） | U149: 86 | V149: 東京都2 | W149: 東京都 | X149: 八王子市
A150: 横須賀市 | B150: =VLOOKUP($A150,'005リスト'!$D$4:$U$128,B$55,FALSE) -> 0 | C150: 円 | D150: =VLOOKUP($A150,'005リスト'!$D$4:$U$128,D$55,FALSE) -> 0 | E150: 円 | F150: =VLOOKUP($A150,'005リスト'!$D$4:$U$128,F$55,FALSE) -> 0 | G150: 円 | H150: （ | I150: =VLOOKUP($A150,'005リスト'!$D$4:$U$128,I$55,FALSE) -> 0 | J150: 人） | K150: =VLOOKUP($A150,'005リスト'!$D$4:$U$128,K$55,FALSE) -> 0 | L150: 円 | M150: （ | N150: =VLOOKUP($A150,'005リスト'!$D$4:$U$128,N$55,FALSE) -> 0 | O150: 人） | P150: =VLOOKUP($A150,'005リスト'!$D$4:$U$128,P$55,FALSE) -> 0 | Q150: 円 | R150: （ | S150: =VLOOKUP($A150,'005リスト'!$D$4:$U$128,S$55,FALSE) -> 0 | T150: 人） | U150: 87 | V150: 神奈川県5 | W150: 神奈川県 | X150: 横須賀市
A151: 富山市 | B151: =VLOOKUP($A151,'005リスト'!$D$4:$U$128,B$55,FALSE) -> 0 | C151: 円 | D151: =VLOOKUP($A151,'005リスト'!$D$4:$U$128,D$55,FALSE) -> 0 | E151: 円 | F151: =VLOOKUP($A151,'005リスト'!$D$4:$U$128,F$55,FALSE) -> 0 | G151: 円 | H151: （ | I151: =VLOOKUP($A151,'005リスト'!$D$4:$U$128,I$55,FALSE) -> 0 | J151: 人） | K151: =VLOOKUP($A151,'005リスト'!$D$4:$U$128,K$55,FALSE) -> 0 | L151: 円 | M151: （ | N151: =VLOOKUP($A151,'005リスト'!$D$4:$U$128,N$55,FALSE) -> 0 | O151: 人） | P151: =VLOOKUP($A151,'005リスト'!$D$4:$U$128,P$55,FALSE) -> 0 | Q151: 円 | R151: （ | S151: =VLOOKUP($A151,'005リスト'!$D$4:$U$128,S$55,FALSE) -> 0 | T151: 人） | U151: 88 | V151: 富山県2 | W151: 富山県 | X151: 富山市
A152: 金沢市 | B152: =VLOOKUP($A152,'005リスト'!$D$4:$U$128,B$55,FALSE) -> 0 | C152: 円 | D152: =VLOOKUP($A152,'005リスト'!$D$4:$U$128,D$55,FALSE) -> 0 | E152: 円 | F152: =VLOOKUP($A152,'005リスト'!$D$4:$U$128,F$55,FALSE) -> 0 | G152: 円 | H152: （ | I152: =VLOOKUP($A152,'005リスト'!$D$4:$U$128,I$55,FALSE) -> 0 | J152: 人） | K152: =VLOOKUP($A152,'005リスト'!$D$4:$U$128,K$55,FALSE) -> 0 | L152: 円 | M152: （ | N152: =VLOOKUP($A152,'005リスト'!$D$4:$U$128,N$55,FALSE) -> 0 | O152: 人） | P152: =VLOOKUP($A152,'005リスト'!$D$4:$U$128,P$55,FALSE) -> 0 | Q152: 円 | R152: （ | S152: =VLOOKUP($A152,'005リスト'!$D$4:$U$128,S$55,FALSE) -> 0 | T152: 人） | U152: 89 | V152: 石川県2 | W152: 石川県 | X152: 金沢市
A153: 福井市 | B153: =VLOOKUP($A153,'005リスト'!$D$4:$U$128,B$55,FALSE) -> 0 | C153: 円 | D153: =VLOOKUP($A153,'005リスト'!$D$4:$U$128,D$55,FALSE) -> 0 | E153: 円 | F153: =VLOOKUP($A153,'005リスト'!$D$4:$U$128,F$55,FALSE) -> 0 | G153: 円 | H153: （ | I153: =VLOOKUP($A153,'005リスト'!$D$4:$U$128,I$55,FALSE) -> 0 | J153: 人） | K153: =VLOOKUP($A153,'005リスト'!$D$4:$U$128,K$55,FALSE) -> 0 | L153: 円 | M153: （ | N153: =VLOOKUP($A153,'005リスト'!$D$4:$U$128,N$55,FALSE) -> 0 | O153: 人） | P153: =VLOOKUP($A153,'005リスト'!$D$4:$U$128,P$55,FALSE) -> 0 | Q153: 円 | R153: （ | S153: =VLOOKUP($A153,'005リスト'!$D$4:$U$128,S$55,FALSE) -> 0 | T153: 人） | U153: 90 | V153: 福井県2 | W153: 福井県 | X153: 福井市
A154: 甲府市 | B154: =VLOOKUP($A154,'005リスト'!$D$4:$U$128,B$55,FALSE) -> 0 | C154: 円 | D154: =VLOOKUP($A154,'005リスト'!$D$4:$U$128,D$55,FALSE) -> 0 | E154: 円 | F154: =VLOOKUP($A154,'005リスト'!$D$4:$U$128,F$55,FALSE) -> 0 | G154: 円 | H154: （ | I154: =VLOOKUP($A154,'005リスト'!$D$4:$U$128,I$55,FALSE) -> 0 | J154: 人） | K154: =VLOOKUP($A154,'005リスト'!$D$4:$U$128,K$55,FALSE) -> 0 | L154: 円 | M154: （ | N154: =VLOOKUP($A154,'005リスト'!$D$4:$U$128,N$55,FALSE) -> 0 | O154: 人） | P154: =VLOOKUP($A154,'005リスト'!$D$4:$U$128,P$55,FALSE) -> 0 | Q154: 円 | R154: （ | S154: =VLOOKUP($A154,'005リスト'!$D$4:$U$128,S$55,FALSE) -> 0 | T154: 人） | U154: 91 | V154: 山梨県2 | W154: 山梨県 | X154: 甲府市
A155: 長野市 | B155: =VLOOKUP($A155,'005リスト'!$D$4:$U$128,B$55,FALSE) -> 0 | C155: 円 | D155: =VLOOKUP($A155,'005リスト'!$D$4:$U$128,D$55,FALSE) -> 0 | E155: 円 | F155: =VLOOKUP($A155,'005リスト'!$D$4:$U$128,F$55,FALSE) -> 0 | G155: 円 | H155: （ | I155: =VLOOKUP($A155,'005リスト'!$D$4:$U$128,I$55,FALSE) -> 0 | J155: 人） | K155: =VLOOKUP($A155,'005リスト'!$D$4:$U$128,K$55,FALSE) -> 0 | L155: 円 | M155: （ | N155: =VLOOKUP($A155,'005リスト'!$D$4:$U$128,N$55,FALSE) -> 0 | O155: 人） | P155: =VLOOKUP($A155,'005リスト'!$D$4:$U$128,P$55,FALSE) -> 0 | Q155: 円 | R155: （ | S155: =VLOOKUP($A155,'005リスト'!$D$4:$U$128,S$55,FALSE) -> 0 | T155: 人） | U155: 92 | V155: 長野県2 | W155: 長野県 | X155: 長野市
A156: 岐阜市 | B156: =VLOOKUP($A156,'005リスト'!$D$4:$U$128,B$55,FALSE) -> 0 | C156: 円 | D156: =VLOOKUP($A156,'005リスト'!$D$4:$U$128,D$55,FALSE) -> 0 | E156: 円 | F156: =VLOOKUP($A156,'005リスト'!$D$4:$U$128,F$55,FALSE) -> 0 | G156: 円 | H156: （ | I156: =VLOOKUP($A156,'005リスト'!$D$4:$U$128,I$55,FALSE) -> 0 | J156: 人） | K156: =VLOOKUP($A156,'005リスト'!$D$4:$U$128,K$55,FALSE) -> 0 | L156: 円 | M156: （ | N156: =VLOOKUP($A156,'005リスト'!$D$4:$U$128,N$55,FALSE) -> 0 | O156: 人） | P156: =VLOOKUP($A156,'005リスト'!$D$4:$U$128,P$55,FALSE) -> 0 | Q156: 円 | R156: （ | S156: =VLOOKUP($A156,'005リスト'!$D$4:$U$128,S$55,FALSE) -> 0 | T156: 人） | U156: 93 | V156: 岐阜県2 | W156: 岐阜県 | X156: 岐阜市
A157: 豊橋市 | B157: =VLOOKUP($A157,'005リスト'!$D$4:$U$128,B$55,FALSE) -> 0 | C157: 円 | D157: =VLOOKUP($A157,'005リスト'!$D$4:$U$128,D$55,FALSE) -> 0 | E157: 円 | F157: =VLOOKUP($A157,'005リスト'!$D$4:$U$128,F$55,FALSE) -> 0 | G157: 円 | H157: （ | I157: =VLOOKUP($A157,'005リスト'!$D$4:$U$128,I$55,FALSE) -> 0 | J157: 人） | K157: =VLOOKUP($A157,'005リスト'!$D$4:$U$128,K$55,FALSE) -> 0 | L157: 円 | M157: （ | N157: =VLOOKUP($A157,'005リスト'!$D$4:$U$128,N$55,FALSE) -> 0 | O157: 人） | P157: =VLOOKUP($A157,'005リスト'!$D$4:$U$128,P$55,FALSE) -> 0 | Q157: 円 | R157: （ | S157: =VLOOKUP($A157,'005リスト'!$D$4:$U$128,S$55,FALSE) -> 0 | T157: 人） | U157: 94 | V157: 愛知県3 | W157: 愛知県 | X157: 豊橋市
A158: 豊田市 | B158: =VLOOKUP($A158,'005リスト'!$D$4:$U$128,B$55,FALSE) -> 0 | C158: 円 | D158: =VLOOKUP($A158,'005リスト'!$D$4:$U$128,D$55,FALSE) -> 0 | E158: 円 | F158: =VLOOKUP($A158,'005リスト'!$D$4:$U$128,F$55,FALSE) -> 0 | G158: 円 | H158: （ | I158: =VLOOKUP($A158,'005リスト'!$D$4:$U$128,I$55,FALSE) -> 0 | J158: 人） | K158: =VLOOKUP($A158,'005リスト'!$D$4:$U$128,K$55,FALSE) -> 0 | L158: 円 | M158: （ | N158: =VLOOKUP($A158,'005リスト'!$D$4:$U$128,N$55,FALSE) -> 0 | O158: 人） | P158: =VLOOKUP($A158,'005リスト'!$D$4:$U$128,P$55,FALSE) -> 0 | Q158: 円 | R158: （ | S158: =VLOOKUP($A158,'005リスト'!$D$4:$U$128,S$55,FALSE) -> 0 | T158: 人） | U158: 95 | V158: 愛知県4 | W158: 愛知県 | X158: 豊田市
A159: 岡崎市 | B159: =VLOOKUP($A159,'005リスト'!$D$4:$U$128,B$55,FALSE) -> 0 | C159: 円 | D159: =VLOOKUP($A159,'005リスト'!$D$4:$U$128,D$55,FALSE) -> 0 | E159: 円 | F159: =VLOOKUP($A159,'005リスト'!$D$4:$U$128,F$55,FALSE) -> 0 | G159: 円 | H159: （ | I159: =VLOOKUP($A159,'005リスト'!$D$4:$U$128,I$55,FALSE) -> 0 | J159: 人） | K159: =VLOOKUP($A159,'005リスト'!$D$4:$U$128,K$55,FALSE) -> 0 | L159: 円 | M159: （ | N159: =VLOOKUP($A159,'005リスト'!$D$4:$U$128,N$55,FALSE) -> 0 | O159: 人） | P159: =VLOOKUP($A159,'005リスト'!$D$4:$U$128,P$55,FALSE) -> 0 | Q159: 円 | R159: （ | S159: =VLOOKUP($A159,'005リスト'!$D$4:$U$128,S$55,FALSE) -> 0 | T159: 人） | U159: 96 | V159: 愛知県5 | W159: 愛知県 | X159: 岡崎市
A160: 大津市 | B160: =VLOOKUP($A160,'005リスト'!$D$4:$U$128,B$55,FALSE) -> 0 | C160: 円 | D160: =VLOOKUP($A160,'005リスト'!$D$4:$U$128,D$55,FALSE) -> 0 | E160: 円 | F160: =VLOOKUP($A160,'005リスト'!$D$4:$U$128,F$55,FALSE) -> 0 | G160: 円 | H160: （ | I160: =VLOOKUP($A160,'005リスト'!$D$4:$U$128,I$55,FALSE) -> 0 | J160: 人） | K160: =VLOOKUP($A160,'005リスト'!$D$4:$U$128,K$55,FALSE) -> 0 | L160: 円 | M160: （ | N160: =VLOOKUP($A160,'005リスト'!$D$4:$U$128,N$55,FALSE) -> 0 | O160: 人） | P160: =VLOOKUP($A160,'005リスト'!$D$4:$U$128,P$55,FALSE) -> 0 | Q160: 円 | R160: （ | S160: =VLOOKUP($A160,'005リスト'!$D$4:$U$128,S$55,FALSE) -> 0 | T160: 人） | U160: 97 | V160: 滋賀県2 | W160: 滋賀県 | X160: 大津市
A161: 高槻市 | B161: =VLOOKUP($A161,'005リスト'!$D$4:$U$128,B$55,FALSE) -> 0 | C161: 円 | D161: =VLOOKUP($A161,'005リスト'!$D$4:$U$128,D$55,FALSE) -> 0 | E161: 円 | F161: =VLOOKUP($A161,'005リスト'!$D$4:$U$128,F$55,FALSE) -> 0 | G161: 円 | H161: （ | I161: =VLOOKUP($A161,'005リスト'!$D$4:$U$128,I$55,FALSE) -> 0 | J161: 人） | K161: =VLOOKUP($A161,'005リスト'!$D$4:$U$128,K$55,FALSE) -> 0 | L161: 円 | M161: （ | N161: =VLOOKUP($A161,'005リスト'!$D$4:$U$128,N$55,FALSE) -> 0 | O161: 人） | P161: =VLOOKUP($A161,'005リスト'!$D$4:$U$128,P$55,FALSE) -> 0 | Q161: 円 | R161: （ | S161: =VLOOKUP($A161,'005リスト'!$D$4:$U$128,S$55,FALSE) -> 0 | T161: 人） | U161: 98 | V161: 大阪府4 | W161: 大阪府 | X161: 高槻市
A162: 東大阪市 | B162: =VLOOKUP($A162,'005リスト'!$D$4:$U$128,B$55,FALSE) -> 0 | C162: 円 | D162: =VLOOKUP($A162,'005リスト'!$D$4:$U$128,D$55,FALSE) -> 0 | E162: 円 | F162: =VLOOKUP($A162,'005リスト'!$D$4:$U$128,F$55,FALSE) -> 0 | G162: 円 | H162: （ | I162: =VLOOKUP($A162,'005リスト'!$D$4:$U$128,I$55,FALSE) -> 0 | J162: 人） | K162: =VLOOKUP($A162,'005リスト'!$D$4:$U$128,K$55,FALSE) -> 0 | L162: 円 | M162: （ | N162: =VLOOKUP($A162,'005リスト'!$D$4:$U$128,N$55,FALSE) -> 0 | O162: 人） | P162: =VLOOKUP($A162,'005リスト'!$D$4:$U$128,P$55,FALSE) -> 0 | Q162: 円 | R162: （ | S162: =VLOOKUP($A162,'005リスト'!$D$4:$U$128,S$55,FALSE) -> 0 | T162: 人） | U162: 99 | V162: 大阪府5 | W162: 大阪府 | X162: 東大阪市
A163: 豊中市 | B163: =VLOOKUP($A163,'005リスト'!$D$4:$U$128,B$55,FALSE) -> 0 | C163: 円 | D163: =VLOOKUP($A163,'005リスト'!$D$4:$U$128,D$55,FALSE) -> 0 | E163: 円 | F163: =VLOOKUP($A163,'005リスト'!$D$4:$U$128,F$55,FALSE) -> 0 | G163: 円 | H163: （ | I163: =VLOOKUP($A163,'005リスト'!$D$4:$U$128,I$55,FALSE) -> 0 | J163: 人） | K163: =VLOOKUP($A163,'005リスト'!$D$4:$U$128,K$55,FALSE) -> 0 | L163: 円 | M163: （ | N163: =VLOOKUP($A163,'005リスト'!$D$4:$U$128,N$55,FALSE) -> 0 | O163: 人） | P163: =VLOOKUP($A163,'005リスト'!$D$4:$U$128,P$55,FALSE) -> 0 | Q163: 円 | R163: （ | S163: =VLOOKUP($A163,'005リスト'!$D$4:$U$128,S$55,FALSE) -> 0 | T163: 人） | U163: 100 | V163: 大阪府6 | W163: 大阪府 | X163: 豊中市
A164: 枚方市 | B164: =VLOOKUP($A164,'005リスト'!$D$4:$U$128,B$55,FALSE) -> 0 | C164: 円 | D164: =VLOOKUP($A164,'005リスト'!$D$4:$U$128,D$55,FALSE) -> 0 | E164: 円 | F164: =VLOOKUP($A164,'005リスト'!$D$4:$U$128,F$55,FALSE) -> 0 | G164: 円 | H164: （ | I164: =VLOOKUP($A164,'005リスト'!$D$4:$U$128,I$55,FALSE) -> 0 | J164: 人） | K164: =VLOOKUP($A164,'005リスト'!$D$4:$U$128,K$55,FALSE) -> 0 | L164: 円 | M164: （ | N164: =VLOOKUP($A164,'005リスト'!$D$4:$U$128,N$55,FALSE) -> 0 | O164: 人） | P164: =VLOOKUP($A164,'005リスト'!$D$4:$U$128,P$55,FALSE) -> 0 | Q164: 円 | R164: （ | S164: =VLOOKUP($A164,'005リスト'!$D$4:$U$128,S$55,FALSE) -> 0 | T164: 人） | U164: 101 | V164: 大阪府7 | W164: 大阪府 | X164: 枚方市
A165: 八尾市 | B165: =VLOOKUP($A165,'005リスト'!$D$4:$U$128,B$55,FALSE) -> 0 | C165: 円 | D165: =VLOOKUP($A165,'005リスト'!$D$4:$U$128,D$55,FALSE) -> 0 | E165: 円 | F165: =VLOOKUP($A165,'005リスト'!$D$4:$U$128,F$55,FALSE) -> 0 | G165: 円 | H165: （ | I165: =VLOOKUP($A165,'005リスト'!$D$4:$U$128,I$55,FALSE) -> 0 | J165: 人） | K165: =VLOOKUP($A165,'005リスト'!$D$4:$U$128,K$55,FALSE) -> 0 | L165: 円 | M165: （ | N165: =VLOOKUP($A165,'005リスト'!$D$4:$U$128,N$55,FALSE) -> 0 | O165: 人） | P165: =VLOOKUP($A165,'005リスト'!$D$4:$U$128,P$55,FALSE) -> 0 | Q165: 円 | R165: （ | S165: =VLOOKUP($A165,'005リスト'!$D$4:$U$128,S$55,FALSE) -> 0 | T165: 人） | U165: 102 | V165: 大阪府8 | W165: 大阪府 | X165: 八尾市
A166: 寝屋川市 | B166: =VLOOKUP($A166,'005リスト'!$D$4:$U$128,B$55,FALSE) -> 0 | C166: 円 | D166: =VLOOKUP($A166,'005リスト'!$D$4:$U$128,D$55,FALSE) -> 0 | E166: 円 | F166: =VLOOKUP($A166,'005リスト'!$D$4:$U$128,F$55,FALSE) -> 0 | G166: 円 | H166: （ | I166: =VLOOKUP($A166,'005リスト'!$D$4:$U$128,I$55,FALSE) -> 0 | J166: 人） | K166: =VLOOKUP($A166,'005リスト'!$D$4:$U$128,K$55,FALSE) -> 0 | L166: 円 | M166: （ | N166: =VLOOKUP($A166,'005リスト'!$D$4:$U$128,N$55,FALSE) -> 0 | O166: 人） | P166: =VLOOKUP($A166,'005リスト'!$D$4:$U$128,P$55,FALSE) -> 0 | Q166: 円 | R166: （ | S166: =VLOOKUP($A166,'005リスト'!$D$4:$U$128,S$55,FALSE) -> 0 | T166: 人） | U166: 103 | V166: 大阪府9 | W166: 大阪府 | X166: 寝屋川市
A167: 姫路市 | B167: =VLOOKUP($A167,'005リスト'!$D$4:$U$128,B$55,FALSE) -> 0 | C167: 円 | D167: =VLOOKUP($A167,'005リスト'!$D$4:$U$128,D$55,FALSE) -> 0 | E167: 円 | F167: =VLOOKUP($A167,'005リスト'!$D$4:$U$128,F$55,FALSE) -> 0 | G167: 円 | H167: （ | I167: =VLOOKUP($A167,'005リスト'!$D$4:$U$128,I$55,FALSE) -> 0 | J167: 人） | K167: =VLOOKUP($A167,'005リスト'!$D$4:$U$128,K$55,FALSE) -> 0 | L167: 円 | M167: （ | N167: =VLOOKUP($A167,'005リスト'!$D$4:$U$128,N$55,FALSE) -> 0 | O167: 人） | P167: =VLOOKUP($A167,'005リスト'!$D$4:$U$128,P$55,FALSE) -> 0 | Q167: 円 | R167: （ | S167: =VLOOKUP($A167,'005リスト'!$D$4:$U$128,S$55,FALSE) -> 0 | T167: 人） | U167: 104 | V167: 兵庫県3 | W167: 兵庫県 | X167: 姫路市
A168: 西宮市 | B168: =VLOOKUP($A168,'005リスト'!$D$4:$U$128,B$55,FALSE) -> 0 | C168: 円 | D168: =VLOOKUP($A168,'005リスト'!$D$4:$U$128,D$55,FALSE) -> 0 | E168: 円 | F168: =VLOOKUP($A168,'005リスト'!$D$4:$U$128,F$55,FALSE) -> 0 | G168: 円 | H168: （ | I168: =VLOOKUP($A168,'005リスト'!$D$4:$U$128,I$55,FALSE) -> 0 | J168: 人） | K168: =VLOOKUP($A168,'005リスト'!$D$4:$U$128,K$55,FALSE) -> 0 | L168: 円 | M168: （ | N168: =VLOOKUP($A168,'005リスト'!$D$4:$U$128,N$55,FALSE) -> 0 | O168: 人） | P168: =VLOOKUP($A168,'005リスト'!$D$4:$U$128,P$55,FALSE) -> 0 | Q168: 円 | R168: （ | S168: =VLOOKUP($A168,'005リスト'!$D$4:$U$128,S$55,FALSE) -> 0 | T168: 人） | U168: 105 | V168: 兵庫県4 | W168: 兵庫県 | X168: 西宮市
A169: 尼崎市 | B169: =VLOOKUP($A169,'005リスト'!$D$4:$U$128,B$55,FALSE) -> 0 | C169: 円 | D169: =VLOOKUP($A169,'005リスト'!$D$4:$U$128,D$55,FALSE) -> 0 | E169: 円 | F169: =VLOOKUP($A169,'005リスト'!$D$4:$U$128,F$55,FALSE) -> 0 | G169: 円 | H169: （ | I169: =VLOOKUP($A169,'005リスト'!$D$4:$U$128,I$55,FALSE) -> 0 | J169: 人） | K169: =VLOOKUP($A169,'005リスト'!$D$4:$U$128,K$55,FALSE) -> 0 | L169: 円 | M169: （ | N169: =VLOOKUP($A169,'005リスト'!$D$4:$U$128,N$55,FALSE) -> 0 | O169: 人） | P169: =VLOOKUP($A169,'005リスト'!$D$4:$U$128,P$55,FALSE) -> 0 | Q169: 円 | R169: （ | S169: =VLOOKUP($A169,'005リスト'!$D$4:$U$128,S$55,FALSE) -> 0 | T169: 人） | U169: 106 | V169: 兵庫県5 | W169: 兵庫県 | X169: 尼崎市
A170: 明石市 | B170: =VLOOKUP($A170,'005リスト'!$D$4:$U$128,B$55,FALSE) -> 0 | C170: 円 | D170: =VLOOKUP($A170,'005リスト'!$D$4:$U$128,D$55,FALSE) -> 0 | E170: 円 | F170: =VLOOKUP($A170,'005リスト'!$D$4:$U$128,F$55,FALSE) -> 0 | G170: 円 | H170: （ | I170: =VLOOKUP($A170,'005リスト'!$D$4:$U$128,I$55,FALSE) -> 0 | J170: 人） | K170: =VLOOKUP($A170,'005リスト'!$D$4:$U$128,K$55,FALSE) -> 0 | L170: 円 | M170: （ | N170: =VLOOKUP($A170,'005リスト'!$D$4:$U$128,N$55,FALSE) -> 0 | O170: 人） | P170: =VLOOKUP($A170,'005リスト'!$D$4:$U$128,P$55,FALSE) -> 0 | Q170: 円 | R170: （ | S170: =VLOOKUP($A170,'005リスト'!$D$4:$U$128,S$55,FALSE) -> 0 | T170: 人） | U170: 107 | V170: 兵庫県6 | W170: 兵庫県 | X170: 明石市
A171: 奈良市 | B171: =VLOOKUP($A171,'005リスト'!$D$4:$U$128,B$55,FALSE) -> 0 | C171: 円 | D171: =VLOOKUP($A171,'005リスト'!$D$4:$U$128,D$55,FALSE) -> 0 | E171: 円 | F171: =VLOOKUP($A171,'005リスト'!$D$4:$U$128,F$55,FALSE) -> 0 | G171: 円 | H171: （ | I171: =VLOOKUP($A171,'005リスト'!$D$4:$U$128,I$55,FALSE) -> 0 | J171: 人） | K171: =VLOOKUP($A171,'005リスト'!$D$4:$U$128,K$55,FALSE) -> 0 | L171: 円 | M171: （ | N171: =VLOOKUP($A171,'005リスト'!$D$4:$U$128,N$55,FALSE) -> 0 | O171: 人） | P171: =VLOOKUP($A171,'005リスト'!$D$4:$U$128,P$55,FALSE) -> 0 | Q171: 円 | R171: （ | S171: =VLOOKUP($A171,'005リスト'!$D$4:$U$128,S$55,FALSE) -> 0 | T171: 人） | U171: 108 | V171: 奈良県2 | W171: 奈良県 | X171: 奈良市
A172: 和歌山市 | B172: =VLOOKUP($A172,'005リスト'!$D$4:$U$128,B$55,FALSE) -> 0 | C172: 円 | D172: =VLOOKUP($A172,'005リスト'!$D$4:$U$128,D$55,FALSE) -> 0 | E172: 円 | F172: =VLOOKUP($A172,'005リスト'!$D$4:$U$128,F$55,FALSE) -> 0 | G172: 円 | H172: （ | I172: =VLOOKUP($A172,'005リスト'!$D$4:$U$128,I$55,FALSE) -> 0 | J172: 人） | K172: =VLOOKUP($A172,'005リスト'!$D$4:$U$128,K$55,FALSE) -> 0 | L172: 円 | M172: （ | N172: =VLOOKUP($A172,'005リスト'!$D$4:$U$128,N$55,FALSE) -> 0 | O172: 人） | P172: =VLOOKUP($A172,'005リスト'!$D$4:$U$128,P$55,FALSE) -> 0 | Q172: 円 | R172: （ | S172: =VLOOKUP($A172,'005リスト'!$D$4:$U$128,S$55,FALSE) -> 0 | T172: 人） | U172: 109 | V172: 和歌山県2 | W172: 和歌山県 | X172: 和歌山市
A173: 鳥取市 | B173: =VLOOKUP($A173,'005リスト'!$D$4:$U$128,B$55,FALSE) -> 0 | C173: 円 | D173: =VLOOKUP($A173,'005リスト'!$D$4:$U$128,D$55,FALSE) -> 0 | E173: 円 | F173: =VLOOKUP($A173,'005リスト'!$D$4:$U$128,F$55,FALSE) -> 0 | G173: 円 | H173: （ | I173: =VLOOKUP($A173,'005リスト'!$D$4:$U$128,I$55,FALSE) -> 0 | J173: 人） | K173: =VLOOKUP($A173,'005リスト'!$D$4:$U$128,K$55,FALSE) -> 0 | L173: 円 | M173: （ | N173: =VLOOKUP($A173,'005リスト'!$D$4:$U$128,N$55,FALSE) -> 0 | O173: 人） | P173: =VLOOKUP($A173,'005リスト'!$D$4:$U$128,P$55,FALSE) -> 0 | Q173: 円 | R173: （ | S173: =VLOOKUP($A173,'005リスト'!$D$4:$U$128,S$55,FALSE) -> 0 | T173: 人） | U173: 110 | V173: 鳥取県2 | W173: 鳥取県 | X173: 鳥取市
A174: 松江市 | B174: =VLOOKUP($A174,'005リスト'!$D$4:$U$128,B$55,FALSE) -> 0 | C174: 円 | D174: =VLOOKUP($A174,'005リスト'!$D$4:$U$128,D$55,FALSE) -> 0 | E174: 円 | F174: =VLOOKUP($A174,'005リスト'!$D$4:$U$128,F$55,FALSE) -> 0 | G174: 円 | H174: （ | I174: =VLOOKUP($A174,'005リスト'!$D$4:$U$128,I$55,FALSE) -> 0 | J174: 人） | K174: =VLOOKUP($A174,'005リスト'!$D$4:$U$128,K$55,FALSE) -> 0 | L174: 円 | M174: （ | N174: =VLOOKUP($A174,'005リスト'!$D$4:$U$128,N$55,FALSE) -> 0 | O174: 人） | P174: =VLOOKUP($A174,'005リスト'!$D$4:$U$128,P$55,FALSE) -> 0 | Q174: 円 | R174: （ | S174: =VLOOKUP($A174,'005リスト'!$D$4:$U$128,S$55,FALSE) -> 0 | T174: 人） | U174: 111 | V174: 島根県2 | W174: 島根県 | X174: 松江市
A175: 倉敷市 | B175: =VLOOKUP($A175,'005リスト'!$D$4:$U$128,B$55,FALSE) -> 0 | C175: 円 | D175: =VLOOKUP($A175,'005リスト'!$D$4:$U$128,D$55,FALSE) -> 0 | E175: 円 | F175: =VLOOKUP($A175,'005リスト'!$D$4:$U$128,F$55,FALSE) -> 0 | G175: 円 | H175: （ | I175: =VLOOKUP($A175,'005リスト'!$D$4:$U$128,I$55,FALSE) -> 0 | J175: 人） | K175: =VLOOKUP($A175,'005リスト'!$D$4:$U$128,K$55,FALSE) -> 0 | L175: 円 | M175: （ | N175: =VLOOKUP($A175,'005リスト'!$D$4:$U$128,N$55,FALSE) -> 0 | O175: 人） | P175: =VLOOKUP($A175,'005リスト'!$D$4:$U$128,P$55,FALSE) -> 0 | Q175: 円 | R175: （ | S175: =VLOOKUP($A175,'005リスト'!$D$4:$U$128,S$55,FALSE) -> 0 | T175: 人） | U175: 112 | V175: 岡山県3 | W175: 岡山県 | X175: 倉敷市
A176: 福山市 | B176: =VLOOKUP($A176,'005リスト'!$D$4:$U$128,B$55,FALSE) -> 0 | C176: 円 | D176: =VLOOKUP($A176,'005リスト'!$D$4:$U$128,D$55,FALSE) -> 0 | E176: 円 | F176: =VLOOKUP($A176,'005リスト'!$D$4:$U$128,F$55,FALSE) -> 0 | G176: 円 | H176: （ | I176: =VLOOKUP($A176,'005リスト'!$D$4:$U$128,I$55,FALSE) -> 0 | J176: 人） | K176: =VLOOKUP($A176,'005リスト'!$D$4:$U$128,K$55,FALSE) -> 0 | L176: 円 | M176: （ | N176: =VLOOKUP($A176,'005リスト'!$D$4:$U$128,N$55,FALSE) -> 0 | O176: 人） | P176: =VLOOKUP($A176,'005リスト'!$D$4:$U$128,P$55,FALSE) -> 0 | Q176: 円 | R176: （ | S176: =VLOOKUP($A176,'005リスト'!$D$4:$U$128,S$55,FALSE) -> 0 | T176: 人） | U176: 113 | V176: 広島県3 | W176: 広島県 | X176: 福山市
A177: 呉市 | B177: =VLOOKUP($A177,'005リスト'!$D$4:$U$128,B$55,FALSE) -> 0 | C177: 円 | D177: =VLOOKUP($A177,'005リスト'!$D$4:$U$128,D$55,FALSE) -> 0 | E177: 円 | F177: =VLOOKUP($A177,'005リスト'!$D$4:$U$128,F$55,FALSE) -> 0 | G177: 円 | H177: （ | I177: =VLOOKUP($A177,'005リスト'!$D$4:$U$128,I$55,FALSE) -> 0 | J177: 人） | K177: =VLOOKUP($A177,'005リスト'!$D$4:$U$128,K$55,FALSE) -> 0 | L177: 円 | M177: （ | N177: =VLOOKUP($A177,'005リスト'!$D$4:$U$128,N$55,FALSE) -> 0 | O177: 人） | P177: =VLOOKUP($A177,'005リスト'!$D$4:$U$128,P$55,FALSE) -> 0 | Q177: 円 | R177: （ | S177: =VLOOKUP($A177,'005リスト'!$D$4:$U$128,S$55,FALSE) -> 0 | T177: 人） | U177: 114 | V177: 広島県4 | W177: 広島県 | X177: 呉市
A178: 下関市 | B178: =VLOOKUP($A178,'005リスト'!$D$4:$U$128,B$55,FALSE) -> 0 | C178: 円 | D178: =VLOOKUP($A178,'005リスト'!$D$4:$U$128,D$55,FALSE) -> 0 | E178: 円 | F178: =VLOOKUP($A178,'005リスト'!$D$4:$U$128,F$55,FALSE) -> 0 | G178: 円 | H178: （ | I178: =VLOOKUP($A178,'005リスト'!$D$4:$U$128,I$55,FALSE) -> 0 | J178: 人） | K178: =VLOOKUP($A178,'005リスト'!$D$4:$U$128,K$55,FALSE) -> 0 | L178: 円 | M178: （ | N178: =VLOOKUP($A178,'005リスト'!$D$4:$U$128,N$55,FALSE) -> 0 | O178: 人） | P178: =VLOOKUP($A178,'005リスト'!$D$4:$U$128,P$55,FALSE) -> 0 | Q178: 円 | R178: （ | S178: =VLOOKUP($A178,'005リスト'!$D$4:$U$128,S$55,FALSE) -> 0 | T178: 人） | U178: 115 | V178: 山口県2 | W178: 山口県 | X178: 下関市
A179: 高松市 | B179: =VLOOKUP($A179,'005リスト'!$D$4:$U$128,B$55,FALSE) -> 0 | C179: 円 | D179: =VLOOKUP($A179,'005リスト'!$D$4:$U$128,D$55,FALSE) -> 0 | E179: 円 | F179: =VLOOKUP($A179,'005リスト'!$D$4:$U$128,F$55,FALSE) -> 0 | G179: 円 | H179: （ | I179: =VLOOKUP($A179,'005リスト'!$D$4:$U$128,I$55,FALSE) -> 0 | J179: 人） | K179: =VLOOKUP($A179,'005リスト'!$D$4:$U$128,K$55,FALSE) -> 0 | L179: 円 | M179: （ | N179: =VLOOKUP($A179,'005リスト'!$D$4:$U$128,N$55,FALSE) -> 0 | O179: 人） | P179: =VLOOKUP($A179,'005リスト'!$D$4:$U$128,P$55,FALSE) -> 0 | Q179: 円 | R179: （ | S179: =VLOOKUP($A179,'005リスト'!$D$4:$U$128,S$55,FALSE) -> 0 | T179: 人） | U179: 116 | V179: 香川県2 | W179: 香川県 | X179: 高松市
A180: 松山市 | B180: =VLOOKUP($A180,'005リスト'!$D$4:$U$128,B$55,FALSE) -> 0 | C180: 円 | D180: =VLOOKUP($A180,'005リスト'!$D$4:$U$128,D$55,FALSE) -> 0 | E180: 円 | F180: =VLOOKUP($A180,'005リスト'!$D$4:$U$128,F$55,FALSE) -> 0 | G180: 円 | H180: （ | I180: =VLOOKUP($A180,'005リスト'!$D$4:$U$128,I$55,FALSE) -> 0 | J180: 人） | K180: =VLOOKUP($A180,'005リスト'!$D$4:$U$128,K$55,FALSE) -> 0 | L180: 円 | M180: （ | N180: =VLOOKUP($A180,'005リスト'!$D$4:$U$128,N$55,FALSE) -> 0 | O180: 人） | P180: =VLOOKUP($A180,'005リスト'!$D$4:$U$128,P$55,FALSE) -> 0 | Q180: 円 | R180: （ | S180: =VLOOKUP($A180,'005リスト'!$D$4:$U$128,S$55,FALSE) -> 0 | T180: 人） | U180: 117 | V180: 愛媛県2 | W180: 愛媛県 | X180: 松山市
A181: 高知市 | B181: =VLOOKUP($A181,'005リスト'!$D$4:$U$128,B$55,FALSE) -> 0 | C181: 円 | D181: =VLOOKUP($A181,'005リスト'!$D$4:$U$128,D$55,FALSE) -> 0 | E181: 円 | F181: =VLOOKUP($A181,'005リスト'!$D$4:$U$128,F$55,FALSE) -> 0 | G181: 円 | H181: （ | I181: =VLOOKUP($A181,'005リスト'!$D$4:$U$128,I$55,FALSE) -> 0 | J181: 人） | K181: =VLOOKUP($A181,'005リスト'!$D$4:$U$128,K$55,FALSE) -> 0 | L181: 円 | M181: （ | N181: =VLOOKUP($A181,'005リスト'!$D$4:$U$128,N$55,FALSE) -> 0 | O181: 人） | P181: =VLOOKUP($A181,'005リスト'!$D$4:$U$128,P$55,FALSE) -> 0 | Q181: 円 | R181: （ | S181: =VLOOKUP($A181,'005リスト'!$D$4:$U$128,S$55,FALSE) -> 0 | T181: 人） | U181: 118 | V181: 高知県2 | W181: 高知県 | X181: 高知市
A182: 久留米市 | B182: =VLOOKUP($A182,'005リスト'!$D$4:$U$128,B$55,FALSE) -> 0 | C182: 円 | D182: =VLOOKUP($A182,'005リスト'!$D$4:$U$128,D$55,FALSE) -> 0 | E182: 円 | F182: =VLOOKUP($A182,'005リスト'!$D$4:$U$128,F$55,FALSE) -> 0 | G182: 円 | H182: （ | I182: =VLOOKUP($A182,'005リスト'!$D$4:$U$128,I$55,FALSE) -> 0 | J182: 人） | K182: =VLOOKUP($A182,'005リスト'!$D$4:$U$128,K$55,FALSE) -> 0 | L182: 円 | M182: （ | N182: =VLOOKUP($A182,'005リスト'!$D$4:$U$128,N$55,FALSE) -> 0 | O182: 人） | P182: =VLOOKUP($A182,'005リスト'!$D$4:$U$128,P$55,FALSE) -> 0 | Q182: 円 | R182: （ | S182: =VLOOKUP($A182,'005リスト'!$D$4:$U$128,S$55,FALSE) -> 0 | T182: 人） | U182: 119 | V182: 福岡県4 | W182: 福岡県 | X182: 久留米市
A183: 長崎市 | B183: =VLOOKUP($A183,'005リスト'!$D$4:$U$128,B$55,FALSE) -> 0 | C183: 円 | D183: =VLOOKUP($A183,'005リスト'!$D$4:$U$128,D$55,FALSE) -> 0 | E183: 円 | F183: =VLOOKUP($A183,'005リスト'!$D$4:$U$128,F$55,FALSE) -> 0 | G183: 円 | H183: （ | I183: =VLOOKUP($A183,'005リスト'!$D$4:$U$128,I$55,FALSE) -> 0 | J183: 人） | K183: =VLOOKUP($A183,'005リスト'!$D$4:$U$128,K$55,FALSE) -> 0 | L183: 円 | M183: （ | N183: =VLOOKUP($A183,'005リスト'!$D$4:$U$128,N$55,FALSE) -> 0 | O183: 人） | P183: =VLOOKUP($A183,'005リスト'!$D$4:$U$128,P$55,FALSE) -> 0 | Q183: 円 | R183: （ | S183: =VLOOKUP($A183,'005リスト'!$D$4:$U$128,S$55,FALSE) -> 0 | T183: 人） | U183: 120 | V183: 長崎県2 | W183: 長崎県 | X183: 長崎市
A184: 佐世保市 | B184: =VLOOKUP($A184,'005リスト'!$D$4:$U$128,B$55,FALSE) -> 0 | C184: 円 | D184: =VLOOKUP($A184,'005リスト'!$D$4:$U$128,D$55,FALSE) -> 0 | E184: 円 | F184: =VLOOKUP($A184,'005リスト'!$D$4:$U$128,F$55,FALSE) -> 0 | G184: 円 | H184: （ | I184: =VLOOKUP($A184,'005リスト'!$D$4:$U$128,I$55,FALSE) -> 0 | J184: 人） | K184: =VLOOKUP($A184,'005リスト'!$D$4:$U$128,K$55,FALSE) -> 0 | L184: 円 | M184: （ | N184: =VLOOKUP($A184,'005リスト'!$D$4:$U$128,N$55,FALSE) -> 0 | O184: 人） | P184: =VLOOKUP($A184,'005リスト'!$D$4:$U$128,P$55,FALSE) -> 0 | Q184: 円 | R184: （ | S184: =VLOOKUP($A184,'005リスト'!$D$4:$U$128,S$55,FALSE) -> 0 | T184: 人） | U184: 121 | V184: 長崎県3 | W184: 長崎県 | X184: 佐世保市
A185: 大分市 | B185: =VLOOKUP($A185,'005リスト'!$D$4:$U$128,B$55,FALSE) -> 0 | C185: 円 | D185: =VLOOKUP($A185,'005リスト'!$D$4:$U$128,D$55,FALSE) -> 0 | E185: 円 | F185: =VLOOKUP($A185,'005リスト'!$D$4:$U$128,F$55,FALSE) -> 0 | G185: 円 | H185: （ | I185: =VLOOKUP($A185,'005リスト'!$D$4:$U$128,I$55,FALSE) -> 0 | J185: 人） | K185: =VLOOKUP($A185,'005リスト'!$D$4:$U$128,K$55,FALSE) -> 0 | L185: 円 | M185: （ | N185: =VLOOKUP($A185,'005リスト'!$D$4:$U$128,N$55,FALSE) -> 0 | O185: 人） | P185: =VLOOKUP($A185,'005リスト'!$D$4:$U$128,P$55,FALSE) -> 0 | Q185: 円 | R185: （ | S185: =VLOOKUP($A185,'005リスト'!$D$4:$U$128,S$55,FALSE) -> 0 | T185: 人） | U185: 122 | V185: 大分県2 | W185: 大分県 | X185: 大分市
A186: 宮崎市 | B186: =VLOOKUP($A186,'005リスト'!$D$4:$U$128,B$55,FALSE) -> 0 | C186: 円 | D186: =VLOOKUP($A186,'005リスト'!$D$4:$U$128,D$55,FALSE) -> 0 | E186: 円 | F186: =VLOOKUP($A186,'005リスト'!$D$4:$U$128,F$55,FALSE) -> 0 | G186: 円 | H186: （ | I186: =VLOOKUP($A186,'005リスト'!$D$4:$U$128,I$55,FALSE) -> 0 | J186: 人） | K186: =VLOOKUP($A186,'005リスト'!$D$4:$U$128,K$55,FALSE) -> 0 | L186: 円 | M186: （ | N186: =VLOOKUP($A186,'005リスト'!$D$4:$U$128,N$55,FALSE) -> 0 | O186: 人） | P186: =VLOOKUP($A186,'005リスト'!$D$4:$U$128,P$55,FALSE) -> 0 | Q186: 円 | R186: （ | S186: =VLOOKUP($A186,'005リスト'!$D$4:$U$128,S$55,FALSE) -> 0 | T186: 人） | U186: 123 | V186: 宮崎県2 | W186: 宮崎県 | X186: 宮崎市
A187: 鹿児島市 | B187: =VLOOKUP($A187,'005リスト'!$D$4:$U$128,B$55,FALSE) -> 0 | C187: 円 | D187: =VLOOKUP($A187,'005リスト'!$D$4:$U$128,D$55,FALSE) -> 0 | E187: 円 | F187: =VLOOKUP($A187,'005リスト'!$D$4:$U$128,F$55,FALSE) -> 0 | G187: 円 | H187: （ | I187: =VLOOKUP($A187,'005リスト'!$D$4:$U$128,I$55,FALSE) -> 0 | J187: 人） | K187: =VLOOKUP($A187,'005リスト'!$D$4:$U$128,K$55,FALSE) -> 0 | L187: 円 | M187: （ | N187: =VLOOKUP($A187,'005リスト'!$D$4:$U$128,N$55,FALSE) -> 0 | O187: 人） | P187: =VLOOKUP($A187,'005リスト'!$D$4:$U$128,P$55,FALSE) -> 0 | Q187: 円 | R187: （ | S187: =VLOOKUP($A187,'005リスト'!$D$4:$U$128,S$55,FALSE) -> 0 | T187: 人） | U187: 124 | V187: 鹿児島県2 | W187: 鹿児島県 | X187: 鹿児島市
A188: 那覇市 | B188: =VLOOKUP($A188,'005リスト'!$D$4:$U$128,B$55,FALSE) -> 0 | C188: 円 | D188: =VLOOKUP($A188,'005リスト'!$D$4:$U$128,D$55,FALSE) -> 0 | E188: 円 | F188: =VLOOKUP($A188,'005リスト'!$D$4:$U$128,F$55,FALSE) -> 0 | G188: 円 | H188: （ | I188: =VLOOKUP($A188,'005リスト'!$D$4:$U$128,I$55,FALSE) -> 0 | J188: 人） | K188: =VLOOKUP($A188,'005リスト'!$D$4:$U$128,K$55,FALSE) -> 0 | L188: 円 | M188: （ | N188: =VLOOKUP($A188,'005リスト'!$D$4:$U$128,N$55,FALSE) -> 0 | O188: 人） | P188: =VLOOKUP($A188,'005リスト'!$D$4:$U$128,P$55,FALSE) -> 0 | Q188: 円 | R188: （ | S188: =VLOOKUP($A188,'005リスト'!$D$4:$U$128,S$55,FALSE) -> 0 | T188: 人） | U188: 125 | V188: 沖縄県2 | W188: 沖縄県 | X188: 那覇市
A189: 合計 | B189: =SUM(B64:B188) -> 0 | C189: 円 | D189: =SUM(D64:D188) -> 0 | E189: 円 | F189: =SUM(F64:F188) -> 0 | G189: 円 | H189: （ | I189: =SUM(I64:I188) -> 0 | J189: 人） | K189: =SUM(K64:K188) -> 0 | L189: 円 | M189: （ | N189: =SUM(N64:N188) -> 0 | O189: 人） | P189: =SUM(P64:P188) -> 0 | Q189: 円 | R189: （ | S189: =SUM(S64:S188) -> 0 | T189: 人）
B190: Ｃ | D190: Ｄ | F190: a | K190: b | P190: c
A191: ※ C及びDは別紙様式２添付書類３の当該指定権者における金額と一致しなければならない。
A192: ※ Dはaからcの合計と一致しなければならない。
O194: ページ数 総ページ数 ／

Sheet 004添付書類３
B1: 2 | D1: 3 | F1: 5 | I1: 4 | K1: 11 | N1: 10 | P1: 16 | S1: 15
A2: 別紙様式２（添付書類３）
A3: 福祉・介護職員等特定処遇改善計画書(都道府県状況一覧表）
A5: 法人名 | C5: ='002添付書類１'!M5 -> 0
A7: 都道府県 | B7: 福祉・介護職員等特定処遇改善加算の見込額 | D7: 賃金改善の見込額 | F7: ➊の賃金改善額（見込額）・人数 | K7: ➋の賃金改善額（見込額）・人数 | P7: ➌の賃金改善額（見込額）・人数
A8: 北海道 | B8: =VLOOKUP($A8,'005リスト'!$W$4:$AN$50,B$1,FALSE) -> 0 | C8: 円 | D8: =VLOOKUP($A8,'005リスト'!$W$4:$AN$50,D$1,FALSE) -> 0 | E8: 円 | F8: =VLOOKUP($A8,'005リスト'!$W$4:$AN$50,F$1,FALSE) -> 0 | G8: 円 | H8: （ | I8: =VLOOKUP($A8,'005リスト'!$W$4:$AN$50,I$1,FALSE) -> 0 | J8: 人） | K8: =VLOOKUP($A8,'005リスト'!$W$4:$AN$50,K$1,FALSE) -> 0 | L8: 円 | M8: （ | N8: =VLOOKUP($A8,'005リスト'!$W$4:$AN$50,N$1,FALSE) -> 0 | O8: 人） | P8: =VLOOKUP($A8,'005リスト'!$W$4:$AN$50,P$1,FALSE) -> 0 | Q8: 円 | R8: （ | S8: =VLOOKUP($A8,'005リスト'!$W$4:$AN$50,S$1,FALSE) -> 0 | T8: 人）
A9: 青森県 | B9: =VLOOKUP($A9,'005リスト'!$W$4:$AN$50,B$1,FALSE) -> 0 | C9: 円 | D9: =VLOOKUP($A9,'005リスト'!$W$4:$AN$50,D$1,FALSE) -> 0 | E9: 円 | F9: =VLOOKUP($A9,'005リスト'!$W$4:$AN$50,F$1,FALSE) -> 0 | G9: 円 | H9: （ | I9: =VLOOKUP($A9,'005リスト'!$W$4:$AN$50,I$1,FALSE) -> 0 | J9: 人） | K9: =VLOOKUP($A9,'005リスト'!$W$4:$AN$50,K$1,FALSE) -> 0 | L9: 円 | M9: （ | N9: =VLOOKUP($A9,'005リスト'!$W$4:$AN$50,N$1,FALSE) -> 0 | O9: 人） | P9: =VLOOKUP($A9,'005リスト'!$W$4:$AN$50,P$1,FALSE) -> 0 | Q9: 円 | R9: （ | S9: =VLOOKUP($A9,'005リスト'!$W$4:$AN$50,S$1,FALSE) -> 0 | T9: 人）
A10: 岩手県 | B10: =VLOOKUP($A10,'005リスト'!$W$4:$AN$50,B$1,FALSE) -> 0 | C10: 円 | D10: =VLOOKUP($A10,'005リスト'!$W$4:$AN$50,D$1,FALSE) -> 0 | E10: 円 | F10: =VLOOKUP($A10,'005リスト'!$W$4:$AN$50,F$1,FALSE) -> 0 | G10: 円 | H10: （ | I10: =VLOOKUP($A10,'005リスト'!$W$4:$AN$50,I$1,FALSE) -> 0 | J10: 人） | K10: =VLOOKUP($A10,'005リスト'!$W$4:$AN$50,K$1,FALSE) -> 0 | L10: 円 | M10: （ | N10: =VLOOKUP($A10,'005リスト'!$W$4:$AN$50,N$1,FALSE) -> 0 | O10: 人） | P10: =VLOOKUP($A10,'005リスト'!$W$4:$AN$50,P$1,FALSE) -> 0 | Q10: 円 | R10: （ | S10: =VLOOKUP($A10,'005リスト'!$W$4:$AN$50,S$1,FALSE) -> 0 | T10: 人）
A11: 宮城県 | B11: =VLOOKUP($A11,'005リスト'!$W$4:$AN$50,B$1,FALSE) -> 0 | C11: 円 | D11: =VLOOKUP($A11,'005リスト'!$W$4:$AN$50,D$1,FALSE) -> 0 | E11: 円 | F11: =VLOOKUP($A11,'005リスト'!$W$4:$AN$50,F$1,FALSE) -> 0 | G11: 円 | H11: （ | I11: =VLOOKUP($A11,'005リスト'!$W$4:$AN$50,I$1,FALSE) -> 0 | J11: 人） | K11: =VLOOKUP($A11,'005リスト'!$W$4:$AN$50,K$1,FALSE) -> 0 | L11: 円 | M11: （ | N11: =VLOOKUP($A11,'005リスト'!$W$4:$AN$50,N$1,FALSE) -> 0 | O11: 人） | P11: =VLOOKUP($A11,'005リスト'!$W$4:$AN$50,P$1,FALSE) -> 0 | Q11: 円 | R11: （ | S11: =VLOOKUP($A11,'005リスト'!$W$4:$AN$50,S$1,FALSE) -> 0 | T11: 人）
A12: 秋田県 | B12: =VLOOKUP($A12,'005リスト'!$W$4:$AN$50,B$1,FALSE) -> 0 | C12: 円 | D12: =VLOOKUP($A12,'005リスト'!$W$4:$AN$50,D$1,FALSE) -> 0 | E12: 円 | F12: =VLOOKUP($A12,'005リスト'!$W$4:$AN$50,F$1,FALSE) -> 0 | G12: 円 | H12: （ | I12: =VLOOKUP($A12,'005リスト'!$W$4:$AN$50,I$1,FALSE) -> 0 | J12: 人） | K12: =VLOOKUP($A12,'005リスト'!$W$4:$AN$50,K$1,FALSE) -> 0 | L12: 円 | M12: （ | N12: =VLOOKUP($A12,'005リスト'!$W$4:$AN$50,N$1,FALSE) -> 0 | O12: 人） | P12: =VLOOKUP($A12,'005リスト'!$W$4:$AN$50,P$1,FALSE) -> 0 | Q12: 円 | R12: （ | S12: =VLOOKUP($A12,'005リスト'!$W$4:$AN$50,S$1,FALSE) -> 0 | T12: 人）
A13: 山形県 | B13: =VLOOKUP($A13,'005リスト'!$W$4:$AN$50,B$1,FALSE) -> 0 | C13: 円 | D13: =VLOOKUP($A13,'005リスト'!$W$4:$AN$50,D$1,FALSE) -> 0 | E13: 円 | F13: =VLOOKUP($A13,'005リスト'!$W$4:$AN$50,F$1,FALSE) -> 0 | G13: 円 | H13: （ | I13: =VLOOKUP($A13,'005リスト'!$W$4:$AN$50,I$1,FALSE) -> 0 | J13: 人） | K13: =VLOOKUP($A13,'005リスト'!$W$4:$AN$50,K$1,FALSE) -> 0 | L13: 円 | M13: （ | N13: =VLOOKUP($A13,'005リスト'!$W$4:$AN$50,N$1,FALSE) -> 0 | O13: 人） | P13: =VLOOKUP($A13,'005リスト'!$W$4:$AN$50,P$1,FALSE) -> 0 | Q13: 円 | R13: （ | S13: =VLOOKUP($A13,'005リスト'!$W$4:$AN$50,S$1,FALSE) -> 0 | T13: 人）
A14: 福島県 | B14: =VLOOKUP($A14,'005リスト'!$W$4:$AN$50,B$1,FALSE) -> 0 | C14: 円 | D14: =VLOOKUP($A14,'005リスト'!$W$4:$AN$50,D$1,FALSE) -> 0 | E14: 円 | F14: =VLOOKUP($A14,'005リスト'!$W$4:$AN$50,F$1,FALSE) -> 0 | G14: 円 | H14: （ | I14: =VLOOKUP($A14,'005リスト'!$W$4:$AN$50,I$1,FALSE) -> 0 | J14: 人） | K14: =VLOOKUP($A14,'005リスト'!$W$4:$AN$50,K$1,FALSE) -> 0 | L14: 円 | M14: （ | N14: =VLOOKUP($A14,'005リスト'!$W$4:$AN$50,N$1,FALSE) -> 0 | O14: 人） | P14: =VLOOKUP($A14,'005リスト'!$W$4:$AN$50,P$1,FALSE) -> 0 | Q14: 円 | R14: （ | S14: =VLOOKUP($A14,'005リスト'!$W$4:$AN$50,S$1,FALSE) -> 0 | T14: 人）
A15: 茨城県 | B15: =VLOOKUP($A15,'005リスト'!$W$4:$AN$50,B$1,FALSE) -> 0 | C15: 円 | D15: =VLOOKUP($A15,'005リスト'!$W$4:$AN$50,D$1,FALSE) -> 0 | E15: 円 | F15: =VLOOKUP($A15,'005リスト'!$W$4:$AN$50,F$1,FALSE) -> 0 | G15: 円 | H15: （ | I15: =VLOOKUP($A15,'005リスト'!$W$4:$AN$50,I$1,FALSE) -> 0 | J15: 人） | K15: =VLOOKUP($A15,'005リスト'!$W$4:$AN$50,K$1,FALSE) -> 0 | L15: 円 | M15: （ | N15: =VLOOKUP($A15,'005リスト'!$W$4:$AN$50,N$1,FALSE) -> 0 | O15: 人） | P15: =VLOOKUP($A15,'005リスト'!$W$4:$AN$50,P$1,FALSE) -> 0 | Q15: 円 | R15: （ | S15: =VLOOKUP($A15,'005リスト'!$W$4:$AN$50,S$1,FALSE) -> 0 | T15: 人）
A16: 栃木県 | B16: =VLOOKUP($A16,'005リスト'!$W$4:$AN$50,B$1,FALSE) -> 0 | C16: 円 | D16: =VLOOKUP($A16,'005リスト'!$W$4:$AN$50,D$1,FALSE) -> 0 | E16: 円 | F16: =VLOOKUP($A16,'005リスト'!$W$4:$AN$50,F$1,FALSE) -> 0 | G16: 円 | H16: （ | I16: =VLOOKUP($A16,'005リスト'!$W$4:$AN$50,I$1,FALSE) -> 0 | J16: 人） | K16: =VLOOKUP($A16,'005リスト'!$W$4:$AN$50,K$1,FALSE) -> 0 | L16: 円 | M16: （ | N16: =VLOOKUP($A16,'005リスト'!$W$4:$AN$50,N$1,FALSE) -> 0 | O16: 人） | P16: =VLOOKUP($A16,'005リスト'!$W$4:$AN$50,P$1,FALSE) -> 0 | Q16: 円 | R16: （ | S16: =VLOOKUP($A16,'005リスト'!$W$4:$AN$50,S$1,FALSE) -> 0 | T16: 人）
A17: 群馬県 | B17: =VLOOKUP($A17,'005リスト'!$W$4:$AN$50,B$1,FALSE) -> 0 | C17: 円 | D17: =VLOOKUP($A17,'005リスト'!$W$4:$AN$50,D$1,FALSE) -> 0 | E17: 円 | F17: =VLOOKUP($A17,'005リスト'!$W$4:$AN$50,F$1,FALSE) -> 0 | G17: 円 | H17: （ | I17: =VLOOKUP($A17,'005リスト'!$W$4:$AN$50,I$1,FALSE) -> 0 | J17: 人） | K17: =VLOOKUP($A17,'005リスト'!$W$4:$AN$50,K$1,FALSE) -> 0 | L17: 円 | M17: （ | N17: =VLOOKUP($A17,'005リスト'!$W$4:$AN$50,N$1,FALSE) -> 0 | O17: 人） | P17: =VLOOKUP($A17,'005リスト'!$W$4:$AN$50,P$1,FALSE) -> 0 | Q17: 円 | R17: （ | S17: =VLOOKUP($A17,'005リスト'!$W$4:$AN$50,S$1,FALSE) -> 0 | T17: 人）
A18: 埼玉県 | B18: =VLOOKUP($A18,'005リスト'!$W$4:$AN$50,B$1,FALSE) -> 0 | C18: 円 | D18: =VLOOKUP($A18,'005リスト'!$W$4:$AN$50,D$1,FALSE) -> 0 | E18: 円 | F18: =VLOOKUP($A18,'005リスト'!$W$4:$AN$50,F$1,FALSE) -> 0 | G18: 円 | H18: （ | I18: =VLOOKUP($A18,'005リスト'!$W$4:$AN$50,I$1,FALSE) -> 0 | J18: 人） | K18: =VLOOKUP($A18,'005リスト'!$W$4:$AN$50,K$1,FALSE) -> 0 | L18: 円 | M18: （ | N18: =VLOOKUP($A18,'005リスト'!$W$4:$AN$50,N$1,FALSE) -> 0 | O18: 人） | P18: =VLOOKUP($A18,'005リスト'!$W$4:$AN$50,P$1,FALSE) -> 0 | Q18: 円 | R18: （ | S18: =VLOOKUP($A18,'005リスト'!$W$4:$AN$50,S$1,FALSE) -> 0 | T18: 人）
A19: 千葉県 | B19: =VLOOKUP($A19,'005リスト'!$W$4:$AN$50,B$1,FALSE) -> 0 | C19: 円 | D19: =VLOOKUP($A19,'005リスト'!$W$4:$AN$50,D$1,FALSE) -> 0 | E19: 円 | F19: =VLOOKUP($A19,'005リスト'!$W$4:$AN$50,F$1,FALSE) -> 0 | G19: 円 | H19: （ | I19: =VLOOKUP($A19,'005リスト'!$W$4:$AN$50,I$1,FALSE) -> 0 | J19: 人） | K19: =VLOOKUP($A19,'005リスト'!$W$4:$AN$50,K$1,FALSE) -> 0 | L19: 円 | M19: （ | N19: =VLOOKUP($A19,'005リスト'!$W$4:$AN$50,N$1,FALSE) -> 0 | O19: 人） | P19: =VLOOKUP($A19,'005リスト'!$W$4:$AN$50,P$1,FALSE) -> 0 | Q19: 円 | R19: （ | S19: =VLOOKUP($A19,'005リスト'!$W$4:$AN$50,S$1,FALSE) -> 0 | T19: 人）
A20: 東京都 | B20: =VLOOKUP($A20,'005リスト'!$W$4:$AN$50,B$1,FALSE) -> 0 | C20: 円 | D20: =VLOOKUP($A20,'005リスト'!$W$4:$AN$50,D$1,FALSE) -> 0 | E20: 円 | F20: =VLOOKUP($A20,'005リスト'!$W$4:$AN$50,F$1,FALSE) -> 0 | G20: 円 | H20: （ | I20: =VLOOKUP($A20,'005リスト'!$W$4:$AN$50,I$1,FALSE) -> 0 | J20: 人） | K20: =VLOOKUP($A20,'005リスト'!$W$4:$AN$50,K$1,FALSE) -> 0 | L20: 円 | M20: （ | N20: =VLOOKUP($A20,'005リスト'!$W$4:$AN$50,N$1,FALSE) -> 0 | O20: 人） | P20: =VLOOKUP($A20,'005リスト'!$W$4:$AN$50,P$1,FALSE) -> 0 | Q20: 円 | R20: （ | S20: =VLOOKUP($A20,'005リスト'!$W$4:$AN$50,S$1,FALSE) -> 0 | T20: 人）
A21: 神奈川県 | B21: =VLOOKUP($A21,'005リスト'!$W$4:$AN$50,B$1,FALSE) -> 0 | C21: 円 | D21: =VLOOKUP($A21,'005リスト'!$W$4:$AN$50,D$1,FALSE) -> 0 | E21: 円 | F21: =VLOOKUP($A21,'005リスト'!$W$4:$AN$50,F$1,FALSE) -> 0 | G21: 円 | H21: （ | I21: =VLOOKUP($A21,'005リスト'!$W$4:$AN$50,I$1,FALSE) -> 0 | J21: 人） | K21: =VLOOKUP($A21,'005リスト'!$W$4:$AN$50,K$1,FALSE) -> 0 | L21: 円 | M21: （ | N21: =VLOOKUP($A21,'005リスト'!$W$4:$AN$50,N$1,FALSE) -> 0 | O21: 人） | P21: =VLOOKUP($A21,'005リスト'!$W$4:$AN$50,P$1,FALSE) -> 0 | Q21: 円 | R21: （ | S21: =VLOOKUP($A21,'005リスト'!$W$4:$AN$50,S$1,FALSE) -> 0 | T21: 人）
A22: 新潟県 | B22: =VLOOKUP($A22,'005リスト'!$W$4:$AN$50,B$1,FALSE) -> 0 | C22: 円 | D22: =VLOOKUP($A22,'005リスト'!$W$4:$AN$50,D$1,FALSE) -> 0 | E22: 円 | F22: =VLOOKUP($A22,'005リスト'!$W$4:$AN$50,F$1,FALSE) -> 0 | G22: 円 | H22: （ | I22: =VLOOKUP($A22,'005リスト'!$W$4:$AN$50,I$1,FALSE) -> 0 | J22: 人） | K22: =VLOOKUP($A22,'005リスト'!$W$4:$AN$50,K$1,FALSE) -> 0 | L22: 円 | M22: （ | N22: =VLOOKUP($A22,'005リスト'!$W$4:$AN$50,N$1,FALSE) -> 0 | O22: 人） | P22: =VLOOKUP($A22,'005リスト'!$W$4:$AN$50,P$1,FALSE) -> 0 | Q22: 円 | R22: （ | S22: =VLOOKUP($A22,'005リスト'!$W$4:$AN$50,S$1,FALSE) -> 0 | T22: 人）
A23: 富山県 | B23: =VLOOKUP($A23,'005リスト'!$W$4:$AN$50,B$1,FALSE) -> 0 | C23: 円 | D23: =VLOOKUP($A23,'005リスト'!$W$4:$AN$50,D$1,FALSE) -> 0 | E23: 円 | F23: =VLOOKUP($A23,'005リスト'!$W$4:$AN$50,F$1,FALSE) -> 0 | G23: 円 | H23: （ | I23: =VLOOKUP($A23,'005リスト'!$W$4:$AN$50,I$1,FALSE) -> 0 | J23: 人） | K23: =VLOOKUP($A23,'005リスト'!$W$4:$AN$50,K$1,FALSE) -> 0 | L23: 円 | M23: （ | N23: =VLOOKUP($A23,'005リスト'!$W$4:$AN$50,N$1,FALSE) -> 0 | O23: 人） | P23: =VLOOKUP($A23,'005リスト'!$W$4:$AN$50,P$1,FALSE) -> 0 | Q23: 円 | R23: （ | S23: =VLOOKUP($A23,'005リスト'!$W$4:$AN$50,S$1,FALSE) -> 0 | T23: 人）
A24: 石川県 | B24: =VLOOKUP($A24,'005リスト'!$W$4:$AN$50,B$1,FALSE) -> 0 | C24: 円 | D24: =VLOOKUP($A24,'005リスト'!$W$4:$AN$50,D$1,FALSE) -> 0 | E24: 円 | F24: =VLOOKUP($A24,'005リスト'!$W$4:$AN$50,F$1,FALSE) -> 0 | G24: 円 | H24: （ | I24: =VLOOKUP($A24,'005リスト'!$W$4:$AN$50,I$1,FALSE) -> 0 | J24: 人） | K24: =VLOOKUP($A24,'005リスト'!$W$4:$AN$50,K$1,FALSE) -> 0 | L24: 円 | M24: （ | N24: =VLOOKUP($A24,'005リスト'!$W$4:$AN$50,N$1,FALSE) -> 0 | O24: 人） | P24: =VLOOKUP($A24,'005リスト'!$W$4:$AN$50,P$1,FALSE) -> 0 | Q24: 円 | R24: （ | S24: =VLOOKUP($A24,'005リスト'!$W$4:$AN$50,S$1,FALSE) -> 0 | T24: 人）
A25: 福井県 | B25: =VLOOKUP($A25,'005リスト'!$W$4:$AN$50,B$1,FALSE) -> 0 | C25: 円 | D25: =VLOOKUP($A25,'005リスト'!$W$4:$AN$50,D$1,FALSE) -> 0 | E25: 円 | F25: =VLOOKUP($A25,'005リスト'!$W$4:$AN$50,F$1,FALSE) -> 0 | G25: 円 | H25: （ | I25: =VLOOKUP($A25,'005リスト'!$W$4:$AN$50,I$1,FALSE) -> 0 | J25: 人） | K25: =VLOOKUP($A25,'005リスト'!$W$4:$AN$50,K$1,FALSE) -> 0 | L25: 円 | M25: （ | N25: =VLOOKUP($A25,'005リスト'!$W$4:$AN$50,N$1,FALSE) -> 0 | O25: 人） | P25: =VLOOKUP($A25,'005リスト'!$W$4:$AN$50,P$1,FALSE) -> 0 | Q25: 円 | R25: （ | S25: =VLOOKUP($A25,'005リスト'!$W$4:$AN$50,S$1,FALSE) -> 0 | T25: 人）
A26: 山梨県 | B26: =VLOOKUP($A26,'005リスト'!$W$4:$AN$50,B$1,FALSE) -> 0 | C26: 円 | D26: =VLOOKUP($A26,'005リスト'!$W$4:$AN$50,D$1,FALSE) -> 0 | E26: 円 | F26: =VLOOKUP($A26,'005リスト'!$W$4:$AN$50,F$1,FALSE) -> 0 | G26: 円 | H26: （ | I26: =VLOOKUP($A26,'005リスト'!$W$4:$AN$50,I$1,FALSE) -> 0 | J26: 人） | K26: =VLOOKUP($A26,'005リスト'!$W$4:$AN$50,K$1,FALSE) -> 0 | L26: 円 | M26: （ | N26: =VLOOKUP($A26,'005リスト'!$W$4:$AN$50,N$1,FALSE) -> 0 | O26: 人） | P26: =VLOOKUP($A26,'005リスト'!$W$4:$AN$50,P$1,FALSE) -> 0 | Q26: 円 | R26: （ | S26: =VLOOKUP($A26,'005リスト'!$W$4:$AN$50,S$1,FALSE) -> 0 | T26: 人）
A27: 長野県 | B27: =VLOOKUP($A27,'005リスト'!$W$4:$AN$50,B$1,FALSE) -> 0 | C27: 円 | D27: =VLOOKUP($A27,'005リスト'!$W$4:$AN$50,D$1,FALSE) -> 0 | E27: 円 | F27: =VLOOKUP($A27,'005リスト'!$W$4:$AN$50,F$1,FALSE) -> 0 | G27: 円 | H27: （ | I27: =VLOOKUP($A27,'005リスト'!$W$4:$AN$50,I$1,FALSE) -> 0 | J27: 人） | K27: =VLOOKUP($A27,'005リスト'!$W$4:$AN$50,K$1,FALSE) -> 0 | L27: 円 | M27: （ | N27: =VLOOKUP($A27,'005リスト'!$W$4:$AN$50,N$1,FALSE) -> 0 | O27: 人） | P27: =VLOOKUP($A27,'005リスト'!$W$4:$AN$50,P$1,FALSE) -> 0 | Q27: 円 | R27: （ | S27: =VLOOKUP($A27,'005リスト'!$W$4:$AN$50,S$1,FALSE) -> 0 | T27: 人）
A28: 岐阜県 | B28: =VLOOKUP($A28,'005リスト'!$W$4:$AN$50,B$1,FALSE) -> 0 | C28: 円 | D28: =VLOOKUP($A28,'005リスト'!$W$4:$AN$50,D$1,FALSE) -> 0 | E28: 円 | F28: =VLOOKUP($A28,'005リスト'!$W$4:$AN$50,F$1,FALSE) -> 0 | G28: 円 | H28: （ | I28: =VLOOKUP($A28,'005リスト'!$W$4:$AN$50,I$1,FALSE) -> 0 | J28: 人） | K28: =VLOOKUP($A28,'005リスト'!$W$4:$AN$50,K$1,FALSE) -> 0 | L28: 円 | M28: （ | N28: =VLOOKUP($A28,'005リスト'!$W$4:$AN$50,N$1,FALSE) -> 0 | O28: 人） | P28: =VLOOKUP($A28,'005リスト'!$W$4:$AN$50,P$1,FALSE) -> 0 | Q28: 円 | R28: （ | S28: =VLOOKUP($A28,'005リスト'!$W$4:$AN$50,S$1,FALSE) -> 0 | T28: 人）
A29: 静岡県 | B29: =VLOOKUP($A29,'005リスト'!$W$4:$AN$50,B$1,FALSE) -> 0 | C29: 円 | D29: =VLOOKUP($A29,'005リスト'!$W$4:$AN$50,D$1,FALSE) -> 0 | E29: 円 | F29: =VLOOKUP($A29,'005リスト'!$W$4:$AN$50,F$1,FALSE) -> 0 | G29: 円 | H29: （ | I29: =VLOOKUP($A29,'005リスト'!$W$4:$AN$50,I$1,FALSE) -> 0 | J29: 人） | K29: =VLOOKUP($A29,'005リスト'!$W$4:$AN$50,K$1,FALSE) -> 0 | L29: 円 | M29: （ | N29: =VLOOKUP($A29,'005リスト'!$W$4:$AN$50,N$1,FALSE) -> 0 | O29: 人） | P29: =VLOOKUP($A29,'005リスト'!$W$4:$AN$50,P$1,FALSE) -> 0 | Q29: 円 | R29: （ | S29: =VLOOKUP($A29,'005リスト'!$W$4:$AN$50,S$1,FALSE) -> 0 | T29: 人）
A30: 愛知県 | B30: =VLOOKUP($A30,'005リスト'!$W$4:$AN$50,B$1,FALSE) -> 0 | C30: 円 | D30: =VLOOKUP($A30,'005リスト'!$W$4:$AN$50,D$1,FALSE) -> 0 | E30: 円 | F30: =VLOOKUP($A30,'005リスト'!$W$4:$AN$50,F$1,FALSE) -> 0 | G30: 円 | H30: （ | I30: =VLOOKUP($A30,'005リスト'!$W$4:$AN$50,I$1,FALSE) -> 0 | J30: 人） | K30: =VLOOKUP($A30,'005リスト'!$W$4:$AN$50,K$1,FALSE) -> 0 | L30: 円 | M30: （ | N30: =VLOOKUP($A30,'005リスト'!$W$4:$AN$50,N$1,FALSE) -> 0 | O30: 人） | P30: =VLOOKUP($A30,'005リスト'!$W$4:$AN$50,P$1,FALSE) -> 0 | Q30: 円 | R30: （ | S30: =VLOOKUP($A30,'005リスト'!$W$4:$AN$50,S$1,FALSE) -> 0 | T30: 人）
A31: 三重県 | B31: =VLOOKUP($A31,'005リスト'!$W$4:$AN$50,B$1,FALSE) -> 0 | C31: 円 | D31: =VLOOKUP($A31,'005リスト'!$W$4:$AN$50,D$1,FALSE) -> 0 | E31: 円 | F31: =VLOOKUP($A31,'005リスト'!$W$4:$AN$50,F$1,FALSE) -> 0 | G31: 円 | H31: （ | I31: =VLOOKUP($A31,'005リスト'!$W$4:$AN$50,I$1,FALSE) -> 0 | J31: 人） | K31: =VLOOKUP($A31,'005リスト'!$W$4:$AN$50,K$1,FALSE) -> 0 | L31: 円 | M31: （ | N31: =VLOOKUP($A31,'005リスト'!$W$4:$AN$50,N$1,FALSE) -> 0 | O31: 人） | P31: =VLOOKUP($A31,'005リスト'!$W$4:$AN$50,P$1,FALSE) -> 0 | Q31: 円 | R31: （ | S31: =VLOOKUP($A31,'005リスト'!$W$4:$AN$50,S$1,FALSE) -> 0 | T31: 人）
A32: 滋賀県 | B32: =VLOOKUP($A32,'005リスト'!$W$4:$AN$50,B$1,FALSE) -> 0 | C32: 円 | D32: =VLOOKUP($A32,'005リスト'!$W$4:$AN$50,D$1,FALSE) -> 0 | E32: 円 | F32: =VLOOKUP($A32,'005リスト'!$W$4:$AN$50,F$1,FALSE) -> 0 | G32: 円 | H32: （ | I32: =VLOOKUP($A32,'005リスト'!$W$4:$AN$50,I$1,FALSE) -> 0 | J32: 人） | K32: =VLOOKUP($A32,'005リスト'!$W$4:$AN$50,K$1,FALSE) -> 0 | L32: 円 | M32: （ | N32: =VLOOKUP($A32,'005リスト'!$W$4:$AN$50,N$1,FALSE) -> 0 | O32: 人） | P32: =VLOOKUP($A32,'005リスト'!$W$4:$AN$50,P$1,FALSE) -> 0 | Q32: 円 | R32: （ | S32: =VLOOKUP($A32,'005リスト'!$W$4:$AN$50,S$1,FALSE) -> 0 | T32: 人）
A33: 京都府 | B33: =VLOOKUP($A33,'005リスト'!$W$4:$AN$50,B$1,FALSE) -> 0 | C33: 円 | D33: =VLOOKUP($A33,'005リスト'!$W$4:$AN$50,D$1,FALSE) -> 0 | E33: 円 | F33: =VLOOKUP($A33,'005リスト'!$W$4:$AN$50,F$1,FALSE) -> 0 | G33: 円 | H33: （ | I33: =VLOOKUP($A33,'005リスト'!$W$4:$AN$50,I$1,FALSE) -> 0 | J33: 人） | K33: =VLOOKUP($A33,'005リスト'!$W$4:$AN$50,K$1,FALSE) -> 0 | L33: 円 | M33: （ | N33: =VLOOKUP($A33,'005リスト'!$W$4:$AN$50,N$1,FALSE) -> 0 | O33: 人） | P33: =VLOOKUP($A33,'005リスト'!$W$4:$AN$50,P$1,FALSE) -> 0 | Q33: 円 | R33: （ | S33: =VLOOKUP($A33,'005リスト'!$W$4:$AN$50,S$1,FALSE) -> 0 | T33: 人）
A34: 大阪府 | B34: =VLOOKUP($A34,'005リスト'!$W$4:$AN$50,B$1,FALSE) -> 0 | C34: 円 | D34: =VLOOKUP($A34,'005リスト'!$W$4:$AN$50,D$1,FALSE) -> 0 | E34: 円 | F34: =VLOOKUP($A34,'005リスト'!$W$4:$AN$50,F$1,FALSE) -> 0 | G34: 円 | H34: （ | I34: =VLOOKUP($A34,'005リスト'!$W$4:$AN$50,I$1,FALSE) -> 0 | J34: 人） | K34: =VLOOKUP($A34,'005リスト'!$W$4:$AN$50,K$1,FALSE) -> 0 | L34: 円 | M34: （ | N34: =VLOOKUP($A34,'005リスト'!$W$4:$AN$50,N$1,FALSE) -> 0 | O34: 人） | P34: =VLOOKUP($A34,'005リスト'!$W$4:$AN$50,P$1,FALSE) -> 0 | Q34: 円 | R34: （ | S34: =VLOOKUP($A34,'005リスト'!$W$4:$AN$50,S$1,FALSE) -> 0 | T34: 人）
A35: 兵庫県 | B35: =VLOOKUP($A35,'005リスト'!$W$4:$AN$50,B$1,FALSE) -> 0 | C35: 円 | D35: =VLOOKUP($A35,'005リスト'!$W$4:$AN$50,D$1,FALSE) -> 0 | E35: 円 | F35: =VLOOKUP($A35,'005リスト'!$W$4:$AN$50,F$1,FALSE) -> 0 | G35: 円 | H35: （ | I35: =VLOOKUP($A35,'005リスト'!$W$4:$AN$50,I$1,FALSE) -> 0 | J35: 人） | K35: =VLOOKUP($A35,'005リスト'!$W$4:$AN$50,K$1,FALSE) -> 0 | L35: 円 | M35: （ | N35: =VLOOKUP($A35,'005リスト'!$W$4:$AN$50,N$1,FALSE) -> 0 | O35: 人） | P35: =VLOOKUP($A35,'005リスト'!$W$4:$AN$50,P$1,FALSE) -> 0 | Q35: 円 | R35: （ | S35: =VLOOKUP($A35,'005リスト'!$W$4:$AN$50,S$1,FALSE) -> 0 | T35: 人）
A36: 奈良県 | B36: =VLOOKUP($A36,'005リスト'!$W$4:$AN$50,B$1,FALSE) -> 0 | C36: 円 | D36: =VLOOKUP($A36,'005リスト'!$W$4:$AN$50,D$1,FALSE) -> 0 | E36: 円 | F36: =VLOOKUP($A36,'005リスト'!$W$4:$AN$50,F$1,FALSE) -> 0 | G36: 円 | H36: （ | I36: =VLOOKUP($A36,'005リスト'!$W$4:$AN$50,I$1,FALSE) -> 0 | J36: 人） | K36: =VLOOKUP($A36,'005リスト'!$W$4:$AN$50,K$1,FALSE) -> 0 | L36: 円 | M36: （ | N36: =VLOOKUP($A36,'005リスト'!$W$4:$AN$50,N$1,FALSE) -> 0 | O36: 人） | P36: =VLOOKUP($A36,'005リスト'!$W$4:$AN$50,P$1,FALSE) -> 0 | Q36: 円 | R36: （ | S36: =VLOOKUP($A36,'005リスト'!$W$4:$AN$50,S$1,FALSE) -> 0 | T36: 人）
A37: 和歌山県 | B37: =VLOOKUP($A37,'005リスト'!$W$4:$AN$50,B$1,FALSE) -> 0 | C37: 円 | D37: =VLOOKUP($A37,'005リスト'!$W$4:$AN$50,D$1,FALSE) -> 0 | E37: 円 | F37: =VLOOKUP($A37,'005リスト'!$W$4:$AN$50,F$1,FALSE) -> 0 | G37: 円 | H37: （ | I37: =VLOOKUP($A37,'005リスト'!$W$4:$AN$50,I$1,FALSE) -> 0 | J37: 人） | K37: =VLOOKUP($A37,'005リスト'!$W$4:$AN$50,K$1,FALSE) -> 0 | L37: 円 | M37: （ | N37: =VLOOKUP($A37,'005リスト'!$W$4:$AN$50,N$1,FALSE) -> 0 | O37: 人） | P37: =VLOOKUP($A37,'005リスト'!$W$4:$AN$50,P$1,FALSE) -> 0 | Q37: 円 | R37: （ | S37: =VLOOKUP($A37,'005リスト'!$W$4:$AN$50,S$1,FALSE) -> 0 | T37: 人）
A38: 鳥取県 | B38: =VLOOKUP($A38,'005リスト'!$W$4:$AN$50,B$1,FALSE) -> 0 | C38: 円 | D38: =VLOOKUP($A38,'005リスト'!$W$4:$AN$50,D$1,FALSE) -> 0 | E38: 円 | F38: =VLOOKUP($A38,'005リスト'!$W$4:$AN$50,F$1,FALSE) -> 0 | G38: 円 | H38: （ | I38: =VLOOKUP($A38,'005リスト'!$W$4:$AN$50,I$1,FALSE) -> 0 | J38: 人） | K38: =VLOOKUP($A38,'005リスト'!$W$4:$AN$50,K$1,FALSE) -> 0 | L38: 円 | M38: （ | N38: =VLOOKUP($A38,'005リスト'!$W$4:$AN$50,N$1,FALSE) -> 0 | O38: 人） | P38: =VLOOKUP($A38,'005リスト'!$W$4:$AN$50,P$1,FALSE) -> 0 | Q38: 円 | R38: （ | S38: =VLOOKUP($A38,'005リスト'!$W$4:$AN$50,S$1,FALSE) -> 0 | T38: 人）
A39: 島根県 | B39: =VLOOKUP($A39,'005リスト'!$W$4:$AN$50,B$1,FALSE) -> 0 | C39: 円 | D39: =VLOOKUP($A39,'005リスト'!$W$4:$AN$50,D$1,FALSE) -> 0 | E39: 円 | F39: =VLOOKUP($A39,'005リスト'!$W$4:$AN$50,F$1,FALSE) -> 0 | G39: 円 | H39: （ | I39: =VLOOKUP($A39,'005リスト'!$W$4:$AN$50,I$1,FALSE) -> 0 | J39: 人） | K39: =VLOOKUP($A39,'005リスト'!$W$4:$AN$50,K$1,FALSE) -> 0 | L39: 円 | M39: （ | N39: =VLOOKUP($A39,'005リスト'!$W$4:$AN$50,N$1,FALSE) -> 0 | O39: 人） | P39: =VLOOKUP($A39,'005リスト'!$W$4:$AN$50,P$1,FALSE) -> 0 | Q39: 円 | R39: （ | S39: =VLOOKUP($A39,'005リスト'!$W$4:$AN$50,S$1,FALSE) -> 0 | T39: 人）
A40: 岡山県 | B40: =VLOOKUP($A40,'005リスト'!$W$4:$AN$50,B$1,FALSE) -> 0 | C40: 円 | D40: =VLOOKUP($A40,'005リスト'!$W$4:$AN$50,D$1,FALSE) -> 0 | E40: 円 | F40: =VLOOKUP($A40,'005リスト'!$W$4:$AN$50,F$1,FALSE) -> 0 | G40: 円 | H40: （ | I40: =VLOOKUP($A40,'005リスト'!$W$4:$AN$50,I$1,FALSE) -> 0 | J40: 人） | K40: =VLOOKUP($A40,'005リスト'!$W$4:$AN$50,K$1,FALSE) -> 0 | L40: 円 | M40: （ | N40: =VLOOKUP($A40,'005リスト'!$W$4:$AN$50,N$1,FALSE) -> 0 | O40: 人） | P40: =VLOOKUP($A40,'005リスト'!$W$4:$AN$50,P$1,FALSE) -> 0 | Q40: 円 | R40: （ | S40: =VLOOKUP($A40,'005リスト'!$W$4:$AN$50,S$1,FALSE) -> 0 | T40: 人）
A41: 広島県 | B41: =VLOOKUP($A41,'005リスト'!$W$4:$AN$50,B$1,FALSE) -> 0 | C41: 円 | D41: =VLOOKUP($A41,'005リスト'!$W$4:$AN$50,D$1,FALSE) -> 0 | E41: 円 | F41: =VLOOKUP($A41,'005リスト'!$W$4:$AN$50,F$1,FALSE) -> 0 | G41: 円 | H41: （ | I41: =VLOOKUP($A41,'005リスト'!$W$4:$AN$50,I$1,FALSE) -> 0 | J41: 人） | K41: =VLOOKUP($A41,'005リスト'!$W$4:$AN$50,K$1,FALSE) -> 0 | L41: 円 | M41: （ | N41: =VLOOKUP($A41,'005リスト'!$W$4:$AN$50,N$1,FALSE) -> 0 | O41: 人） | P41: =VLOOKUP($A41,'005リスト'!$W$4:$AN$50,P$1,FALSE) -> 0 | Q41: 円 | R41: （ | S41: =VLOOKUP($A41,'005リスト'!$W$4:$AN$50,S$1,FALSE) -> 0 | T41: 人）
A42: 山口県 | B42: =VLOOKUP($A42,'005リスト'!$W$4:$AN$50,B$1,FALSE) -> 0 | C42: 円 | D42: =VLOOKUP($A42,'005リスト'!$W$4:$AN$50,D$1,FALSE) -> 0 | E42: 円 | F42: =VLOOKUP($A42,'005リスト'!$W$4:$AN$50,F$1,FALSE) -> 0 | G42: 円 | H42: （ | I42: =VLOOKUP($A42,'005リスト'!$W$4:$AN$50,I$1,FALSE) -> 0 | J42: 人） | K42: =VLOOKUP($A42,'005リスト'!$W$4:$AN$50,K$1,FALSE) -> 0 | L42: 円 | M42: （ | N42: =VLOOKUP($A42,'005リスト'!$W$4:$AN$50,N$1,FALSE) -> 0 | O42: 人） | P42: =VLOOKUP($A42,'005リスト'!$W$4:$AN$50,P$1,FALSE) -> 0 | Q42: 円 | R42: （ | S42: =VLOOKUP($A42,'005リスト'!$W$4:$AN$50,S$1,FALSE) -> 0 | T42: 人）
A43: 徳島県 | B43: =VLOOKUP($A43,'005リスト'!$W$4:$AN$50,B$1,FALSE) -> 0 | C43: 円 | D43: =VLOOKUP($A43,'005リスト'!$W$4:$AN$50,D$1,FALSE) -> 0 | E43: 円 | F43: =VLOOKUP($A43,'005リスト'!$W$4:$AN$50,F$1,FALSE) -> 0 | G43: 円 | H43: （ | I43: =VLOOKUP($A43,'005リスト'!$W$4:$AN$50,I$1,FALSE) -> 0 | J43: 人） | K43: =VLOOKUP($A43,'005リスト'!$W$4:$AN$50,K$1,FALSE) -> 0 | L43: 円 | M43: （ | N43: =VLOOKUP($A43,'005リスト'!$W$4:$AN$50,N$1,FALSE) -> 0 | O43: 人） | P43: =VLOOKUP($A43,'005リスト'!$W$4:$AN$50,P$1,FALSE) -> 0 | Q43: 円 | R43: （ | S43: =VLOOKUP($A43,'005リスト'!$W$4:$AN$50,S$1,FALSE) -> 0 | T43: 人）
A44: 香川県 | B44: =VLOOKUP($A44,'005リスト'!$W$4:$AN$50,B$1,FALSE) -> 0 | C44: 円 | D44: =VLOOKUP($A44,'005リスト'!$W$4:$AN$50,D$1,FALSE) -> 0 | E44: 円 | F44: =VLOOKUP($A44,'005リスト'!$W$4:$AN$50,F$1,FALSE) -> 0 | G44: 円 | H44: （ | I44: =VLOOKUP($A44,'005リスト'!$W$4:$AN$50,I$1,FALSE) -> 0 | J44: 人） | K44: =VLOOKUP($A44,'005リスト'!$W$4:$AN$50,K$1,FALSE) -> 0 | L44: 円 | M44: （ | N44: =VLOOKUP($A44,'005リスト'!$W$4:$AN$50,N$1,FALSE) -> 0 | O44: 人） | P44: =VLOOKUP($A44,'005リスト'!$W$4:$AN$50,P$1,FALSE) -> 0 | Q44: 円 | R44: （ | S44: =VLOOKUP($A44,'005リスト'!$W$4:$AN$50,S$1,FALSE) -> 0 | T44: 人）
A45: 愛媛県 | B45: =VLOOKUP($A45,'005リスト'!$W$4:$AN$50,B$1,FALSE) -> 0 | C45: 円 | D45: =VLOOKUP($A45,'005リスト'!$W$4:$AN$50,D$1,FALSE) -> 0 | E45: 円 | F45: =VLOOKUP($A45,'005リスト'!$W$4:$AN$50,F$1,FALSE) -> 0 | G45: 円 | H45: （ | I45: =VLOOKUP($A45,'005リスト'!$W$4:$AN$50,I$1,FALSE) -> 0 | J45: 人） | K45: =VLOOKUP($A45,'005リスト'!$W$4:$AN$50,K$1,FALSE) -> 0 | L45: 円 | M45: （ | N45: =VLOOKUP($A45,'005リスト'!$W$4:$AN$50,N$1,FALSE) -> 0 | O45: 人） | P45: =VLOOKUP($A45,'005リスト'!$W$4:$AN$50,P$1,FALSE) -> 0 | Q45: 円 | R45: （ | S45: =VLOOKUP($A45,'005リスト'!$W$4:$AN$50,S$1,FALSE) -> 0 | T45: 人）
A46: 高知県 | B46: =VLOOKUP($A46,'005リスト'!$W$4:$AN$50,B$1,FALSE) -> 0 | C46: 円 | D46: =VLOOKUP($A46,'005リスト'!$W$4:$AN$50,D$1,FALSE) -> 0 | E46: 円 | F46: =VLOOKUP($A46,'005リスト'!$W$4:$AN$50,F$1,FALSE) -> 0 | G46: 円 | H46: （ | I46: =VLOOKUP($A46,'005リスト'!$W$4:$AN$50,I$1,FALSE) -> 0 | J46: 人） | K46: =VLOOKUP($A46,'005リスト'!$W$4:$AN$50,K$1,FALSE) -> 0 | L46: 円 | M46: （ | N46: =VLOOKUP($A46,'005リスト'!$W$4:$AN$50,N$1,FALSE) -> 0 | O46: 人） | P46: =VLOOKUP($A46,'005リスト'!$W$4:$AN$50,P$1,FALSE) -> 0 | Q46: 円 | R46: （ | S46: =VLOOKUP($A46,'005リスト'!$W$4:$AN$50,S$1,FALSE) -> 0 | T46: 人）
A47: 福岡県 | B47: =VLOOKUP($A47,'005リスト'!$W$4:$AN$50,B$1,FALSE) -> 0 | C47: 円 | D47: =VLOOKUP($A47,'005リスト'!$W$4:$AN$50,D$1,FALSE) -> 0 | E47: 円 | F47: =VLOOKUP($A47,'005リスト'!$W$4:$AN$50,F$1,FALSE) -> 0 | G47: 円 | H47: （ | I47: =VLOOKUP($A47,'005リスト'!$W$4:$AN$50,I$1,FALSE) -> 0 | J47: 人） | K47: =VLOOKUP($A47,'005リスト'!$W$4:$AN$50,K$1,FALSE) -> 0 | L47: 円 | M47: （ | N47: =VLOOKUP($A47,'005リスト'!$W$4:$AN$50,N$1,FALSE) -> 0 | O47: 人） | P47: =VLOOKUP($A47,'005リスト'!$W$4:$AN$50,P$1,FALSE) -> 0 | Q47: 円 | R47: （ | S47: =VLOOKUP($A47,'005リスト'!$W$4:$AN$50,S$1,FALSE) -> 0 | T47: 人）
A48: 佐賀県 | B48: =VLOOKUP($A48,'005リスト'!$W$4:$AN$50,B$1,FALSE) -> 0 | C48: 円 | D48: =VLOOKUP($A48,'005リスト'!$W$4:$AN$50,D$1,FALSE) -> 0 | E48: 円 | F48: =VLOOKUP($A48,'005リスト'!$W$4:$AN$50,F$1,FALSE) -> 0 | G48: 円 | H48: （ | I48: =VLOOKUP($A48,'005リスト'!$W$4:$AN$50,I$1,FALSE) -> 0 | J48: 人） | K48: =VLOOKUP($A48,'005リスト'!$W$4:$AN$50,K$1,FALSE) -> 0 | L48: 円 | M48: （ | N48: =VLOOKUP($A48,'005リスト'!$W$4:$AN$50,N$1,FALSE) -> 0 | O48: 人） | P48: =VLOOKUP($A48,'005リスト'!$W$4:$AN$50,P$1,FALSE) -> 0 | Q48: 円 | R48: （ | S48: =VLOOKUP($A48,'005リスト'!$W$4:$AN$50,S$1,FALSE) -> 0 | T48: 人）
A49: 長崎県 | B49: =VLOOKUP($A49,'005リスト'!$W$4:$AN$50,B$1,FALSE) -> 0 | C49: 円 | D49: =VLOOKUP($A49,'005リスト'!$W$4:$AN$50,D$1,FALSE) -> 0 | E49: 円 | F49: =VLOOKUP($A49,'005リスト'!$W$4:$AN$50,F$1,FALSE) -> 0 | G49: 円 | H49: （ | I49: =VLOOKUP($A49,'005リスト'!$W$4:$AN$50,I$1,FALSE) -> 0 | J49: 人） | K49: =VLOOKUP($A49,'005リスト'!$W$4:$AN$50,K$1,FALSE) -> 0 | L49: 円 | M49: （ | N49: =VLOOKUP($A49,'005リスト'!$W$4:$AN$50,N$1,FALSE) -> 0 | O49: 人） | P49: =VLOOKUP($A49,'005リスト'!$W$4:$AN$50,P$1,FALSE) -> 0 | Q49: 円 | R49: （ | S49: =VLOOKUP($A49,'005リスト'!$W$4:$AN$50,S$1,FALSE) -> 0 | T49: 人）
A50: 熊本県 | B50: =VLOOKUP($A50,'005リスト'!$W$4:$AN$50,B$1,FALSE) -> 0 | C50: 円 | D50: =VLOOKUP($A50,'005リスト'!$W$4:$AN$50,D$1,FALSE) -> 0 | E50: 円 | F50: =VLOOKUP($A50,'005リスト'!$W$4:$AN$50,F$1,FALSE) -> 0 | G50: 円 | H50: （ | I50: =VLOOKUP($A50,'005リスト'!$W$4:$AN$50,I$1,FALSE) -> 0 | J50: 人） | K50: =VLOOKUP($A50,'005リスト'!$W$4:$AN$50,K$1,FALSE) -> 0 | L50: 円 | M50: （ | N50: =VLOOKUP($A50,'005リスト'!$W$4:$AN$50,N$1,FALSE) -> 0 | O50: 人） | P50: =VLOOKUP($A50,'005リスト'!$W$4:$AN$50,P$1,FALSE) -> 0 | Q50: 円 | R50: （ | S50: =VLOOKUP($A50,'005リスト'!$W$4:$AN$50,S$1,FALSE) -> 0 | T50: 人）
A51: 大分県 | B51: =VLOOKUP($A51,'005リスト'!$W$4:$AN$50,B$1,FALSE) -> 0 | C51: 円 | D51: =VLOOKUP($A51,'005リスト'!$W$4:$AN$50,D$1,FALSE) -> 0 | E51: 円 | F51: =VLOOKUP($A51,'005リスト'!$W$4:$AN$50,F$1,FALSE) -> 0 | G51: 円 | H51: （ | I51: =VLOOKUP($A51,'005リスト'!$W$4:$AN$50,I$1,FALSE) -> 0 | J51: 人） | K51: =VLOOKUP($A51,'005リスト'!$W$4:$AN$50,K$1,FALSE) -> 0 | L51: 円 | M51: （ | N51: =VLOOKUP($A51,'005リスト'!$W$4:$AN$50,N$1,FALSE) -> 0 | O51: 人） | P51: =VLOOKUP($A51,'005リスト'!$W$4:$AN$50,P$1,FALSE) -> 0 | Q51: 円 | R51: （ | S51: =VLOOKUP($A51,'005リスト'!$W$4:$AN$50,S$1,FALSE) -> 0 | T51: 人）
A52: 宮崎県 | B52: =VLOOKUP($A52,'005リスト'!$W$4:$AN$50,B$1,FALSE) -> 0 | C52: 円 | D52: =VLOOKUP($A52,'005リスト'!$W$4:$AN$50,D$1,FALSE) -> 0 | E52: 円 | F52: =VLOOKUP($A52,'005リスト'!$W$4:$AN$50,F$1,FALSE) -> 0 | G52: 円 | H52: （ | I52: =VLOOKUP($A52,'005リスト'!$W$4:$AN$50,I$1,FALSE) -> 0 | J52: 人） | K52: =VLOOKUP($A52,'005リスト'!$W$4:$AN$50,K$1,FALSE) -> 0 | L52: 円 | M52: （ | N52: =VLOOKUP($A52,'005リスト'!$W$4:$AN$50,N$1,FALSE) -> 0 | O52: 人） | P52: =VLOOKUP($A52,'005リスト'!$W$4:$AN$50,P$1,FALSE) -> 0 | Q52: 円 | R52: （ | S52: =VLOOKUP($A52,'005リスト'!$W$4:$AN$50,S$1,FALSE) -> 0 | T52: 人）
A53: 鹿児島県 | B53: =VLOOKUP($A53,'005リスト'!$W$4:$AN$50,B$1,FALSE) -> 0 | C53: 円 | D53: =VLOOKUP($A53,'005リスト'!$W$4:$AN$50,D$1,FALSE) -> 0 | E53: 円 | F53: =VLOOKUP($A53,'005リスト'!$W$4:$AN$50,F$1,FALSE) -> 0 | G53: 円 | H53: （ | I53: =VLOOKUP($A53,'005リスト'!$W$4:$AN$50,I$1,FALSE) -> 0 | J53: 人） | K53: =VLOOKUP($A53,'005リスト'!$W$4:$AN$50,K$1,FALSE) -> 0 | L53: 円 | M53: （ | N53: =VLOOKUP($A53,'005リスト'!$W$4:$AN$50,N$1,FALSE) -> 0 | O53: 人） | P53: =VLOOKUP($A53,'005リスト'!$W$4:$AN$50,P$1,FALSE) -> 0 | Q53: 円 | R53: （ | S53: =VLOOKUP($A53,'005リスト'!$W$4:$AN$50,S$1,FALSE) -> 0 | T53: 人）
A54: 沖縄県 | B54: =VLOOKUP($A54,'005リスト'!$W$4:$AN$50,B$1,FALSE) -> 0 | C54: 円 | D54: =VLOOKUP($A54,'005リスト'!$W$4:$AN$50,D$1,FALSE) -> 0 | E54: 円 | F54: =VLOOKUP($A54,'005リスト'!$W$4:$AN$50,F$1,FALSE) -> 0 | G54: 円 | H54: （ | I54: =VLOOKUP($A54,'005リスト'!$W$4:$AN$50,I$1,FALSE) -> 0 | J54: 人） | K54: =VLOOKUP($A54,'005リスト'!$W$4:$AN$50,K$1,FALSE) -> 0 | L54: 円 | M54: （ | N54: =VLOOKUP($A54,'005リスト'!$W$4:$AN$50,N$1,FALSE) -> 0 | O54: 人） | P54: =VLOOKUP($A54,'005リスト'!$W$4:$AN$50,P$1,FALSE) -> 0 | Q54: 円 | R54: （ | S54: =VLOOKUP($A54,'005リスト'!$W$4:$AN$50,S$1,FALSE) -> 0 | T54: 人）
A55: 合計 | B55: =SUM(B8:B54) -> 0 | C55: 円 | D55: =SUM(D8:D54) -> 0 | E55: 円 | F55: =SUM(F8:F54) -> 0 | G55: 円 | H55: （ | I55: =SUM(I8:I54) -> 0 | J55: 人） | K55: =SUM(K8:K54) -> 0 | L55: 円 | M55: （ | N55: =SUM(N8:N54) -> 0 | O55: 人） | P55: =SUM(P8:P54) -> 0 | Q55: 円 | R55: （ | S55: =SUM(S8:S54) -> 0 | T55: 人）
B56: Ｅ | D56: Ｆ | F56: d | K56: e | P56: f
A57: ※ FはEを上回らなければならない。
A58: ※ Fはdからfの合計と一致しなければならない。

Sheet 005リスト
D1: 1 | E1: 2 | F1: 3 | G1: 4 | H1: 5 | I1: 6 | J1: 7 | K1: 8 | L1: 9 | M1: 10 | N1: 11 | O1: 12 | P1: 13 | Q1: 14 | R1: 15 | S1: 16 | T1: 17 | U1: 18 | W1: 1 | X1: 2 | Y1: 3 | Z1: 4 | AA1: 5 | AB1: 6 | AC1: 7 | AD1: 8 | AE1: 9 | AF1: 10 | AG1: 11 | AH1: 12 | AI1: 13 | AJ1: 14 | AK1: 15 | AL1: 16 | AM1: 17 | AN1: 18
C2: 令和元年 | X2: 006各シート集約!$F$7:$F$106 | Z2: 006各シート集約!$I$7:$I$106 | AA2: 006各シート集約!$J$7:$J$106 | AB2: 006各シート集約!$K$7:$K$106 | AC2: 006各シート集約!$L$7:$L$106 | AD2: 006各シート集約!$M$7:$M$106 | AE2: 006各シート集約!$N$7:$N$106 | AF2: 006各シート集約!$O$7:$O$106 | AG2: 006各シート集約!$P$7:$P$106 | AH2: 006各シート集約!$Q$7:$Q$106 | AI2: 006各シート集約!$R$7:$R$106 | AJ2: 006各シート集約!$S$7:$S$106 | AK2: 006各シート集約!$T$7:$T$106 | AL2: 006各シート集約!$U$7:$U$106 | AM2: 006各シート集約!$V$7:$V$106 | AN2: 006各シート集約!$W$7:$W$106
B3: 都道府県 | D3: ★指定権者 | E3: 特定加算額 | F3: 賃金改善額 | G3: ➊職員分類人数 | H3: ➊賃金改善額 | I3: ➊改善前賃金 | J3: ➊改善後賃金 | K3: ➊月額８万円または年収440万円の人数 | L3: ➊賃金改善をした実人数 | M3: ➋職員分類人数 | N3: ➋賃金改善額 | O3: ➋改善前賃金 | P3: ➋改善後賃金 | Q3: ➋賃金改善をした実人数 | R3: ➌職員分類人数 | S3: ➌賃金改善額 | T3: ➌改善前賃金 | U3: ➌改善後賃金 | W3: ★都道府県 | X3: 特定加算額 | Y3: 賃金改善額 | Z3: ➊職員分類人数 | AA3: ➊賃金改善額 | AB3: ➊改善前賃金 | AC3: ➊改善後賃金 | AD3: ➊月額８万円または年収440万円の人数 | AE3: ➊賃金改善をした実人数 | AF3: ➋職員分類人数 | AG3: ➋賃金改善額 | AH3: ➋改善前賃金 | AI3: ➋改善後賃金 | AJ3: ➋賃金改善をした実人数 | AK3: ➌職員分類人数 | AL3: ➌賃金改善額 | AM3: ➌改善前賃金 | AN3: ➌改善後賃金
A4: 1 | B4: 北海道 | C4: 都道府県 | D4: 北海道 | E4: =SUMIF('006各シート集約'!$H$7:$H$306,$D4,'006各シート集約'!F$7:F$306) -> 0 | F4: =SUMIF('006各シート集約'!$H$7:$H$306,$D4,'006各シート集約'!G$7:G$306) -> 0 | G4: =SUMIF('006各シート集約'!$H$7:$H$306,$D4,'006各シート集約'!J$7:J$306) -> 0 | H4: =SUMIF('006各シート集約'!$H$7:$H$306,$D4,'006各シート集約'!K$7:K$306) -> 0 | I4: =SUMIF('006各シート集約'!$H$7:$H$306,$D4,'006各シート集約'!L$7:L$306) -> 0 | J4: =SUMIF('006各シート集約'!$H$7:$H$306,$D4,'006各シート集約'!M$7:M$306) -> 0 | K4: =SUMIF('006各シート集約'!$H$7:$H$306,$D4,'006各シート集約'!N$7:N$306) -> 0 | L4: =SUMIF('006各シート集約'!$H$7:$H$306,$D4,'006各シート集約'!O$7:O$306) -> 0 | M4: =SUMIF('006各シート集約'!$H$7:$H$306,$D4,'006各シート集約'!P$7:P$306) -> 0 | N4: =SUMIF('006各シート集約'!$H$7:$H$306,$D4,'006各シート集約'!Q$7:Q$306) -> 0 | O4: =SUMIF('006各シート集約'!$H$7:$H$306,$D4,'006各シート集約'!R$7:R$306) -> 0 | P4: =SUMIF('006各シート集約'!$H$7:$H$306,$D4,'006各シート集約'!S$7:S$306) -> 0 | Q4: =SUMIF('006各シート集約'!$H$7:$H$306,$D4,'006各シート集約'!T$7:T$306) -> 0 | R4: =SUMIF('006各シート集約'!$H$7:$H$306,$D4,'006各シート集約'!U$7:U$306) -> 0 | S4: =SUMIF('006各シート集約'!$H$7:$H$306,$D4,'006各シート集約'!V$7:V$306) -> 0 | T4: =SUMIF('006各シート集約'!$H$7:$H$306,$D4,'006各シート集約'!W$7:W$306) -> 0 | U4: =SUMIF('006各シート集約'!$H$7:$H$306,$D4,'006各シート集約'!X$7:X$306) -> 0 | W4: 北海道 | X4: =SUMIF('006各シート集約'!$I$7:$I$306,$W4,'006各シート集約'!F$7:F$306) -> 0 | Y4: =SUMIF('006各シート集約'!$I$7:$I$306,$W4,'006各シート集約'!G$7:G$306) -> 0 | Z4: =SUMIF('006各シート集約'!$I$7:$I$306,$W4,'006各シート集約'!J$7:J$306) -> 0 | AA4: =SUMIF('006各シート集約'!$I$7:$I$306,$W4,'006各シート集約'!K$7:K$306) -> 0 | AB4: =SUMIF('006各シート集約'!$I$7:$I$306,$W4,'006各シート集約'!L$7:L$306) -> 0 | AC4: =SUMIF('006各シート集約'!$I$7:$I$306,$W4,'006各シート集約'!M$7:M$306) -> 0 | AD4: =SUMIF('006各シート集約'!$I$7:$I$306,$W4,'006各シート集約'!N$7:N$306) -> 0 | AE4: =SUMIF('006各シート集約'!$I$7:$I$306,$W4,'006各シート集約'!O$7:O$306) -> 0 | AF4: =SUMIF('006各シート集約'!$I$7:$I$306,$W4,'006各シート集約'!P$7:P$306) -> 0 | AG4: =SUMIF('006各シート集約'!$I$7:$I$306,$W4,'006各シート集約'!Q$7:Q$306) -> 0 | AH4: =SUMIF('006各シート集約'!$I$7:$I$306,$W4,'006各シート集約'!R$7:R$306) -> 0 | AI4: =SUMIF('006各シート集約'!$I$7:$I$306,$W4,'006各シート集約'!S$7:S$306) -> 0 | AJ4: =SUMIF('006各シート集約'!$I$7:$I$306,$W4,'006各シート集約'!T$7:T$306) -> 0 | AK4: =SUMIF('006各シート集約'!$I$7:$I$306,$W4,'006各シート集約'!U$7:U$306) -> 0 | AL4: =SUMIF('006各シート集約'!$I$7:$I$306,$W4,'006各シート集約'!V$7:V$306) -> 0 | AM4: =SUMIF('006各シート集約'!$I$7:$I$306,$W4,'006各シート集約'!W$7:W$306) -> 0 | AN4: =SUMIF('006各シート集約'!$I$7:$I$306,$W4,'006各シート集約'!X$7:X$306) -> 0
A5: 2 | B5: 青森県 | D5: 青森県 | E5: =SUMIF('006各シート集約'!$H$7:$H$306,$D5,'006各シート集約'!F$7:F$306) -> 0 | F5: =SUMIF('006各シート集約'!$H$7:$H$306,$D5,'006各シート集約'!G$7:G$306) -> 0 | G5: =SUMIF('006各シート集約'!$H$7:$H$306,$D5,'006各シート集約'!J$7:J$306) -> 0 | H5: =SUMIF('006各シート集約'!$H$7:$H$306,$D5,'006各シート集約'!K$7:K$306) -> 0 | I5: =SUMIF('006各シート集約'!$H$7:$H$306,$D5,'006各シート集約'!L$7:L$306) -> 0 | J5: =SUMIF('006各シート集約'!$H$7:$H$306,$D5,'006各シート集約'!M$7:M$306) -> 0 | K5: =SUMIF('006各シート集約'!$H$7:$H$306,$D5,'006各シート集約'!N$7:N$306) -> 0 | L5: =SUMIF('006各シート集約'!$H$7:$H$306,$D5,'006各シート集約'!O$7:O$306) -> 0 | M5: =SUMIF('006各シート集約'!$H$7:$H$306,$D5,'006各シート集約'!P$7:P$306) -> 0 | N5: =SUMIF('006各シート集約'!$H$7:$H$306,$D5,'006各シート集約'!Q$7:Q$306) -> 0 | O5: =SUMIF('006各シート集約'!$H$7:$H$306,$D5,'006各シート集約'!R$7:R$306) -> 0 | P5: =SUMIF('006各シート集約'!$H$7:$H$306,$D5,'006各シート集約'!S$7:S$306) -> 0 | Q5: =SUMIF('006各シート集約'!$H$7:$H$306,$D5,'006各シート集約'!T$7:T$306) -> 0 | R5: =SUMIF('006各シート集約'!$H$7:$H$306,$D5,'006各シート集約'!U$7:U$306) -> 0 | S5: =SUMIF('006各シート集約'!$H$7:$H$306,$D5,'006各シート集約'!V$7:V$306) -> 0 | T5: =SUMIF('006各シート集約'!$H$7:$H$306,$D5,'006各シート集約'!W$7:W$306) -> 0 | U5: =SUMIF('006各シート集約'!$H$7:$H$306,$D5,'006各シート集約'!X$7:X$306) -> 0 | W5: 青森県 | X5: =SUMIF('006各シート集約'!$I$7:$I$306,$W5,'006各シート集約'!F$7:F$306) -> 0 | Y5: =SUMIF('006各シート集約'!$I$7:$I$306,$W5,'006各シート集約'!G$7:G$306) -> 0 | Z5: =SUMIF('006各シート集約'!$I$7:$I$306,$W5,'006各シート集約'!J$7:J$306) -> 0 | AA5: =SUMIF('006各シート集約'!$I$7:$I$306,$W5,'006各シート集約'!K$7:K$306) -> 0 | AB5: =SUMIF('006各シート集約'!$I$7:$I$306,$W5,'006各シート集約'!L$7:L$306) -> 0 | AC5: =SUMIF('006各シート集約'!$I$7:$I$306,$W5,'006各シート集約'!M$7:M$306) -> 0 | AD5: =SUMIF('006各シート集約'!$I$7:$I$306,$W5,'006各シート集約'!N$7:N$306) -> 0 | AE5: =SUMIF('006各シート集約'!$I$7:$I$306,$W5,'006各シート集約'!O$7:O$306) -> 0 | AF5: =SUMIF('006各シート集約'!$I$7:$I$306,$W5,'006各シート集約'!P$7:P$306) -> 0 | AG5: =SUMIF('006各シート集約'!$I$7:$I$306,$W5,'006各シート集約'!Q$7:Q$306) -> 0 | AH5: =SUMIF('006各シート集約'!$I$7:$I$306,$W5,'006各シート集約'!R$7:R$306) -> 0 | AI5: =SUMIF('006各シート集約'!$I$7:$I$306,$W5,'006各シート集約'!S$7:S$306) -> 0 | AJ5: =SUMIF('006各シート集約'!$I$7:$I$306,$W5,'006各シート集約'!T$7:T$306) -> 0 | AK5: =SUMIF('006各シート集約'!$I$7:$I$306,$W5,'006各シート集約'!U$7:U$306) -> 0 | AL5: =SUMIF('006各シート集約'!$I$7:$I$306,$W5,'006各シート集約'!V$7:V$306) -> 0 | AM5: =SUMIF('006各シート集約'!$I$7:$I$306,$W5,'006各シート集約'!W$7:W$306) -> 0 | AN5: =SUMIF('006各シート集約'!$I$7:$I$306,$W5,'006各シート集約'!X$7:X$306) -> 0
A6: 3 | B6: 岩手県 | D6: 岩手県 | E6: =SUMIF('006各シート集約'!$H$7:$H$306,$D6,'006各シート集約'!F$7:F$306) -> 0 | F6: =SUMIF('006各シート集約'!$H$7:$H$306,$D6,'006各シート集約'!G$7:G$306) -> 0 | G6: =SUMIF('006各シート集約'!$H$7:$H$306,$D6,'006各シート集約'!J$7:J$306) -> 0 | H6: =SUMIF('006各シート集約'!$H$7:$H$306,$D6,'006各シート集約'!K$7:K$306) -> 0 | I6: =SUMIF('006各シート集約'!$H$7:$H$306,$D6,'006各シート集約'!L$7:L$306) -> 0 | J6: =SUMIF('006各シート集約'!$H$7:$H$306,$D6,'006各シート集約'!M$7:M$306) -> 0 | K6: =SUMIF('006各シート集約'!$H$7:$H$306,$D6,'006各シート集約'!N$7:N$306) -> 0 | L6: =SUMIF('006各シート集約'!$H$7:$H$306,$D6,'006各シート集約'!O$7:O$306) -> 0 | M6: =SUMIF('006各シート集約'!$H$7:$H$306,$D6,'006各シート集約'!P$7:P$306) -> 0 | N6: =SUMIF('006各シート集約'!$H$7:$H$306,$D6,'006各シート集約'!Q$7:Q$306) -> 0 | O6: =SUMIF('006各シート集約'!$H$7:$H$306,$D6,'006各シート集約'!R$7:R$306) -> 0 | P6: =SUMIF('006各シート集約'!$H$7:$H$306,$D6,'006各シート集約'!S$7:S$306) -> 0 | Q6: =SUMIF('006各シート集約'!$H$7:$H$306,$D6,'006各シート集約'!T$7:T$306) -> 0 | R6: =SUMIF('006各シート集約'!$H$7:$H$306,$D6,'006各シート集約'!U$7:U$306) -> 0 | S6: =SUMIF('006各シート集約'!$H$7:$H$306,$D6,'006各シート集約'!V$7:V$306) -> 0 | T6: =SUMIF('006各シート集約'!$H$7:$H$306,$D6,'006各シート集約'!W$7:W$306) -> 0 | U6: =SUMIF('006各シート集約'!$H$7:$H$306,$D6,'006各シート集約'!X$7:X$306) -> 0 | W6: 岩手県 | X6: =SUMIF('006各シート集約'!$I$7:$I$306,$W6,'006各シート集約'!F$7:F$306) -> 0 | Y6: =SUMIF('006各シート集約'!$I$7:$I$306,$W6,'006各シート集約'!G$7:G$306) -> 0 | Z6: =SUMIF('006各シート集約'!$I$7:$I$306,$W6,'006各シート集約'!J$7:J$306) -> 0 | AA6: =SUMIF('006各シート集約'!$I$7:$I$306,$W6,'006各シート集約'!K$7:K$306) -> 0 | AB6: =SUMIF('006各シート集約'!$I$7:$I$306,$W6,'006各シート集約'!L$7:L$306) -> 0 | AC6: =SUMIF('006各シート集約'!$I$7:$I$306,$W6,'006各シート集約'!M$7:M$306) -> 0 | AD6: =SUMIF('006各シート集約'!$I$7:$I$306,$W6,'006各シート集約'!N$7:N$306) -> 0 | AE6: =SUMIF('006各シート集約'!$I$7:$I$306,$W6,'006各シート集約'!O$7:O$306) -> 0 | AF6: =SUMIF('006各シート集約'!$I$7:$I$306,$W6,'006各シート集約'!P$7:P$306) -> 0 | AG6: =SUMIF('006各シート集約'!$I$7:$I$306,$W6,'006各シート集約'!Q$7:Q$306) -> 0 | AH6: =SUMIF('006各シート集約'!$I$7:$I$306,$W6,'006各シート集約'!R$7:R$306) -> 0 | AI6: =SUMIF('006各シート集約'!$I$7:$I$306,$W6,'006各シート集約'!S$7:S$306) -> 0 | AJ6: =SUMIF('006各シート集約'!$I$7:$I$306,$W6,'006各シート集約'!T$7:T$306) -> 0 | AK6: =SUMIF('006各シート集約'!$I$7:$I$306,$W6,'006各シート集約'!U$7:U$306) -> 0 | AL6: =SUMIF('006各シート集約'!$I$7:$I$306,$W6,'006各シート集約'!V$7:V$306) -> 0 | AM6: =SUMIF('006各シート集約'!$I$7:$I$306,$W6,'006各シート集約'!W$7:W$306) -> 0 | AN6: =SUMIF('006各シート集約'!$I$7:$I$306,$W6,'006各シート集約'!X$7:X$306) -> 0
A7: 4 | B7: 宮城県 | D7: 宮城県 | E7: =SUMIF('006各シート集約'!$H$7:$H$306,$D7,'006各シート集約'!F$7:F$306) -> 0 | F7: =SUMIF('006各シート集約'!$H$7:$H$306,$D7,'006各シート集約'!G$7:G$306) -> 0 | G7: =SUMIF('006各シート集約'!$H$7:$H$306,$D7,'006各シート集約'!J$7:J$306) -> 0 | H7: =SUMIF('006各シート集約'!$H$7:$H$306,$D7,'006各シート集約'!K$7:K$306) -> 0 | I7: =SUMIF('006各シート集約'!$H$7:$H$306,$D7,'006各シート集約'!L$7:L$306) -> 0 | J7: =SUMIF('006各シート集約'!$H$7:$H$306,$D7,'006各シート集約'!M$7:M$306) -> 0 | K7: =SUMIF('006各シート集約'!$H$7:$H$306,$D7,'006各シート集約'!N$7:N$306) -> 0 | L7: =SUMIF('006各シート集約'!$H$7:$H$306,$D7,'006各シート集約'!O$7:O$306) -> 0 | M7: =SUMIF('006各シート集約'!$H$7:$H$306,$D7,'006各シート集約'!P$7:P$306) -> 0 | N7: =SUMIF('006各シート集約'!$H$7:$H$306,$D7,'006各シート集約'!Q$7:Q$306) -> 0 | O7: =SUMIF('006各シート集約'!$H$7:$H$306,$D7,'006各シート集約'!R$7:R$306) -> 0 | P7: =SUMIF('006各シート集約'!$H$7:$H$306,$D7,'006各シート集約'!S$7:S$306) -> 0 | Q7: =SUMIF('006各シート集約'!$H$7:$H$306,$D7,'006各シート集約'!T$7:T$306) -> 0 | R7: =SUMIF('006各シート集約'!$H$7:$H$306,$D7,'006各シート集約'!U$7:U$306) -> 0 | S7: =SUMIF('006各シート集約'!$H$7:$H$306,$D7,'006各シート集約'!V$7:V$306) -> 0 | T7: =SUMIF('006各シート集約'!$H$7:$H$306,$D7,'006各シート集約'!W$7:W$306) -> 0 | U7: =SUMIF('006各シート集約'!$H$7:$H$306,$D7,'006各シート集約'!X$7:X$306) -> 0 | W7: 宮城県 | X7: =SUMIF('006各シート集約'!$I$7:$I$306,$W7,'006各シート集約'!F$7:F$306) -> 0 | Y7: =SUMIF('006各シート集約'!$I$7:$I$306,$W7,'006各シート集約'!G$7:G$306) -> 0 | Z7: =SUMIF('006各シート集約'!$I$7:$I$306,$W7,'006各シート集約'!J$7:J$306) -> 0 | AA7: =SUMIF('006各シート集約'!$I$7:$I$306,$W7,'006各シート集約'!K$7:K$306) -> 0 | AB7: =SUMIF('006各シート集約'!$I$7:$I$306,$W7,'006各シート集約'!L$7:L$306) -> 0 | AC7: =SUMIF('006各シート集約'!$I$7:$I$306,$W7,'006各シート集約'!M$7:M$306) -> 0 | AD7: =SUMIF('006各シート集約'!$I$7:$I$306,$W7,'006各シート集約'!N$7:N$306) -> 0 | AE7: =SUMIF('006各シート集約'!$I$7:$I$306,$W7,'006各シート集約'!O$7:O$306) -> 0 | AF7: =SUMIF('006各シート集約'!$I$7:$I$306,$W7,'006各シート集約'!P$7:P$306) -> 0 | AG7: =SUMIF('006各シート集約'!$I$7:$I$306,$W7,'006各シート集約'!Q$7:Q$306) -> 0 | AH7: =SUMIF('006各シート集約'!$I$7:$I$306,$W7,'006各シート集約'!R$7:R$306) -> 0 | AI7: =SUMIF('006各シート集約'!$I$7:$I$306,$W7,'006各シート集約'!S$7:S$306) -> 0 | AJ7: =SUMIF('006各シート集約'!$I$7:$I$306,$W7,'006各シート集約'!T$7:T$306) -> 0 | AK7: =SUMIF('006各シート集約'!$I$7:$I$306,$W7,'006各シート集約'!U$7:U$306) -> 0 | AL7: =SUMIF('006各シート集約'!$I$7:$I$306,$W7,'006各シート集約'!V$7:V$306) -> 0 | AM7: =SUMIF('006各シート集約'!$I$7:$I$306,$W7,'006各シート集約'!W$7:W$306) -> 0 | AN7: =SUMIF('006各シート集約'!$I$7:$I$306,$W7,'006各シート集約'!X$7:X$306) -> 0
A8: 5 | B8: 秋田県 | D8: 秋田県 | E8: =SUMIF('006各シート集約'!$H$7:$H$306,$D8,'006各シート集約'!F$7:F$306) -> 0 | F8: =SUMIF('006各シート集約'!$H$7:$H$306,$D8,'006各シート集約'!G$7:G$306) -> 0 | G8: =SUMIF('006各シート集約'!$H$7:$H$306,$D8,'006各シート集約'!J$7:J$306) -> 0 | H8: =SUMIF('006各シート集約'!$H$7:$H$306,$D8,'006各シート集約'!K$7:K$306) -> 0 | I8: =SUMIF('006各シート集約'!$H$7:$H$306,$D8,'006各シート集約'!L$7:L$306) -> 0 | J8: =SUMIF('006各シート集約'!$H$7:$H$306,$D8,'006各シート集約'!M$7:M$306) -> 0 | K8: =SUMIF('006各シート集約'!$H$7:$H$306,$D8,'006各シート集約'!N$7:N$306) -> 0 | L8: =SUMIF('006各シート集約'!$H$7:$H$306,$D8,'006各シート集約'!O$7:O$306) -> 0 | M8: =SUMIF('006各シート集約'!$H$7:$H$306,$D8,'006各シート集約'!P$7:P$306) -> 0 | N8: =SUMIF('006各シート集約'!$H$7:$H$306,$D8,'006各シート集約'!Q$7:Q$306) -> 0 | O8: =SUMIF('006各シート集約'!$H$7:$H$306,$D8,'006各シート集約'!R$7:R$306) -> 0 | P8: =SUMIF('006各シート集約'!$H$7:$H$306,$D8,'006各シート集約'!S$7:S$306) -> 0 | Q8: =SUMIF('006各シート集約'!$H$7:$H$306,$D8,'006各シート集約'!T$7:T$306) -> 0 | R8: =SUMIF('006各シート集約'!$H$7:$H$306,$D8,'006各シート集約'!U$7:U$306) -> 0 | S8: =SUMIF('006各シート集約'!$H$7:$H$306,$D8,'006各シート集約'!V$7:V$306) -> 0 | T8: =SUMIF('006各シート集約'!$H$7:$H$306,$D8,'006各シート集約'!W$7:W$306) -> 0 | U8: =SUMIF('006各シート集約'!$H$7:$H$306,$D8,'006各シート集約'!X$7:X$306) -> 0 | W8: 秋田県 | X8: =SUMIF('006各シート集約'!$I$7:$I$306,$W8,'006各シート集約'!F$7:F$306) -> 0 | Y8: =SUMIF('006各シート集約'!$I$7:$I$306,$W8,'006各シート集約'!G$7:G$306) -> 0 | Z8: =SUMIF('006各シート集約'!$I$7:$I$306,$W8,'006各シート集約'!J$7:J$306) -> 0 | AA8: =SUMIF('006各シート集約'!$I$7:$I$306,$W8,'006各シート集約'!K$7:K$306) -> 0 | AB8: =SUMIF('006各シート集約'!$I$7:$I$306,$W8,'006各シート集約'!L$7:L$306) -> 0 | AC8: =SUMIF('006各シート集約'!$I$7:$I$306,$W8,'006各シート集約'!M$7:M$306) -> 0 | AD8: =SUMIF('006各シート集約'!$I$7:$I$306,$W8,'006各シート集約'!N$7:N$306) -> 0 | AE8: =SUMIF('006各シート集約'!$I$7:$I$306,$W8,'006各シート集約'!O$7:O$306) -> 0 | AF8: =SUMIF('006各シート集約'!$I$7:$I$306,$W8,'006各シート集約'!P$7:P$306) -> 0 | AG8: =SUMIF('006各シート集約'!$I$7:$I$306,$W8,'006各シート集約'!Q$7:Q$306) -> 0 | AH8: =SUMIF('006各シート集約'!$I$7:$I$306,$W8,'006各シート集約'!R$7:R$306) -> 0 | AI8: =SUMIF('006各シート集約'!$I$7:$I$306,$W8,'006各シート集約'!S$7:S$306) -> 0 | AJ8: =SUMIF('006各シート集約'!$I$7:$I$306,$W8,'006各シート集約'!T$7:T$306) -> 0 | AK8: =SUMIF('006各シート集約'!$I$7:$I$306,$W8,'006各シート集約'!U$7:U$306) -> 0 | AL8: =SUMIF('006各シート集約'!$I$7:$I$306,$W8,'006各シート集約'!V$7:V$306) -> 0 | AM8: =SUMIF('006各シート集約'!$I$7:$I$306,$W8,'006各シート集約'!W$7:W$306) -> 0 | AN8: =SUMIF('006各シート集約'!$I$7:$I$306,$W8,'006各シート集約'!X$7:X$306) -> 0
A9: 6 | B9: 山形県 | D9: 山形県 | E9: =SUMIF('006各シート集約'!$H$7:$H$306,$D9,'006各シート集約'!F$7:F$306) -> 0 | F9: =SUMIF('006各シート集約'!$H$7:$H$306,$D9,'006各シート集約'!G$7:G$306) -> 0 | G9: =SUMIF('006各シート集約'!$H$7:$H$306,$D9,'006各シート集約'!J$7:J$306) -> 0 | H9: =SUMIF('006各シート集約'!$H$7:$H$306,$D9,'006各シート集約'!K$7:K$306) -> 0 | I9: =SUMIF('006各シート集約'!$H$7:$H$306,$D9,'006各シート集約'!L$7:L$306) -> 0 | J9: =SUMIF('006各シート集約'!$H$7:$H$306,$D9,'006各シート集約'!M$7:M$306) -> 0 | K9: =SUMIF('006各シート集約'!$H$7:$H$306,$D9,'006各シート集約'!N$7:N$306) -> 0 | L9: =SUMIF('006各シート集約'!$H$7:$H$306,$D9,'006各シート集約'!O$7:O$306) -> 0 | M9: =SUMIF('006各シート集約'!$H$7:$H$306,$D9,'006各シート集約'!P$7:P$306) -> 0 | N9: =SUMIF('006各シート集約'!$H$7:$H$306,$D9,'006各シート集約'!Q$7:Q$306) -> 0 | O9: =SUMIF('006各シート集約'!$H$7:$H$306,$D9,'006各シート集約'!R$7:R$306) -> 0 | P9: =SUMIF('006各シート集約'!$H$7:$H$306,$D9,'006各シート集約'!S$7:S$306) -> 0 | Q9: =SUMIF('006各シート集約'!$H$7:$H$306,$D9,'006各シート集約'!T$7:T$306) -> 0 | R9: =SUMIF('006各シート集約'!$H$7:$H$306,$D9,'006各シート集約'!U$7:U$306) -> 0 | S9: =SUMIF('006各シート集約'!$H$7:$H$306,$D9,'006各シート集約'!V$7:V$306) -> 0 | T9: =SUMIF('006各シート集約'!$H$7:$H$306,$D9,'006各シート集約'!W$7:W$306) -> 0 | U9: =SUMIF('006各シート集約'!$H$7:$H$306,$D9,'006各シート集約'!X$7:X$306) -> 0 | W9: 山形県 | X9: =SUMIF('006各シート集約'!$I$7:$I$306,$W9,'006各シート集約'!F$7:F$306) -> 0 | Y9: =SUMIF('006各シート集約'!$I$7:$I$306,$W9,'006各シート集約'!G$7:G$306) -> 0 | Z9: =SUMIF('006各シート集約'!$I$7:$I$306,$W9,'006各シート集約'!J$7:J$306) -> 0 | AA9: =SUMIF('006各シート集約'!$I$7:$I$306,$W9,'006各シート集約'!K$7:K$306) -> 0 | AB9: =SUMIF('006各シート集約'!$I$7:$I$306,$W9,'006各シート集約'!L$7:L$306) -> 0 | AC9: =SUMIF('006各シート集約'!$I$7:$I$306,$W9,'006各シート集約'!M$7:M$306) -> 0 | AD9: =SUMIF('006各シート集約'!$I$7:$I$306,$W9,'006各シート集約'!N$7:N$306) -> 0 | AE9: =SUMIF('006各シート集約'!$I$7:$I$306,$W9,'006各シート集約'!O$7:O$306) -> 0 | AF9: =SUMIF('006各シート集約'!$I$7:$I$306,$W9,'006各シート集約'!P$7:P$306) -> 0 | AG9: =SUMIF('006各シート集約'!$I$7:$I$306,$W9,'006各シート集約'!Q$7:Q$306) -> 0 | AH9: =SUMIF('006各シート集約'!$I$7:$I$306,$W9,'006各シート集約'!R$7:R$306) -> 0 | AI9: =SUMIF('006各シート集約'!$I$7:$I$306,$W9,'006各シート集約'!S$7:S$306) -> 0 | AJ9: =SUMIF('006各シート集約'!$I$7:$I$306,$W9,'006各シート集約'!T$7:T$306) -> 0 | AK9: =SUMIF('006各シート集約'!$I$7:$I$306,$W9,'006各シート集約'!U$7:U$306) -> 0 | AL9: =SUMIF('006各シート集約'!$I$7:$I$306,$W9,'006各シート集約'!V$7:V$306) -> 0 | AM9: =SUMIF('006各シート集約'!$I$7:$I$306,$W9,'006各シート集約'!W$7:W$306) -> 0 | AN9: =SUMIF('006各シート集約'!$I$7:$I$306,$W9,'006各シート集約'!X$7:X$306) -> 0
A10: 7 | B10: 福島県 | D10: 福島県 | E10: =SUMIF('006各シート集約'!$H$7:$H$306,$D10,'006各シート集約'!F$7:F$306) -> 0 | F10: =SUMIF('006各シート集約'!$H$7:$H$306,$D10,'006各シート集約'!G$7:G$306) -> 0 | G10: =SUMIF('006各シート集約'!$H$7:$H$306,$D10,'006各シート集約'!J$7:J$306) -> 0 | H10: =SUMIF('006各シート集約'!$H$7:$H$306,$D10,'006各シート集約'!K$7:K$306) -> 0 | I10: =SUMIF('006各シート集約'!$H$7:$H$306,$D10,'006各シート集約'!L$7:L$306) -> 0 | J10: =SUMIF('006各シート集約'!$H$7:$H$306,$D10,'006各シート集約'!M$7:M$306) -> 0 | K10: =SUMIF('006各シート集約'!$H$7:$H$306,$D10,'006各シート集約'!N$7:N$306) -> 0 | L10: =SUMIF('006各シート集約'!$H$7:$H$306,$D10,'006各シート集約'!O$7:O$306) -> 0 | M10: =SUMIF('006各シート集約'!$H$7:$H$306,$D10,'006各シート集約'!P$7:P$306) -> 0 | N10: =SUMIF('006各シート集約'!$H$7:$H$306,$D10,'006各シート集約'!Q$7:Q$306) -> 0 | O10: =SUMIF('006各シート集約'!$H$7:$H$306,$D10,'006各シート集約'!R$7:R$306) -> 0 | P10: =SUMIF('006各シート集約'!$H$7:$H$306,$D10,'006各シート集約'!S$7:S$306) -> 0 | Q10: =SUMIF('006各シート集約'!$H$7:$H$306,$D10,'006各シート集約'!T$7:T$306) -> 0 | R10: =SUMIF('006各シート集約'!$H$7:$H$306,$D10,'006各シート集約'!U$7:U$306) -> 0 | S10: =SUMIF('006各シート集約'!$H$7:$H$306,$D10,'006各シート集約'!V$7:V$306) -> 0 | T10: =SUMIF('006各シート集約'!$H$7:$H$306,$D10,'006各シート集約'!W$7:W$306) -> 0 | U10: =SUMIF('006各シート集約'!$H$7:$H$306,$D10,'006各シート集約'!X$7:X$306) -> 0 | W10: 福島県 | X10: =SUMIF('006各シート集約'!$I$7:$I$306,$W10,'006各シート集約'!F$7:F$306) -> 0 | Y10: =SUMIF('006各シート集約'!$I$7:$I$306,$W10,'006各シート集約'!G$7:G$306) -> 0 | Z10: =SUMIF('006各シート集約'!$I$7:$I$306,$W10,'006各シート集約'!J$7:J$306) -> 0 | AA10: =SUMIF('006各シート集約'!$I$7:$I$306,$W10,'006各シート集約'!K$7:K$306) -> 0 | AB10: =SUMIF('006各シート集約'!$I$7:$I$306,$W10,'006各シート集約'!L$7:L$306) -> 0 | AC10: =SUMIF('006各シート集約'!$I$7:$I$306,$W10,'006各シート集約'!M$7:M$306) -> 0 | AD10: =SUMIF('006各シート集約'!$I$7:$I$306,$W10,'006各シート集約'!N$7:N$306) -> 0 | AE10: =SUMIF('006各シート集約'!$I$7:$I$306,$W10,'006各シート集約'!O$7:O$306) -> 0 | AF10: =SUMIF('006各シート集約'!$I$7:$I$306,$W10,'006各シート集約'!P$7:P$306) -> 0 | AG10: =SUMIF('006各シート集約'!$I$7:$I$306,$W10,'006各シート集約'!Q$7:Q$306) -> 0 | AH10: =SUMIF('006各シート集約'!$I$7:$I$306,$W10,'006各シート集約'!R$7:R$306) -> 0 | AI10: =SUMIF('006各シート集約'!$I$7:$I$306,$W10,'006各シート集約'!S$7:S$306) -> 0 | AJ10: =SUMIF('006各シート集約'!$I$7:$I$306,$W10,'006各シート集約'!T$7:T$306) -> 0 | AK10: =SUMIF('006各シート集約'!$I$7:$I$306,$W10,'006各シート集約'!U$7:U$306) -> 0 | AL10: =SUMIF('006各シート集約'!$I$7:$I$306,$W10,'006各シート集約'!V$7:V$306) -> 0 | AM10: =SUMIF('006各シート集約'!$I$7:$I$306,$W10,'006各シート集約'!W$7:W$306) -> 0 | AN10: =SUMIF('006各シート集約'!$I$7:$I$306,$W10,'006各シート集約'!X$7:X$306) -> 0
A11: 8 | B11: 茨城県 | D11: 茨城県 | E11: =SUMIF('006各シート集約'!$H$7:$H$306,$D11,'006各シート集約'!F$7:F$306) -> 0 | F11: =SUMIF('006各シート集約'!$H$7:$H$306,$D11,'006各シート集約'!G$7:G$306) -> 0 | G11: =SUMIF('006各シート集約'!$H$7:$H$306,$D11,'006各シート集約'!J$7:J$306) -> 0 | H11: =SUMIF('006各シート集約'!$H$7:$H$306,$D11,'006各シート集約'!K$7:K$306) -> 0 | I11: =SUMIF('006各シート集約'!$H$7:$H$306,$D11,'006各シート集約'!L$7:L$306) -> 0 | J11: =SUMIF('006各シート集約'!$H$7:$H$306,$D11,'006各シート集約'!M$7:M$306) -> 0 | K11: =SUMIF('006各シート集約'!$H$7:$H$306,$D11,'006各シート集約'!N$7:N$306) -> 0 | L11: =SUMIF('006各シート集約'!$H$7:$H$306,$D11,'006各シート集約'!O$7:O$306) -> 0 | M11: =SUMIF('006各シート集約'!$H$7:$H$306,$D11,'006各シート集約'!P$7:P$306) -> 0 | N11: =SUMIF('006各シート集約'!$H$7:$H$306,$D11,'006各シート集約'!Q$7:Q$306) -> 0 | O11: =SUMIF('006各シート集約'!$H$7:$H$306,$D11,'006各シート集約'!R$7:R$306) -> 0 | P11: =SUMIF('006各シート集約'!$H$7:$H$306,$D11,'006各シート集約'!S$7:S$306) -> 0 | Q11: =SUMIF('006各シート集約'!$H$7:$H$306,$D11,'006各シート集約'!T$7:T$306) -> 0 | R11: =SUMIF('006各シート集約'!$H$7:$H$306,$D11,'006各シート集約'!U$7:U$306) -> 0 | S11: =SUMIF('006各シート集約'!$H$7:$H$306,$D11,'006各シート集約'!V$7:V$306) -> 0 | T11: =SUMIF('006各シート集約'!$H$7:$H$306,$D11,'006各シート集約'!W$7:W$306) -> 0 | U11: =SUMIF('006各シート集約'!$H$7:$H$306,$D11,'006各シート集約'!X$7:X$306) -> 0 | W11: 茨城県 | X11: =SUMIF('006各シート集約'!$I$7:$I$306,$W11,'006各シート集約'!F$7:F$306) -> 0 | Y11: =SUMIF('006各シート集約'!$I$7:$I$306,$W11,'006各シート集約'!G$7:G$306) -> 0 | Z11: =SUMIF('006各シート集約'!$I$7:$I$306,$W11,'006各シート集約'!J$7:J$306) -> 0 | AA11: =SUMIF('006各シート集約'!$I$7:$I$306,$W11,'006各シート集約'!K$7:K$306) -> 0 | AB11: =SUMIF('006各シート集約'!$I$7:$I$306,$W11,'006各シート集約'!L$7:L$306) -> 0 | AC11: =SUMIF('006各シート集約'!$I$7:$I$306,$W11,'006各シート集約'!M$7:M$306) -> 0 | AD11: =SUMIF('006各シート集約'!$I$7:$I$306,$W11,'006各シート集約'!N$7:N$306) -> 0 | AE11: =SUMIF('006各シート集約'!$I$7:$I$306,$W11,'006各シート集約'!O$7:O$306) -> 0 | AF11: =SUMIF('006各シート集約'!$I$7:$I$306,$W11,'006各シート集約'!P$7:P$306) -> 0 | AG11: =SUMIF('006各シート集約'!$I$7:$I$306,$W11,'006各シート集約'!Q$7:Q$306) -> 0 | AH11: =SUMIF('006各シート集約'!$I$7:$I$306,$W11,'006各シート集約'!R$7:R$306) -> 0 | AI11: =SUMIF('006各シート集約'!$I$7:$I$306,$W11,'006各シート集約'!S$7:S$306) -> 0 | AJ11: =SUMIF('006各シート集約'!$I$7:$I$306,$W11,'006各シート集約'!T$7:T$306) -> 0 | AK11: =SUMIF('006各シート集約'!$I$7:$I$306,$W11,'006各シート集約'!U$7:U$306) -> 0 | AL11: =SUMIF('006各シート集約'!$I$7:$I$306,$W11,'006各シート集約'!V$7:V$306) -> 0 | AM11: =SUMIF('006各シート集約'!$I$7:$I$306,$W11,'006各シート集約'!W$7:W$306) -> 0 | AN11: =SUMIF('006各シート集約'!$I$7:$I$306,$W11,'006各シート集約'!X$7:X$306) -> 0
A12: 9 | B12: 栃木県 | D12: 栃木県 | E12: =SUMIF('006各シート集約'!$H$7:$H$306,$D12,'006各シート集約'!F$7:F$306) -> 0 | F12: =SUMIF('006各シート集約'!$H$7:$H$306,$D12,'006各シート集約'!G$7:G$306) -> 0 | G12: =SUMIF('006各シート集約'!$H$7:$H$306,$D12,'006各シート集約'!J$7:J$306) -> 0 | H12: =SUMIF('006各シート集約'!$H$7:$H$306,$D12,'006各シート集約'!K$7:K$306) -> 0 | I12: =SUMIF('006各シート集約'!$H$7:$H$306,$D12,'006各シート集約'!L$7:L$306) -> 0 | J12: =SUMIF('006各シート集約'!$H$7:$H$306,$D12,'006各シート集約'!M$7:M$306) -> 0 | K12: =SUMIF('006各シート集約'!$H$7:$H$306,$D12,'006各シート集約'!N$7:N$306) -> 0 | L12: =SUMIF('006各シート集約'!$H$7:$H$306,$D12,'006各シート集約'!O$7:O$306) -> 0 | M12: =SUMIF('006各シート集約'!$H$7:$H$306,$D12,'006各シート集約'!P$7:P$306) -> 0 | N12: =SUMIF('006各シート集約'!$H$7:$H$306,$D12,'006各シート集約'!Q$7:Q$306) -> 0 | O12: =SUMIF('006各シート集約'!$H$7:$H$306,$D12,'006各シート集約'!R$7:R$306) -> 0 | P12: =SUMIF('006各シート集約'!$H$7:$H$306,$D12,'006各シート集約'!S$7:S$306) -> 0 | Q12: =SUMIF('006各シート集約'!$H$7:$H$306,$D12,'006各シート集約'!T$7:T$306) -> 0 | R12: =SUMIF('006各シート集約'!$H$7:$H$306,$D12,'006各シート集約'!U$7:U$306) -> 0 | S12: =SUMIF('006各シート集約'!$H$7:$H$306,$D12,'006各シート集約'!V$7:V$306) -> 0 | T12: =SUMIF('006各シート集約'!$H$7:$H$306,$D12,'006各シート集約'!W$7:W$306) -> 0 | U12: =SUMIF('006各シート集約'!$H$7:$H$306,$D12,'006各シート集約'!X$7:X$306) -> 0 | W12: 栃木県 | X12: =SUMIF('006各シート集約'!$I$7:$I$306,$W12,'006各シート集約'!F$7:F$306) -> 0 | Y12: =SUMIF('006各シート集約'!$I$7:$I$306,$W12,'006各シート集約'!G$7:G$306) -> 0 | Z12: =SUMIF('006各シート集約'!$I$7:$I$306,$W12,'006各シート集約'!J$7:J$306) -> 0 | AA12: =SUMIF('006各シート集約'!$I$7:$I$306,$W12,'006各シート集約'!K$7:K$306) -> 0 | AB12: =SUMIF('006各シート集約'!$I$7:$I$306,$W12,'006各シート集約'!L$7:L$306) -> 0 | AC12: =SUMIF('006各シート集約'!$I$7:$I$306,$W12,'006各シート集約'!M$7:M$306) -> 0 | AD12: =SUMIF('006各シート集約'!$I$7:$I$306,$W12,'006各シート集約'!N$7:N$306) -> 0 | AE12: =SUMIF('006各シート集約'!$I$7:$I$306,$W12,'006各シート集約'!O$7:O$306) -> 0 | AF12: =SUMIF('006各シート集約'!$I$7:$I$306,$W12,'006各シート集約'!P$7:P$306) -> 0 | AG12: =SUMIF('006各シート集約'!$I$7:$I$306,$W12,'006各シート集約'!Q$7:Q$306) -> 0 | AH12: =SUMIF('006各シート集約'!$I$7:$I$306,$W12,'006各シート集約'!R$7:R$306) -> 0 | AI12: =SUMIF('006各シート集約'!$I$7:$I$306,$W12,'006各シート集約'!S$7:S$306) -> 0 | AJ12: =SUMIF('006各シート集約'!$I$7:$I$306,$W12,'006各シート集約'!T$7:T$306) -> 0 | AK12: =SUMIF('006各シート集約'!$I$7:$I$306,$W12,'006各シート集約'!U$7:U$306) -> 0 | AL12: =SUMIF('006各シート集約'!$I$7:$I$306,$W12,'006各シート集約'!V$7:V$306) -> 0 | AM12: =SUMIF('006各シート集約'!$I$7:$I$306,$W12,'006各シート集約'!W$7:W$306) -> 0 | AN12: =SUMIF('006各シート集約'!$I$7:$I$306,$W12,'006各シート集約'!X$7:X$306) -> 0
A13: 10 | B13: 群馬県 | D13: 群馬県 | E13: =SUMIF('006各シート集約'!$H$7:$H$306,$D13,'006各シート集約'!F$7:F$306) -> 0 | F13: =SUMIF('006各シート集約'!$H$7:$H$306,$D13,'006各シート集約'!G$7:G$306) -> 0 | G13: =SUMIF('006各シート集約'!$H$7:$H$306,$D13,'006各シート集約'!J$7:J$306) -> 0 | H13: =SUMIF('006各シート集約'!$H$7:$H$306,$D13,'006各シート集約'!K$7:K$306) -> 0 | I13: =SUMIF('006各シート集約'!$H$7:$H$306,$D13,'006各シート集約'!L$7:L$306) -> 0 | J13: =SUMIF('006各シート集約'!$H$7:$H$306,$D13,'006各シート集約'!M$7:M$306) -> 0 | K13: =SUMIF('006各シート集約'!$H$7:$H$306,$D13,'006各シート集約'!N$7:N$306) -> 0 | L13: =SUMIF('006各シート集約'!$H$7:$H$306,$D13,'006各シート集約'!O$7:O$306) -> 0 | M13: =SUMIF('006各シート集約'!$H$7:$H$306,$D13,'006各シート集約'!P$7:P$306) -> 0 | N13: =SUMIF('006各シート集約'!$H$7:$H$306,$D13,'006各シート集約'!Q$7:Q$306) -> 0 | O13: =SUMIF('006各シート集約'!$H$7:$H$306,$D13,'006各シート集約'!R$7:R$306) -> 0 | P13: =SUMIF('006各シート集約'!$H$7:$H$306,$D13,'006各シート集約'!S$7:S$306) -> 0 | Q13: =SUMIF('006各シート集約'!$H$7:$H$306,$D13,'006各シート集約'!T$7:T$306) -> 0 | R13: =SUMIF('006各シート集約'!$H$7:$H$306,$D13,'006各シート集約'!U$7:U$306) -> 0 | S13: =SUMIF('006各シート集約'!$H$7:$H$306,$D13,'006各シート集約'!V$7:V$306) -> 0 | T13: =SUMIF('006各シート集約'!$H$7:$H$306,$D13,'006各シート集約'!W$7:W$306) -> 0 | U13: =SUMIF('006各シート集約'!$H$7:$H$306,$D13,'006各シート集約'!X$7:X$306) -> 0 | W13: 群馬県 | X13: =SUMIF('006各シート集約'!$I$7:$I$306,$W13,'006各シート集約'!F$7:F$306) -> 0 | Y13: =SUMIF('006各シート集約'!$I$7:$I$306,$W13,'006各シート集約'!G$7:G$306) -> 0 | Z13: =SUMIF('006各シート集約'!$I$7:$I$306,$W13,'006各シート集約'!J$7:J$306) -> 0 | AA13: =SUMIF('006各シート集約'!$I$7:$I$306,$W13,'006各シート集約'!K$7:K$306) -> 0 | AB13: =SUMIF('006各シート集約'!$I$7:$I$306,$W13,'006各シート集約'!L$7:L$306) -> 0 | AC13: =SUMIF('006各シート集約'!$I$7:$I$306,$W13,'006各シート集約'!M$7:M$306) -> 0 | AD13: =SUMIF('006各シート集約'!$I$7:$I$306,$W13,'006各シート集約'!N$7:N$306) -> 0 | AE13: =SUMIF('006各シート集約'!$I$7:$I$306,$W13,'006各シート集約'!O$7:O$306) -> 0 | AF13: =SUMIF('006各シート集約'!$I$7:$I$306,$W13,'006各シート集約'!P$7:P$306) -> 0 | AG13: =SUMIF('006各シート集約'!$I$7:$I$306,$W13,'006各シート集約'!Q$7:Q$306) -> 0 | AH13: =SUMIF('006各シート集約'!$I$7:$I$306,$W13,'006各シート集約'!R$7:R$306) -> 0 | AI13: =SUMIF('006各シート集約'!$I$7:$I$306,$W13,'006各シート集約'!S$7:S$306) -> 0 | AJ13: =SUMIF('006各シート集約'!$I$7:$I$306,$W13,'006各シート集約'!T$7:T$306) -> 0 | AK13: =SUMIF('006各シート集約'!$I$7:$I$306,$W13,'006各シート集約'!U$7:U$306) -> 0 | AL13: =SUMIF('006各シート集約'!$I$7:$I$306,$W13,'006各シート集約'!V$7:V$306) -> 0 | AM13: =SUMIF('006各シート集約'!$I$7:$I$306,$W13,'006各シート集約'!W$7:W$306) -> 0 | AN13: =SUMIF('006各シート集約'!$I$7:$I$306,$W13,'006各シート集約'!X$7:X$306) -> 0
A14: 11 | B14: 埼玉県 | D14: 埼玉県 | E14: =SUMIF('006各シート集約'!$H$7:$H$306,$D14,'006各シート集約'!F$7:F$306) -> 0 | F14: =SUMIF('006各シート集約'!$H$7:$H$306,$D14,'006各シート集約'!G$7:G$306) -> 0 | G14: =SUMIF('006各シート集約'!$H$7:$H$306,$D14,'006各シート集約'!J$7:J$306) -> 0 | H14: =SUMIF('006各シート集約'!$H$7:$H$306,$D14,'006各シート集約'!K$7:K$306) -> 0 | I14: =SUMIF('006各シート集約'!$H$7:$H$306,$D14,'006各シート集約'!L$7:L$306) -> 0 | J14: =SUMIF('006各シート集約'!$H$7:$H$306,$D14,'006各シート集約'!M$7:M$306) -> 0 | K14: =SUMIF('006各シート集約'!$H$7:$H$306,$D14,'006各シート集約'!N$7:N$306) -> 0 | L14: =SUMIF('006各シート集約'!$H$7:$H$306,$D14,'006各シート集約'!O$7:O$306) -> 0 | M14: =SUMIF('006各シート集約'!$H$7:$H$306,$D14,'006各シート集約'!P$7:P$306) -> 0 | N14: =SUMIF('006各シート集約'!$H$7:$H$306,$D14,'006各シート集約'!Q$7:Q$306) -> 0 | O14: =SUMIF('006各シート集約'!$H$7:$H$306,$D14,'006各シート集約'!R$7:R$306) -> 0 | P14: =SUMIF('006各シート集約'!$H$7:$H$306,$D14,'006各シート集約'!S$7:S$306) -> 0 | Q14: =SUMIF('006各シート集約'!$H$7:$H$306,$D14,'006各シート集約'!T$7:T$306) -> 0 | R14: =SUMIF('006各シート集約'!$H$7:$H$306,$D14,'006各シート集約'!U$7:U$306) -> 0 | S14: =SUMIF('006各シート集約'!$H$7:$H$306,$D14,'006各シート集約'!V$7:V$306) -> 0 | T14: =SUMIF('006各シート集約'!$H$7:$H$306,$D14,'006各シート集約'!W$7:W$306) -> 0 | U14: =SUMIF('006各シート集約'!$H$7:$H$306,$D14,'006各シート集約'!X$7:X$306) -> 0 | W14: 埼玉県 | X14: =SUMIF('006各シート集約'!$I$7:$I$306,$W14,'006各シート集約'!F$7:F$306) -> 0 | Y14: =SUMIF('006各シート集約'!$I$7:$I$306,$W14,'006各シート集約'!G$7:G$306) -> 0 | Z14: =SUMIF('006各シート集約'!$I$7:$I$306,$W14,'006各シート集約'!J$7:J$306) -> 0 | AA14: =SUMIF('006各シート集約'!$I$7:$I$306,$W14,'006各シート集約'!K$7:K$306) -> 0 | AB14: =SUMIF('006各シート集約'!$I$7:$I$306,$W14,'006各シート集約'!L$7:L$306) -> 0 | AC14: =SUMIF('006各シート集約'!$I$7:$I$306,$W14,'006各シート集約'!M$7:M$306) -> 0 | AD14: =SUMIF('006各シート集約'!$I$7:$I$306,$W14,'006各シート集約'!N$7:N$306) -> 0 | AE14: =SUMIF('006各シート集約'!$I$7:$I$306,$W14,'006各シート集約'!O$7:O$306) -> 0 | AF14: =SUMIF('006各シート集約'!$I$7:$I$306,$W14,'006各シート集約'!P$7:P$306) -> 0 | AG14: =SUMIF('006各シート集約'!$I$7:$I$306,$W14,'006各シート集約'!Q$7:Q$306) -> 0 | AH14: =SUMIF('006各シート集約'!$I$7:$I$306,$W14,'006各シート集約'!R$7:R$306) -> 0 | AI14: =SUMIF('006各シート集約'!$I$7:$I$306,$W14,'006各シート集約'!S$7:S$306) -> 0 | AJ14: =SUMIF('006各シート集約'!$I$7:$I$306,$W14,'006各シート集約'!T$7:T$306) -> 0 | AK14: =SUMIF('006各シート集約'!$I$7:$I$306,$W14,'006各シート集約'!U$7:U$306) -> 0 | AL14: =SUMIF('006各シート集約'!$I$7:$I$306,$W14,'006各シート集約'!V$7:V$306) -> 0 | AM14: =SUMIF('006各シート集約'!$I$7:$I$306,$W14,'006各シート集約'!W$7:W$306) -> 0 | AN14: =SUMIF('006各シート集約'!$I$7:$I$306,$W14,'006各シート集約'!X$7:X$306) -> 0
A15: 12 | B15: 千葉県 | D15: 千葉県 | E15: =SUMIF('006各シート集約'!$H$7:$H$306,$D15,'006各シート集約'!F$7:F$306) -> 0 | F15: =SUMIF('006各シート集約'!$H$7:$H$306,$D15,'006各シート集約'!G$7:G$306) -> 0 | G15: =SUMIF('006各シート集約'!$H$7:$H$306,$D15,'006各シート集約'!J$7:J$306) -> 0 | H15: =SUMIF('006各シート集約'!$H$7:$H$306,$D15,'006各シート集約'!K$7:K$306) -> 0 | I15: =SUMIF('006各シート集約'!$H$7:$H$306,$D15,'006各シート集約'!L$7:L$306) -> 0 | J15: =SUMIF('006各シート集約'!$H$7:$H$306,$D15,'006各シート集約'!M$7:M$306) -> 0 | K15: =SUMIF('006各シート集約'!$H$7:$H$306,$D15,'006各シート集約'!N$7:N$306) -> 0 | L15: =SUMIF('006各シート集約'!$H$7:$H$306,$D15,'006各シート集約'!O$7:O$306) -> 0 | M15: =SUMIF('006各シート集約'!$H$7:$H$306,$D15,'006各シート集約'!P$7:P$306) -> 0 | N15: =SUMIF('006各シート集約'!$H$7:$H$306,$D15,'006各シート集約'!Q$7:Q$306) -> 0 | O15: =SUMIF('006各シート集約'!$H$7:$H$306,$D15,'006各シート集約'!R$7:R$306) -> 0 | P15: =SUMIF('006各シート集約'!$H$7:$H$306,$D15,'006各シート集約'!S$7:S$306) -> 0 | Q15: =SUMIF('006各シート集約'!$H$7:$H$306,$D15,'006各シート集約'!T$7:T$306) -> 0 | R15: =SUMIF('006各シート集約'!$H$7:$H$306,$D15,'006各シート集約'!U$7:U$306) -> 0 | S15: =SUMIF('006各シート集約'!$H$7:$H$306,$D15,'006各シート集約'!V$7:V$306) -> 0 | T15: =SUMIF('006各シート集約'!$H$7:$H$306,$D15,'006各シート集約'!W$7:W$306) -> 0 | U15: =SUMIF('006各シート集約'!$H$7:$H$306,$D15,'006各シート集約'!X$7:X$306) -> 0 | W15: 千葉県 | X15: =SUMIF('006各シート集約'!$I$7:$I$306,$W15,'006各シート集約'!F$7:F$306) -> 0 | Y15: =SUMIF('006各シート集約'!$I$7:$I$306,$W15,'006各シート集約'!G$7:G$306) -> 0 | Z15: =SUMIF('006各シート集約'!$I$7:$I$306,$W15,'006各シート集約'!J$7:J$306) -> 0 | AA15: =SUMIF('006各シート集約'!$I$7:$I$306,$W15,'006各シート集約'!K$7:K$306) -> 0 | AB15: =SUMIF('006各シート集約'!$I$7:$I$306,$W15,'006各シート集約'!L$7:L$306) -> 0 | AC15: =SUMIF('006各シート集約'!$I$7:$I$306,$W15,'006各シート集約'!M$7:M$306) -> 0 | AD15: =SUMIF('006各シート集約'!$I$7:$I$306,$W15,'006各シート集約'!N$7:N$306) -> 0 | AE15: =SUMIF('006各シート集約'!$I$7:$I$306,$W15,'006各シート集約'!O$7:O$306) -> 0 | AF15: =SUMIF('006各シート集約'!$I$7:$I$306,$W15,'006各シート集約'!P$7:P$306) -> 0 | AG15: =SUMIF('006各シート集約'!$I$7:$I$306,$W15,'006各シート集約'!Q$7:Q$306) -> 0 | AH15: =SUMIF('006各シート集約'!$I$7:$I$306,$W15,'006各シート集約'!R$7:R$306) -> 0 | AI15: =SUMIF('006各シート集約'!$I$7:$I$306,$W15,'006各シート集約'!S$7:S$306) -> 0 | AJ15: =SUMIF('006各シート集約'!$I$7:$I$306,$W15,'006各シート集約'!T$7:T$306) -> 0 | AK15: =SUMIF('006各シート集約'!$I$7:$I$306,$W15,'006各シート集約'!U$7:U$306) -> 0 | AL15: =SUMIF('006各シート集約'!$I$7:$I$306,$W15,'006各シート集約'!V$7:V$306) -> 0 | AM15: =SUMIF('006各シート集約'!$I$7:$I$306,$W15,'006各シート集約'!W$7:W$306) -> 0 | AN15: =SUMIF('006各シート集約'!$I$7:$I$306,$W15,'006各シート集約'!X$7:X$306) -> 0
A16: 13 | B16: 東京都 | D16: 東京都 | E16: =SUMIF('006各シート集約'!$H$7:$H$306,$D16,'006各シート集約'!F$7:F$306) -> 0 | F16: =SUMIF('006各シート集約'!$H$7:$H$306,$D16,'006各シート集約'!G$7:G$306) -> 0 | G16: =SUMIF('006各シート集約'!$H$7:$H$306,$D16,'006各シート集約'!J$7:J$306) -> 0 | H16: =SUMIF('006各シート集約'!$H$7:$H$306,$D16,'006各シート集約'!K$7:K$306) -> 0 | I16: =SUMIF('006各シート集約'!$H$7:$H$306,$D16,'006各シート集約'!L$7:L$306) -> 0 | J16: =SUMIF('006各シート集約'!$H$7:$H$306,$D16,'006各シート集約'!M$7:M$306) -> 0 | K16: =SUMIF('006各シート集約'!$H$7:$H$306,$D16,'006各シート集約'!N$7:N$306) -> 0 | L16: =SUMIF('006各シート集約'!$H$7:$H$306,$D16,'006各シート集約'!O$7:O$306) -> 0 | M16: =SUMIF('006各シート集約'!$H$7:$H$306,$D16,'006各シート集約'!P$7:P$306) -> 0 | N16: =SUMIF('006各シート集約'!$H$7:$H$306,$D16,'006各シート集約'!Q$7:Q$306) -> 0 | O16: =SUMIF('006各シート集約'!$H$7:$H$306,$D16,'006各シート集約'!R$7:R$306) -> 0 | P16: =SUMIF('006各シート集約'!$H$7:$H$306,$D16,'006各シート集約'!S$7:S$306) -> 0 | Q16: =SUMIF('006各シート集約'!$H$7:$H$306,$D16,'006各シート集約'!T$7:T$306) -> 0 | R16: =SUMIF('006各シート集約'!$H$7:$H$306,$D16,'006各シート集約'!U$7:U$306) -> 0 | S16: =SUMIF('006各シート集約'!$H$7:$H$306,$D16,'006各シート集約'!V$7:V$306) -> 0 | T16: =SUMIF('006各シート集約'!$H$7:$H$306,$D16,'006各シート集約'!W$7:W$306) -> 0 | U16: =SUMIF('006各シート集約'!$H$7:$H$306,$D16,'006各シート集約'!X$7:X$306) -> 0 | W16: 東京都 | X16: =SUMIF('006各シート集約'!$I$7:$I$306,$W16,'006各シート集約'!F$7:F$306) -> 0 | Y16: =SUMIF('006各シート集約'!$I$7:$I$306,$W16,'006各シート集約'!G$7:G$306) -> 0 | Z16: =SUMIF('006各シート集約'!$I$7:$I$306,$W16,'006各シート集約'!J$7:J$306) -> 0 | AA16: =SUMIF('006各シート集約'!$I$7:$I$306,$W16,'006各シート集約'!K$7:K$306) -> 0 | AB16: =SUMIF('006各シート集約'!$I$7:$I$306,$W16,'006各シート集約'!L$7:L$306) -> 0 | AC16: =SUMIF('006各シート集約'!$I$7:$I$306,$W16,'006各シート集約'!M$7:M$306) -> 0 | AD16: =SUMIF('006各シート集約'!$I$7:$I$306,$W16,'006各シート集約'!N$7:N$306) -> 0 | AE16: =SUMIF('006各シート集約'!$I$7:$I$306,$W16,'006各シート集約'!O$7:O$306) -> 0 | AF16: =SUMIF('006各シート集約'!$I$7:$I$306,$W16,'006各シート集約'!P$7:P$306) -> 0 | AG16: =SUMIF('006各シート集約'!$I$7:$I$306,$W16,'006各シート集約'!Q$7:Q$306) -> 0 | AH16: =SUMIF('006各シート集約'!$I$7:$I$306,$W16,'006各シート集約'!R$7:R$306) -> 0 | AI16: =SUMIF('006各シート集約'!$I$7:$I$306,$W16,'006各シート集約'!S$7:S$306) -> 0 | AJ16: =SUMIF('006各シート集約'!$I$7:$I$306,$W16,'006各シート集約'!T$7:T$306) -> 0 | AK16: =SUMIF('006各シート集約'!$I$7:$I$306,$W16,'006各シート集約'!U$7:U$306) -> 0 | AL16: =SUMIF('006各シート集約'!$I$7:$I$306,$W16,'006各シート集約'!V$7:V$306) -> 0 | AM16: =SUMIF('006各シート集約'!$I$7:$I$306,$W16,'006各シート集約'!W$7:W$306) -> 0 | AN16: =SUMIF('006各シート集約'!$I$7:$I$306,$W16,'006各シート集約'!X$7:X$306) -> 0
A17: 14 | B17: 神奈川県 | D17: 神奈川県 | E17: =SUMIF('006各シート集約'!$H$7:$H$306,$D17,'006各シート集約'!F$7:F$306) -> 0 | F17: =SUMIF('006各シート集約'!$H$7:$H$306,$D17,'006各シート集約'!G$7:G$306) -> 0 | G17: =SUMIF('006各シート集約'!$H$7:$H$306,$D17,'006各シート集約'!J$7:J$306) -> 0 | H17: =SUMIF('006各シート集約'!$H$7:$H$306,$D17,'006各シート集約'!K$7:K$306) -> 0 | I17: =SUMIF('006各シート集約'!$H$7:$H$306,$D17,'006各シート集約'!L$7:L$306) -> 0 | J17: =SUMIF('006各シート集約'!$H$7:$H$306,$D17,'006各シート集約'!M$7:M$306) -> 0 | K17: =SUMIF('006各シート集約'!$H$7:$H$306,$D17,'006各シート集約'!N$7:N$306) -> 0 | L17: =SUMIF('006各シート集約'!$H$7:$H$306,$D17,'006各シート集約'!O$7:O$306) -> 0 | M17: =SUMIF('006各シート集約'!$H$7:$H$306,$D17,'006各シート集約'!P$7:P$306) -> 0 | N17: =SUMIF('006各シート集約'!$H$7:$H$306,$D17,'006各シート集約'!Q$7:Q$306) -> 0 | O17: =SUMIF('006各シート集約'!$H$7:$H$306,$D17,'006各シート集約'!R$7:R$306) -> 0 | P17: =SUMIF('006各シート集約'!$H$7:$H$306,$D17,'006各シート集約'!S$7:S$306) -> 0 | Q17: =SUMIF('006各シート集約'!$H$7:$H$306,$D17,'006各シート集約'!T$7:T$306) -> 0 | R17: =SUMIF('006各シート集約'!$H$7:$H$306,$D17,'006各シート集約'!U$7:U$306) -> 0 | S17: =SUMIF('006各シート集約'!$H$7:$H$306,$D17,'006各シート集約'!V$7:V$306) -> 0 | T17: =SUMIF('006各シート集約'!$H$7:$H$306,$D17,'006各シート集約'!W$7:W$306) -> 0 | U17: =SUMIF('006各シート集約'!$H$7:$H$306,$D17,'006各シート集約'!X$7:X$306) -> 0 | W17: 神奈川県 | X17: =SUMIF('006各シート集約'!$I$7:$I$306,$W17,'006各シート集約'!F$7:F$306) -> 0 | Y17: =SUMIF('006各シート集約'!$I$7:$I$306,$W17,'006各シート集約'!G$7:G$306) -> 0 | Z17: =SUMIF('006各シート集約'!$I$7:$I$306,$W17,'006各シート集約'!J$7:J$306) -> 0 | AA17: =SUMIF('006各シート集約'!$I$7:$I$306,$W17,'006各シート集約'!K$7:K$306) -> 0 | AB17: =SUMIF('006各シート集約'!$I$7:$I$306,$W17,'006各シート集約'!L$7:L$306) -> 0 | AC17: =SUMIF('006各シート集約'!$I$7:$I$306,$W17,'006各シート集約'!M$7:M$306) -> 0 | AD17: =SUMIF('006各シート集約'!$I$7:$I$306,$W17,'006各シート集約'!N$7:N$306) -> 0 | AE17: =SUMIF('006各シート集約'!$I$7:$I$306,$W17,'006各シート集約'!O$7:O$306) -> 0 | AF17: =SUMIF('006各シート集約'!$I$7:$I$306,$W17,'006各シート集約'!P$7:P$306) -> 0 | AG17: =SUMIF('006各シート集約'!$I$7:$I$306,$W17,'006各シート集約'!Q$7:Q$306) -> 0 | AH17: =SUMIF('006各シート集約'!$I$7:$I$306,$W17,'006各シート集約'!R$7:R$306) -> 0 | AI17: =SUMIF('006各シート集約'!$I$7:$I$306,$W17,'006各シート集約'!S$7:S$306) -> 0 | AJ17: =SUMIF('006各シート集約'!$I$7:$I$306,$W17,'006各シート集約'!T$7:T$306) -> 0 | AK17: =SUMIF('006各シート集約'!$I$7:$I$306,$W17,'006各シート集約'!U$7:U$306) -> 0 | AL17: =SUMIF('006各シート集約'!$I$7:$I$306,$W17,'006各シート集約'!V$7:V$306) -> 0 | AM17: =SUMIF('006各シート集約'!$I$7:$I$306,$W17,'006各シート集約'!W$7:W$306) -> 0 | AN17: =SUMIF('006各シート集約'!$I$7:$I$306,$W17,'006各シート集約'!X$7:X$306) -> 0
A18: 15 | B18: 新潟県 | D18: 新潟県 | E18: =SUMIF('006各シート集約'!$H$7:$H$306,$D18,'006各シート集約'!F$7:F$306) -> 0 | F18: =SUMIF('006各シート集約'!$H$7:$H$306,$D18,'006各シート集約'!G$7:G$306) -> 0 | G18: =SUMIF('006各シート集約'!$H$7:$H$306,$D18,'006各シート集約'!J$7:J$306) -> 0 | H18: =SUMIF('006各シート集約'!$H$7:$H$306,$D18,'006各シート集約'!K$7:K$306) -> 0 | I18: =SUMIF('006各シート集約'!$H$7:$H$306,$D18,'006各シート集約'!L$7:L$306) -> 0 | J18: =SUMIF('006各シート集約'!$H$7:$H$306,$D18,'006各シート集約'!M$7:M$306) -> 0 | K18: =SUMIF('006各シート集約'!$H$7:$H$306,$D18,'006各シート集約'!N$7:N$306) -> 0 | L18: =SUMIF('006各シート集約'!$H$7:$H$306,$D18,'006各シート集約'!O$7:O$306) -> 0 | M18: =SUMIF('006各シート集約'!$H$7:$H$306,$D18,'006各シート集約'!P$7:P$306) -> 0 | N18: =SUMIF('006各シート集約'!$H$7:$H$306,$D18,'006各シート集約'!Q$7:Q$306) -> 0 | O18: =SUMIF('006各シート集約'!$H$7:$H$306,$D18,'006各シート集約'!R$7:R$306) -> 0 | P18: =SUMIF('006各シート集約'!$H$7:$H$306,$D18,'006各シート集約'!S$7:S$306) -> 0 | Q18: =SUMIF('006各シート集約'!$H$7:$H$306,$D18,'006各シート集約'!T$7:T$306) -> 0 | R18: =SUMIF('006各シート集約'!$H$7:$H$306,$D18,'006各シート集約'!U$7:U$306) -> 0 | S18: =SUMIF('006各シート集約'!$H$7:$H$306,$D18,'006各シート集約'!V$7:V$306) -> 0 | T18: =SUMIF('006各シート集約'!$H$7:$H$306,$D18,'006各シート集約'!W$7:W$306) -> 0 | U18: =SUMIF('006各シート集約'!$H$7:$H$306,$D18,'006各シート集約'!X$7:X$306) -> 0 | W18: 新潟県 | X18: =SUMIF('006各シート集約'!$I$7:$I$306,$W18,'006各シート集約'!F$7:F$306) -> 0 | Y18: =SUMIF('006各シート集約'!$I$7:$I$306,$W18,'006各シート集約'!G$7:G$306) -> 0 | Z18: =SUMIF('006各シート集約'!$I$7:$I$306,$W18,'006各シート集約'!J$7:J$306) -> 0 | AA18: =SUMIF('006各シート集約'!$I$7:$I$306,$W18,'006各シート集約'!K$7:K$306) -> 0 | AB18: =SUMIF('006各シート集約'!$I$7:$I$306,$W18,'006各シート集約'!L$7:L$306) -> 0 | AC18: =SUMIF('006各シート集約'!$I$7:$I$306,$W18,'006各シート集約'!M$7:M$306) -> 0 | AD18: =SUMIF('006各シート集約'!$I$7:$I$306,$W18,'006各シート集約'!N$7:N$306) -> 0 | AE18: =SUMIF('006各シート集約'!$I$7:$I$306,$W18,'006各シート集約'!O$7:O$306) -> 0 | AF18: =SUMIF('006各シート集約'!$I$7:$I$306,$W18,'006各シート集約'!P$7:P$306) -> 0 | AG18: =SUMIF('006各シート集約'!$I$7:$I$306,$W18,'006各シート集約'!Q$7:Q$306) -> 0 | AH18: =SUMIF('006各シート集約'!$I$7:$I$306,$W18,'006各シート集約'!R$7:R$306) -> 0 | AI18: =SUMIF('006各シート集約'!$I$7:$I$306,$W18,'006各シート集約'!S$7:S$306) -> 0 | AJ18: =SUMIF('006各シート集約'!$I$7:$I$306,$W18,'006各シート集約'!T$7:T$306) -> 0 | AK18: =SUMIF('006各シート集約'!$I$7:$I$306,$W18,'006各シート集約'!U$7:U$306) -> 0 | AL18: =SUMIF('006各シート集約'!$I$7:$I$306,$W18,'006各シート集約'!V$7:V$306) -> 0 | AM18: =SUMIF('006各シート集約'!$I$7:$I$306,$W18,'006各シート集約'!W$7:W$306) -> 0 | AN18: =SUMIF('006各シート集約'!$I$7:$I$306,$W18,'006各シート集約'!X$7:X$306) -> 0
A19: 16 | B19: 富山県 | D19: 富山県 | E19: =SUMIF('006各シート集約'!$H$7:$H$306,$D19,'006各シート集約'!F$7:F$306) -> 0 | F19: =SUMIF('006各シート集約'!$H$7:$H$306,$D19,'006各シート集約'!G$7:G$306) -> 0 | G19: =SUMIF('006各シート集約'!$H$7:$H$306,$D19,'006各シート集約'!J$7:J$306) -> 0 | H19: =SUMIF('006各シート集約'!$H$7:$H$306,$D19,'006各シート集約'!K$7:K$306) -> 0 | I19: =SUMIF('006各シート集約'!$H$7:$H$306,$D19,'006各シート集約'!L$7:L$306) -> 0 | J19: =SUMIF('006各シート集約'!$H$7:$H$306,$D19,'006各シート集約'!M$7:M$306) -> 0 | K19: =SUMIF('006各シート集約'!$H$7:$H$306,$D19,'006各シート集約'!N$7:N$306) -> 0 | L19: =SUMIF('006各シート集約'!$H$7:$H$306,$D19,'006各シート集約'!O$7:O$306) -> 0 | M19: =SUMIF('006各シート集約'!$H$7:$H$306,$D19,'006各シート集約'!P$7:P$306) -> 0 | N19: =SUMIF('006各シート集約'!$H$7:$H$306,$D19,'006各シート集約'!Q$7:Q$306) -> 0 | O19: =SUMIF('006各シート集約'!$H$7:$H$306,$D19,'006各シート集約'!R$7:R$306) -> 0 | P19: =SUMIF('006各シート集約'!$H$7:$H$306,$D19,'006各シート集約'!S$7:S$306) -> 0 | Q19: =SUMIF('006各シート集約'!$H$7:$H$306,$D19,'006各シート集約'!T$7:T$306) -> 0 | R19: =SUMIF('006各シート集約'!$H$7:$H$306,$D19,'006各シート集約'!U$7:U$306) -> 0 | S19: =SUMIF('006各シート集約'!$H$7:$H$306,$D19,'006各シート集約'!V$7:V$306) -> 0 | T19: =SUMIF('006各シート集約'!$H$7:$H$306,$D19,'006各シート集約'!W$7:W$306) -> 0 | U19: =SUMIF('006各シート集約'!$H$7:$H$306,$D19,'006各シート集約'!X$7:X$306) -> 0 | W19: 富山県 | X19: =SUMIF('006各シート集約'!$I$7:$I$306,$W19,'006各シート集約'!F$7:F$306) -> 0 | Y19: =SUMIF('006各シート集約'!$I$7:$I$306,$W19,'006各シート集約'!G$7:G$306) -> 0 | Z19: =SUMIF('006各シート集約'!$I$7:$I$306,$W19,'006各シート集約'!J$7:J$306) -> 0 | AA19: =SUMIF('006各シート集約'!$I$7:$I$306,$W19,'006各シート集約'!K$7:K$306) -> 0 | AB19: =SUMIF('006各シート集約'!$I$7:$I$306,$W19,'006各シート集約'!L$7:L$306) -> 0 | AC19: =SUMIF('006各シート集約'!$I$7:$I$306,$W19,'006各シート集約'!M$7:M$306) -> 0 | AD19: =SUMIF('006各シート集約'!$I$7:$I$306,$W19,'006各シート集約'!N$7:N$306) -> 0 | AE19: =SUMIF('006各シート集約'!$I$7:$I$306,$W19,'006各シート集約'!O$7:O$306) -> 0 | AF19: =SUMIF('006各シート集約'!$I$7:$I$306,$W19,'006各シート集約'!P$7:P$306) -> 0 | AG19: =SUMIF('006各シート集約'!$I$7:$I$306,$W19,'006各シート集約'!Q$7:Q$306) -> 0 | AH19: =SUMIF('006各シート集約'!$I$7:$I$306,$W19,'006各シート集約'!R$7:R$306) -> 0 | AI19: =SUMIF('006各シート集約'!$I$7:$I$306,$W19,'006各シート集約'!S$7:S$306) -> 0 | AJ19: =SUMIF('006各シート集約'!$I$7:$I$306,$W19,'006各シート集約'!T$7:T$306) -> 0 | AK19: =SUMIF('006各シート集約'!$I$7:$I$306,$W19,'006各シート集約'!U$7:U$306) -> 0 | AL19: =SUMIF('006各シート集約'!$I$7:$I$306,$W19,'006各シート集約'!V$7:V$306) -> 0 | AM19: =SUMIF('006各シート集約'!$I$7:$I$306,$W19,'006各シート集約'!W$7:W$306) -> 0 | AN19: =SUMIF('006各シート集約'!$I$7:$I$306,$W19,'006各シート集約'!X$7:X$306) -> 0
A20: 17 | B20: 石川県 | D20: 石川県 | E20: =SUMIF('006各シート集約'!$H$7:$H$306,$D20,'006各シート集約'!F$7:F$306) -> 0 | F20: =SUMIF('006各シート集約'!$H$7:$H$306,$D20,'006各シート集約'!G$7:G$306) -> 0 | G20: =SUMIF('006各シート集約'!$H$7:$H$306,$D20,'006各シート集約'!J$7:J$306) -> 0 | H20: =SUMIF('006各シート集約'!$H$7:$H$306,$D20,'006各シート集約'!K$7:K$306) -> 0 | I20: =SUMIF('006各シート集約'!$H$7:$H$306,$D20,'006各シート集約'!L$7:L$306) -> 0 | J20: =SUMIF('006各シート集約'!$H$7:$H$306,$D20,'006各シート集約'!M$7:M$306) -> 0 | K20: =SUMIF('006各シート集約'!$H$7:$H$306,$D20,'006各シート集約'!N$7:N$306) -> 0 | L20: =SUMIF('006各シート集約'!$H$7:$H$306,$D20,'006各シート集約'!O$7:O$306) -> 0 | M20: =SUMIF('006各シート集約'!$H$7:$H$306,$D20,'006各シート集約'!P$7:P$306) -> 0 | N20: =SUMIF('006各シート集約'!$H$7:$H$306,$D20,'006各シート集約'!Q$7:Q$306) -> 0 | O20: =SUMIF('006各シート集約'!$H$7:$H$306,$D20,'006各シート集約'!R$7:R$306) -> 0 | P20: =SUMIF('006各シート集約'!$H$7:$H$306,$D20,'006各シート集約'!S$7:S$306) -> 0 | Q20: =SUMIF('006各シート集約'!$H$7:$H$306,$D20,'006各シート集約'!T$7:T$306) -> 0 | R20: =SUMIF('006各シート集約'!$H$7:$H$306,$D20,'006各シート集約'!U$7:U$306) -> 0 | S20: =SUMIF('006各シート集約'!$H$7:$H$306,$D20,'006各シート集約'!V$7:V$306) -> 0 | T20: =SUMIF('006各シート集約'!$H$7:$H$306,$D20,'006各シート集約'!W$7:W$306) -> 0 | U20: =SUMIF('006各シート集約'!$H$7:$H$306,$D20,'006各シート集約'!X$7:X$306) -> 0 | W20: 石川県 | X20: =SUMIF('006各シート集約'!$I$7:$I$306,$W20,'006各シート集約'!F$7:F$306) -> 0 | Y20: =SUMIF('006各シート集約'!$I$7:$I$306,$W20,'006各シート集約'!G$7:G$306) -> 0 | Z20: =SUMIF('006各シート集約'!$I$7:$I$306,$W20,'006各シート集約'!J$7:J$306) -> 0 | AA20: =SUMIF('006各シート集約'!$I$7:$I$306,$W20,'006各シート集約'!K$7:K$306) -> 0 | AB20: =SUMIF('006各シート集約'!$I$7:$I$306,$W20,'006各シート集約'!L$7:L$306) -> 0 | AC20: =SUMIF('006各シート集約'!$I$7:$I$306,$W20,'006各シート集約'!M$7:M$306) -> 0 | AD20: =SUMIF('006各シート集約'!$I$7:$I$306,$W20,'006各シート集約'!N$7:N$306) -> 0 | AE20: =SUMIF('006各シート集約'!$I$7:$I$306,$W20,'006各シート集約'!O$7:O$306) -> 0 | AF20: =SUMIF('006各シート集約'!$I$7:$I$306,$W20,'006各シート集約'!P$7:P$306) -> 0 | AG20: =SUMIF('006各シート集約'!$I$7:$I$306,$W20,'006各シート集約'!Q$7:Q$306) -> 0 | AH20: =SUMIF('006各シート集約'!$I$7:$I$306,$W20,'006各シート集約'!R$7:R$306) -> 0 | AI20: =SUMIF('006各シート集約'!$I$7:$I$306,$W20,'006各シート集約'!S$7:S$306) -> 0 | AJ20: =SUMIF('006各シート集約'!$I$7:$I$306,$W20,'006各シート集約'!T$7:T$306) -> 0 | AK20: =SUMIF('006各シート集約'!$I$7:$I$306,$W20,'006各シート集約'!U$7:U$306) -> 0 | AL20: =SUMIF('006各シート集約'!$I$7:$I$306,$W20,'006各シート集約'!V$7:V$306) -> 0 | AM20: =SUMIF('006各シート集約'!$I$7:$I$306,$W20,'006各シート集約'!W$7:W$306) -> 0 | AN20: =SUMIF('006各シート集約'!$I$7:$I$306,$W20,'006各シート集約'!X$7:X$306) -> 0
A21: 18 | B21: 福井県 | D21: 福井県 | E21: =SUMIF('006各シート集約'!$H$7:$H$306,$D21,'006各シート集約'!F$7:F$306) -> 0 | F21: =SUMIF('006各シート集約'!$H$7:$H$306,$D21,'006各シート集約'!G$7:G$306) -> 0 | G21: =SUMIF('006各シート集約'!$H$7:$H$306,$D21,'006各シート集約'!J$7:J$306) -> 0 | H21: =SUMIF('006各シート集約'!$H$7:$H$306,$D21,'006各シート集約'!K$7:K$306) -> 0 | I21: =SUMIF('006各シート集約'!$H$7:$H$306,$D21,'006各シート集約'!L$7:L$306) -> 0 | J21: =SUMIF('006各シート集約'!$H$7:$H$306,$D21,'006各シート集約'!M$7:M$306) -> 0 | K21: =SUMIF('006各シート集約'!$H$7:$H$306,$D21,'006各シート集約'!N$7:N$306) -> 0 | L21: =SUMIF('006各シート集約'!$H$7:$H$306,$D21,'006各シート集約'!O$7:O$306) -> 0 | M21: =SUMIF('006各シート集約'!$H$7:$H$306,$D21,'006各シート集約'!P$7:P$306) -> 0 | N21: =SUMIF('006各シート集約'!$H$7:$H$306,$D21,'006各シート集約'!Q$7:Q$306) -> 0 | O21: =SUMIF('006各シート集約'!$H$7:$H$306,$D21,'006各シート集約'!R$7:R$306) -> 0 | P21: =SUMIF('006各シート集約'!$H$7:$H$306,$D21,'006各シート集約'!S$7:S$306) -> 0 | Q21: =SUMIF('006各シート集約'!$H$7:$H$306,$D21,'006各シート集約'!T$7:T$306) -> 0 | R21: =SUMIF('006各シート集約'!$H$7:$H$306,$D21,'006各シート集約'!U$7:U$306) -> 0 | S21: =SUMIF('006各シート集約'!$H$7:$H$306,$D21,'006各シート集約'!V$7:V$306) -> 0 | T21: =SUMIF('006各シート集約'!$H$7:$H$306,$D21,'006各シート集約'!W$7:W$306) -> 0 | U21: =SUMIF('006各シート集約'!$H$7:$H$306,$D21,'006各シート集約'!X$7:X$306) -> 0 | W21: 福井県 | X21: =SUMIF('006各シート集約'!$I$7:$I$306,$W21,'006各シート集約'!F$7:F$306) -> 0 | Y21: =SUMIF('006各シート集約'!$I$7:$I$306,$W21,'006各シート集約'!G$7:G$306) -> 0 | Z21: =SUMIF('006各シート集約'!$I$7:$I$306,$W21,'006各シート集約'!J$7:J$306) -> 0 | AA21: =SUMIF('006各シート集約'!$I$7:$I$306,$W21,'006各シート集約'!K$7:K$306) -> 0 | AB21: =SUMIF('006各シート集約'!$I$7:$I$306,$W21,'006各シート集約'!L$7:L$306) -> 0 | AC21: =SUMIF('006各シート集約'!$I$7:$I$306,$W21,'006各シート集約'!M$7:M$306) -> 0 | AD21: =SUMIF('006各シート集約'!$I$7:$I$306,$W21,'006各シート集約'!N$7:N$306) -> 0 | AE21: =SUMIF('006各シート集約'!$I$7:$I$306,$W21,'006各シート集約'!O$7:O$306) -> 0 | AF21: =SUMIF('006各シート集約'!$I$7:$I$306,$W21,'006各シート集約'!P$7:P$306) -> 0 | AG21: =SUMIF('006各シート集約'!$I$7:$I$306,$W21,'006各シート集約'!Q$7:Q$306) -> 0 | AH21: =SUMIF('006各シート集約'!$I$7:$I$306,$W21,'006各シート集約'!R$7:R$306) -> 0 | AI21: =SUMIF('006各シート集約'!$I$7:$I$306,$W21,'006各シート集約'!S$7:S$306) -> 0 | AJ21: =SUMIF('006各シート集約'!$I$7:$I$306,$W21,'006各シート集約'!T$7:T$306) -> 0 | AK21: =SUMIF('006各シート集約'!$I$7:$I$306,$W21,'006各シート集約'!U$7:U$306) -> 0 | AL21: =SUMIF('006各シート集約'!$I$7:$I$306,$W21,'006各シート集約'!V$7:V$306) -> 0 | AM21: =SUMIF('006各シート集約'!$I$7:$I$306,$W21,'006各シート集約'!W$7:W$306) -> 0 | AN21: =SUMIF('006各シート集約'!$I$7:$I$306,$W21,'006各シート集約'!X$7:X$306) -> 0
A22: 19 | B22: 山梨県 | D22: 山梨県 | E22: =SUMIF('006各シート集約'!$H$7:$H$306,$D22,'006各シート集約'!F$7:F$306) -> 0 | F22: =SUMIF('006各シート集約'!$H$7:$H$306,$D22,'006各シート集約'!G$7:G$306) -> 0 | G22: =SUMIF('006各シート集約'!$H$7:$H$306,$D22,'006各シート集約'!J$7:J$306) -> 0 | H22: =SUMIF('006各シート集約'!$H$7:$H$306,$D22,'006各シート集約'!K$7:K$306) -> 0 | I22: =SUMIF('006各シート集約'!$H$7:$H$306,$D22,'006各シート集約'!L$7:L$306) -> 0 | J22: =SUMIF('006各シート集約'!$H$7:$H$306,$D22,'006各シート集約'!M$7:M$306) -> 0 | K22: =SUMIF('006各シート集約'!$H$7:$H$306,$D22,'006各シート集約'!N$7:N$306) -> 0 | L22: =SUMIF('006各シート集約'!$H$7:$H$306,$D22,'006各シート集約'!O$7:O$306) -> 0 | M22: =SUMIF('006各シート集約'!$H$7:$H$306,$D22,'006各シート集約'!P$7:P$306) -> 0 | N22: =SUMIF('006各シート集約'!$H$7:$H$306,$D22,'006各シート集約'!Q$7:Q$306) -> 0 | O22: =SUMIF('006各シート集約'!$H$7:$H$306,$D22,'006各シート集約'!R$7:R$306) -> 0 | P22: =SUMIF('006各シート集約'!$H$7:$H$306,$D22,'006各シート集約'!S$7:S$306) -> 0 | Q22: =SUMIF('006各シート集約'!$H$7:$H$306,$D22,'006各シート集約'!T$7:T$306) -> 0 | R22: =SUMIF('006各シート集約'!$H$7:$H$306,$D22,'006各シート集約'!U$7:U$306) -> 0 | S22: =SUMIF('006各シート集約'!$H$7:$H$306,$D22,'006各シート集約'!V$7:V$306) -> 0 | T22: =SUMIF('006各シート集約'!$H$7:$H$306,$D22,'006各シート集約'!W$7:W$306) -> 0 | U22: =SUMIF('006各シート集約'!$H$7:$H$306,$D22,'006各シート集約'!X$7:X$306) -> 0 | W22: 山梨県 | X22: =SUMIF('006各シート集約'!$I$7:$I$306,$W22,'006各シート集約'!F$7:F$306) -> 0 | Y22: =SUMIF('006各シート集約'!$I$7:$I$306,$W22,'006各シート集約'!G$7:G$306) -> 0 | Z22: =SUMIF('006各シート集約'!$I$7:$I$306,$W22,'006各シート集約'!J$7:J$306) -> 0 | AA22: =SUMIF('006各シート集約'!$I$7:$I$306,$W22,'006各シート集約'!K$7:K$306) -> 0 | AB22: =SUMIF('006各シート集約'!$I$7:$I$306,$W22,'006各シート集約'!L$7:L$306) -> 0 | AC22: =SUMIF('006各シート集約'!$I$7:$I$306,$W22,'006各シート集約'!M$7:M$306) -> 0 | AD22: =SUMIF('006各シート集約'!$I$7:$I$306,$W22,'006各シート集約'!N$7:N$306) -> 0 | AE22: =SUMIF('006各シート集約'!$I$7:$I$306,$W22,'006各シート集約'!O$7:O$306) -> 0 | AF22: =SUMIF('006各シート集約'!$I$7:$I$306,$W22,'006各シート集約'!P$7:P$306) -> 0 | AG22: =SUMIF('006各シート集約'!$I$7:$I$306,$W22,'006各シート集約'!Q$7:Q$306) -> 0 | AH22: =SUMIF('006各シート集約'!$I$7:$I$306,$W22,'006各シート集約'!R$7:R$306) -> 0 | AI22: =SUMIF('006各シート集約'!$I$7:$I$306,$W22,'006各シート集約'!S$7:S$306) -> 0 | AJ22: =SUMIF('006各シート集約'!$I$7:$I$306,$W22,'006各シート集約'!T$7:T$306) -> 0 | AK22: =SUMIF('006各シート集約'!$I$7:$I$306,$W22,'006各シート集約'!U$7:U$306) -> 0 | AL22: =SUMIF('006各シート集約'!$I$7:$I$306,$W22,'006各シート集約'!V$7:V$306) -> 0 | AM22: =SUMIF('006各シート集約'!$I$7:$I$306,$W22,'006各シート集約'!W$7:W$306) -> 0 | AN22: =SUMIF('006各シート集約'!$I$7:$I$306,$W22,'006各シート集約'!X$7:X$306) -> 0
A23: 20 | B23: 長野県 | D23: 長野県 | E23: =SUMIF('006各シート集約'!$H$7:$H$306,$D23,'006各シート集約'!F$7:F$306) -> 0 | F23: =SUMIF('006各シート集約'!$H$7:$H$306,$D23,'006各シート集約'!G$7:G$306) -> 0 | G23: =SUMIF('006各シート集約'!$H$7:$H$306,$D23,'006各シート集約'!J$7:J$306) -> 0 | H23: =SUMIF('006各シート集約'!$H$7:$H$306,$D23,'006各シート集約'!K$7:K$306) -> 0 | I23: =SUMIF('006各シート集約'!$H$7:$H$306,$D23,'006各シート集約'!L$7:L$306) -> 0 | J23: =SUMIF('006各シート集約'!$H$7:$H$306,$D23,'006各シート集約'!M$7:M$306) -> 0 | K23: =SUMIF('006各シート集約'!$H$7:$H$306,$D23,'006各シート集約'!N$7:N$306) -> 0 | L23: =SUMIF('006各シート集約'!$H$7:$H$306,$D23,'006各シート集約'!O$7:O$306) -> 0 | M23: =SUMIF('006各シート集約'!$H$7:$H$306,$D23,'006各シート集約'!P$7:P$306) -> 0 | N23: =SUMIF('006各シート集約'!$H$7:$H$306,$D23,'006各シート集約'!Q$7:Q$306) -> 0 | O23: =SUMIF('006各シート集約'!$H$7:$H$306,$D23,'006各シート集約'!R$7:R$306) -> 0 | P23: =SUMIF('006各シート集約'!$H$7:$H$306,$D23,'006各シート集約'!S$7:S$306) -> 0 | Q23: =SUMIF('006各シート集約'!$H$7:$H$306,$D23,'006各シート集約'!T$7:T$306) -> 0 | R23: =SUMIF('006各シート集約'!$H$7:$H$306,$D23,'006各シート集約'!U$7:U$306) -> 0 | S23: =SUMIF('006各シート集約'!$H$7:$H$306,$D23,'006各シート集約'!V$7:V$306) -> 0 | T23: =SUMIF('006各シート集約'!$H$7:$H$306,$D23,'006各シート集約'!W$7:W$306) -> 0 | U23: =SUMIF('006各シート集約'!$H$7:$H$306,$D23,'006各シート集約'!X$7:X$306) -> 0 | W23: 長野県 | X23: =SUMIF('006各シート集約'!$I$7:$I$306,$W23,'006各シート集約'!F$7:F$306) -> 0 | Y23: =SUMIF('006各シート集約'!$I$7:$I$306,$W23,'006各シート集約'!G$7:G$306) -> 0 | Z23: =SUMIF('006各シート集約'!$I$7:$I$306,$W23,'006各シート集約'!J$7:J$306) -> 0 | AA23: =SUMIF('006各シート集約'!$I$7:$I$306,$W23,'006各シート集約'!K$7:K$306) -> 0 | AB23: =SUMIF('006各シート集約'!$I$7:$I$306,$W23,'006各シート集約'!L$7:L$306) -> 0 | AC23: =SUMIF('006各シート集約'!$I$7:$I$306,$W23,'006各シート集約'!M$7:M$306) -> 0 | AD23: =SUMIF('006各シート集約'!$I$7:$I$306,$W23,'006各シート集約'!N$7:N$306) -> 0 | AE23: =SUMIF('006各シート集約'!$I$7:$I$306,$W23,'006各シート集約'!O$7:O$306) -> 0 | AF23: =SUMIF('006各シート集約'!$I$7:$I$306,$W23,'006各シート集約'!P$7:P$306) -> 0 | AG23: =SUMIF('006各シート集約'!$I$7:$I$306,$W23,'006各シート集約'!Q$7:Q$306) -> 0 | AH23: =SUMIF('006各シート集約'!$I$7:$I$306,$W23,'006各シート集約'!R$7:R$306) -> 0 | AI23: =SUMIF('006各シート集約'!$I$7:$I$306,$W23,'006各シート集約'!S$7:S$306) -> 0 | AJ23: =SUMIF('006各シート集約'!$I$7:$I$306,$W23,'006各シート集約'!T$7:T$306) -> 0 | AK23: =SUMIF('006各シート集約'!$I$7:$I$306,$W23,'006各シート集約'!U$7:U$306) -> 0 | AL23: =SUMIF('006各シート集約'!$I$7:$I$306,$W23,'006各シート集約'!V$7:V$306) -> 0 | AM23: =SUMIF('006各シート集約'!$I$7:$I$306,$W23,'006各シート集約'!W$7:W$306) -> 0 | AN23: =SUMIF('006各シート集約'!$I$7:$I$306,$W23,'006各シート集約'!X$7:X$306) -> 0
A24: 21 | B24: 岐阜県 | D24: 岐阜県 | E24: =SUMIF('006各シート集約'!$H$7:$H$306,$D24,'006各シート集約'!F$7:F$306) -> 0 | F24: =SUMIF('006各シート集約'!$H$7:$H$306,$D24,'006各シート集約'!G$7:G$306) -> 0 | G24: =SUMIF('006各シート集約'!$H$7:$H$306,$D24,'006各シート集約'!J$7:J$306) -> 0 | H24: =SUMIF('006各シート集約'!$H$7:$H$306,$D24,'006各シート集約'!K$7:K$306) -> 0 | I24: =SUMIF('006各シート集約'!$H$7:$H$306,$D24,'006各シート集約'!L$7:L$306) -> 0 | J24: =SUMIF('006各シート集約'!$H$7:$H$306,$D24,'006各シート集約'!M$7:M$306) -> 0 | K24: =SUMIF('006各シート集約'!$H$7:$H$306,$D24,'006各シート集約'!N$7:N$306) -> 0 | L24: =SUMIF('006各シート集約'!$H$7:$H$306,$D24,'006各シート集約'!O$7:O$306) -> 0 | M24: =SUMIF('006各シート集約'!$H$7:$H$306,$D24,'006各シート集約'!P$7:P$306) -> 0 | N24: =SUMIF('006各シート集約'!$H$7:$H$306,$D24,'006各シート集約'!Q$7:Q$306) -> 0 | O24: =SUMIF('006各シート集約'!$H$7:$H$306,$D24,'006各シート集約'!R$7:R$306) -> 0 | P24: =SUMIF('006各シート集約'!$H$7:$H$306,$D24,'006各シート集約'!S$7:S$306) -> 0 | Q24: =SUMIF('006各シート集約'!$H$7:$H$306,$D24,'006各シート集約'!T$7:T$306) -> 0 | R24: =SUMIF('006各シート集約'!$H$7:$H$306,$D24,'006各シート集約'!U$7:U$306) -> 0 | S24: =SUMIF('006各シート集約'!$H$7:$H$306,$D24,'006各シート集約'!V$7:V$306) -> 0 | T24: =SUMIF('006各シート集約'!$H$7:$H$306,$D24,'006各シート集約'!W$7:W$306) -> 0 | U24: =SUMIF('006各シート集約'!$H$7:$H$306,$D24,'006各シート集約'!X$7:X$306) -> 0 | W24: 岐阜県 | X24: =SUMIF('006各シート集約'!$I$7:$I$306,$W24,'006各シート集約'!F$7:F$306) -> 0 | Y24: =SUMIF('006各シート集約'!$I$7:$I$306,$W24,'006各シート集約'!G$7:G$306) -> 0 | Z24: =SUMIF('006各シート集約'!$I$7:$I$306,$W24,'006各シート集約'!J$7:J$306) -> 0 | AA24: =SUMIF('006各シート集約'!$I$7:$I$306,$W24,'006各シート集約'!K$7:K$306) -> 0 | AB24: =SUMIF('006各シート集約'!$I$7:$I$306,$W24,'006各シート集約'!L$7:L$306) -> 0 | AC24: =SUMIF('006各シート集約'!$I$7:$I$306,$W24,'006各シート集約'!M$7:M$306) -> 0 | AD24: =SUMIF('006各シート集約'!$I$7:$I$306,$W24,'006各シート集約'!N$7:N$306) -> 0 | AE24: =SUMIF('006各シート集約'!$I$7:$I$306,$W24,'006各シート集約'!O$7:O$306) -> 0 | AF24: =SUMIF('006各シート集約'!$I$7:$I$306,$W24,'006各シート集約'!P$7:P$306) -> 0 | AG24: =SUMIF('006各シート集約'!$I$7:$I$306,$W24,'006各シート集約'!Q$7:Q$306) -> 0 | AH24: =SUMIF('006各シート集約'!$I$7:$I$306,$W24,'006各シート集約'!R$7:R$306) -> 0 | AI24: =SUMIF('006各シート集約'!$I$7:$I$306,$W24,'006各シート集約'!S$7:S$306) -> 0 | AJ24: =SUMIF('006各シート集約'!$I$7:$I$306,$W24,'006各シート集約'!T$7:T$306) -> 0 | AK24: =SUMIF('006各シート集約'!$I$7:$I$306,$W24,'006各シート集約'!U$7:U$306) -> 0 | AL24: =SUMIF('006各シート集約'!$I$7:$I$306,$W24,'006各シート集約'!V$7:V$306) -> 0 | AM24: =SUMIF('006各シート集約'!$I$7:$I$306,$W24,'006各シート集約'!W$7:W$306) -> 0 | AN24: =SUMIF('006各シート集約'!$I$7:$I$306,$W24,'006各シート集約'!X$7:X$306) -> 0
A25: 22 | B25: 静岡県 | D25: 静岡県 | E25: =SUMIF('006各シート集約'!$H$7:$H$306,$D25,'006各シート集約'!F$7:F$306) -> 0 | F25: =SUMIF('006各シート集約'!$H$7:$H$306,$D25,'006各シート集約'!G$7:G$306) -> 0 | G25: =SUMIF('006各シート集約'!$H$7:$H$306,$D25,'006各シート集約'!J$7:J$306) -> 0 | H25: =SUMIF('006各シート集約'!$H$7:$H$306,$D25,'006各シート集約'!K$7:K$306) -> 0 | I25: =SUMIF('006各シート集約'!$H$7:$H$306,$D25,'006各シート集約'!L$7:L$306) -> 0 | J25: =SUMIF('006各シート集約'!$H$7:$H$306,$D25,'006各シート集約'!M$7:M$306) -> 0 | K25: =SUMIF('006各シート集約'!$H$7:$H$306,$D25,'006各シート集約'!N$7:N$306) -> 0 | L25: =SUMIF('006各シート集約'!$H$7:$H$306,$D25,'006各シート集約'!O$7:O$306) -> 0 | M25: =SUMIF('006各シート集約'!$H$7:$H$306,$D25,'006各シート集約'!P$7:P$306) -> 0 | N25: =SUMIF('006各シート集約'!$H$7:$H$306,$D25,'006各シート集約'!Q$7:Q$306) -> 0 | O25: =SUMIF('006各シート集約'!$H$7:$H$306,$D25,'006各シート集約'!R$7:R$306) -> 0 | P25: =SUMIF('006各シート集約'!$H$7:$H$306,$D25,'006各シート集約'!S$7:S$306) -> 0 | Q25: =SUMIF('006各シート集約'!$H$7:$H$306,$D25,'006各シート集約'!T$7:T$306) -> 0 | R25: =SUMIF('006各シート集約'!$H$7:$H$306,$D25,'006各シート集約'!U$7:U$306) -> 0 | S25: =SUMIF('006各シート集約'!$H$7:$H$306,$D25,'006各シート集約'!V$7:V$306) -> 0 | T25: =SUMIF('006各シート集約'!$H$7:$H$306,$D25,'006各シート集約'!W$7:W$306) -> 0 | U25: =SUMIF('006各シート集約'!$H$7:$H$306,$D25,'006各シート集約'!X$7:X$306) -> 0 | W25: 静岡県 | X25: =SUMIF('006各シート集約'!$I$7:$I$306,$W25,'006各シート集約'!F$7:F$306) -> 0 | Y25: =SUMIF('006各シート集約'!$I$7:$I$306,$W25,'006各シート集約'!G$7:G$306) -> 0 | Z25: =SUMIF('006各シート集約'!$I$7:$I$306,$W25,'006各シート集約'!J$7:J$306) -> 0 | AA25: =SUMIF('006各シート集約'!$I$7:$I$306,$W25,'006各シート集約'!K$7:K$306) -> 0 | AB25: =SUMIF('006各シート集約'!$I$7:$I$306,$W25,'006各シート集約'!L$7:L$306) -> 0 | AC25: =SUMIF('006各シート集約'!$I$7:$I$306,$W25,'006各シート集約'!M$7:M$306) -> 0 | AD25: =SUMIF('006各シート集約'!$I$7:$I$306,$W25,'006各シート集約'!N$7:N$306) -> 0 | AE25: =SUMIF('006各シート集約'!$I$7:$I$306,$W25,'006各シート集約'!O$7:O$306) -> 0 | AF25: =SUMIF('006各シート集約'!$I$7:$I$306,$W25,'006各シート集約'!P$7:P$306) -> 0 | AG25: =SUMIF('006各シート集約'!$I$7:$I$306,$W25,'006各シート集約'!Q$7:Q$306) -> 0 | AH25: =SUMIF('006各シート集約'!$I$7:$I$306,$W25,'006各シート集約'!R$7:R$306) -> 0 | AI25: =SUMIF('006各シート集約'!$I$7:$I$306,$W25,'006各シート集約'!S$7:S$306) -> 0 | AJ25: =SUMIF('006各シート集約'!$I$7:$I$306,$W25,'006各シート集約'!T$7:T$306) -> 0 | AK25: =SUMIF('006各シート集約'!$I$7:$I$306,$W25,'006各シート集約'!U$7:U$306) -> 0 | AL25: =SUMIF('006各シート集約'!$I$7:$I$306,$W25,'006各シート集約'!V$7:V$306) -> 0 | AM25: =SUMIF('006各シート集約'!$I$7:$I$306,$W25,'006各シート集約'!W$7:W$306) -> 0 | AN25: =SUMIF('006各シート集約'!$I$7:$I$306,$W25,'006各シート集約'!X$7:X$306) -> 0
A26: 23 | B26: 愛知県 | D26: 愛知県 | E26: =SUMIF('006各シート集約'!$H$7:$H$306,$D26,'006各シート集約'!F$7:F$306) -> 0 | F26: =SUMIF('006各シート集約'!$H$7:$H$306,$D26,'006各シート集約'!G$7:G$306) -> 0 | G26: =SUMIF('006各シート集約'!$H$7:$H$306,$D26,'006各シート集約'!J$7:J$306) -> 0 | H26: =SUMIF('006各シート集約'!$H$7:$H$306,$D26,'006各シート集約'!K$7:K$306) -> 0 | I26: =SUMIF('006各シート集約'!$H$7:$H$306,$D26,'006各シート集約'!L$7:L$306) -> 0 | J26: =SUMIF('006各シート集約'!$H$7:$H$306,$D26,'006各シート集約'!M$7:M$306) -> 0 | K26: =SUMIF('006各シート集約'!$H$7:$H$306,$D26,'006各シート集約'!N$7:N$306) -> 0 | L26: =SUMIF('006各シート集約'!$H$7:$H$306,$D26,'006各シート集約'!O$7:O$306) -> 0 | M26: =SUMIF('006各シート集約'!$H$7:$H$306,$D26,'006各シート集約'!P$7:P$306) -> 0 | N26: =SUMIF('006各シート集約'!$H$7:$H$306,$D26,'006各シート集約'!Q$7:Q$306) -> 0 | O26: =SUMIF('006各シート集約'!$H$7:$H$306,$D26,'006各シート集約'!R$7:R$306) -> 0 | P26: =SUMIF('006各シート集約'!$H$7:$H$306,$D26,'006各シート集約'!S$7:S$306) -> 0 | Q26: =SUMIF('006各シート集約'!$H$7:$H$306,$D26,'006各シート集約'!T$7:T$306) -> 0 | R26: =SUMIF('006各シート集約'!$H$7:$H$306,$D26,'006各シート集約'!U$7:U$306) -> 0 | S26: =SUMIF('006各シート集約'!$H$7:$H$306,$D26,'006各シート集約'!V$7:V$306) -> 0 | T26: =SUMIF('006各シート集約'!$H$7:$H$306,$D26,'006各シート集約'!W$7:W$306) -> 0 | U26: =SUMIF('006各シート集約'!$H$7:$H$306,$D26,'006各シート集約'!X$7:X$306) -> 0 | W26: 愛知県 | X26: =SUMIF('006各シート集約'!$I$7:$I$306,$W26,'006各シート集約'!F$7:F$306) -> 0 | Y26: =SUMIF('006各シート集約'!$I$7:$I$306,$W26,'006各シート集約'!G$7:G$306) -> 0 | Z26: =SUMIF('006各シート集約'!$I$7:$I$306,$W26,'006各シート集約'!J$7:J$306) -> 0 | AA26: =SUMIF('006各シート集約'!$I$7:$I$306,$W26,'006各シート集約'!K$7:K$306) -> 0 | AB26: =SUMIF('006各シート集約'!$I$7:$I$306,$W26,'006各シート集約'!L$7:L$306) -> 0 | AC26: =SUMIF('006各シート集約'!$I$7:$I$306,$W26,'006各シート集約'!M$7:M$306) -> 0 | AD26: =SUMIF('006各シート集約'!$I$7:$I$306,$W26,'006各シート集約'!N$7:N$306) -> 0 | AE26: =SUMIF('006各シート集約'!$I$7:$I$306,$W26,'006各シート集約'!O$7:O$306) -> 0 | AF26: =SUMIF('006各シート集約'!$I$7:$I$306,$W26,'006各シート集約'!P$7:P$306) -> 0 | AG26: =SUMIF('006各シート集約'!$I$7:$I$306,$W26,'006各シート集約'!Q$7:Q$306) -> 0 | AH26: =SUMIF('006各シート集約'!$I$7:$I$306,$W26,'006各シート集約'!R$7:R$306) -> 0 | AI26: =SUMIF('006各シート集約'!$I$7:$I$306,$W26,'006各シート集約'!S$7:S$306) -> 0 | AJ26: =SUMIF('006各シート集約'!$I$7:$I$306,$W26,'006各シート集約'!T$7:T$306) -> 0 | AK26: =SUMIF('006各シート集約'!$I$7:$I$306,$W26,'006各シート集約'!U$7:U$306) -> 0 | AL26: =SUMIF('006各シート集約'!$I$7:$I$306,$W26,'006各シート集約'!V$7:V$306) -> 0 | AM26: =SUMIF('006各シート集約'!$I$7:$I$306,$W26,'006各シート集約'!W$7:W$306) -> 0 | AN26: =SUMIF('006各シート集約'!$I$7:$I$306,$W26,'006各シート集約'!X$7:X$306) -> 0
A27: 24 | B27: 三重県 | D27: 三重県 | E27: =SUMIF('006各シート集約'!$H$7:$H$306,$D27,'006各シート集約'!F$7:F$306) -> 0 | F27: =SUMIF('006各シート集約'!$H$7:$H$306,$D27,'006各シート集約'!G$7:G$306) -> 0 | G27: =SUMIF('006各シート集約'!$H$7:$H$306,$D27,'006各シート集約'!J$7:J$306) -> 0 | H27: =SUMIF('006各シート集約'!$H$7:$H$306,$D27,'006各シート集約'!K$7:K$306) -> 0 | I27: =SUMIF('006各シート集約'!$H$7:$H$306,$D27,'006各シート集約'!L$7:L$306) -> 0 | J27: =SUMIF('006各シート集約'!$H$7:$H$306,$D27,'006各シート集約'!M$7:M$306) -> 0 | K27: =SUMIF('006各シート集約'!$H$7:$H$306,$D27,'006各シート集約'!N$7:N$306) -> 0 | L27: =SUMIF('006各シート集約'!$H$7:$H$306,$D27,'006各シート集約'!O$7:O$306) -> 0 | M27: =SUMIF('006各シート集約'!$H$7:$H$306,$D27,'006各シート集約'!P$7:P$306) -> 0 | N27: =SUMIF('006各シート集約'!$H$7:$H$306,$D27,'006各シート集約'!Q$7:Q$306) -> 0 | O27: =SUMIF('006各シート集約'!$H$7:$H$306,$D27,'006各シート集約'!R$7:R$306) -> 0 | P27: =SUMIF('006各シート集約'!$H$7:$H$306,$D27,'006各シート集約'!S$7:S$306) -> 0 | Q27: =SUMIF('006各シート集約'!$H$7:$H$306,$D27,'006各シート集約'!T$7:T$306) -> 0 | R27: =SUMIF('006各シート集約'!$H$7:$H$306,$D27,'006各シート集約'!U$7:U$306) -> 0 | S27: =SUMIF('006各シート集約'!$H$7:$H$306,$D27,'006各シート集約'!V$7:V$306) -> 0 | T27: =SUMIF('006各シート集約'!$H$7:$H$306,$D27,'006各シート集約'!W$7:W$306) -> 0 | U27: =SUMIF('006各シート集約'!$H$7:$H$306,$D27,'006各シート集約'!X$7:X$306) -> 0 | W27: 三重県 | X27: =SUMIF('006各シート集約'!$I$7:$I$306,$W27,'006各シート集約'!F$7:F$306) -> 0 | Y27: =SUMIF('006各シート集約'!$I$7:$I$306,$W27,'006各シート集約'!G$7:G$306) -> 0 | Z27: =SUMIF('006各シート集約'!$I$7:$I$306,$W27,'006各シート集約'!J$7:J$306) -> 0 | AA27: =SUMIF('006各シート集約'!$I$7:$I$306,$W27,'006各シート集約'!K$7:K$306) -> 0 | AB27: =SUMIF('006各シート集約'!$I$7:$I$306,$W27,'006各シート集約'!L$7:L$306) -> 0 | AC27: =SUMIF('006各シート集約'!$I$7:$I$306,$W27,'006各シート集約'!M$7:M$306) -> 0 | AD27: =SUMIF('006各シート集約'!$I$7:$I$306,$W27,'006各シート集約'!N$7:N$306) -> 0 | AE27: =SUMIF('006各シート集約'!$I$7:$I$306,$W27,'006各シート集約'!O$7:O$306) -> 0 | AF27: =SUMIF('006各シート集約'!$I$7:$I$306,$W27,'006各シート集約'!P$7:P$306) -> 0 | AG27: =SUMIF('006各シート集約'!$I$7:$I$306,$W27,'006各シート集約'!Q$7:Q$306) -> 0 | AH27: =SUMIF('006各シート集約'!$I$7:$I$306,$W27,'006各シート集約'!R$7:R$306) -> 0 | AI27: =SUMIF('006各シート集約'!$I$7:$I$306,$W27,'006各シート集約'!S$7:S$306) -> 0 | AJ27: =SUMIF('006各シート集約'!$I$7:$I$306,$W27,'006各シート集約'!T$7:T$306) -> 0 | AK27: =SUMIF('006各シート集約'!$I$7:$I$306,$W27,'006各シート集約'!U$7:U$306) -> 0 | AL27: =SUMIF('006各シート集約'!$I$7:$I$306,$W27,'006各シート集約'!V$7:V$306) -> 0 | AM27: =SUMIF('006各シート集約'!$I$7:$I$306,$W27,'006各シート集約'!W$7:W$306) -> 0 | AN27: =SUMIF('006各シート集約'!$I$7:$I$306,$W27,'006各シート集約'!X$7:X$306) -> 0
A28: 25 | B28: 滋賀県 | D28: 滋賀県 | E28: =SUMIF('006各シート集約'!$H$7:$H$306,$D28,'006各シート集約'!F$7:F$306) -> 0 | F28: =SUMIF('006各シート集約'!$H$7:$H$306,$D28,'006各シート集約'!G$7:G$306) -> 0 | G28: =SUMIF('006各シート集約'!$H$7:$H$306,$D28,'006各シート集約'!J$7:J$306) -> 0 | H28: =SUMIF('006各シート集約'!$H$7:$H$306,$D28,'006各シート集約'!K$7:K$306) -> 0 | I28: =SUMIF('006各シート集約'!$H$7:$H$306,$D28,'006各シート集約'!L$7:L$306) -> 0 | J28: =SUMIF('006各シート集約'!$H$7:$H$306,$D28,'006各シート集約'!M$7:M$306) -> 0 | K28: =SUMIF('006各シート集約'!$H$7:$H$306,$D28,'006各シート集約'!N$7:N$306) -> 0 | L28: =SUMIF('006各シート集約'!$H$7:$H$306,$D28,'006各シート集約'!O$7:O$306) -> 0 | M28: =SUMIF('006各シート集約'!$H$7:$H$306,$D28,'006各シート集約'!P$7:P$306) -> 0 | N28: =SUMIF('006各シート集約'!$H$7:$H$306,$D28,'006各シート集約'!Q$7:Q$306) -> 0 | O28: =SUMIF('006各シート集約'!$H$7:$H$306,$D28,'006各シート集約'!R$7:R$306) -> 0 | P28: =SUMIF('006各シート集約'!$H$7:$H$306,$D28,'006各シート集約'!S$7:S$306) -> 0 | Q28: =SUMIF('006各シート集約'!$H$7:$H$306,$D28,'006各シート集約'!T$7:T$306) -> 0 | R28: =SUMIF('006各シート集約'!$H$7:$H$306,$D28,'006各シート集約'!U$7:U$306) -> 0 | S28: =SUMIF('006各シート集約'!$H$7:$H$306,$D28,'006各シート集約'!V$7:V$306) -> 0 | T28: =SUMIF('006各シート集約'!$H$7:$H$306,$D28,'006各シート集約'!W$7:W$306) -> 0 | U28: =SUMIF('006各シート集約'!$H$7:$H$306,$D28,'006各シート集約'!X$7:X$306) -> 0 | W28: 滋賀県 | X28: =SUMIF('006各シート集約'!$I$7:$I$306,$W28,'006各シート集約'!F$7:F$306) -> 0 | Y28: =SUMIF('006各シート集約'!$I$7:$I$306,$W28,'006各シート集約'!G$7:G$306) -> 0 | Z28: =SUMIF('006各シート集約'!$I$7:$I$306,$W28,'006各シート集約'!J$7:J$306) -> 0 | AA28: =SUMIF('006各シート集約'!$I$7:$I$306,$W28,'006各シート集約'!K$7:K$306) -> 0 | AB28: =SUMIF('006各シート集約'!$I$7:$I$306,$W28,'006各シート集約'!L$7:L$306) -> 0 | AC28: =SUMIF('006各シート集約'!$I$7:$I$306,$W28,'006各シート集約'!M$7:M$306) -> 0 | AD28: =SUMIF('006各シート集約'!$I$7:$I$306,$W28,'006各シート集約'!N$7:N$306) -> 0 | AE28: =SUMIF('006各シート集約'!$I$7:$I$306,$W28,'006各シート集約'!O$7:O$306) -> 0 | AF28: =SUMIF('006各シート集約'!$I$7:$I$306,$W28,'006各シート集約'!P$7:P$306) -> 0 | AG28: =SUMIF('006各シート集約'!$I$7:$I$306,$W28,'006各シート集約'!Q$7:Q$306) -> 0 | AH28: =SUMIF('006各シート集約'!$I$7:$I$306,$W28,'006各シート集約'!R$7:R$306) -> 0 | AI28: =SUMIF('006各シート集約'!$I$7:$I$306,$W28,'006各シート集約'!S$7:S$306) -> 0 | AJ28: =SUMIF('006各シート集約'!$I$7:$I$306,$W28,'006各シート集約'!T$7:T$306) -> 0 | AK28: =SUMIF('006各シート集約'!$I$7:$I$306,$W28,'006各シート集約'!U$7:U$306) -> 0 | AL28: =SUMIF('006各シート集約'!$I$7:$I$306,$W28,'006各シート集約'!V$7:V$306) -> 0 | AM28: =SUMIF('006各シート集約'!$I$7:$I$306,$W28,'006各シート集約'!W$7:W$306) -> 0 | AN28: =SUMIF('006各シート集約'!$I$7:$I$306,$W28,'006各シート集約'!X$7:X$306) -> 0
A29: 26 | B29: 京都府 | D29: 京都府 | E29: =SUMIF('006各シート集約'!$H$7:$H$306,$D29,'006各シート集約'!F$7:F$306) -> 0 | F29: =SUMIF('006各シート集約'!$H$7:$H$306,$D29,'006各シート集約'!G$7:G$306) -> 0 | G29: =SUMIF('006各シート集約'!$H$7:$H$306,$D29,'006各シート集約'!J$7:J$306) -> 0 | H29: =SUMIF('006各シート集約'!$H$7:$H$306,$D29,'006各シート集約'!K$7:K$306) -> 0 | I29: =SUMIF('006各シート集約'!$H$7:$H$306,$D29,'006各シート集約'!L$7:L$306) -> 0 | J29: =SUMIF('006各シート集約'!$H$7:$H$306,$D29,'006各シート集約'!M$7:M$306) -> 0 | K29: =SUMIF('006各シート集約'!$H$7:$H$306,$D29,'006各シート集約'!N$7:N$306) -> 0 | L29: =SUMIF('006各シート集約'!$H$7:$H$306,$D29,'006各シート集約'!O$7:O$306) -> 0 | M29: =SUMIF('006各シート集約'!$H$7:$H$306,$D29,'006各シート集約'!P$7:P$306) -> 0 | N29: =SUMIF('006各シート集約'!$H$7:$H$306,$D29,'006各シート集約'!Q$7:Q$306) -> 0 | O29: =SUMIF('006各シート集約'!$H$7:$H$306,$D29,'006各シート集約'!R$7:R$306) -> 0 | P29: =SUMIF('006各シート集約'!$H$7:$H$306,$D29,'006各シート集約'!S$7:S$306) -> 0 | Q29: =SUMIF('006各シート集約'!$H$7:$H$306,$D29,'006各シート集約'!T$7:T$306) -> 0 | R29: =SUMIF('006各シート集約'!$H$7:$H$306,$D29,'006各シート集約'!U$7:U$306) -> 0 | S29: =SUMIF('006各シート集約'!$H$7:$H$306,$D29,'006各シート集約'!V$7:V$306) -> 0 | T29: =SUMIF('006各シート集約'!$H$7:$H$306,$D29,'006各シート集約'!W$7:W$306) -> 0 | U29: =SUMIF('006各シート集約'!$H$7:$H$306,$D29,'006各シート集約'!X$7:X$306) -> 0 | W29: 京都府 | X29: =SUMIF('006各シート集約'!$I$7:$I$306,$W29,'006各シート集約'!F$7:F$306) -> 0 | Y29: =SUMIF('006各シート集約'!$I$7:$I$306,$W29,'006各シート集約'!G$7:G$306) -> 0 | Z29: =SUMIF('006各シート集約'!$I$7:$I$306,$W29,'006各シート集約'!J$7:J$306) -> 0 | AA29: =SUMIF('006各シート集約'!$I$7:$I$306,$W29,'006各シート集約'!K$7:K$306) -> 0 | AB29: =SUMIF('006各シート集約'!$I$7:$I$306,$W29,'006各シート集約'!L$7:L$306) -> 0 | AC29: =SUMIF('006各シート集約'!$I$7:$I$306,$W29,'006各シート集約'!M$7:M$306) -> 0 | AD29: =SUMIF('006各シート集約'!$I$7:$I$306,$W29,'006各シート集約'!N$7:N$306) -> 0 | AE29: =SUMIF('006各シート集約'!$I$7:$I$306,$W29,'006各シート集約'!O$7:O$306) -> 0 | AF29: =SUMIF('006各シート集約'!$I$7:$I$306,$W29,'006各シート集約'!P$7:P$306) -> 0 | AG29: =SUMIF('006各シート集約'!$I$7:$I$306,$W29,'006各シート集約'!Q$7:Q$306) -> 0 | AH29: =SUMIF('006各シート集約'!$I$7:$I$306,$W29,'006各シート集約'!R$7:R$306) -> 0 | AI29: =SUMIF('006各シート集約'!$I$7:$I$306,$W29,'006各シート集約'!S$7:S$306) -> 0 | AJ29: =SUMIF('006各シート集約'!$I$7:$I$306,$W29,'006各シート集約'!T$7:T$306) -> 0 | AK29: =SUMIF('006各シート集約'!$I$7:$I$306,$W29,'006各シート集約'!U$7:U$306) -> 0 | AL29: =SUMIF('006各シート集約'!$I$7:$I$306,$W29,'006各シート集約'!V$7:V$306) -> 0 | AM29: =SUMIF('006各シート集約'!$I$7:$I$306,$W29,'006各シート集約'!W$7:W$306) -> 0 | AN29: =SUMIF('006各シート集約'!$I$7:$I$306,$W29,'006各シート集約'!X$7:X$306) -> 0
A30: 27 | B30: 大阪府 | D30: 大阪府 | E30: =SUMIF('006各シート集約'!$H$7:$H$306,$D30,'006各シート集約'!F$7:F$306) -> 0 | F30: =SUMIF('006各シート集約'!$H$7:$H$306,$D30,'006各シート集約'!G$7:G$306) -> 0 | G30: =SUMIF('006各シート集約'!$H$7:$H$306,$D30,'006各シート集約'!J$7:J$306) -> 0 | H30: =SUMIF('006各シート集約'!$H$7:$H$306,$D30,'006各シート集約'!K$7:K$306) -> 0 | I30: =SUMIF('006各シート集約'!$H$7:$H$306,$D30,'006各シート集約'!L$7:L$306) -> 0 | J30: =SUMIF('006各シート集約'!$H$7:$H$306,$D30,'006各シート集約'!M$7:M$306) -> 0 | K30: =SUMIF('006各シート集約'!$H$7:$H$306,$D30,'006各シート集約'!N$7:N$306) -> 0 | L30: =SUMIF('006各シート集約'!$H$7:$H$306,$D30,'006各シート集約'!O$7:O$306) -> 0 | M30: =SUMIF('006各シート集約'!$H$7:$H$306,$D30,'006各シート集約'!P$7:P$306) -> 0 | N30: =SUMIF('006各シート集約'!$H$7:$H$306,$D30,'006各シート集約'!Q$7:Q$306) -> 0 | O30: =SUMIF('006各シート集約'!$H$7:$H$306,$D30,'006各シート集約'!R$7:R$306) -> 0 | P30: =SUMIF('006各シート集約'!$H$7:$H$306,$D30,'006各シート集約'!S$7:S$306) -> 0 | Q30: =SUMIF('006各シート集約'!$H$7:$H$306,$D30,'006各シート集約'!T$7:T$306) -> 0 | R30: =SUMIF('006各シート集約'!$H$7:$H$306,$D30,'006各シート集約'!U$7:U$306) -> 0 | S30: =SUMIF('006各シート集約'!$H$7:$H$306,$D30,'006各シート集約'!V$7:V$306) -> 0 | T30: =SUMIF('006各シート集約'!$H$7:$H$306,$D30,'006各シート集約'!W$7:W$306) -> 0 | U30: =SUMIF('006各シート集約'!$H$7:$H$306,$D30,'006各シート集約'!X$7:X$306) -> 0 | W30: 大阪府 | X30: =SUMIF('006各シート集約'!$I$7:$I$306,$W30,'006各シート集約'!F$7:F$306) -> 0 | Y30: =SUMIF('006各シート集約'!$I$7:$I$306,$W30,'006各シート集約'!G$7:G$306) -> 0 | Z30: =SUMIF('006各シート集約'!$I$7:$I$306,$W30,'006各シート集約'!J$7:J$306) -> 0 | AA30: =SUMIF('006各シート集約'!$I$7:$I$306,$W30,'006各シート集約'!K$7:K$306) -> 0 | AB30: =SUMIF('006各シート集約'!$I$7:$I$306,$W30,'006各シート集約'!L$7:L$306) -> 0 | AC30: =SUMIF('006各シート集約'!$I$7:$I$306,$W30,'006各シート集約'!M$7:M$306) -> 0 | AD30: =SUMIF('006各シート集約'!$I$7:$I$306,$W30,'006各シート集約'!N$7:N$306) -> 0 | AE30: =SUMIF('006各シート集約'!$I$7:$I$306,$W30,'006各シート集約'!O$7:O$306) -> 0 | AF30: =SUMIF('006各シート集約'!$I$7:$I$306,$W30,'006各シート集約'!P$7:P$306) -> 0 | AG30: =SUMIF('006各シート集約'!$I$7:$I$306,$W30,'006各シート集約'!Q$7:Q$306) -> 0 | AH30: =SUMIF('006各シート集約'!$I$7:$I$306,$W30,'006各シート集約'!R$7:R$306) -> 0 | AI30: =SUMIF('006各シート集約'!$I$7:$I$306,$W30,'006各シート集約'!S$7:S$306) -> 0 | AJ30: =SUMIF('006各シート集約'!$I$7:$I$306,$W30,'006各シート集約'!T$7:T$306) -> 0 | AK30: =SUMIF('006各シート集約'!$I$7:$I$306,$W30,'006各シート集約'!U$7:U$306) -> 0 | AL30: =SUMIF('006各シート集約'!$I$7:$I$306,$W30,'006各シート集約'!V$7:V$306) -> 0 | AM30: =SUMIF('006各シート集約'!$I$7:$I$306,$W30,'006各シート集約'!W$7:W$306) -> 0 | AN30: =SUMIF('006各シート集約'!$I$7:$I$306,$W30,'006各シート集約'!X$7:X$306) -> 0
A31: 28 | B31: 兵庫県 | D31: 兵庫県 | E31: =SUMIF('006各シート集約'!$H$7:$H$306,$D31,'006各シート集約'!F$7:F$306) -> 0 | F31: =SUMIF('006各シート集約'!$H$7:$H$306,$D31,'006各シート集約'!G$7:G$306) -> 0 | G31: =SUMIF('006各シート集約'!$H$7:$H$306,$D31,'006各シート集約'!J$7:J$306) -> 0 | H31: =SUMIF('006各シート集約'!$H$7:$H$306,$D31,'006各シート集約'!K$7:K$306) -> 0 | I31: =SUMIF('006各シート集約'!$H$7:$H$306,$D31,'006各シート集約'!L$7:L$306) -> 0 | J31: =SUMIF('006各シート集約'!$H$7:$H$306,$D31,'006各シート集約'!M$7:M$306) -> 0 | K31: =SUMIF('006各シート集約'!$H$7:$H$306,$D31,'006各シート集約'!N$7:N$306) -> 0 | L31: =SUMIF('006各シート集約'!$H$7:$H$306,$D31,'006各シート集約'!O$7:O$306) -> 0 | M31: =SUMIF('006各シート集約'!$H$7:$H$306,$D31,'006各シート集約'!P$7:P$306) -> 0 | N31: =SUMIF('006各シート集約'!$H$7:$H$306,$D31,'006各シート集約'!Q$7:Q$306) -> 0 | O31: =SUMIF('006各シート集約'!$H$7:$H$306,$D31,'006各シート集約'!R$7:R$306) -> 0 | P31: =SUMIF('006各シート集約'!$H$7:$H$306,$D31,'006各シート集約'!S$7:S$306) -> 0 | Q31: =SUMIF('006各シート集約'!$H$7:$H$306,$D31,'006各シート集約'!T$7:T$306) -> 0 | R31: =SUMIF('006各シート集約'!$H$7:$H$306,$D31,'006各シート集約'!U$7:U$306) -> 0 | S31: =SUMIF('006各シート集約'!$H$7:$H$306,$D31,'006各シート集約'!V$7:V$306) -> 0 | T31: =SUMIF('006各シート集約'!$H$7:$H$306,$D31,'006各シート集約'!W$7:W$306) -> 0 | U31: =SUMIF('006各シート集約'!$H$7:$H$306,$D31,'006各シート集約'!X$7:X$306) -> 0 | W31: 兵庫県 | X31: =SUMIF('006各シート集約'!$I$7:$I$306,$W31,'006各シート集約'!F$7:F$306) -> 0 | Y31: =SUMIF('006各シート集約'!$I$7:$I$306,$W31,'006各シート集約'!G$7:G$306) -> 0 | Z31: =SUMIF('006各シート集約'!$I$7:$I$306,$W31,'006各シート集約'!J$7:J$306) -> 0 | AA31: =SUMIF('006各シート集約'!$I$7:$I$306,$W31,'006各シート集約'!K$7:K$306) -> 0 | AB31: =SUMIF('006各シート集約'!$I$7:$I$306,$W31,'006各シート集約'!L$7:L$306) -> 0 | AC31: =SUMIF('006各シート集約'!$I$7:$I$306,$W31,'006各シート集約'!M$7:M$306) -> 0 | AD31: =SUMIF('006各シート集約'!$I$7:$I$306,$W31,'006各シート集約'!N$7:N$306) -> 0 | AE31: =SUMIF('006各シート集約'!$I$7:$I$306,$W31,'006各シート集約'!O$7:O$306) -> 0 | AF31: =SUMIF('006各シート集約'!$I$7:$I$306,$W31,'006各シート集約'!P$7:P$306) -> 0 | AG31: =SUMIF('006各シート集約'!$I$7:$I$306,$W31,'006各シート集約'!Q$7:Q$306) -> 0 | AH31: =SUMIF('006各シート集約'!$I$7:$I$306,$W31,'006各シート集約'!R$7:R$306) -> 0 | AI31: =SUMIF('006各シート集約'!$I$7:$I$306,$W31,'006各シート集約'!S$7:S$306) -> 0 | AJ31: =SUMIF('006各シート集約'!$I$7:$I$306,$W31,'006各シート集約'!T$7:T$306) -> 0 | AK31: =SUMIF('006各シート集約'!$I$7:$I$306,$W31,'006各シート集約'!U$7:U$306) -> 0 | AL31: =SUMIF('006各シート集約'!$I$7:$I$306,$W31,'006各シート集約'!V$7:V$306) -> 0 | AM31: =SUMIF('006各シート集約'!$I$7:$I$306,$W31,'006各シート集約'!W$7:W$306) -> 0 | AN31: =SUMIF('006各シート集約'!$I$7:$I$306,$W31,'006各シート集約'!X$7:X$306) -> 0
A32: 29 | B32: 奈良県 | D32: 奈良県 | E32: =SUMIF('006各シート集約'!$H$7:$H$306,$D32,'006各シート集約'!F$7:F$306) -> 0 | F32: =SUMIF('006各シート集約'!$H$7:$H$306,$D32,'006各シート集約'!G$7:G$306) -> 0 | G32: =SUMIF('006各シート集約'!$H$7:$H$306,$D32,'006各シート集約'!J$7:J$306) -> 0 | H32: =SUMIF('006各シート集約'!$H$7:$H$306,$D32,'006各シート集約'!K$7:K$306) -> 0 | I32: =SUMIF('006各シート集約'!$H$7:$H$306,$D32,'006各シート集約'!L$7:L$306) -> 0 | J32: =SUMIF('006各シート集約'!$H$7:$H$306,$D32,'006各シート集約'!M$7:M$306) -> 0 | K32: =SUMIF('006各シート集約'!$H$7:$H$306,$D32,'006各シート集約'!N$7:N$306) -> 0 | L32: =SUMIF('006各シート集約'!$H$7:$H$306,$D32,'006各シート集約'!O$7:O$306) -> 0 | M32: =SUMIF('006各シート集約'!$H$7:$H$306,$D32,'006各シート集約'!P$7:P$306) -> 0 | N32: =SUMIF('006各シート集約'!$H$7:$H$306,$D32,'006各シート集約'!Q$7:Q$306) -> 0 | O32: =SUMIF('006各シート集約'!$H$7:$H$306,$D32,'006各シート集約'!R$7:R$306) -> 0 | P32: =SUMIF('006各シート集約'!$H$7:$H$306,$D32,'006各シート集約'!S$7:S$306) -> 0 | Q32: =SUMIF('006各シート集約'!$H$7:$H$306,$D32,'006各シート集約'!T$7:T$306) -> 0 | R32: =SUMIF('006各シート集約'!$H$7:$H$306,$D32,'006各シート集約'!U$7:U$306) -> 0 | S32: =SUMIF('006各シート集約'!$H$7:$H$306,$D32,'006各シート集約'!V$7:V$306) -> 0 | T32: =SUMIF('006各シート集約'!$H$7:$H$306,$D32,'006各シート集約'!W$7:W$306) -> 0 | U32: =SUMIF('006各シート集約'!$H$7:$H$306,$D32,'006各シート集約'!X$7:X$306) -> 0 | W32: 奈良県 | X32: =SUMIF('006各シート集約'!$I$7:$I$306,$W32,'006各シート集約'!F$7:F$306) -> 0 | Y32: =SUMIF('006各シート集約'!$I$7:$I$306,$W32,'006各シート集約'!G$7:G$306) -> 0 | Z32: =SUMIF('006各シート集約'!$I$7:$I$306,$W32,'006各シート集約'!J$7:J$306) -> 0 | AA32: =SUMIF('006各シート集約'!$I$7:$I$306,$W32,'006各シート集約'!K$7:K$306) -> 0 | AB32: =SUMIF('006各シート集約'!$I$7:$I$306,$W32,'006各シート集約'!L$7:L$306) -> 0 | AC32: =SUMIF('006各シート集約'!$I$7:$I$306,$W32,'006各シート集約'!M$7:M$306) -> 0 | AD32: =SUMIF('006各シート集約'!$I$7:$I$306,$W32,'006各シート集約'!N$7:N$306) -> 0 | AE32: =SUMIF('006各シート集約'!$I$7:$I$306,$W32,'006各シート集約'!O$7:O$306) -> 0 | AF32: =SUMIF('006各シート集約'!$I$7:$I$306,$W32,'006各シート集約'!P$7:P$306) -> 0 | AG32: =SUMIF('006各シート集約'!$I$7:$I$306,$W32,'006各シート集約'!Q$7:Q$306) -> 0 | AH32: =SUMIF('006各シート集約'!$I$7:$I$306,$W32,'006各シート集約'!R$7:R$306) -> 0 | AI32: =SUMIF('006各シート集約'!$I$7:$I$306,$W32,'006各シート集約'!S$7:S$306) -> 0 | AJ32: =SUMIF('006各シート集約'!$I$7:$I$306,$W32,'006各シート集約'!T$7:T$306) -> 0 | AK32: =SUMIF('006各シート集約'!$I$7:$I$306,$W32,'006各シート集約'!U$7:U$306) -> 0 | AL32: =SUMIF('006各シート集約'!$I$7:$I$306,$W32,'006各シート集約'!V$7:V$306) -> 0 | AM32: =SUMIF('006各シート集約'!$I$7:$I$306,$W32,'006各シート集約'!W$7:W$306) -> 0 | AN32: =SUMIF('006各シート集約'!$I$7:$I$306,$W32,'006各シート集約'!X$7:X$306) -> 0
A33: 30 | B33: 和歌山県 | D33: 和歌山県 | E33: =SUMIF('006各シート集約'!$H$7:$H$306,$D33,'006各シート集約'!F$7:F$306) -> 0 | F33: =SUMIF('006各シート集約'!$H$7:$H$306,$D33,'006各シート集約'!G$7:G$306) -> 0 | G33: =SUMIF('006各シート集約'!$H$7:$H$306,$D33,'006各シート集約'!J$7:J$306) -> 0 | H33: =SUMIF('006各シート集約'!$H$7:$H$306,$D33,'006各シート集約'!K$7:K$306) -> 0 | I33: =SUMIF('006各シート集約'!$H$7:$H$306,$D33,'006各シート集約'!L$7:L$306) -> 0 | J33: =SUMIF('006各シート集約'!$H$7:$H$306,$D33,'006各シート集約'!M$7:M$306) -> 0 | K33: =SUMIF('006各シート集約'!$H$7:$H$306,$D33,'006各シート集約'!N$7:N$306) -> 0 | L33: =SUMIF('006各シート集約'!$H$7:$H$306,$D33,'006各シート集約'!O$7:O$306) -> 0 | M33: =SUMIF('006各シート集約'!$H$7:$H$306,$D33,'006各シート集約'!P$7:P$306) -> 0 | N33: =SUMIF('006各シート集約'!$H$7:$H$306,$D33,'006各シート集約'!Q$7:Q$306) -> 0 | O33: =SUMIF('006各シート集約'!$H$7:$H$306,$D33,'006各シート集約'!R$7:R$306) -> 0 | P33: =SUMIF('006各シート集約'!$H$7:$H$306,$D33,'006各シート集約'!S$7:S$306) -> 0 | Q33: =SUMIF('006各シート集約'!$H$7:$H$306,$D33,'006各シート集約'!T$7:T$306) -> 0 | R33: =SUMIF('006各シート集約'!$H$7:$H$306,$D33,'006各シート集約'!U$7:U$306) -> 0 | S33: =SUMIF('006各シート集約'!$H$7:$H$306,$D33,'006各シート集約'!V$7:V$306) -> 0 | T33: =SUMIF('006各シート集約'!$H$7:$H$306,$D33,'006各シート集約'!W$7:W$306) -> 0 | U33: =SUMIF('006各シート集約'!$H$7:$H$306,$D33,'006各シート集約'!X$7:X$306) -> 0 | W33: 和歌山県 | X33: =SUMIF('006各シート集約'!$I$7:$I$306,$W33,'006各シート集約'!F$7:F$306) -> 0 | Y33: =SUMIF('006各シート集約'!$I$7:$I$306,$W33,'006各シート集約'!G$7:G$306) -> 0 | Z33: =SUMIF('006各シート集約'!$I$7:$I$306,$W33,'006各シート集約'!J$7:J$306) -> 0 | AA33: =SUMIF('006各シート集約'!$I$7:$I$306,$W33,'006各シート集約'!K$7:K$306) -> 0 | AB33: =SUMIF('006各シート集約'!$I$7:$I$306,$W33,'006各シート集約'!L$7:L$306) -> 0 | AC33: =SUMIF('006各シート集約'!$I$7:$I$306,$W33,'006各シート集約'!M$7:M$306) -> 0 | AD33: =SUMIF('006各シート集約'!$I$7:$I$306,$W33,'006各シート集約'!N$7:N$306) -> 0 | AE33: =SUMIF('006各シート集約'!$I$7:$I$306,$W33,'006各シート集約'!O$7:O$306) -> 0 | AF33: =SUMIF('006各シート集約'!$I$7:$I$306,$W33,'006各シート集約'!P$7:P$306) -> 0 | AG33: =SUMIF('006各シート集約'!$I$7:$I$306,$W33,'006各シート集約'!Q$7:Q$306) -> 0 | AH33: =SUMIF('006各シート集約'!$I$7:$I$306,$W33,'006各シート集約'!R$7:R$306) -> 0 | AI33: =SUMIF('006各シート集約'!$I$7:$I$306,$W33,'006各シート集約'!S$7:S$306) -> 0 | AJ33: =SUMIF('006各シート集約'!$I$7:$I$306,$W33,'006各シート集約'!T$7:T$306) -> 0 | AK33: =SUMIF('006各シート集約'!$I$7:$I$306,$W33,'006各シート集約'!U$7:U$306) -> 0 | AL33: =SUMIF('006各シート集約'!$I$7:$I$306,$W33,'006各シート集約'!V$7:V$306) -> 0 | AM33: =SUMIF('006各シート集約'!$I$7:$I$306,$W33,'006各シート集約'!W$7:W$306) -> 0 | AN33: =SUMIF('006各シート集約'!$I$7:$I$306,$W33,'006各シート集約'!X$7:X$306) -> 0
A34: 31 | B34: 鳥取県 | D34: 鳥取県 | E34: =SUMIF('006各シート集約'!$H$7:$H$306,$D34,'006各シート集約'!F$7:F$306) -> 0 | F34: =SUMIF('006各シート集約'!$H$7:$H$306,$D34,'006各シート集約'!G$7:G$306) -> 0 | G34: =SUMIF('006各シート集約'!$H$7:$H$306,$D34,'006各シート集約'!J$7:J$306) -> 0 | H34: =SUMIF('006各シート集約'!$H$7:$H$306,$D34,'006各シート集約'!K$7:K$306) -> 0 | I34: =SUMIF('006各シート集約'!$H$7:$H$306,$D34,'006各シート集約'!L$7:L$306) -> 0 | J34: =SUMIF('006各シート集約'!$H$7:$H$306,$D34,'006各シート集約'!M$7:M$306) -> 0 | K34: =SUMIF('006各シート集約'!$H$7:$H$306,$D34,'006各シート集約'!N$7:N$306) -> 0 | L34: =SUMIF('006各シート集約'!$H$7:$H$306,$D34,'006各シート集約'!O$7:O$306) -> 0 | M34: =SUMIF('006各シート集約'!$H$7:$H$306,$D34,'006各シート集約'!P$7:P$306) -> 0 | N34: =SUMIF('006各シート集約'!$H$7:$H$306,$D34,'006各シート集約'!Q$7:Q$306) -> 0 | O34: =SUMIF('006各シート集約'!$H$7:$H$306,$D34,'006各シート集約'!R$7:R$306) -> 0 | P34: =SUMIF('006各シート集約'!$H$7:$H$306,$D34,'006各シート集約'!S$7:S$306) -> 0 | Q34: =SUMIF('006各シート集約'!$H$7:$H$306,$D34,'006各シート集約'!T$7:T$306) -> 0 | R34: =SUMIF('006各シート集約'!$H$7:$H$306,$D34,'006各シート集約'!U$7:U$306) -> 0 | S34: =SUMIF('006各シート集約'!$H$7:$H$306,$D34,'006各シート集約'!V$7:V$306) -> 0 | T34: =SUMIF('006各シート集約'!$H$7:$H$306,$D34,'006各シート集約'!W$7:W$306) -> 0 | U34: =SUMIF('006各シート集約'!$H$7:$H$306,$D34,'006各シート集約'!X$7:X$306) -> 0 | W34: 鳥取県 | X34: =SUMIF('006各シート集約'!$I$7:$I$306,$W34,'006各シート集約'!F$7:F$306) -> 0 | Y34: =SUMIF('006各シート集約'!$I$7:$I$306,$W34,'006各シート集約'!G$7:G$306) -> 0 | Z34: =SUMIF('006各シート集約'!$I$7:$I$306,$W34,'006各シート集約'!J$7:J$306) -> 0 | AA34: =SUMIF('006各シート集約'!$I$7:$I$306,$W34,'006各シート集約'!K$7:K$306) -> 0 | AB34: =SUMIF('006各シート集約'!$I$7:$I$306,$W34,'006各シート集約'!L$7:L$306) -> 0 | AC34: =SUMIF('006各シート集約'!$I$7:$I$306,$W34,'006各シート集約'!M$7:M$306) -> 0 | AD34: =SUMIF('006各シート集約'!$I$7:$I$306,$W34,'006各シート集約'!N$7:N$306) -> 0 | AE34: =SUMIF('006各シート集約'!$I$7:$I$306,$W34,'006各シート集約'!O$7:O$306) -> 0 | AF34: =SUMIF('006各シート集約'!$I$7:$I$306,$W34,'006各シート集約'!P$7:P$306) -> 0 | AG34: =SUMIF('006各シート集約'!$I$7:$I$306,$W34,'006各シート集約'!Q$7:Q$306) -> 0 | AH34: =SUMIF('006各シート集約'!$I$7:$I$306,$W34,'006各シート集約'!R$7:R$306) -> 0 | AI34: =SUMIF('006各シート集約'!$I$7:$I$306,$W34,'006各シート集約'!S$7:S$306) -> 0 | AJ34: =SUMIF('006各シート集約'!$I$7:$I$306,$W34,'006各シート集約'!T$7:T$306) -> 0 | AK34: =SUMIF('006各シート集約'!$I$7:$I$306,$W34,'006各シート集約'!U$7:U$306) -> 0 | AL34: =SUMIF('006各シート集約'!$I$7:$I$306,$W34,'006各シート集約'!V$7:V$306) -> 0 | AM34: =SUMIF('006各シート集約'!$I$7:$I$306,$W34,'006各シート集約'!W$7:W$306) -> 0 | AN34: =SUMIF('006各シート集約'!$I$7:$I$306,$W34,'006各シート集約'!X$7:X$306) -> 0
A35: 32 | B35: 島根県 | D35: 島根県 | E35: =SUMIF('006各シート集約'!$H$7:$H$306,$D35,'006各シート集約'!F$7:F$306) -> 0 | F35: =SUMIF('006各シート集約'!$H$7:$H$306,$D35,'006各シート集約'!G$7:G$306) -> 0 | G35: =SUMIF('006各シート集約'!$H$7:$H$306,$D35,'006各シート集約'!J$7:J$306) -> 0 | H35: =SUMIF('006各シート集約'!$H$7:$H$306,$D35,'006各シート集約'!K$7:K$306) -> 0 | I35: =SUMIF('006各シート集約'!$H$7:$H$306,$D35,'006各シート集約'!L$7:L$306) -> 0 | J35: =SUMIF('006各シート集約'!$H$7:$H$306,$D35,'006各シート集約'!M$7:M$306) -> 0 | K35: =SUMIF('006各シート集約'!$H$7:$H$306,$D35,'006各シート集約'!N$7:N$306) -> 0 | L35: =SUMIF('006各シート集約'!$H$7:$H$306,$D35,'006各シート集約'!O$7:O$306) -> 0 | M35: =SUMIF('006各シート集約'!$H$7:$H$306,$D35,'006各シート集約'!P$7:P$306) -> 0 | N35: =SUMIF('006各シート集約'!$H$7:$H$306,$D35,'006各シート集約'!Q$7:Q$306) -> 0 | O35: =SUMIF('006各シート集約'!$H$7:$H$306,$D35,'006各シート集約'!R$7:R$306) -> 0 | P35: =SUMIF('006各シート集約'!$H$7:$H$306,$D35,'006各シート集約'!S$7:S$306) -> 0 | Q35: =SUMIF('006各シート集約'!$H$7:$H$306,$D35,'006各シート集約'!T$7:T$306) -> 0 | R35: =SUMIF('006各シート集約'!$H$7:$H$306,$D35,'006各シート集約'!U$7:U$306) -> 0 | S35: =SUMIF('006各シート集約'!$H$7:$H$306,$D35,'006各シート集約'!V$7:V$306) -> 0 | T35: =SUMIF('006各シート集約'!$H$7:$H$306,$D35,'006各シート集約'!W$7:W$306) -> 0 | U35: =SUMIF('006各シート集約'!$H$7:$H$306,$D35,'006各シート集約'!X$7:X$306) -> 0 | W35: 島根県 | X35: =SUMIF('006各シート集約'!$I$7:$I$306,$W35,'006各シート集約'!F$7:F$306) -> 0 | Y35: =SUMIF('006各シート集約'!$I$7:$I$306,$W35,'006各シート集約'!G$7:G$306) -> 0 | Z35: =SUMIF('006各シート集約'!$I$7:$I$306,$W35,'006各シート集約'!J$7:J$306) -> 0 | AA35: =SUMIF('006各シート集約'!$I$7:$I$306,$W35,'006各シート集約'!K$7:K$306) -> 0 | AB35: =SUMIF('006各シート集約'!$I$7:$I$306,$W35,'006各シート集約'!L$7:L$306) -> 0 | AC35: =SUMIF('006各シート集約'!$I$7:$I$306,$W35,'006各シート集約'!M$7:M$306) -> 0 | AD35: =SUMIF('006各シート集約'!$I$7:$I$306,$W35,'006各シート集約'!N$7:N$306) -> 0 | AE35: =SUMIF('006各シート集約'!$I$7:$I$306,$W35,'006各シート集約'!O$7:O$306) -> 0 | AF35: =SUMIF('006各シート集約'!$I$7:$I$306,$W35,'006各シート集約'!P$7:P$306) -> 0 | AG35: =SUMIF('006各シート集約'!$I$7:$I$306,$W35,'006各シート集約'!Q$7:Q$306) -> 0 | AH35: =SUMIF('006各シート集約'!$I$7:$I$306,$W35,'006各シート集約'!R$7:R$306) -> 0 | AI35: =SUMIF('006各シート集約'!$I$7:$I$306,$W35,'006各シート集約'!S$7:S$306) -> 0 | AJ35: =SUMIF('006各シート集約'!$I$7:$I$306,$W35,'006各シート集約'!T$7:T$306) -> 0 | AK35: =SUMIF('006各シート集約'!$I$7:$I$306,$W35,'006各シート集約'!U$7:U$306) -> 0 | AL35: =SUMIF('006各シート集約'!$I$7:$I$306,$W35,'006各シート集約'!V$7:V$306) -> 0 | AM35: =SUMIF('006各シート集約'!$I$7:$I$306,$W35,'006各シート集約'!W$7:W$306) -> 0 | AN35: =SUMIF('006各シート集約'!$I$7:$I$306,$W35,'006各シート集約'!X$7:X$306) -> 0
A36: 33 | B36: 岡山県 | D36: 岡山県 | E36: =SUMIF('006各シート集約'!$H$7:$H$306,$D36,'006各シート集約'!F$7:F$306) -> 0 | F36: =SUMIF('006各シート集約'!$H$7:$H$306,$D36,'006各シート集約'!G$7:G$306) -> 0 | G36: =SUMIF('006各シート集約'!$H$7:$H$306,$D36,'006各シート集約'!J$7:J$306) -> 0 | H36: =SUMIF('006各シート集約'!$H$7:$H$306,$D36,'006各シート集約'!K$7:K$306) -> 0 | I36: =SUMIF('006各シート集約'!$H$7:$H$306,$D36,'006各シート集約'!L$7:L$306) -> 0 | J36: =SUMIF('006各シート集約'!$H$7:$H$306,$D36,'006各シート集約'!M$7:M$306) -> 0 | K36: =SUMIF('006各シート集約'!$H$7:$H$306,$D36,'006各シート集約'!N$7:N$306) -> 0 | L36: =SUMIF('006各シート集約'!$H$7:$H$306,$D36,'006各シート集約'!O$7:O$306) -> 0 | M36: =SUMIF('006各シート集約'!$H$7:$H$306,$D36,'006各シート集約'!P$7:P$306) -> 0 | N36: =SUMIF('006各シート集約'!$H$7:$H$306,$D36,'006各シート集約'!Q$7:Q$306) -> 0 | O36: =SUMIF('006各シート集約'!$H$7:$H$306,$D36,'006各シート集約'!R$7:R$306) -> 0 | P36: =SUMIF('006各シート集約'!$H$7:$H$306,$D36,'006各シート集約'!S$7:S$306) -> 0 | Q36: =SUMIF('006各シート集約'!$H$7:$H$306,$D36,'006各シート集約'!T$7:T$306) -> 0 | R36: =SUMIF('006各シート集約'!$H$7:$H$306,$D36,'006各シート集約'!U$7:U$306) -> 0 | S36: =SUMIF('006各シート集約'!$H$7:$H$306,$D36,'006各シート集約'!V$7:V$306) -> 0 | T36: =SUMIF('006各シート集約'!$H$7:$H$306,$D36,'006各シート集約'!W$7:W$306) -> 0 | U36: =SUMIF('006各シート集約'!$H$7:$H$306,$D36,'006各シート集約'!X$7:X$306) -> 0 | W36: 岡山県 | X36: =SUMIF('006各シート集約'!$I$7:$I$306,$W36,'006各シート集約'!F$7:F$306) -> 0 | Y36: =SUMIF('006各シート集約'!$I$7:$I$306,$W36,'006各シート集約'!G$7:G$306) -> 0 | Z36: =SUMIF('006各シート集約'!$I$7:$I$306,$W36,'006各シート集約'!J$7:J$306) -> 0 | AA36: =SUMIF('006各シート集約'!$I$7:$I$306,$W36,'006各シート集約'!K$7:K$306) -> 0 | AB36: =SUMIF('006各シート集約'!$I$7:$I$306,$W36,'006各シート集約'!L$7:L$306) -> 0 | AC36: =SUMIF('006各シート集約'!$I$7:$I$306,$W36,'006各シート集約'!M$7:M$306) -> 0 | AD36: =SUMIF('006各シート集約'!$I$7:$I$306,$W36,'006各シート集約'!N$7:N$306) -> 0 | AE36: =SUMIF('006各シート集約'!$I$7:$I$306,$W36,'006各シート集約'!O$7:O$306) -> 0 | AF36: =SUMIF('006各シート集約'!$I$7:$I$306,$W36,'006各シート集約'!P$7:P$306) -> 0 | AG36: =SUMIF('006各シート集約'!$I$7:$I$306,$W36,'006各シート集約'!Q$7:Q$306) -> 0 | AH36: =SUMIF('006各シート集約'!$I$7:$I$306,$W36,'006各シート集約'!R$7:R$306) -> 0 | AI36: =SUMIF('006各シート集約'!$I$7:$I$306,$W36,'006各シート集約'!S$7:S$306) -> 0 | AJ36: =SUMIF('006各シート集約'!$I$7:$I$306,$W36,'006各シート集約'!T$7:T$306) -> 0 | AK36: =SUMIF('006各シート集約'!$I$7:$I$306,$W36,'006各シート集約'!U$7:U$306) -> 0 | AL36: =SUMIF('006各シート集約'!$I$7:$I$306,$W36,'006各シート集約'!V$7:V$306) -> 0 | AM36: =SUMIF('006各シート集約'!$I$7:$I$306,$W36,'006各シート集約'!W$7:W$306) -> 0 | AN36: =SUMIF('006各シート集約'!$I$7:$I$306,$W36,'006各シート集約'!X$7:X$306) -> 0
A37: 34 | B37: 広島県 | D37: 広島県 | E37: =SUMIF('006各シート集約'!$H$7:$H$306,$D37,'006各シート集約'!F$7:F$306) -> 0 | F37: =SUMIF('006各シート集約'!$H$7:$H$306,$D37,'006各シート集約'!G$7:G$306) -> 0 | G37: =SUMIF('006各シート集約'!$H$7:$H$306,$D37,'006各シート集約'!J$7:J$306) -> 0 | H37: =SUMIF('006各シート集約'!$H$7:$H$306,$D37,'006各シート集約'!K$7:K$306) -> 0 | I37: =SUMIF('006各シート集約'!$H$7:$H$306,$D37,'006各シート集約'!L$7:L$306) -> 0 | J37: =SUMIF('006各シート集約'!$H$7:$H$306,$D37,'006各シート集約'!M$7:M$306) -> 0 | K37: =SUMIF('006各シート集約'!$H$7:$H$306,$D37,'006各シート集約'!N$7:N$306) -> 0 | L37: =SUMIF('006各シート集約'!$H$7:$H$306,$D37,'006各シート集約'!O$7:O$306) -> 0 | M37: =SUMIF('006各シート集約'!$H$7:$H$306,$D37,'006各シート集約'!P$7:P$306) -> 0 | N37: =SUMIF('006各シート集約'!$H$7:$H$306,$D37,'006各シート集約'!Q$7:Q$306) -> 0 | O37: =SUMIF('006各シート集約'!$H$7:$H$306,$D37,'006各シート集約'!R$7:R$306) -> 0 | P37: =SUMIF('006各シート集約'!$H$7:$H$306,$D37,'006各シート集約'!S$7:S$306) -> 0 | Q37: =SUMIF('006各シート集約'!$H$7:$H$306,$D37,'006各シート集約'!T$7:T$306) -> 0 | R37: =SUMIF('006各シート集約'!$H$7:$H$306,$D37,'006各シート集約'!U$7:U$306) -> 0 | S37: =SUMIF('006各シート集約'!$H$7:$H$306,$D37,'006各シート集約'!V$7:V$306) -> 0 | T37: =SUMIF('006各シート集約'!$H$7:$H$306,$D37,'006各シート集約'!W$7:W$306) -> 0 | U37: =SUMIF('006各シート集約'!$H$7:$H$306,$D37,'006各シート集約'!X$7:X$306) -> 0 | W37: 広島県 | X37: =SUMIF('006各シート集約'!$I$7:$I$306,$W37,'006各シート集約'!F$7:F$306) -> 0 | Y37: =SUMIF('006各シート集約'!$I$7:$I$306,$W37,'006各シート集約'!G$7:G$306) -> 0 | Z37: =SUMIF('006各シート集約'!$I$7:$I$306,$W37,'006各シート集約'!J$7:J$306) -> 0 | AA37: =SUMIF('006各シート集約'!$I$7:$I$306,$W37,'006各シート集約'!K$7:K$306) -> 0 | AB37: =SUMIF('006各シート集約'!$I$7:$I$306,$W37,'006各シート集約'!L$7:L$306) -> 0 | AC37: =SUMIF('006各シート集約'!$I$7:$I$306,$W37,'006各シート集約'!M$7:M$306) -> 0 | AD37: =SUMIF('006各シート集約'!$I$7:$I$306,$W37,'006各シート集約'!N$7:N$306) -> 0 | AE37: =SUMIF('006各シート集約'!$I$7:$I$306,$W37,'006各シート集約'!O$7:O$306) -> 0 | AF37: =SUMIF('006各シート集約'!$I$7:$I$306,$W37,'006各シート集約'!P$7:P$306) -> 0 | AG37: =SUMIF('006各シート集約'!$I$7:$I$306,$W37,'006各シート集約'!Q$7:Q$306) -> 0 | AH37: =SUMIF('006各シート集約'!$I$7:$I$306,$W37,'006各シート集約'!R$7:R$306) -> 0 | AI37: =SUMIF('006各シート集約'!$I$7:$I$306,$W37,'006各シート集約'!S$7:S$306) -> 0 | AJ37: =SUMIF('006各シート集約'!$I$7:$I$306,$W37,'006各シート集約'!T$7:T$306) -> 0 | AK37: =SUMIF('006各シート集約'!$I$7:$I$306,$W37,'006各シート集約'!U$7:U$306) -> 0 | AL37: =SUMIF('006各シート集約'!$I$7:$I$306,$W37,'006各シート集約'!V$7:V$306) -> 0 | AM37: =SUMIF('006各シート集約'!$I$7:$I$306,$W37,'006各シート集約'!W$7:W$306) -> 0 | AN37: =SUMIF('006各シート集約'!$I$7:$I$306,$W37,'006各シート集約'!X$7:X$306) -> 0
A38: 35 | B38: 山口県 | D38: 山口県 | E38: =SUMIF('006各シート集約'!$H$7:$H$306,$D38,'006各シート集約'!F$7:F$306) -> 0 | F38: =SUMIF('006各シート集約'!$H$7:$H$306,$D38,'006各シート集約'!G$7:G$306) -> 0 | G38: =SUMIF('006各シート集約'!$H$7:$H$306,$D38,'006各シート集約'!J$7:J$306) -> 0 | H38: =SUMIF('006各シート集約'!$H$7:$H$306,$D38,'006各シート集約'!K$7:K$306) -> 0 | I38: =SUMIF('006各シート集約'!$H$7:$H$306,$D38,'006各シート集約'!L$7:L$306) -> 0 | J38: =SUMIF('006各シート集約'!$H$7:$H$306,$D38,'006各シート集約'!M$7:M$306) -> 0 | K38: =SUMIF('006各シート集約'!$H$7:$H$306,$D38,'006各シート集約'!N$7:N$306) -> 0 | L38: =SUMIF('006各シート集約'!$H$7:$H$306,$D38,'006各シート集約'!O$7:O$306) -> 0 | M38: =SUMIF('006各シート集約'!$H$7:$H$306,$D38,'006各シート集約'!P$7:P$306) -> 0 | N38: =SUMIF('006各シート集約'!$H$7:$H$306,$D38,'006各シート集約'!Q$7:Q$306) -> 0 | O38: =SUMIF('006各シート集約'!$H$7:$H$306,$D38,'006各シート集約'!R$7:R$306) -> 0 | P38: =SUMIF('006各シート集約'!$H$7:$H$306,$D38,'006各シート集約'!S$7:S$306) -> 0 | Q38: =SUMIF('006各シート集約'!$H$7:$H$306,$D38,'006各シート集約'!T$7:T$306) -> 0 | R38: =SUMIF('006各シート集約'!$H$7:$H$306,$D38,'006各シート集約'!U$7:U$306) -> 0 | S38: =SUMIF('006各シート集約'!$H$7:$H$306,$D38,'006各シート集約'!V$7:V$306) -> 0 | T38: =SUMIF('006各シート集約'!$H$7:$H$306,$D38,'006各シート集約'!W$7:W$306) -> 0 | U38: =SUMIF('006各シート集約'!$H$7:$H$306,$D38,'006各シート集約'!X$7:X$306) -> 0 | W38: 山口県 | X38: =SUMIF('006各シート集約'!$I$7:$I$306,$W38,'006各シート集約'!F$7:F$306) -> 0 | Y38: =SUMIF('006各シート集約'!$I$7:$I$306,$W38,'006各シート集約'!G$7:G$306) -> 0 | Z38: =SUMIF('006各シート集約'!$I$7:$I$306,$W38,'006各シート集約'!J$7:J$306) -> 0 | AA38: =SUMIF('006各シート集約'!$I$7:$I$306,$W38,'006各シート集約'!K$7:K$306) -> 0 | AB38: =SUMIF('006各シート集約'!$I$7:$I$306,$W38,'006各シート集約'!L$7:L$306) -> 0 | AC38: =SUMIF('006各シート集約'!$I$7:$I$306,$W38,'006各シート集約'!M$7:M$306) -> 0 | AD38: =SUMIF('006各シート集約'!$I$7:$I$306,$W38,'006各シート集約'!N$7:N$306) -> 0 | AE38: =SUMIF('006各シート集約'!$I$7:$I$306,$W38,'006各シート集約'!O$7:O$306) -> 0 | AF38: =SUMIF('006各シート集約'!$I$7:$I$306,$W38,'006各シート集約'!P$7:P$306) -> 0 | AG38: =SUMIF('006各シート集約'!$I$7:$I$306,$W38,'006各シート集約'!Q$7:Q$306) -> 0 | AH38: =SUMIF('006各シート集約'!$I$7:$I$306,$W38,'006各シート集約'!R$7:R$306) -> 0 | AI38: =SUMIF('006各シート集約'!$I$7:$I$306,$W38,'006各シート集約'!S$7:S$306) -> 0 | AJ38: =SUMIF('006各シート集約'!$I$7:$I$306,$W38,'006各シート集約'!T$7:T$306) -> 0 | AK38: =SUMIF('006各シート集約'!$I$7:$I$306,$W38,'006各シート集約'!U$7:U$306) -> 0 | AL38: =SUMIF('006各シート集約'!$I$7:$I$306,$W38,'006各シート集約'!V$7:V$306) -> 0 | AM38: =SUMIF('006各シート集約'!$I$7:$I$306,$W38,'006各シート集約'!W$7:W$306) -> 0 | AN38: =SUMIF('006各シート集約'!$I$7:$I$306,$W38,'006各シート集約'!X$7:X$306) -> 0
A39: 36 | B39: 徳島県 | D39: 徳島県 | E39: =SUMIF('006各シート集約'!$H$7:$H$306,$D39,'006各シート集約'!F$7:F$306) -> 0 | F39: =SUMIF('006各シート集約'!$H$7:$H$306,$D39,'006各シート集約'!G$7:G$306) -> 0 | G39: =SUMIF('006各シート集約'!$H$7:$H$306,$D39,'006各シート集約'!J$7:J$306) -> 0 | H39: =SUMIF('006各シート集約'!$H$7:$H$306,$D39,'006各シート集約'!K$7:K$306) -> 0 | I39: =SUMIF('006各シート集約'!$H$7:$H$306,$D39,'006各シート集約'!L$7:L$306) -> 0 | J39: =SUMIF('006各シート集約'!$H$7:$H$306,$D39,'006各シート集約'!M$7:M$306) -> 0 | K39: =SUMIF('006各シート集約'!$H$7:$H$306,$D39,'006各シート集約'!N$7:N$306) -> 0 | L39: =SUMIF('006各シート集約'!$H$7:$H$306,$D39,'006各シート集約'!O$7:O$306) -> 0 | M39: =SUMIF('006各シート集約'!$H$7:$H$306,$D39,'006各シート集約'!P$7:P$306) -> 0 | N39: =SUMIF('006各シート集約'!$H$7:$H$306,$D39,'006各シート集約'!Q$7:Q$306) -> 0 | O39: =SUMIF('006各シート集約'!$H$7:$H$306,$D39,'006各シート集約'!R$7:R$306) -> 0 | P39: =SUMIF('006各シート集約'!$H$7:$H$306,$D39,'006各シート集約'!S$7:S$306) -> 0 | Q39: =SUMIF('006各シート集約'!$H$7:$H$306,$D39,'006各シート集約'!T$7:T$306) -> 0 | R39: =SUMIF('006各シート集約'!$H$7:$H$306,$D39,'006各シート集約'!U$7:U$306) -> 0 | S39: =SUMIF('006各シート集約'!$H$7:$H$306,$D39,'006各シート集約'!V$7:V$306) -> 0 | T39: =SUMIF('006各シート集約'!$H$7:$H$306,$D39,'006各シート集約'!W$7:W$306) -> 0 | U39: =SUMIF('006各シート集約'!$H$7:$H$306,$D39,'006各シート集約'!X$7:X$306) -> 0 | W39: 徳島県 | X39: =SUMIF('006各シート集約'!$I$7:$I$306,$W39,'006各シート集約'!F$7:F$306) -> 0 | Y39: =SUMIF('006各シート集約'!$I$7:$I$306,$W39,'006各シート集約'!G$7:G$306) -> 0 | Z39: =SUMIF('006各シート集約'!$I$7:$I$306,$W39,'006各シート集約'!J$7:J$306) -> 0 | AA39: =SUMIF('006各シート集約'!$I$7:$I$306,$W39,'006各シート集約'!K$7:K$306) -> 0 | AB39: =SUMIF('006各シート集約'!$I$7:$I$306,$W39,'006各シート集約'!L$7:L$306) -> 0 | AC39: =SUMIF('006各シート集約'!$I$7:$I$306,$W39,'006各シート集約'!M$7:M$306) -> 0 | AD39: =SUMIF('006各シート集約'!$I$7:$I$306,$W39,'006各シート集約'!N$7:N$306) -> 0 | AE39: =SUMIF('006各シート集約'!$I$7:$I$306,$W39,'006各シート集約'!O$7:O$306) -> 0 | AF39: =SUMIF('006各シート集約'!$I$7:$I$306,$W39,'006各シート集約'!P$7:P$306) -> 0 | AG39: =SUMIF('006各シート集約'!$I$7:$I$306,$W39,'006各シート集約'!Q$7:Q$306) -> 0 | AH39: =SUMIF('006各シート集約'!$I$7:$I$306,$W39,'006各シート集約'!R$7:R$306) -> 0 | AI39: =SUMIF('006各シート集約'!$I$7:$I$306,$W39,'006各シート集約'!S$7:S$306) -> 0 | AJ39: =SUMIF('006各シート集約'!$I$7:$I$306,$W39,'006各シート集約'!T$7:T$306) -> 0 | AK39: =SUMIF('006各シート集約'!$I$7:$I$306,$W39,'006各シート集約'!U$7:U$306) -> 0 | AL39: =SUMIF('006各シート集約'!$I$7:$I$306,$W39,'006各シート集約'!V$7:V$306) -> 0 | AM39: =SUMIF('006各シート集約'!$I$7:$I$306,$W39,'006各シート集約'!W$7:W$306) -> 0 | AN39: =SUMIF('006各シート集約'!$I$7:$I$306,$W39,'006各シート集約'!X$7:X$306) -> 0
A40: 37 | B40: 香川県 | D40: 香川県 | E40: =SUMIF('006各シート集約'!$H$7:$H$306,$D40,'006各シート集約'!F$7:F$306) -> 0 | F40: =SUMIF('006各シート集約'!$H$7:$H$306,$D40,'006各シート集約'!G$7:G$306) -> 0 | G40: =SUMIF('006各シート集約'!$H$7:$H$306,$D40,'006各シート集約'!J$7:J$306) -> 0 | H40: =SUMIF('006各シート集約'!$H$7:$H$306,$D40,'006各シート集約'!K$7:K$306) -> 0 | I40: =SUMIF('006各シート集約'!$H$7:$H$306,$D40,'006各シート集約'!L$7:L$306) -> 0 | J40: =SUMIF('006各シート集約'!$H$7:$H$306,$D40,'006各シート集約'!M$7:M$306) -> 0 | K40: =SUMIF('006各シート集約'!$H$7:$H$306,$D40,'006各シート集約'!N$7:N$306) -> 0 | L40: =SUMIF('006各シート集約'!$H$7:$H$306,$D40,'006各シート集約'!O$7:O$306) -> 0 | M40: =SUMIF('006各シート集約'!$H$7:$H$306,$D40,'006各シート集約'!P$7:P$306) -> 0 | N40: =SUMIF('006各シート集約'!$H$7:$H$306,$D40,'006各シート集約'!Q$7:Q$306) -> 0 | O40: =SUMIF('006各シート集約'!$H$7:$H$306,$D40,'006各シート集約'!R$7:R$306) -> 0 | P40: =SUMIF('006各シート集約'!$H$7:$H$306,$D40,'006各シート集約'!S$7:S$306) -> 0 | Q40: =SUMIF('006各シート集約'!$H$7:$H$306,$D40,'006各シート集約'!T$7:T$306) -> 0 | R40: =SUMIF('006各シート集約'!$H$7:$H$306,$D40,'006各シート集約'!U$7:U$306) -> 0 | S40: =SUMIF('006各シート集約'!$H$7:$H$306,$D40,'006各シート集約'!V$7:V$306) -> 0 | T40: =SUMIF('006各シート集約'!$H$7:$H$306,$D40,'006各シート集約'!W$7:W$306) -> 0 | U40: =SUMIF('006各シート集約'!$H$7:$H$306,$D40,'006各シート集約'!X$7:X$306) -> 0 | W40: 香川県 | X40: =SUMIF('006各シート集約'!$I$7:$I$306,$W40,'006各シート集約'!F$7:F$306) -> 0 | Y40: =SUMIF('006各シート集約'!$I$7:$I$306,$W40,'006各シート集約'!G$7:G$306) -> 0 | Z40: =SUMIF('006各シート集約'!$I$7:$I$306,$W40,'006各シート集約'!J$7:J$306) -> 0 | AA40: =SUMIF('006各シート集約'!$I$7:$I$306,$W40,'006各シート集約'!K$7:K$306) -> 0 | AB40: =SUMIF('006各シート集約'!$I$7:$I$306,$W40,'006各シート集約'!L$7:L$306) -> 0 | AC40: =SUMIF('006各シート集約'!$I$7:$I$306,$W40,'006各シート集約'!M$7:M$306) -> 0 | AD40: =SUMIF('006各シート集約'!$I$7:$I$306,$W40,'006各シート集約'!N$7:N$306) -> 0 | AE40: =SUMIF('006各シート集約'!$I$7:$I$306,$W40,'006各シート集約'!O$7:O$306) -> 0 | AF40: =SUMIF('006各シート集約'!$I$7:$I$306,$W40,'006各シート集約'!P$7:P$306) -> 0 | AG40: =SUMIF('006各シート集約'!$I$7:$I$306,$W40,'006各シート集約'!Q$7:Q$306) -> 0 | AH40: =SUMIF('006各シート集約'!$I$7:$I$306,$W40,'006各シート集約'!R$7:R$306) -> 0 | AI40: =SUMIF('006各シート集約'!$I$7:$I$306,$W40,'006各シート集約'!S$7:S$306) -> 0 | AJ40: =SUMIF('006各シート集約'!$I$7:$I$306,$W40,'006各シート集約'!T$7:T$306) -> 0 | AK40: =SUMIF('006各シート集約'!$I$7:$I$306,$W40,'006各シート集約'!U$7:U$306) -> 0 | AL40: =SUMIF('006各シート集約'!$I$7:$I$306,$W40,'006各シート集約'!V$7:V$306) -> 0 | AM40: =SUMIF('006各シート集約'!$I$7:$I$306,$W40,'006各シート集約'!W$7:W$306) -> 0 | AN40: =SUMIF('006各シート集約'!$I$7:$I$306,$W40,'006各シート集約'!X$7:X$306) -> 0
A41: 38 | B41: 愛媛県 | D41: 愛媛県 | E41: =SUMIF('006各シート集約'!$H$7:$H$306,$D41,'006各シート集約'!F$7:F$306) -> 0 | F41: =SUMIF('006各シート集約'!$H$7:$H$306,$D41,'006各シート集約'!G$7:G$306) -> 0 | G41: =SUMIF('006各シート集約'!$H$7:$H$306,$D41,'006各シート集約'!J$7:J$306) -> 0 | H41: =SUMIF('006各シート集約'!$H$7:$H$306,$D41,'006各シート集約'!K$7:K$306) -> 0 | I41: =SUMIF('006各シート集約'!$H$7:$H$306,$D41,'006各シート集約'!L$7:L$306) -> 0 | J41: =SUMIF('006各シート集約'!$H$7:$H$306,$D41,'006各シート集約'!M$7:M$306) -> 0 | K41: =SUMIF('006各シート集約'!$H$7:$H$306,$D41,'006各シート集約'!N$7:N$306) -> 0 | L41: =SUMIF('006各シート集約'!$H$7:$H$306,$D41,'006各シート集約'!O$7:O$306) -> 0 | M41: =SUMIF('006各シート集約'!$H$7:$H$306,$D41,'006各シート集約'!P$7:P$306) -> 0 | N41: =SUMIF('006各シート集約'!$H$7:$H$306,$D41,'006各シート集約'!Q$7:Q$306) -> 0 | O41: =SUMIF('006各シート集約'!$H$7:$H$306,$D41,'006各シート集約'!R$7:R$306) -> 0 | P41: =SUMIF('006各シート集約'!$H$7:$H$306,$D41,'006各シート集約'!S$7:S$306) -> 0 | Q41: =SUMIF('006各シート集約'!$H$7:$H$306,$D41,'006各シート集約'!T$7:T$306) -> 0 | R41: =SUMIF('006各シート集約'!$H$7:$H$306,$D41,'006各シート集約'!U$7:U$306) -> 0 | S41: =SUMIF('006各シート集約'!$H$7:$H$306,$D41,'006各シート集約'!V$7:V$306) -> 0 | T41: =SUMIF('006各シート集約'!$H$7:$H$306,$D41,'006各シート集約'!W$7:W$306) -> 0 | U41: =SUMIF('006各シート集約'!$H$7:$H$306,$D41,'006各シート集約'!X$7:X$306) -> 0 | W41: 愛媛県 | X41: =SUMIF('006各シート集約'!$I$7:$I$306,$W41,'006各シート集約'!F$7:F$306) -> 0 | Y41: =SUMIF('006各シート集約'!$I$7:$I$306,$W41,'006各シート集約'!G$7:G$306) -> 0 | Z41: =SUMIF('006各シート集約'!$I$7:$I$306,$W41,'006各シート集約'!J$7:J$306) -> 0 | AA41: =SUMIF('006各シート集約'!$I$7:$I$306,$W41,'006各シート集約'!K$7:K$306) -> 0 | AB41: =SUMIF('006各シート集約'!$I$7:$I$306,$W41,'006各シート集約'!L$7:L$306) -> 0 | AC41: =SUMIF('006各シート集約'!$I$7:$I$306,$W41,'006各シート集約'!M$7:M$306) -> 0 | AD41: =SUMIF('006各シート集約'!$I$7:$I$306,$W41,'006各シート集約'!N$7:N$306) -> 0 | AE41: =SUMIF('006各シート集約'!$I$7:$I$306,$W41,'006各シート集約'!O$7:O$306) -> 0 | AF41: =SUMIF('006各シート集約'!$I$7:$I$306,$W41,'006各シート集約'!P$7:P$306) -> 0 | AG41: =SUMIF('006各シート集約'!$I$7:$I$306,$W41,'006各シート集約'!Q$7:Q$306) -> 0 | AH41: =SUMIF('006各シート集約'!$I$7:$I$306,$W41,'006各シート集約'!R$7:R$306) -> 0 | AI41: =SUMIF('006各シート集約'!$I$7:$I$306,$W41,'006各シート集約'!S$7:S$306) -> 0 | AJ41: =SUMIF('006各シート集約'!$I$7:$I$306,$W41,'006各シート集約'!T$7:T$306) -> 0 | AK41: =SUMIF('006各シート集約'!$I$7:$I$306,$W41,'006各シート集約'!U$7:U$306) -> 0 | AL41: =SUMIF('006各シート集約'!$I$7:$I$306,$W41,'006各シート集約'!V$7:V$306) -> 0 | AM41: =SUMIF('006各シート集約'!$I$7:$I$306,$W41,'006各シート集約'!W$7:W$306) -> 0 | AN41: =SUMIF('006各シート集約'!$I$7:$I$306,$W41,'006各シート集約'!X$7:X$306) -> 0
A42: 39 | B42: 高知県 | D42: 高知県 | E42: =SUMIF('006各シート集約'!$H$7:$H$306,$D42,'006各シート集約'!F$7:F$306) -> 0 | F42: =SUMIF('006各シート集約'!$H$7:$H$306,$D42,'006各シート集約'!G$7:G$306) -> 0 | G42: =SUMIF('006各シート集約'!$H$7:$H$306,$D42,'006各シート集約'!J$7:J$306) -> 0 | H42: =SUMIF('006各シート集約'!$H$7:$H$306,$D42,'006各シート集約'!K$7:K$306) -> 0 | I42: =SUMIF('006各シート集約'!$H$7:$H$306,$D42,'006各シート集約'!L$7:L$306) -> 0 | J42: =SUMIF('006各シート集約'!$H$7:$H$306,$D42,'006各シート集約'!M$7:M$306) -> 0 | K42: =SUMIF('006各シート集約'!$H$7:$H$306,$D42,'006各シート集約'!N$7:N$306) -> 0 | L42: =SUMIF('006各シート集約'!$H$7:$H$306,$D42,'006各シート集約'!O$7:O$306) -> 0 | M42: =SUMIF('006各シート集約'!$H$7:$H$306,$D42,'006各シート集約'!P$7:P$306) -> 0 | N42: =SUMIF('006各シート集約'!$H$7:$H$306,$D42,'006各シート集約'!Q$7:Q$306) -> 0 | O42: =SUMIF('006各シート集約'!$H$7:$H$306,$D42,'006各シート集約'!R$7:R$306) -> 0 | P42: =SUMIF('006各シート集約'!$H$7:$H$306,$D42,'006各シート集約'!S$7:S$306) -> 0 | Q42: =SUMIF('006各シート集約'!$H$7:$H$306,$D42,'006各シート集約'!T$7:T$306) -> 0 | R42: =SUMIF('006各シート集約'!$H$7:$H$306,$D42,'006各シート集約'!U$7:U$306) -> 0 | S42: =SUMIF('006各シート集約'!$H$7:$H$306,$D42,'006各シート集約'!V$7:V$306) -> 0 | T42: =SUMIF('006各シート集約'!$H$7:$H$306,$D42,'006各シート集約'!W$7:W$306) -> 0 | U42: =SUMIF('006各シート集約'!$H$7:$H$306,$D42,'006各シート集約'!X$7:X$306) -> 0 | W42: 高知県 | X42: =SUMIF('006各シート集約'!$I$7:$I$306,$W42,'006各シート集約'!F$7:F$306) -> 0 | Y42: =SUMIF('006各シート集約'!$I$7:$I$306,$W42,'006各シート集約'!G$7:G$306) -> 0 | Z42: =SUMIF('006各シート集約'!$I$7:$I$306,$W42,'006各シート集約'!J$7:J$306) -> 0 | AA42: =SUMIF('006各シート集約'!$I$7:$I$306,$W42,'006各シート集約'!K$7:K$306) -> 0 | AB42: =SUMIF('006各シート集約'!$I$7:$I$306,$W42,'006各シート集約'!L$7:L$306) -> 0 | AC42: =SUMIF('006各シート集約'!$I$7:$I$306,$W42,'006各シート集約'!M$7:M$306) -> 0 | AD42: =SUMIF('006各シート集約'!$I$7:$I$306,$W42,'006各シート集約'!N$7:N$306) -> 0 | AE42: =SUMIF('006各シート集約'!$I$7:$I$306,$W42,'006各シート集約'!O$7:O$306) -> 0 | AF42: =SUMIF('006各シート集約'!$I$7:$I$306,$W42,'006各シート集約'!P$7:P$306) -> 0 | AG42: =SUMIF('006各シート集約'!$I$7:$I$306,$W42,'006各シート集約'!Q$7:Q$306) -> 0 | AH42: =SUMIF('006各シート集約'!$I$7:$I$306,$W42,'006各シート集約'!R$7:R$306) -> 0 | AI42: =SUMIF('006各シート集約'!$I$7:$I$306,$W42,'006各シート集約'!S$7:S$306) -> 0 | AJ42: =SUMIF('006各シート集約'!$I$7:$I$306,$W42,'006各シート集約'!T$7:T$306) -> 0 | AK42: =SUMIF('006各シート集約'!$I$7:$I$306,$W42,'006各シート集約'!U$7:U$306) -> 0 | AL42: =SUMIF('006各シート集約'!$I$7:$I$306,$W42,'006各シート集約'!V$7:V$306) -> 0 | AM42: =SUMIF('006各シート集約'!$I$7:$I$306,$W42,'006各シート集約'!W$7:W$306) -> 0 | AN42: =SUMIF('006各シート集約'!$I$7:$I$306,$W42,'006各シート集約'!X$7:X$306) -> 0
A43: 40 | B43: 福岡県 | D43: 福岡県 | E43: =SUMIF('006各シート集約'!$H$7:$H$306,$D43,'006各シート集約'!F$7:F$306) -> 0 | F43: =SUMIF('006各シート集約'!$H$7:$H$306,$D43,'006各シート集約'!G$7:G$306) -> 0 | G43: =SUMIF('006各シート集約'!$H$7:$H$306,$D43,'006各シート集約'!J$7:J$306) -> 0 | H43: =SUMIF('006各シート集約'!$H$7:$H$306,$D43,'006各シート集約'!K$7:K$306) -> 0 | I43: =SUMIF('006各シート集約'!$H$7:$H$306,$D43,'006各シート集約'!L$7:L$306) -> 0 | J43: =SUMIF('006各シート集約'!$H$7:$H$306,$D43,'006各シート集約'!M$7:M$306) -> 0 | K43: =SUMIF('006各シート集約'!$H$7:$H$306,$D43,'006各シート集約'!N$7:N$306) -> 0 | L43: =SUMIF('006各シート集約'!$H$7:$H$306,$D43,'006各シート集約'!O$7:O$306) -> 0 | M43: =SUMIF('006各シート集約'!$H$7:$H$306,$D43,'006各シート集約'!P$7:P$306) -> 0 | N43: =SUMIF('006各シート集約'!$H$7:$H$306,$D43,'006各シート集約'!Q$7:Q$306) -> 0 | O43: =SUMIF('006各シート集約'!$H$7:$H$306,$D43,'006各シート集約'!R$7:R$306) -> 0 | P43: =SUMIF('006各シート集約'!$H$7:$H$306,$D43,'006各シート集約'!S$7:S$306) -> 0 | Q43: =SUMIF('006各シート集約'!$H$7:$H$306,$D43,'006各シート集約'!T$7:T$306) -> 0 | R43: =SUMIF('006各シート集約'!$H$7:$H$306,$D43,'006各シート集約'!U$7:U$306) -> 0 | S43: =SUMIF('006各シート集約'!$H$7:$H$306,$D43,'006各シート集約'!V$7:V$306) -> 0 | T43: =SUMIF('006各シート集約'!$H$7:$H$306,$D43,'006各シート集約'!W$7:W$306) -> 0 | U43: =SUMIF('006各シート集約'!$H$7:$H$306,$D43,'006各シート集約'!X$7:X$306) -> 0 | W43: 福岡県 | X43: =SUMIF('006各シート集約'!$I$7:$I$306,$W43,'006各シート集約'!F$7:F$306) -> 0 | Y43: =SUMIF('006各シート集約'!$I$7:$I$306,$W43,'006各シート集約'!G$7:G$306) -> 0 | Z43: =SUMIF('006各シート集約'!$I$7:$I$306,$W43,'006各シート集約'!J$7:J$306) -> 0 | AA43: =SUMIF('006各シート集約'!$I$7:$I$306,$W43,'006各シート集約'!K$7:K$306) -> 0 | AB43: =SUMIF('006各シート集約'!$I$7:$I$306,$W43,'006各シート集約'!L$7:L$306) -> 0 | AC43: =SUMIF('006各シート集約'!$I$7:$I$306,$W43,'006各シート集約'!M$7:M$306) -> 0 | AD43: =SUMIF('006各シート集約'!$I$7:$I$306,$W43,'006各シート集約'!N$7:N$306) -> 0 | AE43: =SUMIF('006各シート集約'!$I$7:$I$306,$W43,'006各シート集約'!O$7:O$306) -> 0 | AF43: =SUMIF('006各シート集約'!$I$7:$I$306,$W43,'006各シート集約'!P$7:P$306) -> 0 | AG43: =SUMIF('006各シート集約'!$I$7:$I$306,$W43,'006各シート集約'!Q$7:Q$306) -> 0 | AH43: =SUMIF('006各シート集約'!$I$7:$I$306,$W43,'006各シート集約'!R$7:R$306) -> 0 | AI43: =SUMIF('006各シート集約'!$I$7:$I$306,$W43,'006各シート集約'!S$7:S$306) -> 0 | AJ43: =SUMIF('006各シート集約'!$I$7:$I$306,$W43,'006各シート集約'!T$7:T$306) -> 0 | AK43: =SUMIF('006各シート集約'!$I$7:$I$306,$W43,'006各シート集約'!U$7:U$306) -> 0 | AL43: =SUMIF('006各シート集約'!$I$7:$I$306,$W43,'006各シート集約'!V$7:V$306) -> 0 | AM43: =SUMIF('006各シート集約'!$I$7:$I$306,$W43,'006各シート集約'!W$7:W$306) -> 0 | AN43: =SUMIF('006各シート集約'!$I$7:$I$306,$W43,'006各シート集約'!X$7:X$306) -> 0
A44: 41 | B44: 佐賀県 | D44: 佐賀県 | E44: =SUMIF('006各シート集約'!$H$7:$H$306,$D44,'006各シート集約'!F$7:F$306) -> 0 | F44: =SUMIF('006各シート集約'!$H$7:$H$306,$D44,'006各シート集約'!G$7:G$306) -> 0 | G44: =SUMIF('006各シート集約'!$H$7:$H$306,$D44,'006各シート集約'!J$7:J$306) -> 0 | H44: =SUMIF('006各シート集約'!$H$7:$H$306,$D44,'006各シート集約'!K$7:K$306) -> 0 | I44: =SUMIF('006各シート集約'!$H$7:$H$306,$D44,'006各シート集約'!L$7:L$306) -> 0 | J44: =SUMIF('006各シート集約'!$H$7:$H$306,$D44,'006各シート集約'!M$7:M$306) -> 0 | K44: =SUMIF('006各シート集約'!$H$7:$H$306,$D44,'006各シート集約'!N$7:N$306) -> 0 | L44: =SUMIF('006各シート集約'!$H$7:$H$306,$D44,'006各シート集約'!O$7:O$306) -> 0 | M44: =SUMIF('006各シート集約'!$H$7:$H$306,$D44,'006各シート集約'!P$7:P$306) -> 0 | N44: =SUMIF('006各シート集約'!$H$7:$H$306,$D44,'006各シート集約'!Q$7:Q$306) -> 0 | O44: =SUMIF('006各シート集約'!$H$7:$H$306,$D44,'006各シート集約'!R$7:R$306) -> 0 | P44: =SUMIF('006各シート集約'!$H$7:$H$306,$D44,'006各シート集約'!S$7:S$306) -> 0 | Q44: =SUMIF('006各シート集約'!$H$7:$H$306,$D44,'006各シート集約'!T$7:T$306) -> 0 | R44: =SUMIF('006各シート集約'!$H$7:$H$306,$D44,'006各シート集約'!U$7:U$306) -> 0 | S44: =SUMIF('006各シート集約'!$H$7:$H$306,$D44,'006各シート集約'!V$7:V$306) -> 0 | T44: =SUMIF('006各シート集約'!$H$7:$H$306,$D44,'006各シート集約'!W$7:W$306) -> 0 | U44: =SUMIF('006各シート集約'!$H$7:$H$306,$D44,'006各シート集約'!X$7:X$306) -> 0 | W44: 佐賀県 | X44: =SUMIF('006各シート集約'!$I$7:$I$306,$W44,'006各シート集約'!F$7:F$306) -> 0 | Y44: =SUMIF('006各シート集約'!$I$7:$I$306,$W44,'006各シート集約'!G$7:G$306) -> 0 | Z44: =SUMIF('006各シート集約'!$I$7:$I$306,$W44,'006各シート集約'!J$7:J$306) -> 0 | AA44: =SUMIF('006各シート集約'!$I$7:$I$306,$W44,'006各シート集約'!K$7:K$306) -> 0 | AB44: =SUMIF('006各シート集約'!$I$7:$I$306,$W44,'006各シート集約'!L$7:L$306) -> 0 | AC44: =SUMIF('006各シート集約'!$I$7:$I$306,$W44,'006各シート集約'!M$7:M$306) -> 0 | AD44: =SUMIF('006各シート集約'!$I$7:$I$306,$W44,'006各シート集約'!N$7:N$306) -> 0 | AE44: =SUMIF('006各シート集約'!$I$7:$I$306,$W44,'006各シート集約'!O$7:O$306) -> 0 | AF44: =SUMIF('006各シート集約'!$I$7:$I$306,$W44,'006各シート集約'!P$7:P$306) -> 0 | AG44: =SUMIF('006各シート集約'!$I$7:$I$306,$W44,'006各シート集約'!Q$7:Q$306) -> 0 | AH44: =SUMIF('006各シート集約'!$I$7:$I$306,$W44,'006各シート集約'!R$7:R$306) -> 0 | AI44: =SUMIF('006各シート集約'!$I$7:$I$306,$W44,'006各シート集約'!S$7:S$306) -> 0 | AJ44: =SUMIF('006各シート集約'!$I$7:$I$306,$W44,'006各シート集約'!T$7:T$306) -> 0 | AK44: =SUMIF('006各シート集約'!$I$7:$I$306,$W44,'006各シート集約'!U$7:U$306) -> 0 | AL44: =SUMIF('006各シート集約'!$I$7:$I$306,$W44,'006各シート集約'!V$7:V$306) -> 0 | AM44: =SUMIF('006各シート集約'!$I$7:$I$306,$W44,'006各シート集約'!W$7:W$306) -> 0 | AN44: =SUMIF('006各シート集約'!$I$7:$I$306,$W44,'006各シート集約'!X$7:X$306) -> 0
A45: 42 | B45: 長崎県 | D45: 長崎県 | E45: =SUMIF('006各シート集約'!$H$7:$H$306,$D45,'006各シート集約'!F$7:F$306) -> 0 | F45: =SUMIF('006各シート集約'!$H$7:$H$306,$D45,'006各シート集約'!G$7:G$306) -> 0 | G45: =SUMIF('006各シート集約'!$H$7:$H$306,$D45,'006各シート集約'!J$7:J$306) -> 0 | H45: =SUMIF('006各シート集約'!$H$7:$H$306,$D45,'006各シート集約'!K$7:K$306) -> 0 | I45: =SUMIF('006各シート集約'!$H$7:$H$306,$D45,'006各シート集約'!L$7:L$306) -> 0 | J45: =SUMIF('006各シート集約'!$H$7:$H$306,$D45,'006各シート集約'!M$7:M$306) -> 0 | K45: =SUMIF('006各シート集約'!$H$7:$H$306,$D45,'006各シート集約'!N$7:N$306) -> 0 | L45: =SUMIF('006各シート集約'!$H$7:$H$306,$D45,'006各シート集約'!O$7:O$306) -> 0 | M45: =SUMIF('006各シート集約'!$H$7:$H$306,$D45,'006各シート集約'!P$7:P$306) -> 0 | N45: =SUMIF('006各シート集約'!$H$7:$H$306,$D45,'006各シート集約'!Q$7:Q$306) -> 0 | O45: =SUMIF('006各シート集約'!$H$7:$H$306,$D45,'006各シート集約'!R$7:R$306) -> 0 | P45: =SUMIF('006各シート集約'!$H$7:$H$306,$D45,'006各シート集約'!S$7:S$306) -> 0 | Q45: =SUMIF('006各シート集約'!$H$7:$H$306,$D45,'006各シート集約'!T$7:T$306) -> 0 | R45: =SUMIF('006各シート集約'!$H$7:$H$306,$D45,'006各シート集約'!U$7:U$306) -> 0 | S45: =SUMIF('006各シート集約'!$H$7:$H$306,$D45,'006各シート集約'!V$7:V$306) -> 0 | T45: =SUMIF('006各シート集約'!$H$7:$H$306,$D45,'006各シート集約'!W$7:W$306) -> 0 | U45: =SUMIF('006各シート集約'!$H$7:$H$306,$D45,'006各シート集約'!X$7:X$306) -> 0 | W45: 長崎県 | X45: =SUMIF('006各シート集約'!$I$7:$I$306,$W45,'006各シート集約'!F$7:F$306) -> 0 | Y45: =SUMIF('006各シート集約'!$I$7:$I$306,$W45,'006各シート集約'!G$7:G$306) -> 0 | Z45: =SUMIF('006各シート集約'!$I$7:$I$306,$W45,'006各シート集約'!J$7:J$306) -> 0 | AA45: =SUMIF('006各シート集約'!$I$7:$I$306,$W45,'006各シート集約'!K$7:K$306) -> 0 | AB45: =SUMIF('006各シート集約'!$I$7:$I$306,$W45,'006各シート集約'!L$7:L$306) -> 0 | AC45: =SUMIF('006各シート集約'!$I$7:$I$306,$W45,'006各シート集約'!M$7:M$306) -> 0 | AD45: =SUMIF('006各シート集約'!$I$7:$I$306,$W45,'006各シート集約'!N$7:N$306) -> 0 | AE45: =SUMIF('006各シート集約'!$I$7:$I$306,$W45,'006各シート集約'!O$7:O$306) -> 0 | AF45: =SUMIF('006各シート集約'!$I$7:$I$306,$W45,'006各シート集約'!P$7:P$306) -> 0 | AG45: =SUMIF('006各シート集約'!$I$7:$I$306,$W45,'006各シート集約'!Q$7:Q$306) -> 0 | AH45: =SUMIF('006各シート集約'!$I$7:$I$306,$W45,'006各シート集約'!R$7:R$306) -> 0 | AI45: =SUMIF('006各シート集約'!$I$7:$I$306,$W45,'006各シート集約'!S$7:S$306) -> 0 | AJ45: =SUMIF('006各シート集約'!$I$7:$I$306,$W45,'006各シート集約'!T$7:T$306) -> 0 | AK45: =SUMIF('006各シート集約'!$I$7:$I$306,$W45,'006各シート集約'!U$7:U$306) -> 0 | AL45: =SUMIF('006各シート集約'!$I$7:$I$306,$W45,'006各シート集約'!V$7:V$306) -> 0 | AM45: =SUMIF('006各シート集約'!$I$7:$I$306,$W45,'006各シート集約'!W$7:W$306) -> 0 | AN45: =SUMIF('006各シート集約'!$I$7:$I$306,$W45,'006各シート集約'!X$7:X$306) -> 0
A46: 43 | B46: 熊本県 | D46: 熊本県 | E46: =SUMIF('006各シート集約'!$H$7:$H$306,$D46,'006各シート集約'!F$7:F$306) -> 0 | F46: =SUMIF('006各シート集約'!$H$7:$H$306,$D46,'006各シート集約'!G$7:G$306) -> 0 | G46: =SUMIF('006各シート集約'!$H$7:$H$306,$D46,'006各シート集約'!J$7:J$306) -> 0 | H46: =SUMIF('006各シート集約'!$H$7:$H$306,$D46,'006各シート集約'!K$7:K$306) -> 0 | I46: =SUMIF('006各シート集約'!$H$7:$H$306,$D46,'006各シート集約'!L$7:L$306) -> 0 | J46: =SUMIF('006各シート集約'!$H$7:$H$306,$D46,'006各シート集約'!M$7:M$306) -> 0 | K46: =SUMIF('006各シート集約'!$H$7:$H$306,$D46,'006各シート集約'!N$7:N$306) -> 0 | L46: =SUMIF('006各シート集約'!$H$7:$H$306,$D46,'006各シート集約'!O$7:O$306) -> 0 | M46: =SUMIF('006各シート集約'!$H$7:$H$306,$D46,'006各シート集約'!P$7:P$306) -> 0 | N46: =SUMIF('006各シート集約'!$H$7:$H$306,$D46,'006各シート集約'!Q$7:Q$306) -> 0 | O46: =SUMIF('006各シート集約'!$H$7:$H$306,$D46,'006各シート集約'!R$7:R$306) -> 0 | P46: =SUMIF('006各シート集約'!$H$7:$H$306,$D46,'006各シート集約'!S$7:S$306) -> 0 | Q46: =SUMIF('006各シート集約'!$H$7:$H$306,$D46,'006各シート集約'!T$7:T$306) -> 0 | R46: =SUMIF('006各シート集約'!$H$7:$H$306,$D46,'006各シート集約'!U$7:U$306) -> 0 | S46: =SUMIF('006各シート集約'!$H$7:$H$306,$D46,'006各シート集約'!V$7:V$306) -> 0 | T46: =SUMIF('006各シート集約'!$H$7:$H$306,$D46,'006各シート集約'!W$7:W$306) -> 0 | U46: =SUMIF('006各シート集約'!$H$7:$H$306,$D46,'006各シート集約'!X$7:X$306) -> 0 | W46: 熊本県 | X46: =SUMIF('006各シート集約'!$I$7:$I$306,$W46,'006各シート集約'!F$7:F$306) -> 0 | Y46: =SUMIF('006各シート集約'!$I$7:$I$306,$W46,'006各シート集約'!G$7:G$306) -> 0 | Z46: =SUMIF('006各シート集約'!$I$7:$I$306,$W46,'006各シート集約'!J$7:J$306) -> 0 | AA46: =SUMIF('006各シート集約'!$I$7:$I$306,$W46,'006各シート集約'!K$7:K$306) -> 0 | AB46: =SUMIF('006各シート集約'!$I$7:$I$306,$W46,'006各シート集約'!L$7:L$306) -> 0 | AC46: =SUMIF('006各シート集約'!$I$7:$I$306,$W46,'006各シート集約'!M$7:M$306) -> 0 | AD46: =SUMIF('006各シート集約'!$I$7:$I$306,$W46,'006各シート集約'!N$7:N$306) -> 0 | AE46: =SUMIF('006各シート集約'!$I$7:$I$306,$W46,'006各シート集約'!O$7:O$306) -> 0 | AF46: =SUMIF('006各シート集約'!$I$7:$I$306,$W46,'006各シート集約'!P$7:P$306) -> 0 | AG46: =SUMIF('006各シート集約'!$I$7:$I$306,$W46,'006各シート集約'!Q$7:Q$306) -> 0 | AH46: =SUMIF('006各シート集約'!$I$7:$I$306,$W46,'006各シート集約'!R$7:R$306) -> 0 | AI46: =SUMIF('006各シート集約'!$I$7:$I$306,$W46,'006各シート集約'!S$7:S$306) -> 0 | AJ46: =SUMIF('006各シート集約'!$I$7:$I$306,$W46,'006各シート集約'!T$7:T$306) -> 0 | AK46: =SUMIF('006各シート集約'!$I$7:$I$306,$W46,'006各シート集約'!U$7:U$306) -> 0 | AL46: =SUMIF('006各シート集約'!$I$7:$I$306,$W46,'006各シート集約'!V$7:V$306) -> 0 | AM46: =SUMIF('006各シート集約'!$I$7:$I$306,$W46,'006各シート集約'!W$7:W$306) -> 0 | AN46: =SUMIF('006各シート集約'!$I$7:$I$306,$W46,'006各シート集約'!X$7:X$306) -> 0
A47: 44 | B47: 大分県 | D47: 大分県 | E47: =SUMIF('006各シート集約'!$H$7:$H$306,$D47,'006各シート集約'!F$7:F$306) -> 0 | F47: =SUMIF('006各シート集約'!$H$7:$H$306,$D47,'006各シート集約'!G$7:G$306) -> 0 | G47: =SUMIF('006各シート集約'!$H$7:$H$306,$D47,'006各シート集約'!J$7:J$306) -> 0 | H47: =SUMIF('006各シート集約'!$H$7:$H$306,$D47,'006各シート集約'!K$7:K$306) -> 0 | I47: =SUMIF('006各シート集約'!$H$7:$H$306,$D47,'006各シート集約'!L$7:L$306) -> 0 | J47: =SUMIF('006各シート集約'!$H$7:$H$306,$D47,'006各シート集約'!M$7:M$306) -> 0 | K47: =SUMIF('006各シート集約'!$H$7:$H$306,$D47,'006各シート集約'!N$7:N$306) -> 0 | L47: =SUMIF('006各シート集約'!$H$7:$H$306,$D47,'006各シート集約'!O$7:O$306) -> 0 | M47: =SUMIF('006各シート集約'!$H$7:$H$306,$D47,'006各シート集約'!P$7:P$306) -> 0 | N47: =SUMIF('006各シート集約'!$H$7:$H$306,$D47,'006各シート集約'!Q$7:Q$306) -> 0 | O47: =SUMIF('006各シート集約'!$H$7:$H$306,$D47,'006各シート集約'!R$7:R$306) -> 0 | P47: =SUMIF('006各シート集約'!$H$7:$H$306,$D47,'006各シート集約'!S$7:S$306) -> 0 | Q47: =SUMIF('006各シート集約'!$H$7:$H$306,$D47,'006各シート集約'!T$7:T$306) -> 0 | R47: =SUMIF('006各シート集約'!$H$7:$H$306,$D47,'006各シート集約'!U$7:U$306) -> 0 | S47: =SUMIF('006各シート集約'!$H$7:$H$306,$D47,'006各シート集約'!V$7:V$306) -> 0 | T47: =SUMIF('006各シート集約'!$H$7:$H$306,$D47,'006各シート集約'!W$7:W$306) -> 0 | U47: =SUMIF('006各シート集約'!$H$7:$H$306,$D47,'006各シート集約'!X$7:X$306) -> 0 | W47: 大分県 | X47: =SUMIF('006各シート集約'!$I$7:$I$306,$W47,'006各シート集約'!F$7:F$306) -> 0 | Y47: =SUMIF('006各シート集約'!$I$7:$I$306,$W47,'006各シート集約'!G$7:G$306) -> 0 | Z47: =SUMIF('006各シート集約'!$I$7:$I$306,$W47,'006各シート集約'!J$7:J$306) -> 0 | AA47: =SUMIF('006各シート集約'!$I$7:$I$306,$W47,'006各シート集約'!K$7:K$306) -> 0 | AB47: =SUMIF('006各シート集約'!$I$7:$I$306,$W47,'006各シート集約'!L$7:L$306) -> 0 | AC47: =SUMIF('006各シート集約'!$I$7:$I$306,$W47,'006各シート集約'!M$7:M$306) -> 0 | AD47: =SUMIF('006各シート集約'!$I$7:$I$306,$W47,'006各シート集約'!N$7:N$306) -> 0 | AE47: =SUMIF('006各シート集約'!$I$7:$I$306,$W47,'006各シート集約'!O$7:O$306) -> 0 | AF47: =SUMIF('006各シート集約'!$I$7:$I$306,$W47,'006各シート集約'!P$7:P$306) -> 0 | AG47: =SUMIF('006各シート集約'!$I$7:$I$306,$W47,'006各シート集約'!Q$7:Q$306) -> 0 | AH47: =SUMIF('006各シート集約'!$I$7:$I$306,$W47,'006各シート集約'!R$7:R$306) -> 0 | AI47: =SUMIF('006各シート集約'!$I$7:$I$306,$W47,'006各シート集約'!S$7:S$306) -> 0 | AJ47: =SUMIF('006各シート集約'!$I$7:$I$306,$W47,'006各シート集約'!T$7:T$306) -> 0 | AK47: =SUMIF('006各シート集約'!$I$7:$I$306,$W47,'006各シート集約'!U$7:U$306) -> 0 | AL47: =SUMIF('006各シート集約'!$I$7:$I$306,$W47,'006各シート集約'!V$7:V$306) -> 0 | AM47: =SUMIF('006各シート集約'!$I$7:$I$306,$W47,'006各シート集約'!W$7:W$306) -> 0 | AN47: =SUMIF('006各シート集約'!$I$7:$I$306,$W47,'006各シート集約'!X$7:X$306) -> 0
A48: 45 | B48: 宮崎県 | D48: 宮崎県 | E48: =SUMIF('006各シート集約'!$H$7:$H$306,$D48,'006各シート集約'!F$7:F$306) -> 0 | F48: =SUMIF('006各シート集約'!$H$7:$H$306,$D48,'006各シート集約'!G$7:G$306) -> 0 | G48: =SUMIF('006各シート集約'!$H$7:$H$306,$D48,'006各シート集約'!J$7:J$306) -> 0 | H48: =SUMIF('006各シート集約'!$H$7:$H$306,$D48,'006各シート集約'!K$7:K$306) -> 0 | I48: =SUMIF('006各シート集約'!$H$7:$H$306,$D48,'006各シート集約'!L$7:L$306) -> 0 | J48: =SUMIF('006各シート集約'!$H$7:$H$306,$D48,'006各シート集約'!M$7:M$306) -> 0 | K48: =SUMIF('006各シート集約'!$H$7:$H$306,$D48,'006各シート集約'!N$7:N$306) -> 0 | L48: =SUMIF('006各シート集約'!$H$7:$H$306,$D48,'006各シート集約'!O$7:O$306) -> 0 | M48: =SUMIF('006各シート集約'!$H$7:$H$306,$D48,'006各シート集約'!P$7:P$306) -> 0 | N48: =SUMIF('006各シート集約'!$H$7:$H$306,$D48,'006各シート集約'!Q$7:Q$306) -> 0 | O48: =SUMIF('006各シート集約'!$H$7:$H$306,$D48,'006各シート集約'!R$7:R$306) -> 0 | P48: =SUMIF('006各シート集約'!$H$7:$H$306,$D48,'006各シート集約'!S$7:S$306) -> 0 | Q48: =SUMIF('006各シート集約'!$H$7:$H$306,$D48,'006各シート集約'!T$7:T$306) -> 0 | R48: =SUMIF('006各シート集約'!$H$7:$H$306,$D48,'006各シート集約'!U$7:U$306) -> 0 | S48: =SUMIF('006各シート集約'!$H$7:$H$306,$D48,'006各シート集約'!V$7:V$306) -> 0 | T48: =SUMIF('006各シート集約'!$H$7:$H$306,$D48,'006各シート集約'!W$7:W$306) -> 0 | U48: =SUMIF('006各シート集約'!$H$7:$H$306,$D48,'006各シート集約'!X$7:X$306) -> 0 | W48: 宮崎県 | X48: =SUMIF('006各シート集約'!$I$7:$I$306,$W48,'006各シート集約'!F$7:F$306) -> 0 | Y48: =SUMIF('006各シート集約'!$I$7:$I$306,$W48,'006各シート集約'!G$7:G$306) -> 0 | Z48: =SUMIF('006各シート集約'!$I$7:$I$306,$W48,'006各シート集約'!J$7:J$306) -> 0 | AA48: =SUMIF('006各シート集約'!$I$7:$I$306,$W48,'006各シート集約'!K$7:K$306) -> 0 | AB48: =SUMIF('006各シート集約'!$I$7:$I$306,$W48,'006各シート集約'!L$7:L$306) -> 0 | AC48: =SUMIF('006各シート集約'!$I$7:$I$306,$W48,'006各シート集約'!M$7:M$306) -> 0 | AD48: =SUMIF('006各シート集約'!$I$7:$I$306,$W48,'006各シート集約'!N$7:N$306) -> 0 | AE48: =SUMIF('006各シート集約'!$I$7:$I$306,$W48,'006各シート集約'!O$7:O$306) -> 0 | AF48: =SUMIF('006各シート集約'!$I$7:$I$306,$W48,'006各シート集約'!P$7:P$306) -> 0 | AG48: =SUMIF('006各シート集約'!$I$7:$I$306,$W48,'006各シート集約'!Q$7:Q$306) -> 0 | AH48: =SUMIF('006各シート集約'!$I$7:$I$306,$W48,'006各シート集約'!R$7:R$306) -> 0 | AI48: =SUMIF('006各シート集約'!$I$7:$I$306,$W48,'006各シート集約'!S$7:S$306) -> 0 | AJ48: =SUMIF('006各シート集約'!$I$7:$I$306,$W48,'006各シート集約'!T$7:T$306) -> 0 | AK48: =SUMIF('006各シート集約'!$I$7:$I$306,$W48,'006各シート集約'!U$7:U$306) -> 0 | AL48: =SUMIF('006各シート集約'!$I$7:$I$306,$W48,'006各シート集約'!V$7:V$306) -> 0 | AM48: =SUMIF('006各シート集約'!$I$7:$I$306,$W48,'006各シート集約'!W$7:W$306) -> 0 | AN48: =SUMIF('006各シート集約'!$I$7:$I$306,$W48,'006各シート集約'!X$7:X$306) -> 0
A49: 46 | B49: 鹿児島県 | D49: 鹿児島県 | E49: =SUMIF('006各シート集約'!$H$7:$H$306,$D49,'006各シート集約'!F$7:F$306) -> 0 | F49: =SUMIF('006各シート集約'!$H$7:$H$306,$D49,'006各シート集約'!G$7:G$306) -> 0 | G49: =SUMIF('006各シート集約'!$H$7:$H$306,$D49,'006各シート集約'!J$7:J$306) -> 0 | H49: =SUMIF('006各シート集約'!$H$7:$H$306,$D49,'006各シート集約'!K$7:K$306) -> 0 | I49: =SUMIF('006各シート集約'!$H$7:$H$306,$D49,'006各シート集約'!L$7:L$306) -> 0 | J49: =SUMIF('006各シート集約'!$H$7:$H$306,$D49,'006各シート集約'!M$7:M$306) -> 0 | K49: =SUMIF('006各シート集約'!$H$7:$H$306,$D49,'006各シート集約'!N$7:N$306) -> 0 | L49: =SUMIF('006各シート集約'!$H$7:$H$306,$D49,'006各シート集約'!O$7:O$306) -> 0 | M49: =SUMIF('006各シート集約'!$H$7:$H$306,$D49,'006各シート集約'!P$7:P$306) -> 0 | N49: =SUMIF('006各シート集約'!$H$7:$H$306,$D49,'006各シート集約'!Q$7:Q$306) -> 0 | O49: =SUMIF('006各シート集約'!$H$7:$H$306,$D49,'006各シート集約'!R$7:R$306) -> 0 | P49: =SUMIF('006各シート集約'!$H$7:$H$306,$D49,'006各シート集約'!S$7:S$306) -> 0 | Q49: =SUMIF('006各シート集約'!$H$7:$H$306,$D49,'006各シート集約'!T$7:T$306) -> 0 | R49: =SUMIF('006各シート集約'!$H$7:$H$306,$D49,'006各シート集約'!U$7:U$306) -> 0 | S49: =SUMIF('006各シート集約'!$H$7:$H$306,$D49,'006各シート集約'!V$7:V$306) -> 0 | T49: =SUMIF('006各シート集約'!$H$7:$H$306,$D49,'006各シート集約'!W$7:W$306) -> 0 | U49: =SUMIF('006各シート集約'!$H$7:$H$306,$D49,'006各シート集約'!X$7:X$306) -> 0 | W49: 鹿児島県 | X49: =SUMIF('006各シート集約'!$I$7:$I$306,$W49,'006各シート集約'!F$7:F$306) -> 0 | Y49: =SUMIF('006各シート集約'!$I$7:$I$306,$W49,'006各シート集約'!G$7:G$306) -> 0 | Z49: =SUMIF('006各シート集約'!$I$7:$I$306,$W49,'006各シート集約'!J$7:J$306) -> 0 | AA49: =SUMIF('006各シート集約'!$I$7:$I$306,$W49,'006各シート集約'!K$7:K$306) -> 0 | AB49: =SUMIF('006各シート集約'!$I$7:$I$306,$W49,'006各シート集約'!L$7:L$306) -> 0 | AC49: =SUMIF('006各シート集約'!$I$7:$I$306,$W49,'006各シート集約'!M$7:M$306) -> 0 | AD49: =SUMIF('006各シート集約'!$I$7:$I$306,$W49,'006各シート集約'!N$7:N$306) -> 0 | AE49: =SUMIF('006各シート集約'!$I$7:$I$306,$W49,'006各シート集約'!O$7:O$306) -> 0 | AF49: =SUMIF('006各シート集約'!$I$7:$I$306,$W49,'006各シート集約'!P$7:P$306) -> 0 | AG49: =SUMIF('006各シート集約'!$I$7:$I$306,$W49,'006各シート集約'!Q$7:Q$306) -> 0 | AH49: =SUMIF('006各シート集約'!$I$7:$I$306,$W49,'006各シート集約'!R$7:R$306) -> 0 | AI49: =SUMIF('006各シート集約'!$I$7:$I$306,$W49,'006各シート集約'!S$7:S$306) -> 0 | AJ49: =SUMIF('006各シート集約'!$I$7:$I$306,$W49,'006各シート集約'!T$7:T$306) -> 0 | AK49: =SUMIF('006各シート集約'!$I$7:$I$306,$W49,'006各シート集約'!U$7:U$306) -> 0 | AL49: =SUMIF('006各シート集約'!$I$7:$I$306,$W49,'006各シート集約'!V$7:V$306) -> 0 | AM49: =SUMIF('006各シート集約'!$I$7:$I$306,$W49,'006各シート集約'!W$7:W$306) -> 0 | AN49: =SUMIF('006各シート集約'!$I$7:$I$306,$W49,'006各シート集約'!X$7:X$306) -> 0
A50: 47 | B50: 沖縄県 | D50: 沖縄県 | E50: =SUMIF('006各シート集約'!$H$7:$H$306,$D50,'006各シート集約'!F$7:F$306) -> 0 | F50: =SUMIF('006各シート集約'!$H$7:$H$306,$D50,'006各シート集約'!G$7:G$306) -> 0 | G50: =SUMIF('006各シート集約'!$H$7:$H$306,$D50,'006各シート集約'!J$7:J$306) -> 0 | H50: =SUMIF('006各シート集約'!$H$7:$H$306,$D50,'006各シート集約'!K$7:K$306) -> 0 | I50: =SUMIF('006各シート集約'!$H$7:$H$306,$D50,'006各シート集約'!L$7:L$306) -> 0 | J50: =SUMIF('006各シート集約'!$H$7:$H$306,$D50,'006各シート集約'!M$7:M$306) -> 0 | K50: =SUMIF('006各シート集約'!$H$7:$H$306,$D50,'006各シート集約'!N$7:N$306) -> 0 | L50: =SUMIF('006各シート集約'!$H$7:$H$306,$D50,'006各シート集約'!O$7:O$306) -> 0 | M50: =SUMIF('006各シート集約'!$H$7:$H$306,$D50,'006各シート集約'!P$7:P$306) -> 0 | N50: =SUMIF('006各シート集約'!$H$7:$H$306,$D50,'006各シート集約'!Q$7:Q$306) -> 0 | O50: =SUMIF('006各シート集約'!$H$7:$H$306,$D50,'006各シート集約'!R$7:R$306) -> 0 | P50: =SUMIF('006各シート集約'!$H$7:$H$306,$D50,'006各シート集約'!S$7:S$306) -> 0 | Q50: =SUMIF('006各シート集約'!$H$7:$H$306,$D50,'006各シート集約'!T$7:T$306) -> 0 | R50: =SUMIF('006各シート集約'!$H$7:$H$306,$D50,'006各シート集約'!U$7:U$306) -> 0 | S50: =SUMIF('006各シート集約'!$H$7:$H$306,$D50,'006各シート集約'!V$7:V$306) -> 0 | T50: =SUMIF('006各シート集約'!$H$7:$H$306,$D50,'006各シート集約'!W$7:W$306) -> 0 | U50: =SUMIF('006各シート集約'!$H$7:$H$306,$D50,'006各シート集約'!X$7:X$306) -> 0 | W50: 沖縄県 | X50: =SUMIF('006各シート集約'!$I$7:$I$306,$W50,'006各シート集約'!F$7:F$306) -> 0 | Y50: =SUMIF('006各シート集約'!$I$7:$I$306,$W50,'006各シート集約'!G$7:G$306) -> 0 | Z50: =SUMIF('006各シート集約'!$I$7:$I$306,$W50,'006各シート集約'!J$7:J$306) -> 0 | AA50: =SUMIF('006各シート集約'!$I$7:$I$306,$W50,'006各シート集約'!K$7:K$306) -> 0 | AB50: =SUMIF('006各シート集約'!$I$7:$I$306,$W50,'006各シート集約'!L$7:L$306) -> 0 | AC50: =SUMIF('006各シート集約'!$I$7:$I$306,$W50,'006各シート集約'!M$7:M$306) -> 0 | AD50: =SUMIF('006各シート集約'!$I$7:$I$306,$W50,'006各シート集約'!N$7:N$306) -> 0 | AE50: =SUMIF('006各シート集約'!$I$7:$I$306,$W50,'006各シート集約'!O$7:O$306) -> 0 | AF50: =SUMIF('006各シート集約'!$I$7:$I$306,$W50,'006各シート集約'!P$7:P$306) -> 0 | AG50: =SUMIF('006各シート集約'!$I$7:$I$306,$W50,'006各シート集約'!Q$7:Q$306) -> 0 | AH50: =SUMIF('006各シート集約'!$I$7:$I$306,$W50,'006各シート集約'!R$7:R$306) -> 0 | AI50: =SUMIF('006各シート集約'!$I$7:$I$306,$W50,'006各シート集約'!S$7:S$306) -> 0 | AJ50: =SUMIF('006各シート集約'!$I$7:$I$306,$W50,'006各シート集約'!T$7:T$306) -> 0 | AK50: =SUMIF('006各シート集約'!$I$7:$I$306,$W50,'006各シート集約'!U$7:U$306) -> 0 | AL50: =SUMIF('006各シート集約'!$I$7:$I$306,$W50,'006各シート集約'!V$7:V$306) -> 0 | AM50: =SUMIF('006各シート集約'!$I$7:$I$306,$W50,'006各シート集約'!W$7:W$306) -> 0 | AN50: =SUMIF('006各シート集約'!$I$7:$I$306,$W50,'006各シート集約'!X$7:X$306) -> 0
A51: 48 | B51: 北海道 | C51: 指定都市 | D51: 札幌市 | E51: =SUMIF('006各シート集約'!$H$7:$H$306,$D51,'006各シート集約'!F$7:F$306) -> 0 | F51: =SUMIF('006各シート集約'!$H$7:$H$306,$D51,'006各シート集約'!G$7:G$306) -> 0 | G51: =SUMIF('006各シート集約'!$H$7:$H$306,$D51,'006各シート集約'!J$7:J$306) -> 0 | H51: =SUMIF('006各シート集約'!$H$7:$H$306,$D51,'006各シート集約'!K$7:K$306) -> 0 | I51: =SUMIF('006各シート集約'!$H$7:$H$306,$D51,'006各シート集約'!L$7:L$306) -> 0 | J51: =SUMIF('006各シート集約'!$H$7:$H$306,$D51,'006各シート集約'!M$7:M$306) -> 0 | K51: =SUMIF('006各シート集約'!$H$7:$H$306,$D51,'006各シート集約'!N$7:N$306) -> 0 | L51: =SUMIF('006各シート集約'!$H$7:$H$306,$D51,'006各シート集約'!O$7:O$306) -> 0 | M51: =SUMIF('006各シート集約'!$H$7:$H$306,$D51,'006各シート集約'!P$7:P$306) -> 0 | N51: =SUMIF('006各シート集約'!$H$7:$H$306,$D51,'006各シート集約'!Q$7:Q$306) -> 0 | O51: =SUMIF('006各シート集約'!$H$7:$H$306,$D51,'006各シート集約'!R$7:R$306) -> 0 | P51: =SUMIF('006各シート集約'!$H$7:$H$306,$D51,'006各シート集約'!S$7:S$306) -> 0 | Q51: =SUMIF('006各シート集約'!$H$7:$H$306,$D51,'006各シート集約'!T$7:T$306) -> 0 | R51: =SUMIF('006各シート集約'!$H$7:$H$306,$D51,'006各シート集約'!U$7:U$306) -> 0 | S51: =SUMIF('006各シート集約'!$H$7:$H$306,$D51,'006各シート集約'!V$7:V$306) -> 0 | T51: =SUMIF('006各シート集約'!$H$7:$H$306,$D51,'006各シート集約'!W$7:W$306) -> 0 | U51: =SUMIF('006各シート集約'!$H$7:$H$306,$D51,'006各シート集約'!X$7:X$306) -> 0
A52: 49 | B52: 宮城県 | D52: 仙台市 | E52: =SUMIF('006各シート集約'!$H$7:$H$306,$D52,'006各シート集約'!F$7:F$306) -> 0 | F52: =SUMIF('006各シート集約'!$H$7:$H$306,$D52,'006各シート集約'!G$7:G$306) -> 0 | G52: =SUMIF('006各シート集約'!$H$7:$H$306,$D52,'006各シート集約'!J$7:J$306) -> 0 | H52: =SUMIF('006各シート集約'!$H$7:$H$306,$D52,'006各シート集約'!K$7:K$306) -> 0 | I52: =SUMIF('006各シート集約'!$H$7:$H$306,$D52,'006各シート集約'!L$7:L$306) -> 0 | J52: =SUMIF('006各シート集約'!$H$7:$H$306,$D52,'006各シート集約'!M$7:M$306) -> 0 | K52: =SUMIF('006各シート集約'!$H$7:$H$306,$D52,'006各シート集約'!N$7:N$306) -> 0 | L52: =SUMIF('006各シート集約'!$H$7:$H$306,$D52,'006各シート集約'!O$7:O$306) -> 0 | M52: =SUMIF('006各シート集約'!$H$7:$H$306,$D52,'006各シート集約'!P$7:P$306) -> 0 | N52: =SUMIF('006各シート集約'!$H$7:$H$306,$D52,'006各シート集約'!Q$7:Q$306) -> 0 | O52: =SUMIF('006各シート集約'!$H$7:$H$306,$D52,'006各シート集約'!R$7:R$306) -> 0 | P52: =SUMIF('006各シート集約'!$H$7:$H$306,$D52,'006各シート集約'!S$7:S$306) -> 0 | Q52: =SUMIF('006各シート集約'!$H$7:$H$306,$D52,'006各シート集約'!T$7:T$306) -> 0 | R52: =SUMIF('006各シート集約'!$H$7:$H$306,$D52,'006各シート集約'!U$7:U$306) -> 0 | S52: =SUMIF('006各シート集約'!$H$7:$H$306,$D52,'006各シート集約'!V$7:V$306) -> 0 | T52: =SUMIF('006各シート集約'!$H$7:$H$306,$D52,'006各シート集約'!W$7:W$306) -> 0 | U52: =SUMIF('006各シート集約'!$H$7:$H$306,$D52,'006各シート集約'!X$7:X$306) -> 0
A53: 50 | B53: 埼玉県 | D53: さいたま市 | E53: =SUMIF('006各シート集約'!$H$7:$H$306,$D53,'006各シート集約'!F$7:F$306) -> 0 | F53: =SUMIF('006各シート集約'!$H$7:$H$306,$D53,'006各シート集約'!G$7:G$306) -> 0 | G53: =SUMIF('006各シート集約'!$H$7:$H$306,$D53,'006各シート集約'!J$7:J$306) -> 0 | H53: =SUMIF('006各シート集約'!$H$7:$H$306,$D53,'006各シート集約'!K$7:K$306) -> 0 | I53: =SUMIF('006各シート集約'!$H$7:$H$306,$D53,'006各シート集約'!L$7:L$306) -> 0 | J53: =SUMIF('006各シート集約'!$H$7:$H$306,$D53,'006各シート集約'!M$7:M$306) -> 0 | K53: =SUMIF('006各シート集約'!$H$7:$H$306,$D53,'006各シート集約'!N$7:N$306) -> 0 | L53: =SUMIF('006各シート集約'!$H$7:$H$306,$D53,'006各シート集約'!O$7:O$306) -> 0 | M53: =SUMIF('006各シート集約'!$H$7:$H$306,$D53,'006各シート集約'!P$7:P$306) -> 0 | N53: =SUMIF('006各シート集約'!$H$7:$H$306,$D53,'006各シート集約'!Q$7:Q$306) -> 0 | O53: =SUMIF('006各シート集約'!$H$7:$H$306,$D53,'006各シート集約'!R$7:R$306) -> 0 | P53: =SUMIF('006各シート集約'!$H$7:$H$306,$D53,'006各シート集約'!S$7:S$306) -> 0 | Q53: =SUMIF('006各シート集約'!$H$7:$H$306,$D53,'006各シート集約'!T$7:T$306) -> 0 | R53: =SUMIF('006各シート集約'!$H$7:$H$306,$D53,'006各シート集約'!U$7:U$306) -> 0 | S53: =SUMIF('006各シート集約'!$H$7:$H$306,$D53,'006各シート集約'!V$7:V$306) -> 0 | T53: =SUMIF('006各シート集約'!$H$7:$H$306,$D53,'006各シート集約'!W$7:W$306) -> 0 | U53: =SUMIF('006各シート集約'!$H$7:$H$306,$D53,'006各シート集約'!X$7:X$306) -> 0
A54: 51 | B54: 千葉県 | D54: 千葉市 | E54: =SUMIF('006各シート集約'!$H$7:$H$306,$D54,'006各シート集約'!F$7:F$306) -> 0 | F54: =SUMIF('006各シート集約'!$H$7:$H$306,$D54,'006各シート集約'!G$7:G$306) -> 0 | G54: =SUMIF('006各シート集約'!$H$7:$H$306,$D54,'006各シート集約'!J$7:J$306) -> 0 | H54: =SUMIF('006各シート集約'!$H$7:$H$306,$D54,'006各シート集約'!K$7:K$306) -> 0 | I54: =SUMIF('006各シート集約'!$H$7:$H$306,$D54,'006各シート集約'!L$7:L$306) -> 0 | J54: =SUMIF('006各シート集約'!$H$7:$H$306,$D54,'006各シート集約'!M$7:M$306) -> 0 | K54: =SUMIF('006各シート集約'!$H$7:$H$306,$D54,'006各シート集約'!N$7:N$306) -> 0 | L54: =SUMIF('006各シート集約'!$H$7:$H$306,$D54,'006各シート集約'!O$7:O$306) -> 0 | M54: =SUMIF('006各シート集約'!$H$7:$H$306,$D54,'006各シート集約'!P$7:P$306) -> 0 | N54: =SUMIF('006各シート集約'!$H$7:$H$306,$D54,'006各シート集約'!Q$7:Q$306) -> 0 | O54: =SUMIF('006各シート集約'!$H$7:$H$306,$D54,'006各シート集約'!R$7:R$306) -> 0 | P54: =SUMIF('006各シート集約'!$H$7:$H$306,$D54,'006各シート集約'!S$7:S$306) -> 0 | Q54: =SUMIF('006各シート集約'!$H$7:$H$306,$D54,'006各シート集約'!T$7:T$306) -> 0 | R54: =SUMIF('006各シート集約'!$H$7:$H$306,$D54,'006各シート集約'!U$7:U$306) -> 0 | S54: =SUMIF('006各シート集約'!$H$7:$H$306,$D54,'006各シート集約'!V$7:V$306) -> 0 | T54: =SUMIF('006各シート集約'!$H$7:$H$306,$D54,'006各シート集約'!W$7:W$306) -> 0 | U54: =SUMIF('006各シート集約'!$H$7:$H$306,$D54,'006各シート集約'!X$7:X$306) -> 0
A55: 52 | B55: 神奈川県 | D55: 横浜市 | E55: =SUMIF('006各シート集約'!$H$7:$H$306,$D55,'006各シート集約'!F$7:F$306) -> 0 | F55: =SUMIF('006各シート集約'!$H$7:$H$306,$D55,'006各シート集約'!G$7:G$306) -> 0 | G55: =SUMIF('006各シート集約'!$H$7:$H$306,$D55,'006各シート集約'!J$7:J$306) -> 0 | H55: =SUMIF('006各シート集約'!$H$7:$H$306,$D55,'006各シート集約'!K$7:K$306) -> 0 | I55: =SUMIF('006各シート集約'!$H$7:$H$306,$D55,'006各シート集約'!L$7:L$306) -> 0 | J55: =SUMIF('006各シート集約'!$H$7:$H$306,$D55,'006各シート集約'!M$7:M$306) -> 0 | K55: =SUMIF('006各シート集約'!$H$7:$H$306,$D55,'006各シート集約'!N$7:N$306) -> 0 | L55: =SUMIF('006各シート集約'!$H$7:$H$306,$D55,'006各シート集約'!O$7:O$306) -> 0 | M55: =SUMIF('006各シート集約'!$H$7:$H$306,$D55,'006各シート集約'!P$7:P$306) -> 0 | N55: =SUMIF('006各シート集約'!$H$7:$H$306,$D55,'006各シート集約'!Q$7:Q$306) -> 0 | O55: =SUMIF('006各シート集約'!$H$7:$H$306,$D55,'006各シート集約'!R$7:R$306) -> 0 | P55: =SUMIF('006各シート集約'!$H$7:$H$306,$D55,'006各シート集約'!S$7:S$306) -> 0 | Q55: =SUMIF('006各シート集約'!$H$7:$H$306,$D55,'006各シート集約'!T$7:T$306) -> 0 | R55: =SUMIF('006各シート集約'!$H$7:$H$306,$D55,'006各シート集約'!U$7:U$306) -> 0 | S55: =SUMIF('006各シート集約'!$H$7:$H$306,$D55,'006各シート集約'!V$7:V$306) -> 0 | T55: =SUMIF('006各シート集約'!$H$7:$H$306,$D55,'006各シート集約'!W$7:W$306) -> 0 | U55: =SUMIF('006各シート集約'!$H$7:$H$306,$D55,'006各シート集約'!X$7:X$306) -> 0
A56: 53 | B56: 神奈川県 | D56: 川崎市 | E56: =SUMIF('006各シート集約'!$H$7:$H$306,$D56,'006各シート集約'!F$7:F$306) -> 0 | F56: =SUMIF('006各シート集約'!$H$7:$H$306,$D56,'006各シート集約'!G$7:G$306) -> 0 | G56: =SUMIF('006各シート集約'!$H$7:$H$306,$D56,'006各シート集約'!J$7:J$306) -> 0 | H56: =SUMIF('006各シート集約'!$H$7:$H$306,$D56,'006各シート集約'!K$7:K$306) -> 0 | I56: =SUMIF('006各シート集約'!$H$7:$H$306,$D56,'006各シート集約'!L$7:L$306) -> 0 | J56: =SUMIF('006各シート集約'!$H$7:$H$306,$D56,'006各シート集約'!M$7:M$306) -> 0 | K56: =SUMIF('006各シート集約'!$H$7:$H$306,$D56,'006各シート集約'!N$7:N$306) -> 0 | L56: =SUMIF('006各シート集約'!$H$7:$H$306,$D56,'006各シート集約'!O$7:O$306) -> 0 | M56: =SUMIF('006各シート集約'!$H$7:$H$306,$D56,'006各シート集約'!P$7:P$306) -> 0 | N56: =SUMIF('006各シート集約'!$H$7:$H$306,$D56,'006各シート集約'!Q$7:Q$306) -> 0 | O56: =SUMIF('006各シート集約'!$H$7:$H$306,$D56,'006各シート集約'!R$7:R$306) -> 0 | P56: =SUMIF('006各シート集約'!$H$7:$H$306,$D56,'006各シート集約'!S$7:S$306) -> 0 | Q56: =SUMIF('006各シート集約'!$H$7:$H$306,$D56,'006各シート集約'!T$7:T$306) -> 0 | R56: =SUMIF('006各シート集約'!$H$7:$H$306,$D56,'006各シート集約'!U$7:U$306) -> 0 | S56: =SUMIF('006各シート集約'!$H$7:$H$306,$D56,'006各シート集約'!V$7:V$306) -> 0 | T56: =SUMIF('006各シート集約'!$H$7:$H$306,$D56,'006各シート集約'!W$7:W$306) -> 0 | U56: =SUMIF('006各シート集約'!$H$7:$H$306,$D56,'006各シート集約'!X$7:X$306) -> 0
A57: 54 | B57: 神奈川県 | D57: 相模原市 | E57: =SUMIF('006各シート集約'!$H$7:$H$306,$D57,'006各シート集約'!F$7:F$306) -> 0 | F57: =SUMIF('006各シート集約'!$H$7:$H$306,$D57,'006各シート集約'!G$7:G$306) -> 0 | G57: =SUMIF('006各シート集約'!$H$7:$H$306,$D57,'006各シート集約'!J$7:J$306) -> 0 | H57: =SUMIF('006各シート集約'!$H$7:$H$306,$D57,'006各シート集約'!K$7:K$306) -> 0 | I57: =SUMIF('006各シート集約'!$H$7:$H$306,$D57,'006各シート集約'!L$7:L$306) -> 0 | J57: =SUMIF('006各シート集約'!$H$7:$H$306,$D57,'006各シート集約'!M$7:M$306) -> 0 | K57: =SUMIF('006各シート集約'!$H$7:$H$306,$D57,'006各シート集約'!N$7:N$306) -> 0 | L57: =SUMIF('006各シート集約'!$H$7:$H$306,$D57,'006各シート集約'!O$7:O$306) -> 0 | M57: =SUMIF('006各シート集約'!$H$7:$H$306,$D57,'006各シート集約'!P$7:P$306) -> 0 | N57: =SUMIF('006各シート集約'!$H$7:$H$306,$D57,'006各シート集約'!Q$7:Q$306) -> 0 | O57: =SUMIF('006各シート集約'!$H$7:$H$306,$D57,'006各シート集約'!R$7:R$306) -> 0 | P57: =SUMIF('006各シート集約'!$H$7:$H$306,$D57,'006各シート集約'!S$7:S$306) -> 0 | Q57: =SUMIF('006各シート集約'!$H$7:$H$306,$D57,'006各シート集約'!T$7:T$306) -> 0 | R57: =SUMIF('006各シート集約'!$H$7:$H$306,$D57,'006各シート集約'!U$7:U$306) -> 0 | S57: =SUMIF('006各シート集約'!$H$7:$H$306,$D57,'006各シート集約'!V$7:V$306) -> 0 | T57: =SUMIF('006各シート集約'!$H$7:$H$306,$D57,'006各シート集約'!W$7:W$306) -> 0 | U57: =SUMIF('006各シート集約'!$H$7:$H$306,$D57,'006各シート集約'!X$7:X$306) -> 0
